Workbook

Sheet Project Summary
B2: x | R2: x
C3: Project Summary
C4: Woodforest Shopping Center
C6: PROJECT OVERVIEW | L6: DISPOSITION
C7: Address | J7: 421 Uvalde Rd | L7: Hold Period | Q7: 7
C8: City, State Zip | J8: Houston, TX 77015 | L8: Exit Date | Q8: =+EOMONTH($J$14,$Q$7*12) -> 2025-01-31
C9: Year Built / Renvoated | J9: 1968 | P9: $ Actual | Q9: $ PSF
C10: Class | J10: B | L10: NTM NOI | P10: =+SUMIFS('Monthly CF'!$F$49:$EG$49,'Monthly CF'!$F$6:$EG$6,">"&$Q$8,'Monthly CF'!$F$6:$EG$6,"<="&(EOMONTH($Q$8,12))) -> 1217272.208 | Q10: =+P10/$J$12 -> 10.69837853
C11: Owner | J11: CCG Woodforest, LP | L11: Exit Cap | P11: 0.08
C12: Net Rentable SF | J12: 113781 | L12: Gross Sales Price | P12: =+P10/P11 -> 15215902.6 | Q12: =+P12/$J$12 -> 133.7297317
C13: Occupancy at Close | J13: 0.848 | L13: Less: Closing Costs | O13: 0.01 | P13: =+-P12*O13 -> -152159.026 | Q13: -1.337297317
C14: Acquisition Date | J14: 2018-01-01 | L14: Net Sales Proceeds | P14: =SUM(P12:P13) -> 15063743.57 | Q14: =+P14/$J$12 -> 132.3924344
C15: Stabilization Date | J15: 2019-06-30 | L15: Less: Debt Repayment | P15: =+SUM('Monthly CF'!E74:EG74) -> -6165263.668 | Q15: =+P15/$J$12 -> -54.18535316
C16: Hold Period (Months) to Reach Stabilization | J16: =(J15-J14)/(365/12) -> 17.91780822 | L16: Sales Distribution after Debt Repayment | P16: =+P14+P15 -> 8898479.906 | Q16: =+P16/$J$12 -> 78.2070812
C18: SOURCES & USES AT CLOSING | L18: MARK-TO-MARKET ANALYSIS
C19: Sources | I19: $ Actual | J19: $ PSF | P19: $ Actual | Q19: $ PSF
D20: Loan Proceeds | H20: =+I25/I34*0.65 -> 0.6310679612 | I20: =+H20*I34 -> 7475000 | J20: =+I20/$J$12 -> 65.69638165 | L20: Stabilized Basis | P20: =+M40 -> 11911557.95 | Q20: =+P20/$J$12 -> 104.6884625
D21: Equity | H21: =1-H20 -> 0.3689320388 | I21: =+H21*I34 -> 4370000 | J21: =+I21/$J$12 -> 38.40711542 | L21: Market Rent at Close (NNN) | P21: =+Q21*$J$12 -> 1251591 | Q21: 11
C22: Total Sources | I22: =SUM(I20:I21) -> 11845000 | J22: =+I22/$J$12 -> 104.1034971 | L22: Less: General Vacancy | O22: 0.05 | P22: =+-P21*O22 -> -62579.55 | Q22: =+P22/$J$12 -> -0.55
L23: Market Rent after Vacancy (NNN) | P23: =+P21+P22 -> 1189011.45 | Q23: =+P23/$J$12 -> 10.45
C24: Uses | I24: $ Actual | J24: $ PSF | L24: Untrended Mark-to-Market YOC @ Stabilization | Q24: =+Q23/Q20 -> 0.09981997779
D25: Purchase Price | I25: 11500000 | J25: =+I25/$J$12 -> 101.0713564
D26: Renovation Budget | I26: 0 | J26: =+I26/$J$12 -> 0 | L26: OPERATING METRICS
D27: Closing Costs & Loan Fees | M27: Last | P27: NTM Cap Rate | Q27: Economic
E28: Legal Fees | I28: 0 | J28: =+I28/$J$12 -> 0 | L28: Period | M28: Dollar Basis | N28: PSF | O28: NOI (NTM) | P28: on Total Basis | Q28: Occupancy
E29: Lender Fees | H29: 0 | I29: =H29*I20 -> 0 | J29: 0 | L29: At Close | M29: =+I34-SUM(I26) -> 11845000 | N29: =+M29/$J$12 -> 104.1034971 | O29: =+SUM('Monthly CF'!F49:Q49) -> 942287.0068 | P29: =+O29/M29 -> 0.07955145689 | Q29: =+'Annual CF'!G$8 -> 0.8617373141
E30: Appraisal, Structural, Environmental & Survey | I30: 0 | J30: 0 | L30: 1 | M30: =+M29+SUMIF('Monthly CF'!$E$4:$EG$4,'Project Summary'!L30,'Monthly CF'!$E$56:$EG$56)+SUMIF('Monthly CF'!$E$4:$EG$4,'Project Summary'!L30,'Monthly CF'!$E$93:$EG$93)+SUMIF('Monthly CF'!$E$4:$EG$4,'Project Summary'!L30,'Monthly CF'!$E$94:$EG$94) -> 11891426.2 | N30: 104.5115283 | O30: =+SUMIF('Monthly CF'!$F$4:$EG$4,'Project Summary'!L30+1,'Monthly CF'!$F$49:$EG$49) -> 1119580.253 | P30: 0.09415020828 | Q30: =+'Annual CF'!G$8 -> 0.8617373141
E31: Title (Endorsements) | I31: 0 | J31: 0 | L31: =+L30+1 -> 2 | M31: =+M30+SUMIF('Monthly CF'!$E$4:$EG$4,'Project Summary'!L31,'Monthly CF'!$E$56:$EG$56)+SUMIF('Monthly CF'!$E$4:$EG$4,'Project Summary'!L31,'Monthly CF'!$E$93:$EG$93)+SUMIF('Monthly CF'!$E$4:$EG$4,'Project Summary'!L31,'Monthly CF'!$E$94:$EG$94) -> 11924832.4 | N31: 104.8051292 | O31: =+SUMIF('Monthly CF'!$F$4:$EG$4,'Project Summary'!L31+1,'Monthly CF'!$F$49:$EG$49) -> 1173766.125 | P31: 0.09843040854 | Q31: =+'Annual CF'!H$8 -> 0.9269210149
E32: Acquisition Fee | H32: 0.03 | I32: =+H32*I25 -> 345000 | J32: 3.032140691 | L32: 3 | M32: =+M31+SUMIF('Monthly CF'!$E$4:$EG$4,'Project Summary'!L32,'Monthly CF'!$E$56:$EG$56)+SUMIF('Monthly CF'!$E$4:$EG$4,'Project Summary'!L32,'Monthly CF'!$E$93:$EG$93)+SUMIF('Monthly CF'!$E$4:$EG$4,'Project Summary'!L32,'Monthly CF'!$E$94:$EG$94) -> 11947588.6 | N32: 105.0051292 | O32: =+SUMIF('Monthly CF'!$F$4:$EG$4,'Project Summary'!L32+1,'Monthly CF'!$F$49:$EG$49) -> 1175262.869 | P32: 0.09836820706 | Q32: =+'Annual CF'!I$8 -> 0.9379070319
D33: Total Closing Costs & Loan Fees | I33: =+SUM(I28:I32) -> 345000 | J33: 3.032140691 | L33: 4 | M33: =+M32+SUMIF('Monthly CF'!$E$4:$EG$4,'Project Summary'!L33,'Monthly CF'!$E$56:$EG$56)+SUMIF('Monthly CF'!$E$4:$EG$4,'Project Summary'!L33,'Monthly CF'!$E$93:$EG$93)+SUMIF('Monthly CF'!$E$4:$EG$4,'Project Summary'!L33,'Monthly CF'!$E$94:$EG$94) -> 11970344.8 | N33: 105.2051292 | O33: =+SUMIF('Monthly CF'!$F$4:$EG$4,'Project Summary'!L33+1,'Monthly CF'!$F$49:$EG$49) -> 1185515.513 | P33: 0.09903770798 | Q33: =+'Annual CF'!J$8 -> 0.9379070319
C34: Total Costs | I34: =+I25+I26+I33 -> 11845000 | J34: 104.1034971 | L34: 5 | M34: =+M33+SUMIF('Monthly CF'!$E$4:$EG$4,'Project Summary'!L34,'Monthly CF'!$E$56:$EG$56)+SUMIF('Monthly CF'!$E$4:$EG$4,'Project Summary'!L34,'Monthly CF'!$E$93:$EG$93)+SUMIF('Monthly CF'!$E$4:$EG$4,'Project Summary'!L34,'Monthly CF'!$E$94:$EG$94) -> 11993101 | N34: 105.4051292 | O34: =+SUMIF('Monthly CF'!$F$4:$EG$4,'Project Summary'!L34+1,'Monthly CF'!$F$49:$EG$49) -> 1197560.735 | P34: 0.09985413575 | Q34: =+'Annual CF'!K$8 -> 0.9379070319
L35: 6 | M35: =+M34+SUMIF('Monthly CF'!$E$4:$EG$4,'Project Summary'!L35,'Monthly CF'!$E$56:$EG$56)+SUMIF('Monthly CF'!$E$4:$EG$4,'Project Summary'!L35,'Monthly CF'!$E$93:$EG$93)+SUMIF('Monthly CF'!$E$4:$EG$4,'Project Summary'!L35,'Monthly CF'!$E$94:$EG$94) -> 12015857.2 | N35: 105.6051292 | O35: =+SUMIF('Monthly CF'!$F$4:$EG$4,'Project Summary'!L35+1,'Monthly CF'!$F$49:$EG$49) -> 1218088.865 | P35: 0.1013734471 | Q35: =+'Annual CF'!L$8 -> 0.9379070319
C36: SOURCES & USES - FULLY FUNDED | L36: 7 | M36: =+M35+SUMIF('Monthly CF'!$E$4:$EG$4,'Project Summary'!L36,'Monthly CF'!$E$56:$EG$56)+SUMIF('Monthly CF'!$E$4:$EG$4,'Project Summary'!L36,'Monthly CF'!$E$93:$EG$93)+SUMIF('Monthly CF'!$E$4:$EG$4,'Project Summary'!L36,'Monthly CF'!$E$94:$EG$94) -> 12038613.4 | N36: 105.8051292 | O36: =+SUMIF('Monthly CF'!$F$4:$EG$4,'Project Summary'!L36+1,'Monthly CF'!$F$49:$EG$49) -> 1217272.208 | P36: 0.1011139878 | Q36: =+'Annual CF'!M$8 -> 0.9379070319
C37: Sources | I37: $ Actual | J37: $ PSF | L37: 8 | M37: =+M36+SUMIF('Monthly CF'!$E$4:$EG$4,'Project Summary'!L37,'Monthly CF'!$E$56:$EG$56)+SUMIF('Monthly CF'!$E$4:$EG$4,'Project Summary'!L37,'Monthly CF'!$E$93:$EG$93)+SUMIF('Monthly CF'!$E$4:$EG$4,'Project Summary'!L37,'Monthly CF'!$E$94:$EG$94) -> 12061369.6 | N37: 106.0051292 | O37: =+SUMIF('Monthly CF'!$F$4:$EG$4,'Project Summary'!L37+1,'Monthly CF'!$F$49:$EG$49) -> 1216431.052 | P37: 0.1008534762 | Q37: =+'Annual CF'!N$8 -> 0.9379070319
D38: Loan Proceeds | F38: =+I38/$I$47 -> 0.6292447716 | I38: =+I20 -> 7475000 | J38: =+I38/$J$12 -> 65.69638165 | L38: 9 | M38: =+M37+SUMIF('Monthly CF'!$E$4:$EG$4,'Project Summary'!L38,'Monthly CF'!$E$56:$EG$56)+SUMIF('Monthly CF'!$E$4:$EG$4,'Project Summary'!L38,'Monthly CF'!$E$93:$EG$93)+SUMIF('Monthly CF'!$E$4:$EG$4,'Project Summary'!L38,'Monthly CF'!$E$94:$EG$94) -> 12084125.8 | N38: 106.2051292 | O38: =+SUMIF('Monthly CF'!$F$4:$EG$4,'Project Summary'!L38+1,'Monthly CF'!$F$49:$EG$49) -> 1226564.66 | P38: 0.1015021426 | Q38: =+'Annual CF'!O$8 -> 0.9379070319
D39: Equity | F39: =+I39/$I$47 -> 0.3678661742 | I39: =+MAX('Monthly CF'!E82:EG82) -> 4370000 | J39: 38.40711542 | L39: 10 | M39: =+M38+SUMIF('Monthly CF'!$E$4:$EG$4,'Project Summary'!L39,'Monthly CF'!$E$56:$EG$56)+SUMIF('Monthly CF'!$E$4:$EG$4,'Project Summary'!L39,'Monthly CF'!$E$93:$EG$93)+SUMIF('Monthly CF'!$E$4:$EG$4,'Project Summary'!L39,'Monthly CF'!$E$94:$EG$94) -> 12106882 | N39: 106.4051292 | O39: =+SUMIF('Monthly CF'!$F$4:$EG$4,'Project Summary'!L39+1,'Monthly CF'!$F$49:$EG$49) -> 1225748.683 | P39: 0.1012439605 | Q39: =+'Annual CF'!P$8 -> 0.9379070319
D40: Cash Flow | F40: =+I40/$I$47 -> 0.002889054256 | I40: =+I47-SUM(I38:I39) -> 34320 | J40: 0.3016320827 | L40: At Stabilization | M40: =+INDEX('Monthly CF'!$E$96:$EG$96,MATCH('Project Summary'!$J$15,'Monthly CF'!$E$6:$EG$6)) -> 11911557.95 | N40: 104.6884625 | O40: =+INDEX('Monthly CF'!$E$98:$EG$98,MATCH('Project Summary'!$J$15,'Monthly CF'!$E$6:$EG$6)) -> 1162762.789 | P40: 0.09761634825 | Q40: 0.938
C41: Total Sources | I41: =SUM(I38:I40) -> 11879320 | J41: =SUM(J38:J40) -> 104.4051292
L42: ROLLOVER SCHEDULE
C43: Uses | I43: $ Actual | J43: $ PSF | N43: Current | P43: Cumulative
D44: Acquisition Costs | I44: =+I34-SUM(I26) -> 11845000 | J44: =+I44/$J$12 -> 104.1034971 | L44: Period | M44: Year Ending | N44: SF Expired | O44: % Expired | P44: SF Expired | Q44: % Expired
D45: TI & LCs | I45: =+SUM('Monthly CF'!F52:EG53) -> 34320 | J45: 0.3016320827 | L45: At Close | M45: =+J14 -> 2018-01-01 | N45: 17265 | O45: =+N45/$J$12 -> 0.1517388668 | P45: =+N45 -> 17265 | Q45: =+O45 -> 0.1517388668
D46: Renovation Capex | I46: =+I26 -> 0 | J46: 0 | L46: 1 | M46: =+EOMONTH(M45,12) -> 2019-01-31 | N46: 8985 | O46: =+N46/$J$12 -> 0.07896749018 | P46: =+P45+N46 -> 26250 | Q46: =+Q45+O46 -> 0.2307063569
C47: Total Capitalization | I47: =SUM(I44:I46) -> 11879320 | J47: 104.4051292 | L47: =+L46+1 -> 2 | M47: =+EOMONTH(M46,12) -> 2020-01-31 | N47: 17271 | O47: =+N47/$J$12 -> 0.1517915997 | P47: =+P46+N47 -> 43521 | Q47: =+Q46+O47 -> 0.3824979566
L48: 3 | M48: 2021-01-31 | N48: 5025 | O48: 0.04416378833 | P48: 48546 | Q48: 0.4266617449
C49: RENOVATION | L49: 4 | M49: 2022-01-31 | N49: 8335 | O49: 0.07325476134 | P49: 56881 | Q49: 0.4999165063
I50: $ Actual | J50: $ PSF | L50: 5 | M50: 2023-01-31 | N50: 24200 | O50: 0.2126892891 | P50: 81081 | Q50: 0.7126057953
C51: Total Capex Spend | I51: =+I26 -> 0 | J51: =+I51/$J$12 -> 0 | L51: 6 | M51: 2024-01-31 | N51: 29000 | O51: 0.2548755943 | P51: 110081 | Q51: 0.9674813897
L52: 7 | M52: 2025-01-31 | N52: 2700 | O52: 0.02372979671 | P52: 112781 | Q52: 0.9912111864
C53: Capex Start | L53: 8 | M53: 2026-01-31 | N53: 1000 | O53: 0.008788813598 | P53: 113781 | Q53: 1
C54: Time to Complete | L54: 9 | M54: 2027-01-31 | N54: =+SUMIF('Tenant Summary'!$O$8:$O$31,'Project Summary'!L54,'Tenant Summary'!$D$8:$D$31) -> 0 | O54: 0 | P54: 113781 | Q54: 1
C55: Capex End | L55: 10 | M55: 2028-01-31 | N55: =+SUMIF('Tenant Summary'!$O$8:$O$31,'Project Summary'!L55,'Tenant Summary'!$D$8:$D$31) -> 0 | O55: 0 | P55: 113781 | Q55: 1
C56: Capex Spend per Month
L57: RETURNS
C58: FINANCING | L58: Unlevered IRR | Q58: =+'Monthly CF'!$D$62 -> 0.1243866271
C59: Acquisition Loan Proceeds | J59: =+I20-J60 -> 7475000 | L59: Unlevered Multiple | Q59: =+'Monthly CF'!$D$63 -> 1.931801734
C60: Additional Debt Reserve / Holdback Proceeds | J60: =+SUM(I26)*H20 -> 0 | L60: Levered IRR | Q60: =+'Monthly CF'!D77 -> 0.2201883135
C61: Term | J61: =Q7 -> 7 | L61: Levered Multiple | Q61: =+'Monthly CF'!D78 -> 3.014457973
C62: Rate | J62: 0.0465 | L62: Levered Analysis | O62: % of Total Profit | P62: $ Actual | Q62: $ PSF
C63: Initial IO? | J63: no | L63: NPV of Total Cash Flows | O63: =+P63/$P$63 -> 1 | P63: =NPV(((($Q$60+1)^(1/12)-1)),'Monthly CF'!F75:EG75) -> 4370000 | Q63: =+P63/$J$12 -> 38.40711542
C64: Switch to Amo | J64: 0 | L64: Cash Flows | O64: =+P64/$P$63 -> 0.4943542526 | P64: =NPV(((($Q$60+1)^(1/12)-1)),'Monthly CF'!F100:EG100) -> 2160328.084 | Q64: =+P64/$J$12 -> 18.98672084
C65: Amortization Period | J65: 25 | L65: Sales Proceeds | O65: =+P65/$P$63 -> 0.5056457474 | P65: =NPV(((($Q$60+1)^(1/12)-1)),'Monthly CF'!F101:EG101) -> 2209671.916 | Q65: =+P65/$J$12 -> 19.42039458
B66: x | R66: x

Sheet Annual CF
B2: Annual Cash Flows
B3: =+'Project Summary'!C4 -> Woodforest Shopping Center
B4: Year | F4: 0 | G4: =+F4+1 -> 1 | H4: =+G4+1 -> 2 | I4: 3 | J4: 4 | K4: 5 | L4: 6 | M4: 7 | N4: 8 | O4: 9 | P4: 10 | Q4: 11
B5: Date | F5: =+'Project Summary'!$J$14 -> 2018-01-01 | G5: =+EOMONTH(F5,12) -> 2019-01-31 | H5: =+EOMONTH(G5,12) -> 2020-01-31 | I5: 2021-01-31 | J5: 2022-01-31 | K5: 2023-01-31 | L5: 2024-01-31 | M5: 2025-01-31 | N5: 2026-01-31 | O5: 2027-01-31 | P5: 2028-01-31 | Q5: 2029-01-31
B7: Average Occupancy | G7: =+INDEX(Occupancy!$B$18:$L$18,MATCH('Annual CF'!G5,Occupancy!$B$2:$L$2))/'Project Summary'!$J$12 -> 0.8617373141 | H7: =+INDEX(Occupancy!$B$18:$L$18,MATCH('Annual CF'!H5,Occupancy!$B$2:$L$2))/'Project Summary'!$J$12 -> 0.9269210149 | I7: =+INDEX(Occupancy!$B$18:$L$18,MATCH('Annual CF'!I5,Occupancy!$B$2:$L$2))/'Project Summary'!$J$12 -> 0.9379070319 | J7: =+INDEX(Occupancy!$B$18:$L$18,MATCH('Annual CF'!J5,Occupancy!$B$2:$L$2))/'Project Summary'!$J$12 -> 0.9379070319 | K7: =+INDEX(Occupancy!$B$18:$L$18,MATCH('Annual CF'!K5,Occupancy!$B$2:$L$2))/'Project Summary'!$J$12 -> 0.9379070319 | L7: =+INDEX(Occupancy!$B$18:$L$18,MATCH('Annual CF'!L5,Occupancy!$B$2:$L$2))/'Project Summary'!$J$12 -> 0.9379070319 | M7: =+INDEX(Occupancy!$B$18:$L$18,MATCH('Annual CF'!M5,Occupancy!$B$2:$L$2))/'Project Summary'!$J$12 -> 0.9379070319 | N7: =+INDEX(Occupancy!$B$18:$L$18,MATCH('Annual CF'!N5,Occupancy!$B$2:$L$2))/'Project Summary'!$J$12 -> 0.9379070319 | O7: =+INDEX(Occupancy!$B$18:$L$18,MATCH('Annual CF'!O5,Occupancy!$B$2:$L$2))/'Project Summary'!$J$12 -> 0.9379070319 | P7: =+INDEX(Occupancy!$B$18:$L$18,MATCH('Annual CF'!P5,Occupancy!$B$2:$L$2))/'Project Summary'!$J$12 -> 0.9379070319 | Q7: =+INDEX(Occupancy!$B$18:$L$18,MATCH('Annual CF'!Q5,Occupancy!$B$2:$L$2))/'Project Summary'!$J$12 -> 0.9379070319
B8: Economic Occupancy (w/ General Vacancy) | G8: =+G7 -> 0.8617373141 | H8: =+H7 -> 0.9269210149 | I8: 0.9379070319 | J8: 0.9379070319 | K8: 0.9379070319 | L8: 0.9379070319 | M8: 0.9379070319 | N8: 0.9379070319 | O8: 0.9379070319 | P8: 0.9379070319 | Q8: 0.9379070319
B9: Gross Rent / Occupied SF | G9: =(G15+G16+G17)/(G7*'Project Summary'!$J$12) -> 13.77214985 | H9: =(H15+H16+H17)/(H7*'Project Summary'!$J$12) -> 14.58913855 | I9: =(I15+I16+I17)/(I7*'Project Summary'!$J$12) -> 15.03232063 | J9: =(J15+J16+J17)/(J7*'Project Summary'!$J$12) -> 15.15584727 | K9: =(K15+K16+K17)/(K7*'Project Summary'!$J$12) -> 15.36470756 | L9: =(L15+L16+L17)/(L7*'Project Summary'!$J$12) -> 15.59374909 | M9: =(M15+M16+M17)/(M7*'Project Summary'!$J$12) -> 15.9057662 | N9: =(N15+N16+N17)/(N7*'Project Summary'!$J$12) -> 16.0213581 | O9: =(O15+O16+O17)/(O7*'Project Summary'!$J$12) -> 16.14041775 | P9: =(P15+P16+P17)/(P7*'Project Summary'!$J$12) -> 16.36612652 | Q9: =(Q15+Q16+Q17)/(Q7*'Project Summary'!$J$12) -> 16.4816223
B10: Gross Rent / Occupied SF Growth Rate | H10: =+(H9-G9)/G9 -> 0.05932179849 | I10: =+(I9-H9)/H9 -> 0.03037753546 | J10: 0.008217403585 | K10: 0.01378083864 | L10: 0.01490698944 | M10: 0.02000911458 | N10: 0.007267295008 | O10: 0.007431308349 | P10: 0.01398407228 | Q10: 0.007057001546
B12: Acquisition Cost | F12: =+'Monthly CF'!E7 -> -11845000
B13: Base Rental Revenue | G13: =+SUMIF('Monthly CF'!$F$4:$EG$4,'Annual CF'!G$4,'Monthly CF'!$F10:$EG10) -> 996575.55 | H13: =+SUMIF('Monthly CF'!$F$4:$EG$4,'Annual CF'!H$4,'Monthly CF'!$F10:$EG10) -> 1149215.7 | I13: =+SUMIF('Monthly CF'!$F$4:$EG$4,'Annual CF'!I$4,'Monthly CF'!$F10:$EG10) -> 1200492.367 | J13: =+SUMIF('Monthly CF'!$F$4:$EG$4,'Annual CF'!J$4,'Monthly CF'!$F10:$EG10) -> 1202714.7 | K13: =+SUMIF('Monthly CF'!$F$4:$EG$4,'Annual CF'!K$4,'Monthly CF'!$F10:$EG10) -> 1213714.7 | L13: =+SUMIF('Monthly CF'!$F$4:$EG$4,'Annual CF'!L$4,'Monthly CF'!$F10:$EG10) -> 1226529.7 | M13: =+SUMIF('Monthly CF'!$F$4:$EG$4,'Annual CF'!M$4,'Monthly CF'!$F10:$EG10) -> 1247850.7 | N13: =+SUMIF('Monthly CF'!$F$4:$EG$4,'Annual CF'!N$4,'Monthly CF'!$F10:$EG10) -> 1247850.7 | O13: =+SUMIF('Monthly CF'!$F$4:$EG$4,'Annual CF'!O$4,'Monthly CF'!$F10:$EG10) -> 1247850.7 | P13: =+SUMIF('Monthly CF'!$F$4:$EG$4,'Annual CF'!P$4,'Monthly CF'!$F10:$EG10) -> 1258850.7 | Q13: =+SUMIF('Monthly CF'!$F$4:$EG$4,'Annual CF'!Q$4,'Monthly CF'!$F10:$EG10) -> 1258850.7
B14: Less: Vacancy Loss | G14: =+SUMIF('Monthly CF'!$F$4:$EG$4,'Annual CF'!G$4,'Monthly CF'!$F11:$EG11) -> 0 | H14: =+SUMIF('Monthly CF'!$F$4:$EG$4,'Annual CF'!H$4,'Monthly CF'!$F11:$EG11) -> 0 | I14: =+SUMIF('Monthly CF'!$F$4:$EG$4,'Annual CF'!I$4,'Monthly CF'!$F11:$EG11) -> 0 | J14: =+SUMIF('Monthly CF'!$F$4:$EG$4,'Annual CF'!J$4,'Monthly CF'!$F11:$EG11) -> 0 | K14: =+SUMIF('Monthly CF'!$F$4:$EG$4,'Annual CF'!K$4,'Monthly CF'!$F11:$EG11) -> 0 | L14: =+SUMIF('Monthly CF'!$F$4:$EG$4,'Annual CF'!L$4,'Monthly CF'!$F11:$EG11) -> 0 | M14: =+SUMIF('Monthly CF'!$F$4:$EG$4,'Annual CF'!M$4,'Monthly CF'!$F11:$EG11) -> 0 | N14: =+SUMIF('Monthly CF'!$F$4:$EG$4,'Annual CF'!N$4,'Monthly CF'!$F11:$EG11) -> 0 | O14: =+SUMIF('Monthly CF'!$F$4:$EG$4,'Annual CF'!O$4,'Monthly CF'!$F11:$EG11) -> 0 | P14: =+SUMIF('Monthly CF'!$F$4:$EG$4,'Annual CF'!P$4,'Monthly CF'!$F11:$EG11) -> 0 | Q14: =+SUMIF('Monthly CF'!$F$4:$EG$4,'Annual CF'!Q$4,'Monthly CF'!$F11:$EG11) -> 0
B15: Scheduled Base Rental Revenue | G15: =SUM(G13:G14) -> 996575.55 | H15: =SUM(H13:H14) -> 1149215.7 | I15: 1200492.367 | J15: 1202714.7 | K15: 1213714.7 | L15: 1226529.7 | M15: 1247850.7 | N15: 1247850.7 | O15: 1247850.7 | P15: 1258850.7 | Q15: 1258850.7
B16: Expense Reimbursement Revenue | G16: =+SUMPRODUCT(--('Monthly CF'!$E$4:$EG$4='Annual CF'!G$4),--('Monthly CF'!$E14:$EG14)) -> 353774.5618 | H16: =+SUMPRODUCT(--('Monthly CF'!$E$4:$EG$4='Annual CF'!H$4),--('Monthly CF'!$E14:$EG14)) -> 389442.3866 | I16: =+SUMPRODUCT(--('Monthly CF'!$E$4:$EG$4='Annual CF'!I$4),--('Monthly CF'!$E14:$EG14)) -> 403696.7614 | J16: =+SUMPRODUCT(--('Monthly CF'!$E$4:$EG$4='Annual CF'!J$4),--('Monthly CF'!$E14:$EG14)) -> 414656.6975 | K16: =+SUMPRODUCT(--('Monthly CF'!$E$4:$EG$4='Annual CF'!K$4),--('Monthly CF'!$E14:$EG14)) -> 425945.4318 | L16: =+SUMPRODUCT(--('Monthly CF'!$E$4:$EG$4='Annual CF'!L$4),--('Monthly CF'!$E14:$EG14)) -> 437572.828 | M16: =+SUMPRODUCT(--('Monthly CF'!$E$4:$EG$4='Annual CF'!M$4),--('Monthly CF'!$E14:$EG14)) -> 449549.0462 | N16: =+SUMPRODUCT(--('Monthly CF'!$E$4:$EG$4='Annual CF'!N$4),--('Monthly CF'!$E14:$EG14)) -> 461884.5509 | O16: =+SUMPRODUCT(--('Monthly CF'!$E$4:$EG$4='Annual CF'!O$4),--('Monthly CF'!$E14:$EG14)) -> 474590.1207 | P16: =+SUMPRODUCT(--('Monthly CF'!$E$4:$EG$4='Annual CF'!P$4),--('Monthly CF'!$E14:$EG14)) -> 487676.8577 | Q16: =+SUMPRODUCT(--('Monthly CF'!$E$4:$EG$4='Annual CF'!Q$4),--('Monthly CF'!$E14:$EG14)) -> 500002.1053
B17: Other Income | G17: =+SUMPRODUCT(--('Monthly CF'!$E$4:$EG$4='Annual CF'!G$4),--('Monthly CF'!$E15:$EG15)) -> 0 | H17: =+SUMPRODUCT(--('Monthly CF'!$E$4:$EG$4='Annual CF'!H$4),--('Monthly CF'!$E15:$EG15)) -> 0 | I17: =+SUMPRODUCT(--('Monthly CF'!$E$4:$EG$4='Annual CF'!I$4),--('Monthly CF'!$E15:$EG15)) -> 0 | J17: =+SUMPRODUCT(--('Monthly CF'!$E$4:$EG$4='Annual CF'!J$4),--('Monthly CF'!$E15:$EG15)) -> 0 | K17: =+SUMPRODUCT(--('Monthly CF'!$E$4:$EG$4='Annual CF'!K$4),--('Monthly CF'!$E15:$EG15)) -> 0 | L17: =+SUMPRODUCT(--('Monthly CF'!$E$4:$EG$4='Annual CF'!L$4),--('Monthly CF'!$E15:$EG15)) -> 0 | M17: =+SUMPRODUCT(--('Monthly CF'!$E$4:$EG$4='Annual CF'!M$4),--('Monthly CF'!$E15:$EG15)) -> 0 | N17: =+SUMPRODUCT(--('Monthly CF'!$E$4:$EG$4='Annual CF'!N$4),--('Monthly CF'!$E15:$EG15)) -> 0 | O17: =+SUMPRODUCT(--('Monthly CF'!$E$4:$EG$4='Annual CF'!O$4),--('Monthly CF'!$E15:$EG15)) -> 0 | P17: =+SUMPRODUCT(--('Monthly CF'!$E$4:$EG$4='Annual CF'!P$4),--('Monthly CF'!$E15:$EG15)) -> 0 | Q17: =+SUMPRODUCT(--('Monthly CF'!$E$4:$EG$4='Annual CF'!Q$4),--('Monthly CF'!$E15:$EG15)) -> 0
B18: Less: General Vacancy | G18: =+SUMPRODUCT(--('Monthly CF'!$E$4:$EG$4='Annual CF'!G$4),--('Monthly CF'!$E19:$EG19)) -> 0 | H18: =+SUMPRODUCT(--('Monthly CF'!$E$4:$EG$4='Annual CF'!H$4),--('Monthly CF'!$E19:$EG19)) -> 0 | I18: =+SUMPRODUCT(--('Monthly CF'!$E$4:$EG$4='Annual CF'!I$4),--('Monthly CF'!$E19:$EG19)) -> 0 | J18: =+SUMPRODUCT(--('Monthly CF'!$E$4:$EG$4='Annual CF'!J$4),--('Monthly CF'!$E19:$EG19)) -> 0 | K18: =+SUMPRODUCT(--('Monthly CF'!$E$4:$EG$4='Annual CF'!K$4),--('Monthly CF'!$E19:$EG19)) -> 0 | L18: =+SUMPRODUCT(--('Monthly CF'!$E$4:$EG$4='Annual CF'!L$4),--('Monthly CF'!$E19:$EG19)) -> 0 | M18: =+SUMPRODUCT(--('Monthly CF'!$E$4:$EG$4='Annual CF'!M$4),--('Monthly CF'!$E19:$EG19)) -> 0 | N18: =+SUMPRODUCT(--('Monthly CF'!$E$4:$EG$4='Annual CF'!N$4),--('Monthly CF'!$E19:$EG19)) -> 0 | O18: =+SUMPRODUCT(--('Monthly CF'!$E$4:$EG$4='Annual CF'!O$4),--('Monthly CF'!$E19:$EG19)) -> 0 | P18: =+SUMPRODUCT(--('Monthly CF'!$E$4:$EG$4='Annual CF'!P$4),--('Monthly CF'!$E19:$EG19)) -> 0 | Q18: =+SUMPRODUCT(--('Monthly CF'!$E$4:$EG$4='Annual CF'!Q$4),--('Monthly CF'!$E19:$EG19)) -> 0
B19: Less: Operating Expenses | G19: =+SUMPRODUCT(--('Monthly CF'!$E$4:$EG$4='Annual CF'!G$4),--('Monthly CF'!$E47:$EG47)) -> -408063.105 | H19: =+SUMPRODUCT(--('Monthly CF'!$E$4:$EG$4='Annual CF'!H$4),--('Monthly CF'!$E47:$EG47)) -> -419077.8332 | I19: =+SUMPRODUCT(--('Monthly CF'!$E$4:$EG$4='Annual CF'!I$4),--('Monthly CF'!$E47:$EG47)) -> -430423.0031 | J19: =+SUMPRODUCT(--('Monthly CF'!$E$4:$EG$4='Annual CF'!J$4),--('Monthly CF'!$E47:$EG47)) -> -442108.5282 | K19: =+SUMPRODUCT(--('Monthly CF'!$E$4:$EG$4='Annual CF'!K$4),--('Monthly CF'!$E47:$EG47)) -> -454144.6191 | L19: =+SUMPRODUCT(--('Monthly CF'!$E$4:$EG$4='Annual CF'!L$4),--('Monthly CF'!$E47:$EG47)) -> -466541.7927 | M19: =+SUMPRODUCT(--('Monthly CF'!$E$4:$EG$4='Annual CF'!M$4),--('Monthly CF'!$E47:$EG47)) -> -479310.8814 | N19: =+SUMPRODUCT(--('Monthly CF'!$E$4:$EG$4='Annual CF'!N$4),--('Monthly CF'!$E47:$EG47)) -> -492463.0429 | O19: =+SUMPRODUCT(--('Monthly CF'!$E$4:$EG$4='Annual CF'!O$4),--('Monthly CF'!$E47:$EG47)) -> -506009.7692 | P19: =+SUMPRODUCT(--('Monthly CF'!$E$4:$EG$4='Annual CF'!P$4),--('Monthly CF'!$E47:$EG47)) -> -519962.8972 | Q19: =+SUMPRODUCT(--('Monthly CF'!$E$4:$EG$4='Annual CF'!Q$4),--('Monthly CF'!$E47:$EG47)) -> -533104.1226
B20: Net Operating Income | G20: =SUM(G15:G19) -> 942287.0068 | H20: =SUM(H15:H19) -> 1119580.253 | I20: 1173766.125 | J20: 1175262.869 | K20: 1185515.513 | L20: 1197560.735 | M20: 1218088.865 | N20: 1217272.208 | O20: 1216431.052 | P20: 1226564.66 | Q20: 1225748.683
B21: NOI Growth Rate | H21: =+(H20-G20)/G20 -> 0.1881520655 | I21: =+(I20-H20)/H20 -> 0.04839838074 | J21: 0.001275164077 | K21: 0.0087237023 | L21: 0.01016032483 | M21: 0.0171416186 | N21: -0.0006704410197 | O21: -0.0006910175368 | P21: 0.008330606861 | Q21: -0.0006652545219
B23: Tenant Improvements | G23: =+SUMPRODUCT(--('Monthly CF'!$E$4:$EG$4='Annual CF'!G$4),--('Monthly CF'!$E52:$EG$52)) -> 0 | H23: =+SUMPRODUCT(--('Monthly CF'!$E$4:$EG$4='Annual CF'!H$4),--('Monthly CF'!$E52:$EG$52)) -> 0 | I23: =+SUMPRODUCT(--('Monthly CF'!$E$4:$EG$4='Annual CF'!I$4),--('Monthly CF'!$E52:$EG$52)) -> 0 | J23: =+SUMPRODUCT(--('Monthly CF'!$E$4:$EG$4='Annual CF'!J$4),--('Monthly CF'!$E52:$EG$52)) -> 0 | K23: =+SUMPRODUCT(--('Monthly CF'!$E$4:$EG$4='Annual CF'!K$4),--('Monthly CF'!$E52:$EG$52)) -> 0 | L23: =+SUMPRODUCT(--('Monthly CF'!$E$4:$EG$4='Annual CF'!L$4),--('Monthly CF'!$E52:$EG$52)) -> 0 | M23: =+SUMPRODUCT(--('Monthly CF'!$E$4:$EG$4='Annual CF'!M$4),--('Monthly CF'!$E52:$EG$52)) -> 0 | N23: =+SUMPRODUCT(--('Monthly CF'!$E$4:$EG$4='Annual CF'!N$4),--('Monthly CF'!$E52:$EG$52)) -> 0 | O23: =+SUMPRODUCT(--('Monthly CF'!$E$4:$EG$4='Annual CF'!O$4),--('Monthly CF'!$E52:$EG$52)) -> 0 | P23: =+SUMPRODUCT(--('Monthly CF'!$E$4:$EG$4='Annual CF'!P$4),--('Monthly CF'!$E52:$EG$52)) -> 0 | Q23: =+SUMPRODUCT(--('Monthly CF'!$E$4:$EG$4='Annual CF'!Q$4),--('Monthly CF'!$E52:$EG$52)) -> 0
B24: Leasing Commissions | G24: =+SUMPRODUCT(--('Monthly CF'!$E$4:$EG$4='Annual CF'!G$4),--('Monthly CF'!$E53:$EG53)) -> 23670 | H24: =+SUMPRODUCT(--('Monthly CF'!$E$4:$EG$4='Annual CF'!H$4),--('Monthly CF'!$E53:$EG53)) -> 10650 | I24: =+SUMPRODUCT(--('Monthly CF'!$E$4:$EG$4='Annual CF'!I$4),--('Monthly CF'!$E53:$EG53)) -> 0 | J24: =+SUMPRODUCT(--('Monthly CF'!$E$4:$EG$4='Annual CF'!J$4),--('Monthly CF'!$E53:$EG53)) -> 0 | K24: =+SUMPRODUCT(--('Monthly CF'!$E$4:$EG$4='Annual CF'!K$4),--('Monthly CF'!$E53:$EG53)) -> 0 | L24: =+SUMPRODUCT(--('Monthly CF'!$E$4:$EG$4='Annual CF'!L$4),--('Monthly CF'!$E53:$EG53)) -> 0 | M24: =+SUMPRODUCT(--('Monthly CF'!$E$4:$EG$4='Annual CF'!M$4),--('Monthly CF'!$E53:$EG53)) -> 0 | N24: =+SUMPRODUCT(--('Monthly CF'!$E$4:$EG$4='Annual CF'!N$4),--('Monthly CF'!$E53:$EG53)) -> 0 | O24: =+SUMPRODUCT(--('Monthly CF'!$E$4:$EG$4='Annual CF'!O$4),--('Monthly CF'!$E53:$EG53)) -> 0 | P24: =+SUMPRODUCT(--('Monthly CF'!$E$4:$EG$4='Annual CF'!P$4),--('Monthly CF'!$E53:$EG53)) -> 0 | Q24: =+SUMPRODUCT(--('Monthly CF'!$E$4:$EG$4='Annual CF'!Q$4),--('Monthly CF'!$E53:$EG53)) -> 0
B25: Reserves | G25: =+SUMPRODUCT(--('Monthly CF'!$E$4:$EG$4='Annual CF'!G$4),--('Monthly CF'!$E54:$EG54)) -> 22756.2 | H25: =+SUMPRODUCT(--('Monthly CF'!$E$4:$EG$4='Annual CF'!H$4),--('Monthly CF'!$E54:$EG54)) -> 22756.2 | I25: =+SUMPRODUCT(--('Monthly CF'!$E$4:$EG$4='Annual CF'!I$4),--('Monthly CF'!$E54:$EG54)) -> 22756.2 | J25: =+SUMPRODUCT(--('Monthly CF'!$E$4:$EG$4='Annual CF'!J$4),--('Monthly CF'!$E54:$EG54)) -> 22756.2 | K25: =+SUMPRODUCT(--('Monthly CF'!$E$4:$EG$4='Annual CF'!K$4),--('Monthly CF'!$E54:$EG54)) -> 22756.2 | L25: =+SUMPRODUCT(--('Monthly CF'!$E$4:$EG$4='Annual CF'!L$4),--('Monthly CF'!$E54:$EG54)) -> 22756.2 | M25: =+SUMPRODUCT(--('Monthly CF'!$E$4:$EG$4='Annual CF'!M$4),--('Monthly CF'!$E54:$EG54)) -> 22756.2 | N25: =+SUMPRODUCT(--('Monthly CF'!$E$4:$EG$4='Annual CF'!N$4),--('Monthly CF'!$E54:$EG54)) -> 22756.2 | O25: =+SUMPRODUCT(--('Monthly CF'!$E$4:$EG$4='Annual CF'!O$4),--('Monthly CF'!$E54:$EG54)) -> 22756.2 | P25: =+SUMPRODUCT(--('Monthly CF'!$E$4:$EG$4='Annual CF'!P$4),--('Monthly CF'!$E54:$EG54)) -> 22756.2 | Q25: =+SUMPRODUCT(--('Monthly CF'!$E$4:$EG$4='Annual CF'!Q$4),--('Monthly CF'!$E54:$EG54)) -> 22756.2
B26: Renovation Capex | G26: =+SUMPRODUCT(--('Monthly CF'!$E$4:$EG$4='Annual CF'!G$4),--('Monthly CF'!$E55:$EG55)) -> 0 | H26: =+SUMPRODUCT(--('Monthly CF'!$E$4:$EG$4='Annual CF'!H$4),--('Monthly CF'!$E55:$EG55)) -> 0 | I26: =+SUMPRODUCT(--('Monthly CF'!$E$4:$EG$4='Annual CF'!I$4),--('Monthly CF'!$E55:$EG55)) -> 0 | J26: =+SUMPRODUCT(--('Monthly CF'!$E$4:$EG$4='Annual CF'!J$4),--('Monthly CF'!$E55:$EG55)) -> 0 | K26: =+SUMPRODUCT(--('Monthly CF'!$E$4:$EG$4='Annual CF'!K$4),--('Monthly CF'!$E55:$EG55)) -> 0 | L26: =+SUMPRODUCT(--('Monthly CF'!$E$4:$EG$4='Annual CF'!L$4),--('Monthly CF'!$E55:$EG55)) -> 0 | M26: =+SUMPRODUCT(--('Monthly CF'!$E$4:$EG$4='Annual CF'!M$4),--('Monthly CF'!$E55:$EG55)) -> 0 | N26: =+SUMPRODUCT(--('Monthly CF'!$E$4:$EG$4='Annual CF'!N$4),--('Monthly CF'!$E55:$EG55)) -> 0 | O26: =+SUMPRODUCT(--('Monthly CF'!$E$4:$EG$4='Annual CF'!O$4),--('Monthly CF'!$E55:$EG55)) -> 0 | P26: =+SUMPRODUCT(--('Monthly CF'!$E$4:$EG$4='Annual CF'!P$4),--('Monthly CF'!$E55:$EG55)) -> 0 | Q26: =+SUMPRODUCT(--('Monthly CF'!$E$4:$EG$4='Annual CF'!Q$4),--('Monthly CF'!$E55:$EG55)) -> 0
B27: Total Leasing & Capital Costs | G27: =SUM(G23:G26) -> 46426.2 | H27: 33406.2 | I27: 22756.2 | J27: 22756.2 | K27: 22756.2 | L27: 22756.2 | M27: 22756.2 | N27: 22756.2 | O27: 22756.2 | P27: 22756.2 | Q27: 22756.2
B29: Cash Flow Before Debt Service | F29: =+SUMPRODUCT(--('Monthly CF'!$E$4:$EG$4='Annual CF'!F$4),--('Monthly CF'!$E58:$EG58)) -> -11845000 | G29: =+SUMPRODUCT(--('Monthly CF'!$E$4:$EG$4='Annual CF'!G$4),--('Monthly CF'!$E58:$EG58)) -> 895860.8068 | H29: =+SUMPRODUCT(--('Monthly CF'!$E$4:$EG$4='Annual CF'!H$4),--('Monthly CF'!$E58:$EG58)) -> 1086174.053 | I29: =+SUMPRODUCT(--('Monthly CF'!$E$4:$EG$4='Annual CF'!I$4),--('Monthly CF'!$E58:$EG58)) -> 1151009.925 | J29: =+SUMPRODUCT(--('Monthly CF'!$E$4:$EG$4='Annual CF'!J$4),--('Monthly CF'!$E58:$EG58)) -> 1152506.669 | K29: =+SUMPRODUCT(--('Monthly CF'!$E$4:$EG$4='Annual CF'!K$4),--('Monthly CF'!$E58:$EG58)) -> 1162759.313 | L29: =+SUMPRODUCT(--('Monthly CF'!$E$4:$EG$4='Annual CF'!L$4),--('Monthly CF'!$E58:$EG58)) -> 1174804.535 | M29: =+SUMPRODUCT(--('Monthly CF'!$E$4:$EG$4='Annual CF'!M$4),--('Monthly CF'!$E58:$EG58)) -> 1195332.665 | N29: =+SUMPRODUCT(--('Monthly CF'!$E$4:$EG$4='Annual CF'!N$4),--('Monthly CF'!$E58:$EG58)) -> 0 | O29: =+SUMPRODUCT(--('Monthly CF'!$E$4:$EG$4='Annual CF'!O$4),--('Monthly CF'!$E58:$EG58)) -> 0 | P29: =+SUMPRODUCT(--('Monthly CF'!$E$4:$EG$4='Annual CF'!P$4),--('Monthly CF'!$E58:$EG58)) -> 0 | Q29: =+SUMPRODUCT(--('Monthly CF'!$E$4:$EG$4='Annual CF'!Q$4),--('Monthly CF'!$E58:$EG58)) -> 0
B30: Net Proceeds from Sale of Building | F30: =+SUMPRODUCT(--('Monthly CF'!$E$4:$EG$4='Annual CF'!F$4),--('Monthly CF'!$E59:$EG59)) -> 0 | G30: =+SUMPRODUCT(--('Monthly CF'!$E$4:$EG$4='Annual CF'!G$4),--('Monthly CF'!$E59:$EG59)) -> 0 | H30: =+SUMPRODUCT(--('Monthly CF'!$E$4:$EG$4='Annual CF'!H$4),--('Monthly CF'!$E59:$EG59)) -> 0 | I30: =+SUMPRODUCT(--('Monthly CF'!$E$4:$EG$4='Annual CF'!I$4),--('Monthly CF'!$E59:$EG59)) -> 0 | J30: =+SUMPRODUCT(--('Monthly CF'!$E$4:$EG$4='Annual CF'!J$4),--('Monthly CF'!$E59:$EG59)) -> 0 | K30: =+SUMPRODUCT(--('Monthly CF'!$E$4:$EG$4='Annual CF'!K$4),--('Monthly CF'!$E59:$EG59)) -> 0 | L30: =+SUMPRODUCT(--('Monthly CF'!$E$4:$EG$4='Annual CF'!L$4),--('Monthly CF'!$E59:$EG59)) -> 0 | M30: =+SUMPRODUCT(--('Monthly CF'!$E$4:$EG$4='Annual CF'!M$4),--('Monthly CF'!$E59:$EG59)) -> 15063743.57 | N30: =+SUMPRODUCT(--('Monthly CF'!$E$4:$EG$4='Annual CF'!N$4),--('Monthly CF'!$E59:$EG59)) -> 0 | O30: =+SUMPRODUCT(--('Monthly CF'!$E$4:$EG$4='Annual CF'!O$4),--('Monthly CF'!$E59:$EG59)) -> 0 | P30: =+SUMPRODUCT(--('Monthly CF'!$E$4:$EG$4='Annual CF'!P$4),--('Monthly CF'!$E59:$EG59)) -> 0 | Q30: =+SUMPRODUCT(--('Monthly CF'!$E$4:$EG$4='Annual CF'!Q$4),--('Monthly CF'!$E59:$EG59)) -> 0
B31: Unlevered Cash Flow | F31: =+F29+F30 -> -11845000 | G31: =+G29+G30 -> 895860.8068 | H31: 1086174.053 | I31: 1151009.925 | J31: 1152506.669 | K31: 1162759.313 | L31: 1174804.535 | M31: 16259076.24 | N31: 0 | O31: 0 | P31: 0 | Q31: 0
B33: Loan Proceeds | F33: =+SUMPRODUCT(--('Monthly CF'!$E$4:$EG$4='Annual CF'!F$4),--('Monthly CF'!$E71:$EG71)) -> 7475000 | G33: =+SUMPRODUCT(--('Monthly CF'!$E$4:$EG$4='Annual CF'!G$4),--('Monthly CF'!$E71:$EG71)) -> 0 | H33: =+SUMPRODUCT(--('Monthly CF'!$E$4:$EG$4='Annual CF'!H$4),--('Monthly CF'!$E71:$EG71)) -> 0 | I33: =+SUMPRODUCT(--('Monthly CF'!$E$4:$EG$4='Annual CF'!I$4),--('Monthly CF'!$E71:$EG71)) -> 0 | J33: =+SUMPRODUCT(--('Monthly CF'!$E$4:$EG$4='Annual CF'!J$4),--('Monthly CF'!$E71:$EG71)) -> 0 | K33: =+SUMPRODUCT(--('Monthly CF'!$E$4:$EG$4='Annual CF'!K$4),--('Monthly CF'!$E71:$EG71)) -> 0 | L33: =+SUMPRODUCT(--('Monthly CF'!$E$4:$EG$4='Annual CF'!L$4),--('Monthly CF'!$E71:$EG71)) -> 0 | M33: =+SUMPRODUCT(--('Monthly CF'!$E$4:$EG$4='Annual CF'!M$4),--('Monthly CF'!$E71:$EG71)) -> 0 | N33: =+SUMPRODUCT(--('Monthly CF'!$E$4:$EG$4='Annual CF'!N$4),--('Monthly CF'!$E71:$EG71)) -> 0 | O33: =+SUMPRODUCT(--('Monthly CF'!$E$4:$EG$4='Annual CF'!O$4),--('Monthly CF'!$E71:$EG71)) -> 0 | P33: =+SUMPRODUCT(--('Monthly CF'!$E$4:$EG$4='Annual CF'!P$4),--('Monthly CF'!$E71:$EG71)) -> 0 | Q33: =+SUMPRODUCT(--('Monthly CF'!$E$4:$EG$4='Annual CF'!Q$4),--('Monthly CF'!$E71:$EG71)) -> 0
B34: Financing Fees | F34: =+SUMPRODUCT(--('Monthly CF'!$E$4:$EG$4='Annual CF'!F$4),--('Monthly CF'!$E72:$EG72)) -> 0 | G34: =+SUMPRODUCT(--('Monthly CF'!$E$4:$EG$4='Annual CF'!G$4),--('Monthly CF'!$E72:$EG72)) -> 0 | H34: =+SUMPRODUCT(--('Monthly CF'!$E$4:$EG$4='Annual CF'!H$4),--('Monthly CF'!$E72:$EG72)) -> 0 | I34: =+SUMPRODUCT(--('Monthly CF'!$E$4:$EG$4='Annual CF'!I$4),--('Monthly CF'!$E72:$EG72)) -> 0 | J34: =+SUMPRODUCT(--('Monthly CF'!$E$4:$EG$4='Annual CF'!J$4),--('Monthly CF'!$E72:$EG72)) -> 0 | K34: =+SUMPRODUCT(--('Monthly CF'!$E$4:$EG$4='Annual CF'!K$4),--('Monthly CF'!$E72:$EG72)) -> 0 | L34: =+SUMPRODUCT(--('Monthly CF'!$E$4:$EG$4='Annual CF'!L$4),--('Monthly CF'!$E72:$EG72)) -> 0 | M34: =+SUMPRODUCT(--('Monthly CF'!$E$4:$EG$4='Annual CF'!M$4),--('Monthly CF'!$E72:$EG72)) -> 0 | N34: =+SUMPRODUCT(--('Monthly CF'!$E$4:$EG$4='Annual CF'!N$4),--('Monthly CF'!$E72:$EG72)) -> 0 | O34: =+SUMPRODUCT(--('Monthly CF'!$E$4:$EG$4='Annual CF'!O$4),--('Monthly CF'!$E72:$EG72)) -> 0 | P34: =+SUMPRODUCT(--('Monthly CF'!$E$4:$EG$4='Annual CF'!P$4),--('Monthly CF'!$E72:$EG72)) -> 0 | Q34: =+SUMPRODUCT(--('Monthly CF'!$E$4:$EG$4='Annual CF'!Q$4),--('Monthly CF'!$E72:$EG72)) -> 0
B35: Debt Service | F35: =+SUMPRODUCT(--('Monthly CF'!$E$4:$EG$4='Annual CF'!F$4),--('Monthly CF'!$E73:$EG73)) -> 0 | G35: =+SUMPRODUCT(--('Monthly CF'!$E$4:$EG$4='Annual CF'!G$4),--('Monthly CF'!$E73:$EG73)) -> -506249.5045 | H35: =+SUMPRODUCT(--('Monthly CF'!$E$4:$EG$4='Annual CF'!H$4),--('Monthly CF'!$E73:$EG73)) -> -506249.5045 | I35: =+SUMPRODUCT(--('Monthly CF'!$E$4:$EG$4='Annual CF'!I$4),--('Monthly CF'!$E73:$EG73)) -> -506249.5045 | J35: =+SUMPRODUCT(--('Monthly CF'!$E$4:$EG$4='Annual CF'!J$4),--('Monthly CF'!$E73:$EG73)) -> -506249.5045 | K35: =+SUMPRODUCT(--('Monthly CF'!$E$4:$EG$4='Annual CF'!K$4),--('Monthly CF'!$E73:$EG73)) -> -506249.5045 | L35: =+SUMPRODUCT(--('Monthly CF'!$E$4:$EG$4='Annual CF'!L$4),--('Monthly CF'!$E73:$EG73)) -> -506249.5045 | M35: =+SUMPRODUCT(--('Monthly CF'!$E$4:$EG$4='Annual CF'!M$4),--('Monthly CF'!$E73:$EG73)) -> -506249.5045 | N35: =+SUMPRODUCT(--('Monthly CF'!$E$4:$EG$4='Annual CF'!N$4),--('Monthly CF'!$E73:$EG73)) -> 0 | O35: =+SUMPRODUCT(--('Monthly CF'!$E$4:$EG$4='Annual CF'!O$4),--('Monthly CF'!$E73:$EG73)) -> 0 | P35: =+SUMPRODUCT(--('Monthly CF'!$E$4:$EG$4='Annual CF'!P$4),--('Monthly CF'!$E73:$EG73)) -> 0 | Q35: =+SUMPRODUCT(--('Monthly CF'!$E$4:$EG$4='Annual CF'!Q$4),--('Monthly CF'!$E73:$EG73)) -> 0
B36: Debt Repayment | F36: =+SUMPRODUCT(--('Monthly CF'!$E$4:$EG$4='Annual CF'!F$4),--('Monthly CF'!$E74:$EG74)) -> 0 | G36: =+SUMPRODUCT(--('Monthly CF'!$E$4:$EG$4='Annual CF'!G$4),--('Monthly CF'!$E74:$EG74)) -> 0 | H36: =+SUMPRODUCT(--('Monthly CF'!$E$4:$EG$4='Annual CF'!H$4),--('Monthly CF'!$E74:$EG74)) -> 0 | I36: =+SUMPRODUCT(--('Monthly CF'!$E$4:$EG$4='Annual CF'!I$4),--('Monthly CF'!$E74:$EG74)) -> 0 | J36: =+SUMPRODUCT(--('Monthly CF'!$E$4:$EG$4='Annual CF'!J$4),--('Monthly CF'!$E74:$EG74)) -> 0 | K36: =+SUMPRODUCT(--('Monthly CF'!$E$4:$EG$4='Annual CF'!K$4),--('Monthly CF'!$E74:$EG74)) -> 0 | L36: =+SUMPRODUCT(--('Monthly CF'!$E$4:$EG$4='Annual CF'!L$4),--('Monthly CF'!$E74:$EG74)) -> 0 | M36: =+SUMPRODUCT(--('Monthly CF'!$E$4:$EG$4='Annual CF'!M$4),--('Monthly CF'!$E74:$EG74)) -> -6165263.668 | N36: =+SUMPRODUCT(--('Monthly CF'!$E$4:$EG$4='Annual CF'!N$4),--('Monthly CF'!$E74:$EG74)) -> 0 | O36: =+SUMPRODUCT(--('Monthly CF'!$E$4:$EG$4='Annual CF'!O$4),--('Monthly CF'!$E74:$EG74)) -> 0 | P36: =+SUMPRODUCT(--('Monthly CF'!$E$4:$EG$4='Annual CF'!P$4),--('Monthly CF'!$E74:$EG74)) -> 0 | Q36: =+SUMPRODUCT(--('Monthly CF'!$E$4:$EG$4='Annual CF'!Q$4),--('Monthly CF'!$E74:$EG74)) -> 0
B37: Levered Cash Flow | F37: =SUM(F33:F36)+F31 -> -4370000 | G37: =SUM(G33:G36)+G31 -> 389611.3023 | H37: 579924.549 | I37: 644760.4204 | J37: 646257.1648 | K37: 656509.8082 | L37: 668555.0309 | M37: 9587563.066 | N37: 0 | O37: 0 | P37: 0 | Q37: 0
B39: Outstanding Debt Balance | F39: =+INDEX('Monthly CF'!$E$91:$EG$91,MATCH('Annual CF'!F5,'Monthly CF'!$E$6:$EG$6)) -> 7475000 | G39: =+INDEX('Monthly CF'!$E$91:$EG$91,MATCH('Annual CF'!G5,'Monthly CF'!$E$6:$EG$6)) -> 7312912.451 | H39: =+INDEX('Monthly CF'!$E$91:$EG$91,MATCH('Annual CF'!H5,'Monthly CF'!$E$6:$EG$6)) -> 7143125.104 | I39: =+INDEX('Monthly CF'!$E$91:$EG$91,MATCH('Annual CF'!I5,'Monthly CF'!$E$6:$EG$6)) -> 6965272.188 | J39: =+INDEX('Monthly CF'!$E$91:$EG$91,MATCH('Annual CF'!J5,'Monthly CF'!$E$6:$EG$6)) -> 6778970.557 | K39: =+INDEX('Monthly CF'!$E$91:$EG$91,MATCH('Annual CF'!K5,'Monthly CF'!$E$6:$EG$6)) -> 6583818.864 | L39: =+INDEX('Monthly CF'!$E$91:$EG$91,MATCH('Annual CF'!L5,'Monthly CF'!$E$6:$EG$6)) -> 6379396.696 | M39: =+INDEX('Monthly CF'!$E$91:$EG$91,MATCH('Annual CF'!M5,'Monthly CF'!$E$6:$EG$6)) -> 0 | N39: =+INDEX('Monthly CF'!$E$91:$EG$91,MATCH('Annual CF'!N5,'Monthly CF'!$E$6:$EG$6)) -> 0 | O39: =+INDEX('Monthly CF'!$E$91:$EG$91,MATCH('Annual CF'!O5,'Monthly CF'!$E$6:$EG$6)) -> 0 | P39: =+INDEX('Monthly CF'!$E$91:$EG$91,MATCH('Annual CF'!P5,'Monthly CF'!$E$6:$EG$6)) -> 0 | Q39: =+INDEX('Monthly CF'!$E$91:$EG$91,MATCH('Annual CF'!Q5,'Monthly CF'!$E$6:$EG$6)) -> 0
B41: NOI Yield on Initial Cost | G41: =+G20/-$F$12*(G5<'Project Summary'!$Q$8) -> 0.07955145689 | H41: =+H20/-$F$12 -> 0.09451922782 | I41: 0.09909380539 | J41: 0.09922016625 | K41: 0.1000857334 | L41: 0.101102637 | M41: 0.1028356999 | N41: 0.1027667546 | O41: 0.102695741 | P41: 0.1035512588 | Q41: 0.1034823709
B42: NOI Yield on Total Cost | G42: =+G20/-($F$12-SUM($F$27:G27)) -> 0.07924087414 | H42: =+H20/-($F$12-SUM($F$27:H27)) -> 0.09388645609 | I42: =+I20/-($F$12-SUM($F$27:I27)) -> 0.0982429312 | J42: =+J20/-($F$12-SUM($F$27:J27)) -> 0.09818120438 | K42: =+K20/-($F$12-SUM($F$27:K27)) -> 0.09884978978 | L42: =+L20/-($F$12-SUM($F$27:L27)) -> 0.09966502726 | M42: =+M20/-($F$12-SUM($F$27:M27)) -> 0.1011818242 | N42: =+N20/-($F$12-SUM($F$27:N27)) -> 0.1009232159 | O42: =+O20/-($F$12-SUM($F$27:O27)) -> 0.1006635541 | P42: =+P20/-($F$12-SUM($F$27:P27)) -> 0.1013113583 | Q42: =+Q20/-($F$12-SUM($F$27:Q27)) -> 0.1010540185
B43: Cash-on-cash Yield (Initial Cost) | G43: =+IF(EOMONTH(G$5,-1)>'Project Summary'!$Q$8,"NA",(G29+G33+G35)/-$F$37) -> 0.08915590442 | H43: =+IF(EOMONTH(H$5,-1)>'Project Summary'!$Q$8,"NA",(H29+H33+H35)/-$F$37) -> 0.1327058465 | I43: =+IF(EOMONTH(I$5,-1)>'Project Summary'!$Q$8,"NA",(I29+I33+I35)/-$F$37) -> 0.1475424303 | J43: =+IF(EOMONTH(J$5,-1)>'Project Summary'!$Q$8,"NA",(J29+J33+J35)/-$F$37) -> 0.1478849347 | K43: =+IF(EOMONTH(K$5,-1)>'Project Summary'!$Q$8,"NA",(K29+K33+K35)/-$F$37) -> 0.1502310774 | L43: =+IF(EOMONTH(L$5,-1)>'Project Summary'!$Q$8,"NA",(L29+L33+L35)/-$F$37) -> 0.1529874213 | M43: =+IF(EOMONTH(M$5,-1)>'Project Summary'!$Q$8,"NA",(M29+M33+M35)/-$F$37) -> 0.1576849337 | N43: =+IF(EOMONTH(N$5,-1)>'Project Summary'!$Q$8,"NA",(N29+N33+N35)/-$F$37) -> NA | O43: =+IF(EOMONTH(O$5,-1)>'Project Summary'!$Q$8,"NA",(O29+O33+O35)/-$F$37) -> NA | P43: =+IF(EOMONTH(P$5,-1)>'Project Summary'!$Q$8,"NA",(P29+P33+P35)/-$F$37) -> NA | Q43: =+IF(EOMONTH(Q$5,-1)>'Project Summary'!$Q$8,"NA",(Q29+Q33+Q35)/-$F$37) -> NA
B44: Cash-on-cash Yield (Total Cost) | G44: =+IF(EOMONTH(G$5,-1)>'Project Summary'!$Q$8,"NA",(G29+G33+G35)/(INDEX('Monthly CF'!$E$82:$EG$82, MATCH('Annual CF'!G5,'Monthly CF'!$E$6:$EG$6)))) -> 0.08915590442 | H44: =+IF(EOMONTH(H$5,-1)>'Project Summary'!$Q$8,"NA",(H29+H33+H35)/(INDEX('Monthly CF'!$E$82:$EG$82, MATCH('Annual CF'!H5,'Monthly CF'!$E$6:$EG$6)))) -> 0.1327058465 | I44: =+IF(EOMONTH(I$5,-1)>'Project Summary'!$Q$8,"NA",(I29+I33+I35)/(INDEX('Monthly CF'!$E$82:$EG$82, MATCH('Annual CF'!I5,'Monthly CF'!$E$6:$EG$6)))) -> 0.1475424303 | J44: =+IF(EOMONTH(J$5,-1)>'Project Summary'!$Q$8,"NA",(J29+J33+J35)/(INDEX('Monthly CF'!$E$82:$EG$82, MATCH('Annual CF'!J5,'Monthly CF'!$E$6:$EG$6)))) -> 0.1478849347 | K44: =+IF(EOMONTH(K$5,-1)>'Project Summary'!$Q$8,"NA",(K29+K33+K35)/(INDEX('Monthly CF'!$E$82:$EG$82, MATCH('Annual CF'!K5,'Monthly CF'!$E$6:$EG$6)))) -> 0.1502310774 | L44: =+IF(EOMONTH(L$5,-1)>'Project Summary'!$Q$8,"NA",(L29+L33+L35)/(INDEX('Monthly CF'!$E$82:$EG$82, MATCH('Annual CF'!L5,'Monthly CF'!$E$6:$EG$6)))) -> 0.1529874213 | M44: =+IF(EOMONTH(M$5,-1)>'Project Summary'!$Q$8,"NA",(M29+M33+M35)/(INDEX('Monthly CF'!$E$82:$EG$82, MATCH('Annual CF'!M5,'Monthly CF'!$E$6:$EG$6)))) -> 0.1576849337 | N44: =+IF(EOMONTH(N$5,-1)>'Project Summary'!$Q$8,"NA",(N29+N33+N35)/(INDEX('Monthly CF'!$E$82:$EG$82, MATCH('Annual CF'!N5,'Monthly CF'!$E$6:$EG$6)))) -> NA | O44: =+IF(EOMONTH(O$5,-1)>'Project Summary'!$Q$8,"NA",(O29+O33+O35)/(INDEX('Monthly CF'!$E$82:$EG$82, MATCH('Annual CF'!O5,'Monthly CF'!$E$6:$EG$6)))) -> NA | P44: =+IF(EOMONTH(P$5,-1)>'Project Summary'!$Q$8,"NA",(P29+P33+P35)/(INDEX('Monthly CF'!$E$82:$EG$82, MATCH('Annual CF'!P5,'Monthly CF'!$E$6:$EG$6)))) -> NA | Q44: =+IF(EOMONTH(Q$5,-1)>'Project Summary'!$Q$8,"NA",(Q29+Q33+Q35)/(INDEX('Monthly CF'!$E$82:$EG$82, MATCH('Annual CF'!Q5,'Monthly CF'!$E$6:$EG$6)))) -> NA
B45: Debt Yield | G45: =+IF(G39>0,G20/G39,"NA") -> 0.1288524939 | H45: 0.1567353556 | I45: 0.1685169069 | J45: 0.1733689296 | K45: 0.1800650257 | L45: 0.1877231959 | M45: NA | N45: NA | O45: NA | P45: NA | Q45: NA
B46: Debt Coverage Ratio | G46: =+IF(G39>0,G20/-G35,"NA") -> 1.86130949 | H46: 2.211518715 | I46: 2.318552639 | J46: 2.321509175 | K46: 2.341761329 | L46: 2.365554385 | M46: NA | N46: NA | O46: NA | P46: NA | Q46: NA
B53: Cash Flow Before Debt Service Check | G53: =+G20-G27-G29 -> 0 | H53: 0 | I53: 0 | J53: 0 | K53: 0 | L53: 0 | M53: 0 | N53: 1194516.008 | O53: 1193674.852 | P53: 1203808.46 | Q53: 1202992.483

Sheet Tenant Summary
B2: x | N2: x
C3: Tenant Summary
C4: =+'Project Summary'!C4 -> Woodforest Shopping Center
F5: At Acquisition | K5: At Expiration
F6: In-place | G6: Mkt. Rent | H6: In-place as | I6: Lease | K6: NNN | L6: Mkt. Rate | M6: In-place as
C7: Tenant | D7: Total SF | F7: Rent | G7: (NNN) | H7: % of Mkt. | I7: Expiration | K7: Rent | L7: (NNN) | M7: % of Mkt. | O7: Expiration Year
C8: =+'Prevailing Market Rate'!A6 -> Mai Thai Seafood | D8: =+'Prevailing Market Rate'!C6 -> 2200 | F8: =+'Scheduled Base Rental Revenue'!G6 -> 14.58 | G8: =+'Prevailing Market Rate'!G6 -> 14.58 | H8: =+F8/G8 -> 1 | I8: =+'Prevailing Market Rate'!E6 -> 2019-08-31 | K8: =+INDEX('Scheduled Base Rental Revenue'!$G6:$EH6,MATCH('Tenant Summary'!I8,'Scheduled Base Rental Revenue'!$G$3:$EH$3)) -> 14.58 | L8: =+INDEX('Prevailing Market Rate'!$H6:$EH6,MATCH('Tenant Summary'!I8,'Prevailing Market Rate'!$G$3:$EH$3)) -> 15.0174 | M8: =+K8/L8 -> 0.9708737864 | O8: =+INDEX('Monthly CF'!$F$4:$EG$4,MATCH('Tenant Summary'!I8,'Monthly CF'!$F$6:$EG$6)) -> 2
C9: =+'Prevailing Market Rate'!A7 -> Rainbow Shops | D9: =+'Prevailing Market Rate'!C7 -> 4500 | F9: =+'Scheduled Base Rental Revenue'!G7 -> 14.5 | G9: =+'Prevailing Market Rate'!G7 -> 14.5 | H9: =+F9/G9 -> 1 | I9: =+'Prevailing Market Rate'!E7 -> 2023-01-31 | K9: =+INDEX('Scheduled Base Rental Revenue'!$G7:$EH7,MATCH('Tenant Summary'!I9,'Scheduled Base Rental Revenue'!$G$3:$EH$3)) -> 16 | L9: =+INDEX('Prevailing Market Rate'!$H7:$EH7,MATCH('Tenant Summary'!I9,'Prevailing Market Rate'!$G$3:$EH$3)) -> 16.80947408 | M9: =+K9/L9 -> 0.9518441759 | O9: =+INDEX('Monthly CF'!$F$4:$EG$4,MATCH('Tenant Summary'!I9,'Monthly CF'!$F$6:$EG$6)) -> 5
C10: =+'Prevailing Market Rate'!A8 -> Palais Royal | D10: =+'Prevailing Market Rate'!C8 -> 24500 | F10: =+'Scheduled Base Rental Revenue'!G8 -> 5.5 | G10: =+'Prevailing Market Rate'!G8 -> 5.5 | H10: 1 | I10: =+'Prevailing Market Rate'!E8 -> 2023-11-30 | K10: =+INDEX('Scheduled Base Rental Revenue'!$G8:$EH8,MATCH('Tenant Summary'!I10,'Scheduled Base Rental Revenue'!$G$3:$EH$3)) -> 6 | L10: =+INDEX('Prevailing Market Rate'!$H8:$EH8,MATCH('Tenant Summary'!I10,'Prevailing Market Rate'!$G$3:$EH$3)) -> 6.376007409 | M10: 0.9410277648 | O10: =+INDEX('Monthly CF'!$F$4:$EG$4,MATCH('Tenant Summary'!I10,'Monthly CF'!$F$6:$EG$6)) -> 6
C11: =+'Prevailing Market Rate'!A9 -> Vantage Sale and Lease | D11: =+'Prevailing Market Rate'!C9 -> 2800 | F11: =+'Scheduled Base Rental Revenue'!G9 -> 12.94 | G11: =+'Prevailing Market Rate'!G9 -> 12.94 | H11: 1 | I11: =+'Prevailing Market Rate'!E9 -> 2021-04-30 | K11: =+INDEX('Scheduled Base Rental Revenue'!$G9:$EH9,MATCH('Tenant Summary'!I11,'Scheduled Base Rental Revenue'!$G$3:$EH$3)) -> 12.94 | L11: =+INDEX('Prevailing Market Rate'!$H9:$EH9,MATCH('Tenant Summary'!I11,'Prevailing Market Rate'!$G$3:$EH$3)) -> 14.13988738 | M11: 0.9151416594 | O11: =+INDEX('Monthly CF'!$F$4:$EG$4,MATCH('Tenant Summary'!I11,'Monthly CF'!$F$6:$EG$6)) -> 4
C12: =+'Prevailing Market Rate'!A10 -> LNA Beauty Supply | D12: =+'Prevailing Market Rate'!C10 -> 3535 | F12: =+'Scheduled Base Rental Revenue'!G10 -> 11.79 | G12: =+'Prevailing Market Rate'!G10 -> 11.79 | H12: 1 | I12: =+'Prevailing Market Rate'!E10 -> 2021-04-30 | K12: =+INDEX('Scheduled Base Rental Revenue'!$G10:$EH10,MATCH('Tenant Summary'!I12,'Scheduled Base Rental Revenue'!$G$3:$EH$3)) -> 11.79 | L12: =+INDEX('Prevailing Market Rate'!$H10:$EH10,MATCH('Tenant Summary'!I12,'Prevailing Market Rate'!$G$3:$EH$3)) -> 12.88325133 | M12: 0.9151416594 | O12: =+INDEX('Monthly CF'!$F$4:$EG$4,MATCH('Tenant Summary'!I12,'Monthly CF'!$F$6:$EG$6)) -> 4
C13: =+'Prevailing Market Rate'!A11 -> dd's DISCOUNTS | D13: =+'Prevailing Market Rate'!C11 -> 22000 | F13: =+'Scheduled Base Rental Revenue'!G11 -> 5.25 | G13: =+'Prevailing Market Rate'!G11 -> 5.25 | H13: 1 | I13: =+'Prevailing Market Rate'!E11 -> 2022-01-31 | K13: =+INDEX('Scheduled Base Rental Revenue'!$G11:$EH11,MATCH('Tenant Summary'!I13,'Scheduled Base Rental Revenue'!$G$3:$EH$3)) -> 5.25 | L13: =+INDEX('Prevailing Market Rate'!$H11:$EH11,MATCH('Tenant Summary'!I13,'Prevailing Market Rate'!$G$3:$EH$3)) -> 5.908921252 | M13: 0.8884870479 | O13: =+INDEX('Monthly CF'!$F$4:$EG$4,MATCH('Tenant Summary'!I13,'Monthly CF'!$F$6:$EG$6)) -> 4
C14: =+'Prevailing Market Rate'!A12 -> Advance Auto Parts | D14: =+'Prevailing Market Rate'!C12 -> 6060 | F14: =+'Scheduled Base Rental Revenue'!G12 -> 11.25 | G14: =+'Prevailing Market Rate'!G12 -> 11.25 | H14: 1 | I14: =+'Prevailing Market Rate'!E12 -> 2018-12-31 | K14: =+INDEX('Scheduled Base Rental Revenue'!$G12:$EH12,MATCH('Tenant Summary'!I14,'Scheduled Base Rental Revenue'!$G$3:$EH$3)) -> 11.25 | L14: =+INDEX('Prevailing Market Rate'!$H12:$EH12,MATCH('Tenant Summary'!I14,'Prevailing Market Rate'!$G$3:$EH$3)) -> 11.5875 | M14: 0.9708737864 | O14: =+INDEX('Monthly CF'!$F$4:$EG$4,MATCH('Tenant Summary'!I14,'Monthly CF'!$F$6:$EG$6)) -> 1
C15: =+'Prevailing Market Rate'!A13 -> Jay's Barber Shop | D15: =+'Prevailing Market Rate'!C13 -> 450 | F15: =+'Scheduled Base Rental Revenue'!G13 -> 18 | G15: =+'Prevailing Market Rate'!G13 -> 18 | H15: 1 | I15: =+'Prevailing Market Rate'!E13 -> 2018-01-31 | K15: =+INDEX('Scheduled Base Rental Revenue'!$G13:$EH13,MATCH('Tenant Summary'!I15,'Scheduled Base Rental Revenue'!$G$3:$EH$3)) -> 18 | L15: =+INDEX('Prevailing Market Rate'!$H13:$EH13,MATCH('Tenant Summary'!I15,'Prevailing Market Rate'!$G$3:$EH$3)) -> 18 | M15: 1 | O15: 1
C16: =+'Prevailing Market Rate'!A14 -> Arena Salon | D16: =+'Prevailing Market Rate'!C14 -> 1200 | F16: =+'Scheduled Base Rental Revenue'!G14 -> 17.5 | G16: =+'Prevailing Market Rate'!G14 -> 17.5 | H16: 1 | I16: =+'Prevailing Market Rate'!E14 -> 2022-02-28 | K16: =+INDEX('Scheduled Base Rental Revenue'!$G14:$EH14,MATCH('Tenant Summary'!I16,'Scheduled Base Rental Revenue'!$G$3:$EH$3)) -> 17.5 | L16: =+INDEX('Prevailing Market Rate'!$H14:$EH14,MATCH('Tenant Summary'!I16,'Prevailing Market Rate'!$G$3:$EH$3)) -> 19.69640418 | M16: 0.8884870479 | O16: =+INDEX('Monthly CF'!$F$4:$EG$4,MATCH('Tenant Summary'!I16,'Monthly CF'!$F$6:$EG$6)) -> 5
C17: =+'Prevailing Market Rate'!A15 -> QW World Party Supply | D17: =+'Prevailing Market Rate'!C15 -> 7800 | F17: =+'Scheduled Base Rental Revenue'!G15 -> 8.32 | G17: =+'Prevailing Market Rate'!G15 -> 8.32 | H17: 1 | I17: =+'Prevailing Market Rate'!E15 -> 2019-05-31 | K17: =+INDEX('Scheduled Base Rental Revenue'!$G15:$EH15,MATCH('Tenant Summary'!I17,'Scheduled Base Rental Revenue'!$G$3:$EH$3)) -> 8.32 | L17: =+INDEX('Prevailing Market Rate'!$H15:$EH15,MATCH('Tenant Summary'!I17,'Prevailing Market Rate'!$G$3:$EH$3)) -> 8.5696 | M17: 0.9708737864 | O17: =+INDEX('Monthly CF'!$F$4:$EG$4,MATCH('Tenant Summary'!I17,'Monthly CF'!$F$6:$EG$6)) -> 2
C18: =+'Prevailing Market Rate'!A16 -> Advance America | D18: =+'Prevailing Market Rate'!C16 -> 1525 | F18: =+'Scheduled Base Rental Revenue'!G16 -> 17.05 | G18: =+'Prevailing Market Rate'!G16 -> 17.05 | H18: 1 | I18: =+'Prevailing Market Rate'!E16 -> 2020-11-30 | K18: =+INDEX('Scheduled Base Rental Revenue'!$G16:$EH16,MATCH('Tenant Summary'!I18,'Scheduled Base Rental Revenue'!$G$3:$EH$3)) -> 17.05 | L18: =+INDEX('Prevailing Market Rate'!$H16:$EH16,MATCH('Tenant Summary'!I18,'Prevailing Market Rate'!$G$3:$EH$3)) -> 18.088345 | M18: 0.9425959091 | O18: =+INDEX('Monthly CF'!$F$4:$EG$4,MATCH('Tenant Summary'!I18,'Monthly CF'!$F$6:$EG$6)) -> 3
C19: =+'Prevailing Market Rate'!A17 -> Woodforest Insurance and Tax | D19: =+'Prevailing Market Rate'!C17 -> 1200 | F19: =+'Scheduled Base Rental Revenue'!G17 -> 12.5 | G19: =+'Prevailing Market Rate'!G17 -> 12.5 | H19: 1 | I19: =+'Prevailing Market Rate'!E17 -> 2020-09-30 | K19: =+INDEX('Scheduled Base Rental Revenue'!$G17:$EH17,MATCH('Tenant Summary'!I19,'Scheduled Base Rental Revenue'!$G$3:$EH$3)) -> 12.5 | L19: =+INDEX('Prevailing Market Rate'!$H17:$EH17,MATCH('Tenant Summary'!I19,'Prevailing Market Rate'!$G$3:$EH$3)) -> 13.26125 | M19: 0.9425959091 | O19: =+INDEX('Monthly CF'!$F$4:$EG$4,MATCH('Tenant Summary'!I19,'Monthly CF'!$F$6:$EG$6)) -> 3
C20: =+'Prevailing Market Rate'!A18 -> Glass Etching by Matisse | D20: =+'Prevailing Market Rate'!C18 -> 1475 | F20: =+'Scheduled Base Rental Revenue'!G18 -> 12.28 | G20: =+'Prevailing Market Rate'!G18 -> 12.28 | H20: 1 | I20: =+'Prevailing Market Rate'!E18 -> 2018-11-30 | K20: =+INDEX('Scheduled Base Rental Revenue'!$G18:$EH18,MATCH('Tenant Summary'!I20,'Scheduled Base Rental Revenue'!$G$3:$EH$3)) -> 12.28 | L20: =+INDEX('Prevailing Market Rate'!$H18:$EH18,MATCH('Tenant Summary'!I20,'Prevailing Market Rate'!$G$3:$EH$3)) -> 12.28 | M20: 1 | O20: =+INDEX('Monthly CF'!$F$4:$EG$4,MATCH('Tenant Summary'!I20,'Monthly CF'!$F$6:$EG$6)) -> 1
C21: =+'Prevailing Market Rate'!A19 -> Regional Finance Corp | D21: =+'Prevailing Market Rate'!C19 -> 1200 | F21: =+'Scheduled Base Rental Revenue'!G19 -> 14.41 | G21: =+'Prevailing Market Rate'!G19 -> 14.41 | H21: 1 | I21: =+'Prevailing Market Rate'!E19 -> 2019-05-31 | K21: =+INDEX('Scheduled Base Rental Revenue'!$G19:$EH19,MATCH('Tenant Summary'!I21,'Scheduled Base Rental Revenue'!$G$3:$EH$3)) -> 14.41 | L21: =+INDEX('Prevailing Market Rate'!$H19:$EH19,MATCH('Tenant Summary'!I21,'Prevailing Market Rate'!$G$3:$EH$3)) -> 14.8423 | M21: 0.9708737864 | O21: =+INDEX('Monthly CF'!$F$4:$EG$4,MATCH('Tenant Summary'!I21,'Monthly CF'!$F$6:$EG$6)) -> 2
C22: =+'Prevailing Market Rate'!A20 -> Cici's Pizza | D22: =+'Prevailing Market Rate'!C20 -> 3800 | F22: =+'Scheduled Base Rental Revenue'!G20 -> 21.3 | G22: =+'Prevailing Market Rate'!G20 -> 21.3 | H22: 1 | I22: =+'Prevailing Market Rate'!E20 -> 2019-12-31 | K22: =+INDEX('Scheduled Base Rental Revenue'!$G20:$EH20,MATCH('Tenant Summary'!I22,'Scheduled Base Rental Revenue'!$G$3:$EH$3)) -> 21.3 | L22: =+INDEX('Prevailing Market Rate'!$H20:$EH20,MATCH('Tenant Summary'!I22,'Prevailing Market Rate'!$G$3:$EH$3)) -> 22.59717 | M22: 0.9425959091 | O22: =+INDEX('Monthly CF'!$F$4:$EG$4,MATCH('Tenant Summary'!I22,'Monthly CF'!$F$6:$EG$6)) -> 2
C23: =+'Prevailing Market Rate'!A21 -> Texan Credit Corporation | D23: =+'Prevailing Market Rate'!C21 -> 1000 | F23: =+'Scheduled Base Rental Revenue'!G21 -> 20 | G23: =+'Prevailing Market Rate'!G21 -> 20 | H23: 1 | I23: =+'Prevailing Market Rate'!E21 -> 2022-05-31 | K23: =+INDEX('Scheduled Base Rental Revenue'!$G21:$EH21,MATCH('Tenant Summary'!I23,'Scheduled Base Rental Revenue'!$G$3:$EH$3)) -> 20 | L23: =+INDEX('Prevailing Market Rate'!$H21:$EH21,MATCH('Tenant Summary'!I23,'Prevailing Market Rate'!$G$3:$EH$3)) -> 22.5101762 | M23: 0.8884870479 | O23: =+INDEX('Monthly CF'!$F$4:$EG$4,MATCH('Tenant Summary'!I23,'Monthly CF'!$F$6:$EG$6)) -> 5
C24: =+'Prevailing Market Rate'!A22 -> Freeway Insurance | D24: =+'Prevailing Market Rate'!C22 -> 1000 | F24: =+'Scheduled Base Rental Revenue'!G22 -> 15 | G24: =+'Prevailing Market Rate'!G22 -> 15 | H24: 1 | I24: =+'Prevailing Market Rate'!E22 -> 2021-08-31 | K24: =+INDEX('Scheduled Base Rental Revenue'!$G22:$EH22,MATCH('Tenant Summary'!I24,'Scheduled Base Rental Revenue'!$G$3:$EH$3)) -> 15 | L24: =+INDEX('Prevailing Market Rate'!$H22:$EH22,MATCH('Tenant Summary'!I24,'Prevailing Market Rate'!$G$3:$EH$3)) -> 16.390905 | M24: 0.9151416594 | O24: =+INDEX('Monthly CF'!$F$4:$EG$4,MATCH('Tenant Summary'!I24,'Monthly CF'!$F$6:$EG$6)) -> 4
C25: =+'Prevailing Market Rate'!A23 -> Pizza Patron | D25: =+'Prevailing Market Rate'!C23 -> 1000 | F25: =+'Scheduled Base Rental Revenue'!G23 -> 16 | G25: =+'Prevailing Market Rate'!G23 -> 16 | H25: 1 | I25: =+'Prevailing Market Rate'!E23 -> 2018-10-31 | K25: =+INDEX('Scheduled Base Rental Revenue'!$G23:$EH23,MATCH('Tenant Summary'!I25,'Scheduled Base Rental Revenue'!$G$3:$EH$3)) -> 16 | L25: =+INDEX('Prevailing Market Rate'!$H23:$EH23,MATCH('Tenant Summary'!I25,'Prevailing Market Rate'!$G$3:$EH$3)) -> 16 | M25: 1 | O25: =+INDEX('Monthly CF'!$F$4:$EG$4,MATCH('Tenant Summary'!I25,'Monthly CF'!$F$6:$EG$6)) -> 1
C26: =+'Prevailing Market Rate'!A24 -> Young Tream Hair Braiding | D26: =+'Prevailing Market Rate'!C24 -> 1000 | F26: =+'Scheduled Base Rental Revenue'!G24 -> 16 | G26: =+'Prevailing Market Rate'!G24 -> 16 | H26: 1 | I26: =+'Prevailing Market Rate'!E24 -> 2021-02-28 | K26: =+INDEX('Scheduled Base Rental Revenue'!$G24:$EH24,MATCH('Tenant Summary'!I26,'Scheduled Base Rental Revenue'!$G$3:$EH$3)) -> 16 | L26: =+INDEX('Prevailing Market Rate'!$H24:$EH24,MATCH('Tenant Summary'!I26,'Prevailing Market Rate'!$G$3:$EH$3)) -> 17.483632 | M26: 0.9151416594 | O26: =+INDEX('Monthly CF'!$F$4:$EG$4,MATCH('Tenant Summary'!I26,'Monthly CF'!$F$6:$EG$6)) -> 4
C27: =+'Prevailing Market Rate'!A25 -> Income Tax | D27: =+'Prevailing Market Rate'!C25 -> 1000 | F27: =+'Scheduled Base Rental Revenue'!G25 -> 15.95 | G27: =+'Prevailing Market Rate'!G25 -> 15.95 | H27: 1 | I27: =+'Prevailing Market Rate'!E25 -> 2025-04-30 | K27: =+INDEX('Scheduled Base Rental Revenue'!$G25:$EH25,MATCH('Tenant Summary'!I27,'Scheduled Base Rental Revenue'!$G$3:$EH$3)) -> 17.55 | L27: =+INDEX('Prevailing Market Rate'!$H25:$EH25,MATCH('Tenant Summary'!I27,'Prevailing Market Rate'!$G$3:$EH$3)) -> 19.61648815 | M27: 0.8946555501 | O27: =+INDEX('Monthly CF'!$F$4:$EG$4,MATCH('Tenant Summary'!I27,'Monthly CF'!$F$6:$EG$6)) -> 8
C28: =+'Prevailing Market Rate'!A26 -> Great Cuts N Style | D28: =+'Prevailing Market Rate'!C26 -> 1000 | F28: =+'Scheduled Base Rental Revenue'!G26 -> 13.72 | G28: =+'Prevailing Market Rate'!G26 -> 13.72 | H28: 1 | I28: =+'Prevailing Market Rate'!E26 -> 2019-05-31 | K28: =+INDEX('Scheduled Base Rental Revenue'!$G26:$EH26,MATCH('Tenant Summary'!I28,'Scheduled Base Rental Revenue'!$G$3:$EH$3)) -> 13.72 | L28: =+INDEX('Prevailing Market Rate'!$H26:$EH26,MATCH('Tenant Summary'!I28,'Prevailing Market Rate'!$G$3:$EH$3)) -> 14.1316 | M28: 0.9708737864 | O28: =+INDEX('Monthly CF'!$F$4:$EG$4,MATCH('Tenant Summary'!I28,'Monthly CF'!$F$6:$EG$6)) -> 2
C29: =+'Prevailing Market Rate'!A27 -> Dollar Daze | D29: =+'Prevailing Market Rate'!C27 -> 2300 | F29: =+'Scheduled Base Rental Revenue'!G27 -> 14 | G29: =+'Prevailing Market Rate'!G27 -> 14 | H29: 1 | I29: =+'Prevailing Market Rate'!E27 -> 2020-12-31 | K29: =+INDEX('Scheduled Base Rental Revenue'!$G27:$EH27,MATCH('Tenant Summary'!I29,'Scheduled Base Rental Revenue'!$G$3:$EH$3)) -> 14 | L29: =+INDEX('Prevailing Market Rate'!$H27:$EH27,MATCH('Tenant Summary'!I29,'Prevailing Market Rate'!$G$3:$EH$3)) -> 15.298178 | M29: 0.9151416594 | O29: =+INDEX('Monthly CF'!$F$4:$EG$4,MATCH('Tenant Summary'!I29,'Monthly CF'!$F$6:$EG$6)) -> 3
C30: =+'Prevailing Market Rate'!A28 -> MetroPCS | D30: =+'Prevailing Market Rate'!C28 -> 2700 | F30: =+'Scheduled Base Rental Revenue'!G28 -> 11.21 | G30: =+'Prevailing Market Rate'!G28 -> 11.21 | H30: 1 | I30: =+'Prevailing Market Rate'!E28 -> 2024-01-31 | K30: =+INDEX('Scheduled Base Rental Revenue'!$G28:$EH28,MATCH('Tenant Summary'!I30,'Scheduled Base Rental Revenue'!$G$3:$EH$3)) -> 12.34 | L30: =+INDEX('Prevailing Market Rate'!$H28:$EH28,MATCH('Tenant Summary'!I30,'Prevailing Market Rate'!$G$3:$EH$3)) -> 13.38532624 | M30: 0.9219050604 | O30: =+INDEX('Monthly CF'!$F$4:$EG$4,MATCH('Tenant Summary'!I30,'Monthly CF'!$F$6:$EG$6)) -> 6
C31: =+'Prevailing Market Rate'!A29 -> Title Max | D31: =+'Prevailing Market Rate'!C29 -> 1271 | F31: =+'Scheduled Base Rental Revenue'!G29 -> 40 | G31: =+'Prevailing Market Rate'!G29 -> 40 | H31: 1 | I31: =+'Prevailing Market Rate'!E29 -> 2019-03-31 | K31: =+INDEX('Scheduled Base Rental Revenue'!$G29:$EH29,MATCH('Tenant Summary'!I31,'Scheduled Base Rental Revenue'!$G$3:$EH$3)) -> 40 | L31: =+INDEX('Prevailing Market Rate'!$H29:$EH29,MATCH('Tenant Summary'!I31,'Prevailing Market Rate'!$G$3:$EH$3)) -> 41.2 | M31: 0.9708737864 | O31: =+INDEX('Monthly CF'!$F$4:$EG$4,MATCH('Tenant Summary'!I31,'Monthly CF'!$F$6:$EG$6)) -> 2
C32: Total / Wtd. Average | D32: =SUM(D8:D31) -> 96516 | F32: =SUMPRODUCT(F8:F31,$D$8:$D$31)/$D$32 -> 9.894524224 | G32: =SUMPRODUCT(G8:G31,$D$8:$D$31)/$D$32 -> 9.894524224 | H32: =SUMPRODUCT(H8:H31,$D$8:$D$31)/$D$32 -> 1 | I32: =SUMPRODUCT(I8:I31,$D$8:$D$31)/$D$32 -> 2021-10-25T22:09:08.750 | K32: =SUMPRODUCT(K8:K31,$D$8:$D$31)/$D$32 -> 10.13957168 | L32: =SUMPRODUCT(L8:L31,$D$8:$D$31)/$D$32 -> 10.81621264 | M32: =SUMPRODUCT(M8:M31,$D$8:$D$31)/$D$32 -> 0.9324233348
B33: x | N33: x

Sheet MLA's
B4: x | I4: x
C5: Market Leasing Assumptions
C6: =+'Project Summary'!C4 -> Woodforest Shopping Center
C8: MLA Categories | E8: Small Tenant Space | F8: dd's Expansion | G8: Anchor | H8: Junior Anchor
C10: Lease Date | E10: Every 4 Months | F10: Never | G10: 2019-01-01 | H10: 2019-06-01
C12: Market Rent | E12: $/SqFt/Yr | F12: $/SqFt/Yr | G12: $/SqFt/Yr | H12: $/SqFt/Yr
D13: New: | E13: 13.5 | F13: 0 | G13: 7 | H13: 10
D14: Renewal: | E14: 13.5 | F14: 0 | G14: 7 | H14: 10
D15: Result: | E15: 13.5 | F15: 0 | G15: 7 | H15: 10
C17: Leasing Commissions | E17: Percent | F17: Percent | G17: Percent | H17: Percent
D18: New: | E18: 0.06 | F18: 0.06 | G18: 0.06 | H18: 0.06
C20: Non-Weighted Items
C21: Rent Changes
C22: Reimbursements | E22: Net | F22: Net | G22: Net | H22: Net
C24: Term Lengths | E24: 5 | F24: 5 | G24: 5 | H24: 5
E25: Years | F25: Years | G25: Years | H25: Years
C27: Term Overrides | E27: No | F27: No | G27: No | H27: No
B28: x | I28: x

Sheet Monthly CF
B2: Monthly Cash Flows
B3: =+'Project Summary'!C4 -> Woodforest Shopping Center
B4: Year | E4: 0 | F4: 1 | G4: =IF(MONTH($F$6)=MONTH(G$6),F4+1,F4) -> 1 | H4: =IF(MONTH($F$6)=MONTH(H$6),G4+1,G4) -> 1 | I4: 1 | J4: 1 | K4: 1 | L4: 1 | M4: 1 | N4: 1 | O4: 1 | P4: 1 | Q4: 1 | R4: 2 | S4: 2 | T4: 2 | U4: 2 | V4: 2 | W4: 2 | X4: 2 | Y4: 2 | Z4: 2 | AA4: 2 | AB4: 2 | AC4: 2 | AD4: 3 | AE4: 3 | AF4: 3 | AG4: 3 | AH4: 3 | AI4: 3 | AJ4: 3 | AK4: 3 | AL4: 3 | AM4: 3 | AN4: 3 | AO4: 3 | AP4: 4 | AQ4: 4 | AR4: 4 | AS4: 4 | AT4: 4 | AU4: 4 | AV4: 4 | AW4: 4 | AX4: 4 | AY4: 4 | AZ4: 4 | BA4: 4 | BB4: 5 | BC4: 5 | BD4: 5 | BE4: 5 | BF4: 5 | BG4: 5 | BH4: 5 | BI4: 5 | BJ4: 5 | BK4: 5 | BL4: 5 | BM4: 5 | BN4: 6 | BO4: 6 | BP4: 6 | BQ4: 6 | BR4: 6 | BS4: 6 | BT4: =IF(MONTH($F$6)=MONTH(BT$6),BS4+1,BS4) -> 6 | BU4: 6 | BV4: 6 | BW4: 6 | BX4: 6 | BY4: 6 | BZ4: 7 | CA4: 7 | CB4: 7 | CC4: 7 | CD4: 7 | CE4: 7 | CF4: 7 | CG4: 7 | CH4: 7 | CI4: 7 | CJ4: 7 | CK4: 7 | CL4: 8 | CM4: 8 | CN4: 8 | CO4: 8 | CP4: 8 | CQ4: 8 | CR4: 8 | CS4: 8 | CT4: 8 | CU4: 8 | CV4: 8 | CW4: 8 | CX4: 9 | CY4: 9 | CZ4: 9 | DA4: 9 | DB4: 9 | DC4: 9 | DD4: 9 | DE4: 9 | DF4: 9 | DG4: 9 | DH4: 9 | DI4: 9 | DJ4: 10 | DK4: 10 | DL4: 10 | DM4: 10 | DN4: 10 | DO4: 10 | DP4: 10 | DQ4: 10 | DR4: 10 | DS4: 10 | DT4: 10 | DU4: 10 | DV4: 11 | DW4: 11 | DX4: 11 | DY4: 11 | DZ4: 11 | EA4: 11 | EB4: 11 | EC4: 11 | ED4: 11 | EE4: 11 | EF4: =IF(MONTH($F$6)=MONTH(EF$6),EE4+1,EE4) -> 11 | EG4: 11
B5: Month | E5: 0 | F5: =+E5+1 -> 1 | G5: =+F5+1 -> 2 | H5: 3 | I5: 4 | J5: 5 | K5: 6 | L5: 7 | M5: 8 | N5: 9 | O5: 10 | P5: 11 | Q5: 12 | R5: 13 | S5: 14 | T5: 15 | U5: 16 | V5: 17 | W5: 18 | X5: 19 | Y5: 20 | Z5: 21 | AA5: 22 | AB5: 23 | AC5: 24 | AD5: 25 | AE5: 26 | AF5: 27 | AG5: 28 | AH5: 29 | AI5: 30 | AJ5: 31 | AK5: 32 | AL5: 33 | AM5: 34 | AN5: 35 | AO5: 36 | AP5: 37 | AQ5: 38 | AR5: 39 | AS5: 40 | AT5: 41 | AU5: 42 | AV5: 43 | AW5: 44 | AX5: 45 | AY5: 46 | AZ5: 47 | BA5: 48 | BB5: 49 | BC5: 50 | BD5: 51 | BE5: 52 | BF5: 53 | BG5: 54 | BH5: 55 | BI5: 56 | BJ5: 57 | BK5: 58 | BL5: 59 | BM5: 60 | BN5: 61 | BO5: 62 | BP5: 63 | BQ5: 64 | BR5: 65 | BS5: =+BR5+1 -> 66 | BT5: 67 | BU5: 68 | BV5: 69 | BW5: 70 | BX5: 71 | BY5: 72 | BZ5: 73 | CA5: 74 | CB5: 75 | CC5: 76 | CD5: 77 | CE5: 78 | CF5: 79 | CG5: 80 | CH5: 81 | CI5: 82 | CJ5: 83 | CK5: 84 | CL5: 85 | CM5: 86 | CN5: 87 | CO5: 88 | CP5: 89 | CQ5: 90 | CR5: 91 | CS5: 92 | CT5: 93 | CU5: 94 | CV5: 95 | CW5: 96 | CX5: 97 | CY5: 98 | CZ5: 99 | DA5: 100 | DB5: 101 | DC5: 102 | DD5: 103 | DE5: 104 | DF5: 105 | DG5: 106 | DH5: 107 | DI5: 108 | DJ5: 109 | DK5: 110 | DL5: 111 | DM5: 112 | DN5: 113 | DO5: 114 | DP5: 115 | DQ5: 116 | DR5: 117 | DS5: 118 | DT5: 119 | DU5: 120 | DV5: 121 | DW5: 122 | DX5: 123 | DY5: 124 | DZ5: 125 | EA5: 126 | EB5: 127 | EC5: 128 | ED5: 129 | EE5: =+ED5+1 -> 130 | EF5: 131 | EG5: 132
B6: Date | E6: =+'Project Summary'!J14 -> 2018-01-01 | F6: =+EOMONTH(E6,1) -> 2018-02-28 | G6: =+EOMONTH(F6,1) -> 2018-03-31 | H6: 2018-04-30 | I6: 2018-05-31 | J6: 2018-06-30 | K6: 2018-07-31 | L6: 2018-08-31 | M6: 2018-09-30 | N6: 2018-10-31 | O6: 2018-11-30 | P6: 2018-12-31 | Q6: 2019-01-31 | R6: 2019-02-28 | S6: 2019-03-31 | T6: 2019-04-30 | U6: 2019-05-31 | V6: 2019-06-30 | W6: 2019-07-31 | X6: 2019-08-31 | Y6: 2019-09-30 | Z6: 2019-10-31 | AA6: 2019-11-30 | AB6: 2019-12-31 | AC6: 2020-01-31 | AD6: 2020-02-29 | AE6: 2020-03-31 | AF6: 2020-04-30 | AG6: 2020-05-31 | AH6: 2020-06-30 | AI6: 2020-07-31 | AJ6: 2020-08-31 | AK6: 2020-09-30 | AL6: 2020-10-31 | AM6: 2020-11-30 | AN6: 2020-12-31 | AO6: 2021-01-31 | AP6: 2021-02-28 | AQ6: 2021-03-31 | AR6: 2021-04-30 | AS6: 2021-05-31 | AT6: 2021-06-30 | AU6: 2021-07-31 | AV6: 2021-08-31 | AW6: 2021-09-30 | AX6: 2021-10-31 | AY6: 2021-11-30 | AZ6: 2021-12-31 | BA6: 2022-01-31 | BB6: 2022-02-28 | BC6: 2022-03-31 | BD6: 2022-04-30 | BE6: 2022-05-31 | BF6: 2022-06-30 | BG6: 2022-07-31 | BH6: 2022-08-31 | BI6: 2022-09-30 | BJ6: 2022-10-31 | BK6: 2022-11-30 | BL6: 2022-12-31 | BM6: 2023-01-31 | BN6: 2023-02-28 | BO6: 2023-03-31 | BP6: 2023-04-30 | BQ6: 2023-05-31 | BR6: 2023-06-30 | BS6: =+EOMONTH(BR6,1) -> 2023-07-31 | BT6: 2023-08-31 | BU6: 2023-09-30 | BV6: 2023-10-31 | BW6: 2023-11-30 | BX6: 2023-12-31 | BY6: 2024-01-31 | BZ6: 2024-02-29 | CA6: 2024-03-31 | CB6: 2024-04-30 | CC6: 2024-05-31 | CD6: 2024-06-30 | CE6: 2024-07-31 | CF6: 2024-08-31 | CG6: 2024-09-30 | CH6: 2024-10-31 | CI6: 2024-11-30 | CJ6: 2024-12-31 | CK6: 2025-01-31 | CL6: 2025-02-28 | CM6: 2025-03-31 | CN6: 2025-04-30 | CO6: 2025-05-31 | CP6: 2025-06-30 | CQ6: 2025-07-31 | CR6: 2025-08-31 | CS6: 2025-09-30 | CT6: 2025-10-31 | CU6: 2025-11-30 | CV6: 2025-12-31 | CW6: 2026-01-31 | CX6: 2026-02-28 | CY6: 2026-03-31 | CZ6: 2026-04-30 | DA6: 2026-05-31 | DB6: 2026-06-30 | DC6: 2026-07-31 | DD6: 2026-08-31 | DE6: 2026-09-30 | DF6: 2026-10-31 | DG6: 2026-11-30 | DH6: 2026-12-31 | DI6: 2027-01-31 | DJ6: 2027-02-28 | DK6: 2027-03-31 | DL6: 2027-04-30 | DM6: 2027-05-31 | DN6: 2027-06-30 | DO6: 2027-07-31 | DP6: 2027-08-31 | DQ6: 2027-09-30 | DR6: 2027-10-31 | DS6: 2027-11-30 | DT6: 2027-12-31 | DU6: 2028-01-31 | DV6: 2028-02-29 | DW6: 2028-03-31 | DX6: 2028-04-30 | DY6: 2028-05-31 | DZ6: 2028-06-30 | EA6: 2028-07-31 | EB6: 2028-08-31 | EC6: 2028-09-30 | ED6: 2028-10-31 | EE6: =+EOMONTH(ED6,1) -> 2028-11-30 | EF6: 2028-12-31 | EG6: 2029-01-31
B7: Acquisition Cost | E7: =-'Project Summary'!I34+'Project Summary'!I26 -> -11845000
B9: REVENUE
B10: =+'Monthly Cash Flows'!A16 -> Base Rental Revenue | F10: =+INDEX('Monthly Cash Flows'!$B16:$EC16,MATCH('Monthly CF'!F$6,'Monthly Cash Flows'!$B$13:$EC$13)) -> 80144.15833 | G10: =+INDEX('Monthly Cash Flows'!$B16:$EC16,MATCH('Monthly CF'!G$6,'Monthly Cash Flows'!$B$13:$EC$13)) -> 80144.15833 | H10: =+INDEX('Monthly Cash Flows'!$B16:$EC16,MATCH('Monthly CF'!H$6,'Monthly Cash Flows'!$B$13:$EC$13)) -> 80144.15833 | I10: =+INDEX('Monthly Cash Flows'!$B16:$EC16,MATCH('Monthly CF'!I$6,'Monthly Cash Flows'!$B$13:$EC$13)) -> 82469.15833 | J10: =+INDEX('Monthly Cash Flows'!$B16:$EC16,MATCH('Monthly CF'!J$6,'Monthly Cash Flows'!$B$13:$EC$13)) -> 82469.15833 | K10: =+INDEX('Monthly Cash Flows'!$B16:$EC16,MATCH('Monthly CF'!K$6,'Monthly Cash Flows'!$B$13:$EC$13)) -> 82469.15833 | L10: =+INDEX('Monthly Cash Flows'!$B16:$EC16,MATCH('Monthly CF'!L$6,'Monthly Cash Flows'!$B$13:$EC$13)) -> 82469.15833 | M10: =+INDEX('Monthly Cash Flows'!$B16:$EC16,MATCH('Monthly CF'!M$6,'Monthly Cash Flows'!$B$13:$EC$13)) -> 83760.825 | N10: =+INDEX('Monthly Cash Flows'!$B16:$EC16,MATCH('Monthly CF'!N$6,'Monthly Cash Flows'!$B$13:$EC$13)) -> 83760.825 | O10: =+INDEX('Monthly Cash Flows'!$B16:$EC16,MATCH('Monthly CF'!O$6,'Monthly Cash Flows'!$B$13:$EC$13)) -> 83969.15833 | P10: =+INDEX('Monthly Cash Flows'!$B16:$EC16,MATCH('Monthly CF'!P$6,'Monthly Cash Flows'!$B$13:$EC$13)) -> 84989.99167 | Q10: =+INDEX('Monthly Cash Flows'!$B16:$EC16,MATCH('Monthly CF'!Q$6,'Monthly Cash Flows'!$B$13:$EC$13)) -> 89785.64167 | R10: =+INDEX('Monthly Cash Flows'!$B16:$EC16,MATCH('Monthly CF'!R$6,'Monthly Cash Flows'!$B$13:$EC$13)) -> 90039.89167 | S10: =+INDEX('Monthly Cash Flows'!$B16:$EC16,MATCH('Monthly CF'!S$6,'Monthly Cash Flows'!$B$13:$EC$13)) -> 90039.89167 | T10: =+INDEX('Monthly Cash Flows'!$B16:$EC16,MATCH('Monthly CF'!T$6,'Monthly Cash Flows'!$B$13:$EC$13)) -> 90463.55833 | U10: =+INDEX('Monthly Cash Flows'!$B16:$EC16,MATCH('Monthly CF'!U$6,'Monthly Cash Flows'!$B$13:$EC$13)) -> 91755.225 | V10: =+INDEX('Monthly Cash Flows'!$B16:$EC16,MATCH('Monthly CF'!V$6,'Monthly Cash Flows'!$B$13:$EC$13)) -> 97269.225 | W10: =+INDEX('Monthly Cash Flows'!$B16:$EC16,MATCH('Monthly CF'!W$6,'Monthly Cash Flows'!$B$13:$EC$13)) -> 97269.225 | X10: =+INDEX('Monthly Cash Flows'!$B16:$EC16,MATCH('Monthly CF'!X$6,'Monthly Cash Flows'!$B$13:$EC$13)) -> 97269.225 | Y10: =+INDEX('Monthly Cash Flows'!$B16:$EC16,MATCH('Monthly CF'!Y$6,'Monthly Cash Flows'!$B$13:$EC$13)) -> 98819.225 | Z10: =+INDEX('Monthly Cash Flows'!$B16:$EC16,MATCH('Monthly CF'!Z$6,'Monthly Cash Flows'!$B$13:$EC$13)) -> 98819.225 | AA10: =+INDEX('Monthly Cash Flows'!$B16:$EC16,MATCH('Monthly CF'!AA$6,'Monthly Cash Flows'!$B$13:$EC$13)) -> 98819.225 | AB10: =+INDEX('Monthly Cash Flows'!$B16:$EC16,MATCH('Monthly CF'!AB$6,'Monthly Cash Flows'!$B$13:$EC$13)) -> 98819.225 | AC10: =+INDEX('Monthly Cash Flows'!$B16:$EC16,MATCH('Monthly CF'!AC$6,'Monthly Cash Flows'!$B$13:$EC$13)) -> 99832.55833 | AD10: =+INDEX('Monthly Cash Flows'!$B16:$EC16,MATCH('Monthly CF'!AD$6,'Monthly Cash Flows'!$B$13:$EC$13)) -> 99832.55833 | AE10: =+INDEX('Monthly Cash Flows'!$B16:$EC16,MATCH('Monthly CF'!AE$6,'Monthly Cash Flows'!$B$13:$EC$13)) -> 99832.55833 | AF10: =+INDEX('Monthly Cash Flows'!$B16:$EC16,MATCH('Monthly CF'!AF$6,'Monthly Cash Flows'!$B$13:$EC$13)) -> 99832.55833 | AG10: =+INDEX('Monthly Cash Flows'!$B16:$EC16,MATCH('Monthly CF'!AG$6,'Monthly Cash Flows'!$B$13:$EC$13)) -> 99965.89167 | AH10: =+INDEX('Monthly Cash Flows'!$B16:$EC16,MATCH('Monthly CF'!AH$6,'Monthly Cash Flows'!$B$13:$EC$13)) -> 99965.89167 | AI10: =+INDEX('Monthly Cash Flows'!$B16:$EC16,MATCH('Monthly CF'!AI$6,'Monthly Cash Flows'!$B$13:$EC$13)) -> 99965.89167 | AJ10: =+INDEX('Monthly Cash Flows'!$B16:$EC16,MATCH('Monthly CF'!AJ$6,'Monthly Cash Flows'!$B$13:$EC$13)) -> 99965.89167 | AK10: =+INDEX('Monthly Cash Flows'!$B16:$EC16,MATCH('Monthly CF'!AK$6,'Monthly Cash Flows'!$B$13:$EC$13)) -> 100226.225 | AL10: =+INDEX('Monthly Cash Flows'!$B16:$EC16,MATCH('Monthly CF'!AL$6,'Monthly Cash Flows'!$B$13:$EC$13)) -> 100226.225 | AM10: =+INDEX('Monthly Cash Flows'!$B16:$EC16,MATCH('Monthly CF'!AM$6,'Monthly Cash Flows'!$B$13:$EC$13)) -> 100226.225 | AN10: =+INDEX('Monthly Cash Flows'!$B16:$EC16,MATCH('Monthly CF'!AN$6,'Monthly Cash Flows'!$B$13:$EC$13)) -> 100226.225 | AO10: =+INDEX('Monthly Cash Flows'!$B16:$EC16,MATCH('Monthly CF'!AO$6,'Monthly Cash Flows'!$B$13:$EC$13)) -> 100226.225 | AP10: =+INDEX('Monthly Cash Flows'!$B16:$EC16,MATCH('Monthly CF'!AP$6,'Monthly Cash Flows'!$B$13:$EC$13)) -> 100226.225 | AQ10: =+INDEX('Monthly Cash Flows'!$B16:$EC16,MATCH('Monthly CF'!AQ$6,'Monthly Cash Flows'!$B$13:$EC$13)) -> 100226.225 | AR10: =+INDEX('Monthly Cash Flows'!$B16:$EC16,MATCH('Monthly CF'!AR$6,'Monthly Cash Flows'!$B$13:$EC$13)) -> 100226.225 | AS10: =+INDEX('Monthly Cash Flows'!$B16:$EC16,MATCH('Monthly CF'!AS$6,'Monthly Cash Flows'!$B$13:$EC$13)) -> 100226.225 | AT10: =+INDEX('Monthly Cash Flows'!$B16:$EC16,MATCH('Monthly CF'!AT$6,'Monthly Cash Flows'!$B$13:$EC$13)) -> 100226.225 | AU10: =+INDEX('Monthly Cash Flows'!$B16:$EC16,MATCH('Monthly CF'!AU$6,'Monthly Cash Flows'!$B$13:$EC$13)) -> 100226.225 | AV10: =+INDEX('Monthly Cash Flows'!$B16:$EC16,MATCH('Monthly CF'!AV$6,'Monthly Cash Flows'!$B$13:$EC$13)) -> 100226.225 | AW10: =+INDEX('Monthly Cash Flows'!$B16:$EC16,MATCH('Monthly CF'!AW$6,'Monthly Cash Flows'!$B$13:$EC$13)) -> 100226.225 | AX10: =+INDEX('Monthly Cash Flows'!$B16:$EC16,MATCH('Monthly CF'!AX$6,'Monthly Cash Flows'!$B$13:$EC$13)) -> 100226.225 | AY10: =+INDEX('Monthly Cash Flows'!$B16:$EC16,MATCH('Monthly CF'!AY$6,'Monthly Cash Flows'!$B$13:$EC$13)) -> 100226.225 | AZ10: =+INDEX('Monthly Cash Flows'!$B16:$EC16,MATCH('Monthly CF'!AZ$6,'Monthly Cash Flows'!$B$13:$EC$13)) -> 100226.225 | BA10: =+INDEX('Monthly Cash Flows'!$B16:$EC16,MATCH('Monthly CF'!BA$6,'Monthly Cash Flows'!$B$13:$EC$13)) -> 100226.225 | BB10: =+INDEX('Monthly Cash Flows'!$B16:$EC16,MATCH('Monthly CF'!BB$6,'Monthly Cash Flows'!$B$13:$EC$13)) -> 101142.8917 | BC10: =+INDEX('Monthly Cash Flows'!$B16:$EC16,MATCH('Monthly CF'!BC$6,'Monthly Cash Flows'!$B$13:$EC$13)) -> 101142.8917 | BD10: =+INDEX('Monthly Cash Flows'!$B16:$EC16,MATCH('Monthly CF'!BD$6,'Monthly Cash Flows'!$B$13:$EC$13)) -> 101142.8917 | BE10: =+INDEX('Monthly Cash Flows'!$B16:$EC16,MATCH('Monthly CF'!BE$6,'Monthly Cash Flows'!$B$13:$EC$13)) -> 101142.8917 | BF10: =+INDEX('Monthly Cash Flows'!$B16:$EC16,MATCH('Monthly CF'!BF$6,'Monthly Cash Flows'!$B$13:$EC$13)) -> 101142.8917 | BG10: =+INDEX('Monthly Cash Flows'!$B16:$EC16,MATCH('Monthly CF'!BG$6,'Monthly Cash Flows'!$B$13:$EC$13)) -> 101142.8917 | BH10: =+INDEX('Monthly Cash Flows'!$B16:$EC16,MATCH('Monthly CF'!BH$6,'Monthly Cash Flows'!$B$13:$EC$13)) -> 101142.8917 | BI10: =+INDEX('Monthly Cash Flows'!$B16:$EC16,MATCH('Monthly CF'!BI$6,'Monthly Cash Flows'!$B$13:$EC$13)) -> 101142.8917 | BJ10: =+INDEX('Monthly Cash Flows'!$B16:$EC16,MATCH('Monthly CF'!BJ$6,'Monthly Cash Flows'!$B$13:$EC$13)) -> 101142.8917 | BK10: =+INDEX('Monthly Cash Flows'!$B16:$EC16,MATCH('Monthly CF'!BK$6,'Monthly Cash Flows'!$B$13:$EC$13)) -> 101142.8917 | BL10: =+INDEX('Monthly Cash Flows'!$B16:$EC16,MATCH('Monthly CF'!BL$6,'Monthly Cash Flows'!$B$13:$EC$13)) -> 101142.8917 | BM10: =+INDEX('Monthly Cash Flows'!$B16:$EC16,MATCH('Monthly CF'!BM$6,'Monthly Cash Flows'!$B$13:$EC$13)) -> 101142.8917 | BN10: =+INDEX('Monthly Cash Flows'!$B16:$EC16,MATCH('Monthly CF'!BN$6,'Monthly Cash Flows'!$B$13:$EC$13)) -> 101892.8917 | BO10: =+INDEX('Monthly Cash Flows'!$B16:$EC16,MATCH('Monthly CF'!BO$6,'Monthly Cash Flows'!$B$13:$EC$13)) -> 101892.8917 | BP10: =+INDEX('Monthly Cash Flows'!$B16:$EC16,MATCH('Monthly CF'!BP$6,'Monthly Cash Flows'!$B$13:$EC$13)) -> 101892.8917 | BQ10: =+INDEX('Monthly Cash Flows'!$B16:$EC16,MATCH('Monthly CF'!BQ$6,'Monthly Cash Flows'!$B$13:$EC$13)) -> 101892.8917 | BR10: =+INDEX('Monthly Cash Flows'!$B16:$EC16,MATCH('Monthly CF'!BR$6,'Monthly Cash Flows'!$B$13:$EC$13)) -> 101892.8917 | BS10: =+INDEX('Monthly Cash Flows'!$B16:$EC16,MATCH('Monthly CF'!BS$6,'Monthly Cash Flows'!$B$13:$EC$13)) -> 101892.8917 | BT10: =+INDEX('Monthly Cash Flows'!$B16:$EC16,MATCH('Monthly CF'!BT$6,'Monthly Cash Flows'!$B$13:$EC$13)) -> 101892.8917 | BU10: =+INDEX('Monthly Cash Flows'!$B16:$EC16,MATCH('Monthly CF'!BU$6,'Monthly Cash Flows'!$B$13:$EC$13)) -> 101892.8917 | BV10: =+INDEX('Monthly Cash Flows'!$B16:$EC16,MATCH('Monthly CF'!BV$6,'Monthly Cash Flows'!$B$13:$EC$13)) -> 101892.8917 | BW10: =+INDEX('Monthly Cash Flows'!$B16:$EC16,MATCH('Monthly CF'!BW$6,'Monthly Cash Flows'!$B$13:$EC$13)) -> 102184.5583 | BX10: =+INDEX('Monthly Cash Flows'!$B16:$EC16,MATCH('Monthly CF'!BX$6,'Monthly Cash Flows'!$B$13:$EC$13)) -> 103654.5583 | BY10: =+INDEX('Monthly Cash Flows'!$B16:$EC16,MATCH('Monthly CF'!BY$6,'Monthly Cash Flows'!$B$13:$EC$13)) -> 103654.5583 | BZ10: =+INDEX('Monthly Cash Flows'!$B16:$EC16,MATCH('Monthly CF'!BZ$6,'Monthly Cash Flows'!$B$13:$EC$13)) -> 103987.5583 | CA10: =+INDEX('Monthly Cash Flows'!$B16:$EC16,MATCH('Monthly CF'!CA$6,'Monthly Cash Flows'!$B$13:$EC$13)) -> 103987.5583 | CB10: =+INDEX('Monthly Cash Flows'!$B16:$EC16,MATCH('Monthly CF'!CB$6,'Monthly Cash Flows'!$B$13:$EC$13)) -> 103987.5583 | CC10: =+INDEX('Monthly Cash Flows'!$B16:$EC16,MATCH('Monthly CF'!CC$6,'Monthly Cash Flows'!$B$13:$EC$13)) -> 103987.5583 | CD10: =+INDEX('Monthly Cash Flows'!$B16:$EC16,MATCH('Monthly CF'!CD$6,'Monthly Cash Flows'!$B$13:$EC$13)) -> 103987.5583 | CE10: =+INDEX('Monthly Cash Flows'!$B16:$EC16,MATCH('Monthly CF'!CE$6,'Monthly Cash Flows'!$B$13:$EC$13)) -> 103987.5583 | CF10: =+INDEX('Monthly Cash Flows'!$B16:$EC16,MATCH('Monthly CF'!CF$6,'Monthly Cash Flows'!$B$13:$EC$13)) -> 103987.5583 | CG10: =+INDEX('Monthly Cash Flows'!$B16:$EC16,MATCH('Monthly CF'!CG$6,'Monthly Cash Flows'!$B$13:$EC$13)) -> 103987.5583 | CH10: =+INDEX('Monthly Cash Flows'!$B16:$EC16,MATCH('Monthly CF'!CH$6,'Monthly Cash Flows'!$B$13:$EC$13)) -> 103987.5583 | CI10: =+INDEX('Monthly Cash Flows'!$B16:$EC16,MATCH('Monthly CF'!CI$6,'Monthly Cash Flows'!$B$13:$EC$13)) -> 103987.5583 | CJ10: =+INDEX('Monthly Cash Flows'!$B16:$EC16,MATCH('Monthly CF'!CJ$6,'Monthly Cash Flows'!$B$13:$EC$13)) -> 103987.5583 | CK10: =+INDEX('Monthly Cash Flows'!$B16:$EC16,MATCH('Monthly CF'!CK$6,'Monthly Cash Flows'!$B$13:$EC$13)) -> 103987.5583 | CL10: =+INDEX('Monthly Cash Flows'!$B16:$EC16,MATCH('Monthly CF'!CL$6,'Monthly Cash Flows'!$B$13:$EC$13)) -> 103987.5583 | CM10: =+INDEX('Monthly Cash Flows'!$B16:$EC16,MATCH('Monthly CF'!CM$6,'Monthly Cash Flows'!$B$13:$EC$13)) -> 103987.5583 | CN10: =+INDEX('Monthly Cash Flows'!$B16:$EC16,MATCH('Monthly CF'!CN$6,'Monthly Cash Flows'!$B$13:$EC$13)) -> 103987.5583 | CO10: =+INDEX('Monthly Cash Flows'!$B16:$EC16,MATCH('Monthly CF'!CO$6,'Monthly Cash Flows'!$B$13:$EC$13)) -> 103987.5583 | CP10: =+INDEX('Monthly Cash Flows'!$B16:$EC16,MATCH('Monthly CF'!CP$6,'Monthly Cash Flows'!$B$13:$EC$13)) -> 103987.5583 | CQ10: =+INDEX('Monthly Cash Flows'!$B16:$EC16,MATCH('Monthly CF'!CQ$6,'Monthly Cash Flows'!$B$13:$EC$13)) -> 103987.5583 | CR10: =+INDEX('Monthly Cash Flows'!$B16:$EC16,MATCH('Monthly CF'!CR$6,'Monthly Cash Flows'!$B$13:$EC$13)) -> 103987.5583 | CS10: =+INDEX('Monthly Cash Flows'!$B16:$EC16,MATCH('Monthly CF'!CS$6,'Monthly Cash Flows'!$B$13:$EC$13)) -> 103987.5583 | CT10: =+INDEX('Monthly Cash Flows'!$B16:$EC16,MATCH('Monthly CF'!CT$6,'Monthly Cash Flows'!$B$13:$EC$13)) -> 103987.5583 | CU10: =+INDEX('Monthly Cash Flows'!$B16:$EC16,MATCH('Monthly CF'!CU$6,'Monthly Cash Flows'!$B$13:$EC$13)) -> 103987.5583 | CV10: =+INDEX('Monthly Cash Flows'!$B16:$EC16,MATCH('Monthly CF'!CV$6,'Monthly Cash Flows'!$B$13:$EC$13)) -> 103987.5583 | CW10: =+INDEX('Monthly Cash Flows'!$B16:$EC16,MATCH('Monthly CF'!CW$6,'Monthly Cash Flows'!$B$13:$EC$13)) -> 103987.5583 | CX10: =+INDEX('Monthly Cash Flows'!$B16:$EC16,MATCH('Monthly CF'!CX$6,'Monthly Cash Flows'!$B$13:$EC$13)) -> 103987.5583 | CY10: =+INDEX('Monthly Cash Flows'!$B16:$EC16,MATCH('Monthly CF'!CY$6,'Monthly Cash Flows'!$B$13:$EC$13)) -> 103987.5583 | CZ10: =+INDEX('Monthly Cash Flows'!$B16:$EC16,MATCH('Monthly CF'!CZ$6,'Monthly Cash Flows'!$B$13:$EC$13)) -> 103987.5583 | DA10: =+INDEX('Monthly Cash Flows'!$B16:$EC16,MATCH('Monthly CF'!DA$6,'Monthly Cash Flows'!$B$13:$EC$13)) -> 103987.5583 | DB10: =+INDEX('Monthly Cash Flows'!$B16:$EC16,MATCH('Monthly CF'!DB$6,'Monthly Cash Flows'!$B$13:$EC$13)) -> 103987.5583 | DC10: =+INDEX('Monthly Cash Flows'!$B16:$EC16,MATCH('Monthly CF'!DC$6,'Monthly Cash Flows'!$B$13:$EC$13)) -> 103987.5583 | DD10: =+INDEX('Monthly Cash Flows'!$B16:$EC16,MATCH('Monthly CF'!DD$6,'Monthly Cash Flows'!$B$13:$EC$13)) -> 103987.5583 | DE10: =+INDEX('Monthly Cash Flows'!$B16:$EC16,MATCH('Monthly CF'!DE$6,'Monthly Cash Flows'!$B$13:$EC$13)) -> 103987.5583 | DF10: =+INDEX('Monthly Cash Flows'!$B16:$EC16,MATCH('Monthly CF'!DF$6,'Monthly Cash Flows'!$B$13:$EC$13)) -> 103987.5583 | DG10: =+INDEX('Monthly Cash Flows'!$B16:$EC16,MATCH('Monthly CF'!DG$6,'Monthly Cash Flows'!$B$13:$EC$13)) -> 103987.5583 | DH10: =+INDEX('Monthly Cash Flows'!$B16:$EC16,MATCH('Monthly CF'!DH$6,'Monthly Cash Flows'!$B$13:$EC$13)) -> 103987.5583 | DI10: =+INDEX('Monthly Cash Flows'!$B16:$EC16,MATCH('Monthly CF'!DI$6,'Monthly Cash Flows'!$B$13:$EC$13)) -> 103987.5583 | DJ10: =+INDEX('Monthly Cash Flows'!$B16:$EC16,MATCH('Monthly CF'!DJ$6,'Monthly Cash Flows'!$B$13:$EC$13)) -> 104904.225 | DK10: =+INDEX('Monthly Cash Flows'!$B16:$EC16,MATCH('Monthly CF'!DK$6,'Monthly Cash Flows'!$B$13:$EC$13)) -> 104904.225 | DL10: =+INDEX('Monthly Cash Flows'!$B16:$EC16,MATCH('Monthly CF'!DL$6,'Monthly Cash Flows'!$B$13:$EC$13)) -> 104904.225 | DM10: =+INDEX('Monthly Cash Flows'!$B16:$EC16,MATCH('Monthly CF'!DM$6,'Monthly Cash Flows'!$B$13:$EC$13)) -> 104904.225 | DN10: =+INDEX('Monthly Cash Flows'!$B16:$EC16,MATCH('Monthly CF'!DN$6,'Monthly Cash Flows'!$B$13:$EC$13)) -> 104904.225 | DO10: =+INDEX('Monthly Cash Flows'!$B16:$EC16,MATCH('Monthly CF'!DO$6,'Monthly Cash Flows'!$B$13:$EC$13)) -> 104904.225 | DP10: =+INDEX('Monthly Cash Flows'!$B16:$EC16,MATCH('Monthly CF'!DP$6,'Monthly Cash Flows'!$B$13:$EC$13)) -> 104904.225 | DQ10: =+INDEX('Monthly Cash Flows'!$B16:$EC16,MATCH('Monthly CF'!DQ$6,'Monthly Cash Flows'!$B$13:$EC$13)) -> 104904.225 | DR10: =+INDEX('Monthly Cash Flows'!$B16:$EC16,MATCH('Monthly CF'!DR$6,'Monthly Cash Flows'!$B$13:$EC$13)) -> 104904.225 | DS10: =+INDEX('Monthly Cash Flows'!$B16:$EC16,MATCH('Monthly CF'!DS$6,'Monthly Cash Flows'!$B$13:$EC$13)) -> 104904.225 | DT10: =+INDEX('Monthly Cash Flows'!$B16:$EC16,MATCH('Monthly CF'!DT$6,'Monthly Cash Flows'!$B$13:$EC$13)) -> 104904.225 | DU10: =+INDEX('Monthly Cash Flows'!$B16:$EC16,MATCH('Monthly CF'!DU$6,'Monthly Cash Flows'!$B$13:$EC$13)) -> 104904.225 | DV10: =+INDEX('Monthly Cash Flows'!$B16:$EC16,MATCH('Monthly CF'!DV$6,'Monthly Cash Flows'!$B$13:$EC$13)) -> 104904.225 | DW10: =+INDEX('Monthly Cash Flows'!$B16:$EC16,MATCH('Monthly CF'!DW$6,'Monthly Cash Flows'!$B$13:$EC$13)) -> 104904.225 | DX10: =+INDEX('Monthly Cash Flows'!$B16:$EC16,MATCH('Monthly CF'!DX$6,'Monthly Cash Flows'!$B$13:$EC$13)) -> 104904.225 | DY10: =+INDEX('Monthly Cash Flows'!$B16:$EC16,MATCH('Monthly CF'!DY$6,'Monthly Cash Flows'!$B$13:$EC$13)) -> 104904.225 | DZ10: =+INDEX('Monthly Cash Flows'!$B16:$EC16,MATCH('Monthly CF'!DZ$6,'Monthly Cash Flows'!$B$13:$EC$13)) -> 104904.225 | EA10: =+INDEX('Monthly Cash Flows'!$B16:$EC16,MATCH('Monthly CF'!EA$6,'Monthly Cash Flows'!$B$13:$EC$13)) -> 104904.225 | EB10: =+INDEX('Monthly Cash Flows'!$B16:$EC16,MATCH('Monthly CF'!EB$6,'Monthly Cash Flows'!$B$13:$EC$13)) -> 104904.225 | EC10: =+INDEX('Monthly Cash Flows'!$B16:$EC16,MATCH('Monthly CF'!EC$6,'Monthly Cash Flows'!$B$13:$EC$13)) -> 104904.225 | ED10: =+INDEX('Monthly Cash Flows'!$B16:$EC16,MATCH('Monthly CF'!ED$6,'Monthly Cash Flows'!$B$13:$EC$13)) -> 104904.225 | EE10: =+INDEX('Monthly Cash Flows'!$B16:$EC16,MATCH('Monthly CF'!EE$6,'Monthly Cash Flows'!$B$13:$EC$13)) -> 104904.225 | EF10: =+INDEX('Monthly Cash Flows'!$B16:$EC16,MATCH('Monthly CF'!EF$6,'Monthly Cash Flows'!$B$13:$EC$13)) -> 104904.225 | EG10: =+INDEX('Monthly Cash Flows'!$B16:$EC16,MATCH('Monthly CF'!EG$6,'Monthly Cash Flows'!$B$13:$EC$13)) -> 104904.225
B11: =+'Monthly Cash Flows'!A17 -> Absorption & Turnover Vacancy | F11: =+INDEX('Monthly Cash Flows'!$B17:$EC17,MATCH('Monthly CF'!F$6,'Monthly Cash Flows'!$B$13:$EC$13)) -> 0 | G11: =+INDEX('Monthly Cash Flows'!$B17:$EC17,MATCH('Monthly CF'!G$6,'Monthly Cash Flows'!$B$13:$EC$13)) -> 0 | H11: =+INDEX('Monthly Cash Flows'!$B17:$EC17,MATCH('Monthly CF'!H$6,'Monthly Cash Flows'!$B$13:$EC$13)) -> 0 | I11: =+INDEX('Monthly Cash Flows'!$B17:$EC17,MATCH('Monthly CF'!I$6,'Monthly Cash Flows'!$B$13:$EC$13)) -> 0 | J11: =+INDEX('Monthly Cash Flows'!$B17:$EC17,MATCH('Monthly CF'!J$6,'Monthly Cash Flows'!$B$13:$EC$13)) -> 0 | K11: =+INDEX('Monthly Cash Flows'!$B17:$EC17,MATCH('Monthly CF'!K$6,'Monthly Cash Flows'!$B$13:$EC$13)) -> 0 | L11: =+INDEX('Monthly Cash Flows'!$B17:$EC17,MATCH('Monthly CF'!L$6,'Monthly Cash Flows'!$B$13:$EC$13)) -> 0 | M11: =+INDEX('Monthly Cash Flows'!$B17:$EC17,MATCH('Monthly CF'!M$6,'Monthly Cash Flows'!$B$13:$EC$13)) -> 0 | N11: =+INDEX('Monthly Cash Flows'!$B17:$EC17,MATCH('Monthly CF'!N$6,'Monthly Cash Flows'!$B$13:$EC$13)) -> 0 | O11: =+INDEX('Monthly Cash Flows'!$B17:$EC17,MATCH('Monthly CF'!O$6,'Monthly Cash Flows'!$B$13:$EC$13)) -> 0 | P11: =+INDEX('Monthly Cash Flows'!$B17:$EC17,MATCH('Monthly CF'!P$6,'Monthly Cash Flows'!$B$13:$EC$13)) -> 0 | Q11: =+INDEX('Monthly Cash Flows'!$B17:$EC17,MATCH('Monthly CF'!Q$6,'Monthly Cash Flows'!$B$13:$EC$13)) -> 0 | R11: =+INDEX('Monthly Cash Flows'!$B17:$EC17,MATCH('Monthly CF'!R$6,'Monthly Cash Flows'!$B$13:$EC$13)) -> 0 | S11: =+INDEX('Monthly Cash Flows'!$B17:$EC17,MATCH('Monthly CF'!S$6,'Monthly Cash Flows'!$B$13:$EC$13)) -> 0 | T11: =+INDEX('Monthly Cash Flows'!$B17:$EC17,MATCH('Monthly CF'!T$6,'Monthly Cash Flows'!$B$13:$EC$13)) -> 0 | U11: =+INDEX('Monthly Cash Flows'!$B17:$EC17,MATCH('Monthly CF'!U$6,'Monthly Cash Flows'!$B$13:$EC$13)) -> 0 | V11: =+INDEX('Monthly Cash Flows'!$B17:$EC17,MATCH('Monthly CF'!V$6,'Monthly Cash Flows'!$B$13:$EC$13)) -> 0 | W11: =+INDEX('Monthly Cash Flows'!$B17:$EC17,MATCH('Monthly CF'!W$6,'Monthly Cash Flows'!$B$13:$EC$13)) -> 0 | X11: =+INDEX('Monthly Cash Flows'!$B17:$EC17,MATCH('Monthly CF'!X$6,'Monthly Cash Flows'!$B$13:$EC$13)) -> 0 | Y11: =+INDEX('Monthly Cash Flows'!$B17:$EC17,MATCH('Monthly CF'!Y$6,'Monthly Cash Flows'!$B$13:$EC$13)) -> 0 | Z11: =+INDEX('Monthly Cash Flows'!$B17:$EC17,MATCH('Monthly CF'!Z$6,'Monthly Cash Flows'!$B$13:$EC$13)) -> 0 | AA11: =+INDEX('Monthly Cash Flows'!$B17:$EC17,MATCH('Monthly CF'!AA$6,'Monthly Cash Flows'!$B$13:$EC$13)) -> 0 | AB11: =+INDEX('Monthly Cash Flows'!$B17:$EC17,MATCH('Monthly CF'!AB$6,'Monthly Cash Flows'!$B$13:$EC$13)) -> 0 | AC11: =+INDEX('Monthly Cash Flows'!$B17:$EC17,MATCH('Monthly CF'!AC$6,'Monthly Cash Flows'!$B$13:$EC$13)) -> 0 | AD11: =+INDEX('Monthly Cash Flows'!$B17:$EC17,MATCH('Monthly CF'!AD$6,'Monthly Cash Flows'!$B$13:$EC$13)) -> 0 | AE11: =+INDEX('Monthly Cash Flows'!$B17:$EC17,MATCH('Monthly CF'!AE$6,'Monthly Cash Flows'!$B$13:$EC$13)) -> 0 | AF11: =+INDEX('Monthly Cash Flows'!$B17:$EC17,MATCH('Monthly CF'!AF$6,'Monthly Cash Flows'!$B$13:$EC$13)) -> 0 | AG11: =+INDEX('Monthly Cash Flows'!$B17:$EC17,MATCH('Monthly CF'!AG$6,'Monthly Cash Flows'!$B$13:$EC$13)) -> 0 | AH11: =+INDEX('Monthly Cash Flows'!$B17:$EC17,MATCH('Monthly CF'!AH$6,'Monthly Cash Flows'!$B$13:$EC$13)) -> 0 | AI11: =+INDEX('Monthly Cash Flows'!$B17:$EC17,MATCH('Monthly CF'!AI$6,'Monthly Cash Flows'!$B$13:$EC$13)) -> 0 | AJ11: =+INDEX('Monthly Cash Flows'!$B17:$EC17,MATCH('Monthly CF'!AJ$6,'Monthly Cash Flows'!$B$13:$EC$13)) -> 0 | AK11: =+INDEX('Monthly Cash Flows'!$B17:$EC17,MATCH('Monthly CF'!AK$6,'Monthly Cash Flows'!$B$13:$EC$13)) -> 0 | AL11: =+INDEX('Monthly Cash Flows'!$B17:$EC17,MATCH('Monthly CF'!AL$6,'Monthly Cash Flows'!$B$13:$EC$13)) -> 0 | AM11: =+INDEX('Monthly Cash Flows'!$B17:$EC17,MATCH('Monthly CF'!AM$6,'Monthly Cash Flows'!$B$13:$EC$13)) -> 0 | AN11: =+INDEX('Monthly Cash Flows'!$B17:$EC17,MATCH('Monthly CF'!AN$6,'Monthly Cash Flows'!$B$13:$EC$13)) -> 0 | AO11: =+INDEX('Monthly Cash Flows'!$B17:$EC17,MATCH('Monthly CF'!AO$6,'Monthly Cash Flows'!$B$13:$EC$13)) -> 0 | AP11: =+INDEX('Monthly Cash Flows'!$B17:$EC17,MATCH('Monthly CF'!AP$6,'Monthly Cash Flows'!$B$13:$EC$13)) -> 0 | AQ11: =+INDEX('Monthly Cash Flows'!$B17:$EC17,MATCH('Monthly CF'!AQ$6,'Monthly Cash Flows'!$B$13:$EC$13)) -> 0 | AR11: =+INDEX('Monthly Cash Flows'!$B17:$EC17,MATCH('Monthly CF'!AR$6,'Monthly Cash Flows'!$B$13:$EC$13)) -> 0 | AS11: =+INDEX('Monthly Cash Flows'!$B17:$EC17,MATCH('Monthly CF'!AS$6,'Monthly Cash Flows'!$B$13:$EC$13)) -> 0 | AT11: =+INDEX('Monthly Cash Flows'!$B17:$EC17,MATCH('Monthly CF'!AT$6,'Monthly Cash Flows'!$B$13:$EC$13)) -> 0 | AU11: =+INDEX('Monthly Cash Flows'!$B17:$EC17,MATCH('Monthly CF'!AU$6,'Monthly Cash Flows'!$B$13:$EC$13)) -> 0 | AV11: =+INDEX('Monthly Cash Flows'!$B17:$EC17,MATCH('Monthly CF'!AV$6,'Monthly Cash Flows'!$B$13:$EC$13)) -> 0 | AW11: =+INDEX('Monthly Cash Flows'!$B17:$EC17,MATCH('Monthly CF'!AW$6,'Monthly Cash Flows'!$B$13:$EC$13)) -> 0 | AX11: =+INDEX('Monthly Cash Flows'!$B17:$EC17,MATCH('Monthly CF'!AX$6,'Monthly Cash Flows'!$B$13:$EC$13)) -> 0 | AY11: =+INDEX('Monthly Cash Flows'!$B17:$EC17,MATCH('Monthly CF'!AY$6,'Monthly Cash Flows'!$B$13:$EC$13)) -> 0 | AZ11: =+INDEX('Monthly Cash Flows'!$B17:$EC17,MATCH('Monthly CF'!AZ$6,'Monthly Cash Flows'!$B$13:$EC$13)) -> 0 | BA11: =+INDEX('Monthly Cash Flows'!$B17:$EC17,MATCH('Monthly CF'!BA$6,'Monthly Cash Flows'!$B$13:$EC$13)) -> 0 | BB11: =+INDEX('Monthly Cash Flows'!$B17:$EC17,MATCH('Monthly CF'!BB$6,'Monthly Cash Flows'!$B$13:$EC$13)) -> 0 | BC11: =+INDEX('Monthly Cash Flows'!$B17:$EC17,MATCH('Monthly CF'!BC$6,'Monthly Cash Flows'!$B$13:$EC$13)) -> 0 | BD11: =+INDEX('Monthly Cash Flows'!$B17:$EC17,MATCH('Monthly CF'!BD$6,'Monthly Cash Flows'!$B$13:$EC$13)) -> 0 | BE11: =+INDEX('Monthly Cash Flows'!$B17:$EC17,MATCH('Monthly CF'!BE$6,'Monthly Cash Flows'!$B$13:$EC$13)) -> 0 | BF11: =+INDEX('Monthly Cash Flows'!$B17:$EC17,MATCH('Monthly CF'!BF$6,'Monthly Cash Flows'!$B$13:$EC$13)) -> 0 | BG11: =+INDEX('Monthly Cash Flows'!$B17:$EC17,MATCH('Monthly CF'!BG$6,'Monthly Cash Flows'!$B$13:$EC$13)) -> 0 | BH11: =+INDEX('Monthly Cash Flows'!$B17:$EC17,MATCH('Monthly CF'!BH$6,'Monthly Cash Flows'!$B$13:$EC$13)) -> 0 | BI11: =+INDEX('Monthly Cash Flows'!$B17:$EC17,MATCH('Monthly CF'!BI$6,'Monthly Cash Flows'!$B$13:$EC$13)) -> 0 | BJ11: =+INDEX('Monthly Cash Flows'!$B17:$EC17,MATCH('Monthly CF'!BJ$6,'Monthly Cash Flows'!$B$13:$EC$13)) -> 0 | BK11: =+INDEX('Monthly Cash Flows'!$B17:$EC17,MATCH('Monthly CF'!BK$6,'Monthly Cash Flows'!$B$13:$EC$13)) -> 0 | BL11: =+INDEX('Monthly Cash Flows'!$B17:$EC17,MATCH('Monthly CF'!BL$6,'Monthly Cash Flows'!$B$13:$EC$13)) -> 0 | BM11: =+INDEX('Monthly Cash Flows'!$B17:$EC17,MATCH('Monthly CF'!BM$6,'Monthly Cash Flows'!$B$13:$EC$13)) -> 0 | BN11: =+INDEX('Monthly Cash Flows'!$B17:$EC17,MATCH('Monthly CF'!BN$6,'Monthly Cash Flows'!$B$13:$EC$13)) -> 0 | BO11: =+INDEX('Monthly Cash Flows'!$B17:$EC17,MATCH('Monthly CF'!BO$6,'Monthly Cash Flows'!$B$13:$EC$13)) -> 0 | BP11: =+INDEX('Monthly Cash Flows'!$B17:$EC17,MATCH('Monthly CF'!BP$6,'Monthly Cash Flows'!$B$13:$EC$13)) -> 0 | BQ11: =+INDEX('Monthly Cash Flows'!$B17:$EC17,MATCH('Monthly CF'!BQ$6,'Monthly Cash Flows'!$B$13:$EC$13)) -> 0 | BR11: =+INDEX('Monthly Cash Flows'!$B17:$EC17,MATCH('Monthly CF'!BR$6,'Monthly Cash Flows'!$B$13:$EC$13)) -> 0 | BS11: =+INDEX('Monthly Cash Flows'!$B17:$EC17,MATCH('Monthly CF'!BS$6,'Monthly Cash Flows'!$B$13:$EC$13)) -> 0 | BT11: =+INDEX('Monthly Cash Flows'!$B17:$EC17,MATCH('Monthly CF'!BT$6,'Monthly Cash Flows'!$B$13:$EC$13)) -> 0 | BU11: =+INDEX('Monthly Cash Flows'!$B17:$EC17,MATCH('Monthly CF'!BU$6,'Monthly Cash Flows'!$B$13:$EC$13)) -> 0 | BV11: =+INDEX('Monthly Cash Flows'!$B17:$EC17,MATCH('Monthly CF'!BV$6,'Monthly Cash Flows'!$B$13:$EC$13)) -> 0 | BW11: =+INDEX('Monthly Cash Flows'!$B17:$EC17,MATCH('Monthly CF'!BW$6,'Monthly Cash Flows'!$B$13:$EC$13)) -> 0 | BX11: =+INDEX('Monthly Cash Flows'!$B17:$EC17,MATCH('Monthly CF'!BX$6,'Monthly Cash Flows'!$B$13:$EC$13)) -> 0 | BY11: =+INDEX('Monthly Cash Flows'!$B17:$EC17,MATCH('Monthly CF'!BY$6,'Monthly Cash Flows'!$B$13:$EC$13)) -> 0 | BZ11: =+INDEX('Monthly Cash Flows'!$B17:$EC17,MATCH('Monthly CF'!BZ$6,'Monthly Cash Flows'!$B$13:$EC$13)) -> 0 | CA11: =+INDEX('Monthly Cash Flows'!$B17:$EC17,MATCH('Monthly CF'!CA$6,'Monthly Cash Flows'!$B$13:$EC$13)) -> 0 | CB11: =+INDEX('Monthly Cash Flows'!$B17:$EC17,MATCH('Monthly CF'!CB$6,'Monthly Cash Flows'!$B$13:$EC$13)) -> 0 | CC11: =+INDEX('Monthly Cash Flows'!$B17:$EC17,MATCH('Monthly CF'!CC$6,'Monthly Cash Flows'!$B$13:$EC$13)) -> 0 | CD11: =+INDEX('Monthly Cash Flows'!$B17:$EC17,MATCH('Monthly CF'!CD$6,'Monthly Cash Flows'!$B$13:$EC$13)) -> 0 | CE11: =+INDEX('Monthly Cash Flows'!$B17:$EC17,MATCH('Monthly CF'!CE$6,'Monthly Cash Flows'!$B$13:$EC$13)) -> 0 | CF11: =+INDEX('Monthly Cash Flows'!$B17:$EC17,MATCH('Monthly CF'!CF$6,'Monthly Cash Flows'!$B$13:$EC$13)) -> 0 | CG11: =+INDEX('Monthly Cash Flows'!$B17:$EC17,MATCH('Monthly CF'!CG$6,'Monthly Cash Flows'!$B$13:$EC$13)) -> 0 | CH11: =+INDEX('Monthly Cash Flows'!$B17:$EC17,MATCH('Monthly CF'!CH$6,'Monthly Cash Flows'!$B$13:$EC$13)) -> 0 | CI11: =+INDEX('Monthly Cash Flows'!$B17:$EC17,MATCH('Monthly CF'!CI$6,'Monthly Cash Flows'!$B$13:$EC$13)) -> 0 | CJ11: =+INDEX('Monthly Cash Flows'!$B17:$EC17,MATCH('Monthly CF'!CJ$6,'Monthly Cash Flows'!$B$13:$EC$13)) -> 0 | CK11: =+INDEX('Monthly Cash Flows'!$B17:$EC17,MATCH('Monthly CF'!CK$6,'Monthly Cash Flows'!$B$13:$EC$13)) -> 0 | CL11: =+INDEX('Monthly Cash Flows'!$B17:$EC17,MATCH('Monthly CF'!CL$6,'Monthly Cash Flows'!$B$13:$EC$13)) -> 0 | CM11: =+INDEX('Monthly Cash Flows'!$B17:$EC17,MATCH('Monthly CF'!CM$6,'Monthly Cash Flows'!$B$13:$EC$13)) -> 0 | CN11: =+INDEX('Monthly Cash Flows'!$B17:$EC17,MATCH('Monthly CF'!CN$6,'Monthly Cash Flows'!$B$13:$EC$13)) -> 0 | CO11: =+INDEX('Monthly Cash Flows'!$B17:$EC17,MATCH('Monthly CF'!CO$6,'Monthly Cash Flows'!$B$13:$EC$13)) -> 0 | CP11: =+INDEX('Monthly Cash Flows'!$B17:$EC17,MATCH('Monthly CF'!CP$6,'Monthly Cash Flows'!$B$13:$EC$13)) -> 0 | CQ11: =+INDEX('Monthly Cash Flows'!$B17:$EC17,MATCH('Monthly CF'!CQ$6,'Monthly Cash Flows'!$B$13:$EC$13)) -> 0 | CR11: =+INDEX('Monthly Cash Flows'!$B17:$EC17,MATCH('Monthly CF'!CR$6,'Monthly Cash Flows'!$B$13:$EC$13)) -> 0 | CS11: =+INDEX('Monthly Cash Flows'!$B17:$EC17,MATCH('Monthly CF'!CS$6,'Monthly Cash Flows'!$B$13:$EC$13)) -> 0 | CT11: =+INDEX('Monthly Cash Flows'!$B17:$EC17,MATCH('Monthly CF'!CT$6,'Monthly Cash Flows'!$B$13:$EC$13)) -> 0 | CU11: =+INDEX('Monthly Cash Flows'!$B17:$EC17,MATCH('Monthly CF'!CU$6,'Monthly Cash Flows'!$B$13:$EC$13)) -> 0 | CV11: =+INDEX('Monthly Cash Flows'!$B17:$EC17,MATCH('Monthly CF'!CV$6,'Monthly Cash Flows'!$B$13:$EC$13)) -> 0 | CW11: =+INDEX('Monthly Cash Flows'!$B17:$EC17,MATCH('Monthly CF'!CW$6,'Monthly Cash Flows'!$B$13:$EC$13)) -> 0 | CX11: =+INDEX('Monthly Cash Flows'!$B17:$EC17,MATCH('Monthly CF'!CX$6,'Monthly Cash Flows'!$B$13:$EC$13)) -> 0 | CY11: =+INDEX('Monthly Cash Flows'!$B17:$EC17,MATCH('Monthly CF'!CY$6,'Monthly Cash Flows'!$B$13:$EC$13)) -> 0 | CZ11: =+INDEX('Monthly Cash Flows'!$B17:$EC17,MATCH('Monthly CF'!CZ$6,'Monthly Cash Flows'!$B$13:$EC$13)) -> 0 | DA11: =+INDEX('Monthly Cash Flows'!$B17:$EC17,MATCH('Monthly CF'!DA$6,'Monthly Cash Flows'!$B$13:$EC$13)) -> 0 | DB11: =+INDEX('Monthly Cash Flows'!$B17:$EC17,MATCH('Monthly CF'!DB$6,'Monthly Cash Flows'!$B$13:$EC$13)) -> 0 | DC11: =+INDEX('Monthly Cash Flows'!$B17:$EC17,MATCH('Monthly CF'!DC$6,'Monthly Cash Flows'!$B$13:$EC$13)) -> 0 | DD11: =+INDEX('Monthly Cash Flows'!$B17:$EC17,MATCH('Monthly CF'!DD$6,'Monthly Cash Flows'!$B$13:$EC$13)) -> 0 | DE11: =+INDEX('Monthly Cash Flows'!$B17:$EC17,MATCH('Monthly CF'!DE$6,'Monthly Cash Flows'!$B$13:$EC$13)) -> 0 | DF11: =+INDEX('Monthly Cash Flows'!$B17:$EC17,MATCH('Monthly CF'!DF$6,'Monthly Cash Flows'!$B$13:$EC$13)) -> 0 | DG11: =+INDEX('Monthly Cash Flows'!$B17:$EC17,MATCH('Monthly CF'!DG$6,'Monthly Cash Flows'!$B$13:$EC$13)) -> 0 | DH11: =+INDEX('Monthly Cash Flows'!$B17:$EC17,MATCH('Monthly CF'!DH$6,'Monthly Cash Flows'!$B$13:$EC$13)) -> 0 | DI11: =+INDEX('Monthly Cash Flows'!$B17:$EC17,MATCH('Monthly CF'!DI$6,'Monthly Cash Flows'!$B$13:$EC$13)) -> 0 | DJ11: =+INDEX('Monthly Cash Flows'!$B17:$EC17,MATCH('Monthly CF'!DJ$6,'Monthly Cash Flows'!$B$13:$EC$13)) -> 0 | DK11: =+INDEX('Monthly Cash Flows'!$B17:$EC17,MATCH('Monthly CF'!DK$6,'Monthly Cash Flows'!$B$13:$EC$13)) -> 0 | DL11: =+INDEX('Monthly Cash Flows'!$B17:$EC17,MATCH('Monthly CF'!DL$6,'Monthly Cash Flows'!$B$13:$EC$13)) -> 0 | DM11: =+INDEX('Monthly Cash Flows'!$B17:$EC17,MATCH('Monthly CF'!DM$6,'Monthly Cash Flows'!$B$13:$EC$13)) -> 0 | DN11: =+INDEX('Monthly Cash Flows'!$B17:$EC17,MATCH('Monthly CF'!DN$6,'Monthly Cash Flows'!$B$13:$EC$13)) -> 0 | DO11: =+INDEX('Monthly Cash Flows'!$B17:$EC17,MATCH('Monthly CF'!DO$6,'Monthly Cash Flows'!$B$13:$EC$13)) -> 0 | DP11: =+INDEX('Monthly Cash Flows'!$B17:$EC17,MATCH('Monthly CF'!DP$6,'Monthly Cash Flows'!$B$13:$EC$13)) -> 0 | DQ11: =+INDEX('Monthly Cash Flows'!$B17:$EC17,MATCH('Monthly CF'!DQ$6,'Monthly Cash Flows'!$B$13:$EC$13)) -> 0 | DR11: =+INDEX('Monthly Cash Flows'!$B17:$EC17,MATCH('Monthly CF'!DR$6,'Monthly Cash Flows'!$B$13:$EC$13)) -> 0 | DS11: =+INDEX('Monthly Cash Flows'!$B17:$EC17,MATCH('Monthly CF'!DS$6,'Monthly Cash Flows'!$B$13:$EC$13)) -> 0 | DT11: =+INDEX('Monthly Cash Flows'!$B17:$EC17,MATCH('Monthly CF'!DT$6,'Monthly Cash Flows'!$B$13:$EC$13)) -> 0 | DU11: =+INDEX('Monthly Cash Flows'!$B17:$EC17,MATCH('Monthly CF'!DU$6,'Monthly Cash Flows'!$B$13:$EC$13)) -> 0 | DV11: =+INDEX('Monthly Cash Flows'!$B17:$EC17,MATCH('Monthly CF'!DV$6,'Monthly Cash Flows'!$B$13:$EC$13)) -> 0 | DW11: =+INDEX('Monthly Cash Flows'!$B17:$EC17,MATCH('Monthly CF'!DW$6,'Monthly Cash Flows'!$B$13:$EC$13)) -> 0 | DX11: =+INDEX('Monthly Cash Flows'!$B17:$EC17,MATCH('Monthly CF'!DX$6,'Monthly Cash Flows'!$B$13:$EC$13)) -> 0 | DY11: =+INDEX('Monthly Cash Flows'!$B17:$EC17,MATCH('Monthly CF'!DY$6,'Monthly Cash Flows'!$B$13:$EC$13)) -> 0 | DZ11: =+INDEX('Monthly Cash Flows'!$B17:$EC17,MATCH('Monthly CF'!DZ$6,'Monthly Cash Flows'!$B$13:$EC$13)) -> 0 | EA11: =+INDEX('Monthly Cash Flows'!$B17:$EC17,MATCH('Monthly CF'!EA$6,'Monthly Cash Flows'!$B$13:$EC$13)) -> 0 | EB11: =+INDEX('Monthly Cash Flows'!$B17:$EC17,MATCH('Monthly CF'!EB$6,'Monthly Cash Flows'!$B$13:$EC$13)) -> 0 | EC11: =+INDEX('Monthly Cash Flows'!$B17:$EC17,MATCH('Monthly CF'!EC$6,'Monthly Cash Flows'!$B$13:$EC$13)) -> 0 | ED11: =+INDEX('Monthly Cash Flows'!$B17:$EC17,MATCH('Monthly CF'!ED$6,'Monthly Cash Flows'!$B$13:$EC$13)) -> 0 | EE11: =+INDEX('Monthly Cash Flows'!$B17:$EC17,MATCH('Monthly CF'!EE$6,'Monthly Cash Flows'!$B$13:$EC$13)) -> 0 | EF11: =+INDEX('Monthly Cash Flows'!$B17:$EC17,MATCH('Monthly CF'!EF$6,'Monthly Cash Flows'!$B$13:$EC$13)) -> 0 | EG11: =+INDEX('Monthly Cash Flows'!$B17:$EC17,MATCH('Monthly CF'!EG$6,'Monthly Cash Flows'!$B$13:$EC$13)) -> 0
B13: Scheduled Base Rental Revenue | F13: =+SUM(F10:F12) -> 80144.15833 | G13: =+SUM(G10:G12) -> 80144.15833 | H13: 80144.15833 | I13: 82469.15833 | J13: 82469.15833 | K13: 82469.15833 | L13: 82469.15833 | M13: 83760.825 | N13: 83760.825 | O13: 83969.15833 | P13: 84989.99167 | Q13: 89785.64167 | R13: 90039.89167 | S13: 90039.89167 | T13: 90463.55833 | U13: 91755.225 | V13: 97269.225 | W13: 97269.225 | X13: 97269.225 | Y13: 98819.225 | Z13: 98819.225 | AA13: 98819.225 | AB13: 98819.225 | AC13: 99832.55833 | AD13: 99832.55833 | AE13: 99832.55833 | AF13: 99832.55833 | AG13: 99965.89167 | AH13: 99965.89167 | AI13: 99965.89167 | AJ13: 99965.89167 | AK13: 100226.225 | AL13: 100226.225 | AM13: 100226.225 | AN13: 100226.225 | AO13: 100226.225 | AP13: 100226.225 | AQ13: 100226.225 | AR13: 100226.225 | AS13: 100226.225 | AT13: 100226.225 | AU13: 100226.225 | AV13: 100226.225 | AW13: 100226.225 | AX13: 100226.225 | AY13: 100226.225 | AZ13: 100226.225 | BA13: 100226.225 | BB13: 101142.8917 | BC13: 101142.8917 | BD13: 101142.8917 | BE13: 101142.8917 | BF13: 101142.8917 | BG13: 101142.8917 | BH13: 101142.8917 | BI13: 101142.8917 | BJ13: 101142.8917 | BK13: 101142.8917 | BL13: 101142.8917 | BM13: 101142.8917 | BN13: 101892.8917 | BO13: 101892.8917 | BP13: 101892.8917 | BQ13: 101892.8917 | BR13: 101892.8917 | BS13: =+SUM(BS10:BS12) -> 101892.8917 | BT13: 101892.8917 | BU13: 101892.8917 | BV13: 101892.8917 | BW13: 102184.5583 | BX13: 103654.5583 | BY13: 103654.5583 | BZ13: 103987.5583 | CA13: 103987.5583 | CB13: 103987.5583 | CC13: 103987.5583 | CD13: 103987.5583 | CE13: 103987.5583 | CF13: 103987.5583 | CG13: 103987.5583 | CH13: 103987.5583 | CI13: 103987.5583 | CJ13: 103987.5583 | CK13: 103987.5583 | CL13: 103987.5583 | CM13: 103987.5583 | CN13: 103987.5583 | CO13: 103987.5583 | CP13: 103987.5583 | CQ13: 103987.5583 | CR13: 103987.5583 | CS13: 103987.5583 | CT13: 103987.5583 | CU13: 103987.5583 | CV13: 103987.5583 | CW13: 103987.5583 | CX13: 103987.5583 | CY13: 103987.5583 | CZ13: 103987.5583 | DA13: 103987.5583 | DB13: 103987.5583 | DC13: 103987.5583 | DD13: 103987.5583 | DE13: 103987.5583 | DF13: 103987.5583 | DG13: 103987.5583 | DH13: 103987.5583 | DI13: 103987.5583 | DJ13: 104904.225 | DK13: 104904.225 | DL13: 104904.225 | DM13: 104904.225 | DN13: 104904.225 | DO13: 104904.225 | DP13: 104904.225 | DQ13: 104904.225 | DR13: 104904.225 | DS13: 104904.225 | DT13: 104904.225 | DU13: 104904.225 | DV13: 104904.225 | DW13: 104904.225 | DX13: 104904.225 | DY13: 104904.225 | DZ13: 104904.225 | EA13: 104904.225 | EB13: 104904.225 | EC13: 104904.225 | ED13: 104904.225 | EE13: =+SUM(EE10:EE12) -> 104904.225 | EF13: 104904.225 | EG13: 104904.225
B14: ='Monthly Cash Flows'!A39 -> Total Reimbursement Revenue | F14: =+INDEX('Monthly Cash Flows'!$B39:$EC39,MATCH('Monthly CF'!F$6,'Monthly Cash Flows'!$B$13:$EC$13)) -> 28780.61665 | G14: =+INDEX('Monthly Cash Flows'!$B39:$EC39,MATCH('Monthly CF'!G$6,'Monthly Cash Flows'!$B$13:$EC$13)) -> 28780.61665 | H14: =+INDEX('Monthly Cash Flows'!$B39:$EC39,MATCH('Monthly CF'!H$6,'Monthly Cash Flows'!$B$13:$EC$13)) -> 28780.61665 | I14: =+INDEX('Monthly Cash Flows'!$B39:$EC39,MATCH('Monthly CF'!I$6,'Monthly Cash Flows'!$B$13:$EC$13)) -> 29317.36817 | J14: =+INDEX('Monthly Cash Flows'!$B39:$EC39,MATCH('Monthly CF'!J$6,'Monthly Cash Flows'!$B$13:$EC$13)) -> 29317.36817 | K14: =+INDEX('Monthly Cash Flows'!$B39:$EC39,MATCH('Monthly CF'!K$6,'Monthly Cash Flows'!$B$13:$EC$13)) -> 29317.36817 | L14: =+INDEX('Monthly Cash Flows'!$B39:$EC39,MATCH('Monthly CF'!L$6,'Monthly Cash Flows'!$B$13:$EC$13)) -> 29317.36817 | M14: =+INDEX('Monthly Cash Flows'!$B39:$EC39,MATCH('Monthly CF'!M$6,'Monthly Cash Flows'!$B$13:$EC$13)) -> 29615.56346 | N14: =+INDEX('Monthly Cash Flows'!$B39:$EC39,MATCH('Monthly CF'!N$6,'Monthly Cash Flows'!$B$13:$EC$13)) -> 29615.56346 | O14: =+INDEX('Monthly Cash Flows'!$B39:$EC39,MATCH('Monthly CF'!O$6,'Monthly Cash Flows'!$B$13:$EC$13)) -> 29615.56346 | P14: =+INDEX('Monthly Cash Flows'!$B39:$EC39,MATCH('Monthly CF'!P$6,'Monthly Cash Flows'!$B$13:$EC$13)) -> 29615.56346 | Q14: =+INDEX('Monthly Cash Flows'!$B39:$EC39,MATCH('Monthly CF'!Q$6,'Monthly Cash Flows'!$B$13:$EC$13)) -> 31700.98538 | R14: =+INDEX('Monthly Cash Flows'!$B39:$EC39,MATCH('Monthly CF'!R$6,'Monthly Cash Flows'!$B$13:$EC$13)) -> 31700.98538 | S14: =+INDEX('Monthly Cash Flows'!$B39:$EC39,MATCH('Monthly CF'!S$6,'Monthly Cash Flows'!$B$13:$EC$13)) -> 31700.98538 | T14: =+INDEX('Monthly Cash Flows'!$B39:$EC39,MATCH('Monthly CF'!T$6,'Monthly Cash Flows'!$B$13:$EC$13)) -> 31700.98538 | U14: =+INDEX('Monthly Cash Flows'!$B39:$EC39,MATCH('Monthly CF'!U$6,'Monthly Cash Flows'!$B$13:$EC$13)) -> 32007.22776 | V14: =+INDEX('Monthly Cash Flows'!$B39:$EC39,MATCH('Monthly CF'!V$6,'Monthly Cash Flows'!$B$13:$EC$13)) -> 32680.96097 | W14: =+INDEX('Monthly Cash Flows'!$B39:$EC39,MATCH('Monthly CF'!W$6,'Monthly Cash Flows'!$B$13:$EC$13)) -> 32680.96097 | X14: =+INDEX('Monthly Cash Flows'!$B39:$EC39,MATCH('Monthly CF'!X$6,'Monthly Cash Flows'!$B$13:$EC$13)) -> 32680.96097 | Y14: =+INDEX('Monthly Cash Flows'!$B39:$EC39,MATCH('Monthly CF'!Y$6,'Monthly Cash Flows'!$B$13:$EC$13)) -> 32680.96097 | Z14: =+INDEX('Monthly Cash Flows'!$B39:$EC39,MATCH('Monthly CF'!Z$6,'Monthly Cash Flows'!$B$13:$EC$13)) -> 32680.96097 | AA14: =+INDEX('Monthly Cash Flows'!$B39:$EC39,MATCH('Monthly CF'!AA$6,'Monthly Cash Flows'!$B$13:$EC$13)) -> 32680.96097 | AB14: =+INDEX('Monthly Cash Flows'!$B39:$EC39,MATCH('Monthly CF'!AB$6,'Monthly Cash Flows'!$B$13:$EC$13)) -> 32680.96097 | AC14: =+INDEX('Monthly Cash Flows'!$B39:$EC39,MATCH('Monthly CF'!AC$6,'Monthly Cash Flows'!$B$13:$EC$13)) -> 33565.47591 | AD14: =+INDEX('Monthly Cash Flows'!$B39:$EC39,MATCH('Monthly CF'!AD$6,'Monthly Cash Flows'!$B$13:$EC$13)) -> 33565.47591 | AE14: =+INDEX('Monthly Cash Flows'!$B39:$EC39,MATCH('Monthly CF'!AE$6,'Monthly Cash Flows'!$B$13:$EC$13)) -> 33565.47591 | AF14: =+INDEX('Monthly Cash Flows'!$B39:$EC39,MATCH('Monthly CF'!AF$6,'Monthly Cash Flows'!$B$13:$EC$13)) -> 33565.47591 | AG14: =+INDEX('Monthly Cash Flows'!$B39:$EC39,MATCH('Monthly CF'!AG$6,'Monthly Cash Flows'!$B$13:$EC$13)) -> 33565.47591 | AH14: =+INDEX('Monthly Cash Flows'!$B39:$EC39,MATCH('Monthly CF'!AH$6,'Monthly Cash Flows'!$B$13:$EC$13)) -> 33565.47591 | AI14: =+INDEX('Monthly Cash Flows'!$B39:$EC39,MATCH('Monthly CF'!AI$6,'Monthly Cash Flows'!$B$13:$EC$13)) -> 33565.47591 | AJ14: =+INDEX('Monthly Cash Flows'!$B39:$EC39,MATCH('Monthly CF'!AJ$6,'Monthly Cash Flows'!$B$13:$EC$13)) -> 33565.47591 | AK14: =+INDEX('Monthly Cash Flows'!$B39:$EC39,MATCH('Monthly CF'!AK$6,'Monthly Cash Flows'!$B$13:$EC$13)) -> 33565.47591 | AL14: =+INDEX('Monthly Cash Flows'!$B39:$EC39,MATCH('Monthly CF'!AL$6,'Monthly Cash Flows'!$B$13:$EC$13)) -> 33565.47591 | AM14: =+INDEX('Monthly Cash Flows'!$B39:$EC39,MATCH('Monthly CF'!AM$6,'Monthly Cash Flows'!$B$13:$EC$13)) -> 33565.47591 | AN14: =+INDEX('Monthly Cash Flows'!$B39:$EC39,MATCH('Monthly CF'!AN$6,'Monthly Cash Flows'!$B$13:$EC$13)) -> 33565.47591 | AO14: =+INDEX('Monthly Cash Flows'!$B39:$EC39,MATCH('Monthly CF'!AO$6,'Monthly Cash Flows'!$B$13:$EC$13)) -> 34476.5263 | AP14: =+INDEX('Monthly Cash Flows'!$B39:$EC39,MATCH('Monthly CF'!AP$6,'Monthly Cash Flows'!$B$13:$EC$13)) -> 34476.5263 | AQ14: =+INDEX('Monthly Cash Flows'!$B39:$EC39,MATCH('Monthly CF'!AQ$6,'Monthly Cash Flows'!$B$13:$EC$13)) -> 34476.5263 | AR14: =+INDEX('Monthly Cash Flows'!$B39:$EC39,MATCH('Monthly CF'!AR$6,'Monthly Cash Flows'!$B$13:$EC$13)) -> 34476.5263 | AS14: =+INDEX('Monthly Cash Flows'!$B39:$EC39,MATCH('Monthly CF'!AS$6,'Monthly Cash Flows'!$B$13:$EC$13)) -> 34476.5263 | AT14: =+INDEX('Monthly Cash Flows'!$B39:$EC39,MATCH('Monthly CF'!AT$6,'Monthly Cash Flows'!$B$13:$EC$13)) -> 34476.5263 | AU14: =+INDEX('Monthly Cash Flows'!$B39:$EC39,MATCH('Monthly CF'!AU$6,'Monthly Cash Flows'!$B$13:$EC$13)) -> 34476.5263 | AV14: =+INDEX('Monthly Cash Flows'!$B39:$EC39,MATCH('Monthly CF'!AV$6,'Monthly Cash Flows'!$B$13:$EC$13)) -> 34476.5263 | AW14: =+INDEX('Monthly Cash Flows'!$B39:$EC39,MATCH('Monthly CF'!AW$6,'Monthly Cash Flows'!$B$13:$EC$13)) -> 34476.5263 | AX14: =+INDEX('Monthly Cash Flows'!$B39:$EC39,MATCH('Monthly CF'!AX$6,'Monthly Cash Flows'!$B$13:$EC$13)) -> 34476.5263 | AY14: =+INDEX('Monthly Cash Flows'!$B39:$EC39,MATCH('Monthly CF'!AY$6,'Monthly Cash Flows'!$B$13:$EC$13)) -> 34476.5263 | AZ14: =+INDEX('Monthly Cash Flows'!$B39:$EC39,MATCH('Monthly CF'!AZ$6,'Monthly Cash Flows'!$B$13:$EC$13)) -> 34476.5263 | BA14: =+INDEX('Monthly Cash Flows'!$B39:$EC39,MATCH('Monthly CF'!BA$6,'Monthly Cash Flows'!$B$13:$EC$13)) -> 35414.9082 | BB14: =+INDEX('Monthly Cash Flows'!$B39:$EC39,MATCH('Monthly CF'!BB$6,'Monthly Cash Flows'!$B$13:$EC$13)) -> 35414.9082 | BC14: =+INDEX('Monthly Cash Flows'!$B39:$EC39,MATCH('Monthly CF'!BC$6,'Monthly Cash Flows'!$B$13:$EC$13)) -> 35414.9082 | BD14: =+INDEX('Monthly Cash Flows'!$B39:$EC39,MATCH('Monthly CF'!BD$6,'Monthly Cash Flows'!$B$13:$EC$13)) -> 35414.9082 | BE14: =+INDEX('Monthly Cash Flows'!$B39:$EC39,MATCH('Monthly CF'!BE$6,'Monthly Cash Flows'!$B$13:$EC$13)) -> 35414.9082 | BF14: =+INDEX('Monthly Cash Flows'!$B39:$EC39,MATCH('Monthly CF'!BF$6,'Monthly Cash Flows'!$B$13:$EC$13)) -> 35414.9082 | BG14: =+INDEX('Monthly Cash Flows'!$B39:$EC39,MATCH('Monthly CF'!BG$6,'Monthly Cash Flows'!$B$13:$EC$13)) -> 35414.9082 | BH14: =+INDEX('Monthly Cash Flows'!$B39:$EC39,MATCH('Monthly CF'!BH$6,'Monthly Cash Flows'!$B$13:$EC$13)) -> 35414.9082 | BI14: =+INDEX('Monthly Cash Flows'!$B39:$EC39,MATCH('Monthly CF'!BI$6,'Monthly Cash Flows'!$B$13:$EC$13)) -> 35414.9082 | BJ14: =+INDEX('Monthly Cash Flows'!$B39:$EC39,MATCH('Monthly CF'!BJ$6,'Monthly Cash Flows'!$B$13:$EC$13)) -> 35414.9082 | BK14: =+INDEX('Monthly Cash Flows'!$B39:$EC39,MATCH('Monthly CF'!BK$6,'Monthly Cash Flows'!$B$13:$EC$13)) -> 35414.9082 | BL14: =+INDEX('Monthly Cash Flows'!$B39:$EC39,MATCH('Monthly CF'!BL$6,'Monthly Cash Flows'!$B$13:$EC$13)) -> 35414.9082 | BM14: =+INDEX('Monthly Cash Flows'!$B39:$EC39,MATCH('Monthly CF'!BM$6,'Monthly Cash Flows'!$B$13:$EC$13)) -> 36381.44156 | BN14: =+INDEX('Monthly Cash Flows'!$B39:$EC39,MATCH('Monthly CF'!BN$6,'Monthly Cash Flows'!$B$13:$EC$13)) -> 36381.44156 | BO14: =+INDEX('Monthly Cash Flows'!$B39:$EC39,MATCH('Monthly CF'!BO$6,'Monthly Cash Flows'!$B$13:$EC$13)) -> 36381.44156 | BP14: =+INDEX('Monthly Cash Flows'!$B39:$EC39,MATCH('Monthly CF'!BP$6,'Monthly Cash Flows'!$B$13:$EC$13)) -> 36381.44156 | BQ14: =+INDEX('Monthly Cash Flows'!$B39:$EC39,MATCH('Monthly CF'!BQ$6,'Monthly Cash Flows'!$B$13:$EC$13)) -> 36381.44156 | BR14: =+INDEX('Monthly Cash Flows'!$B39:$EC39,MATCH('Monthly CF'!BR$6,'Monthly Cash Flows'!$B$13:$EC$13)) -> 36381.44156 | BS14: =+INDEX('Monthly Cash Flows'!$B39:$EC39,MATCH('Monthly CF'!BS$6,'Monthly Cash Flows'!$B$13:$EC$13)) -> 36381.44156 | BT14: =+INDEX('Monthly Cash Flows'!$B39:$EC39,MATCH('Monthly CF'!BT$6,'Monthly Cash Flows'!$B$13:$EC$13)) -> 36381.44156 | BU14: =+INDEX('Monthly Cash Flows'!$B39:$EC39,MATCH('Monthly CF'!BU$6,'Monthly Cash Flows'!$B$13:$EC$13)) -> 36381.44156 | BV14: =+INDEX('Monthly Cash Flows'!$B39:$EC39,MATCH('Monthly CF'!BV$6,'Monthly Cash Flows'!$B$13:$EC$13)) -> 36381.44156 | BW14: =+INDEX('Monthly Cash Flows'!$B39:$EC39,MATCH('Monthly CF'!BW$6,'Monthly Cash Flows'!$B$13:$EC$13)) -> 36381.44156 | BX14: =+INDEX('Monthly Cash Flows'!$B39:$EC39,MATCH('Monthly CF'!BX$6,'Monthly Cash Flows'!$B$13:$EC$13)) -> 36381.44156 | BY14: =+INDEX('Monthly Cash Flows'!$B39:$EC39,MATCH('Monthly CF'!BY$6,'Monthly Cash Flows'!$B$13:$EC$13)) -> 37376.97091 | BZ14: =+INDEX('Monthly Cash Flows'!$B39:$EC39,MATCH('Monthly CF'!BZ$6,'Monthly Cash Flows'!$B$13:$EC$13)) -> 37376.97091 | CA14: =+INDEX('Monthly Cash Flows'!$B39:$EC39,MATCH('Monthly CF'!CA$6,'Monthly Cash Flows'!$B$13:$EC$13)) -> 37376.97091 | CB14: =+INDEX('Monthly Cash Flows'!$B39:$EC39,MATCH('Monthly CF'!CB$6,'Monthly Cash Flows'!$B$13:$EC$13)) -> 37376.97091 | CC14: =+INDEX('Monthly Cash Flows'!$B39:$EC39,MATCH('Monthly CF'!CC$6,'Monthly Cash Flows'!$B$13:$EC$13)) -> 37376.97091 | CD14: =+INDEX('Monthly Cash Flows'!$B39:$EC39,MATCH('Monthly CF'!CD$6,'Monthly Cash Flows'!$B$13:$EC$13)) -> 37376.97091 | CE14: =+INDEX('Monthly Cash Flows'!$B39:$EC39,MATCH('Monthly CF'!CE$6,'Monthly Cash Flows'!$B$13:$EC$13)) -> 37376.97091 | CF14: =+INDEX('Monthly Cash Flows'!$B39:$EC39,MATCH('Monthly CF'!CF$6,'Monthly Cash Flows'!$B$13:$EC$13)) -> 37376.97091 | CG14: =+INDEX('Monthly Cash Flows'!$B39:$EC39,MATCH('Monthly CF'!CG$6,'Monthly Cash Flows'!$B$13:$EC$13)) -> 37376.97091 | CH14: =+INDEX('Monthly Cash Flows'!$B39:$EC39,MATCH('Monthly CF'!CH$6,'Monthly Cash Flows'!$B$13:$EC$13)) -> 37376.97091 | CI14: =+INDEX('Monthly Cash Flows'!$B39:$EC39,MATCH('Monthly CF'!CI$6,'Monthly Cash Flows'!$B$13:$EC$13)) -> 37376.97091 | CJ14: =+INDEX('Monthly Cash Flows'!$B39:$EC39,MATCH('Monthly CF'!CJ$6,'Monthly Cash Flows'!$B$13:$EC$13)) -> 37376.97091 | CK14: =+INDEX('Monthly Cash Flows'!$B39:$EC39,MATCH('Monthly CF'!CK$6,'Monthly Cash Flows'!$B$13:$EC$13)) -> 38402.36615 | CL14: =+INDEX('Monthly Cash Flows'!$B39:$EC39,MATCH('Monthly CF'!CL$6,'Monthly Cash Flows'!$B$13:$EC$13)) -> 38402.36615 | CM14: =+INDEX('Monthly Cash Flows'!$B39:$EC39,MATCH('Monthly CF'!CM$6,'Monthly Cash Flows'!$B$13:$EC$13)) -> 38402.36615 | CN14: =+INDEX('Monthly Cash Flows'!$B39:$EC39,MATCH('Monthly CF'!CN$6,'Monthly Cash Flows'!$B$13:$EC$13)) -> 38402.36615 | CO14: =+INDEX('Monthly Cash Flows'!$B39:$EC39,MATCH('Monthly CF'!CO$6,'Monthly Cash Flows'!$B$13:$EC$13)) -> 38402.36615 | CP14: =+INDEX('Monthly Cash Flows'!$B39:$EC39,MATCH('Monthly CF'!CP$6,'Monthly Cash Flows'!$B$13:$EC$13)) -> 38402.36615 | CQ14: =+INDEX('Monthly Cash Flows'!$B39:$EC39,MATCH('Monthly CF'!CQ$6,'Monthly Cash Flows'!$B$13:$EC$13)) -> 38402.36615 | CR14: =+INDEX('Monthly Cash Flows'!$B39:$EC39,MATCH('Monthly CF'!CR$6,'Monthly Cash Flows'!$B$13:$EC$13)) -> 38402.36615 | CS14: =+INDEX('Monthly Cash Flows'!$B39:$EC39,MATCH('Monthly CF'!CS$6,'Monthly Cash Flows'!$B$13:$EC$13)) -> 38402.36615 | CT14: =+INDEX('Monthly Cash Flows'!$B39:$EC39,MATCH('Monthly CF'!CT$6,'Monthly Cash Flows'!$B$13:$EC$13)) -> 38402.36615 | CU14: =+INDEX('Monthly Cash Flows'!$B39:$EC39,MATCH('Monthly CF'!CU$6,'Monthly Cash Flows'!$B$13:$EC$13)) -> 38402.36615 | CV14: =+INDEX('Monthly Cash Flows'!$B39:$EC39,MATCH('Monthly CF'!CV$6,'Monthly Cash Flows'!$B$13:$EC$13)) -> 38402.36615 | CW14: =+INDEX('Monthly Cash Flows'!$B39:$EC39,MATCH('Monthly CF'!CW$6,'Monthly Cash Flows'!$B$13:$EC$13)) -> 39458.52324 | CX14: =+INDEX('Monthly Cash Flows'!$B39:$EC39,MATCH('Monthly CF'!CX$6,'Monthly Cash Flows'!$B$13:$EC$13)) -> 39458.52324 | CY14: =+INDEX('Monthly Cash Flows'!$B39:$EC39,MATCH('Monthly CF'!CY$6,'Monthly Cash Flows'!$B$13:$EC$13)) -> 39458.52324 | CZ14: =+INDEX('Monthly Cash Flows'!$B39:$EC39,MATCH('Monthly CF'!CZ$6,'Monthly Cash Flows'!$B$13:$EC$13)) -> 39458.52324 | DA14: =+INDEX('Monthly Cash Flows'!$B39:$EC39,MATCH('Monthly CF'!DA$6,'Monthly Cash Flows'!$B$13:$EC$13)) -> 39458.52324 | DB14: =+INDEX('Monthly Cash Flows'!$B39:$EC39,MATCH('Monthly CF'!DB$6,'Monthly Cash Flows'!$B$13:$EC$13)) -> 39458.52324 | DC14: =+INDEX('Monthly Cash Flows'!$B39:$EC39,MATCH('Monthly CF'!DC$6,'Monthly Cash Flows'!$B$13:$EC$13)) -> 39458.52324 | DD14: =+INDEX('Monthly Cash Flows'!$B39:$EC39,MATCH('Monthly CF'!DD$6,'Monthly Cash Flows'!$B$13:$EC$13)) -> 39458.52324 | DE14: =+INDEX('Monthly Cash Flows'!$B39:$EC39,MATCH('Monthly CF'!DE$6,'Monthly Cash Flows'!$B$13:$EC$13)) -> 39458.52324 | DF14: =+INDEX('Monthly Cash Flows'!$B39:$EC39,MATCH('Monthly CF'!DF$6,'Monthly Cash Flows'!$B$13:$EC$13)) -> 39458.52324 | DG14: =+INDEX('Monthly Cash Flows'!$B39:$EC39,MATCH('Monthly CF'!DG$6,'Monthly Cash Flows'!$B$13:$EC$13)) -> 39458.52324 | DH14: =+INDEX('Monthly Cash Flows'!$B39:$EC39,MATCH('Monthly CF'!DH$6,'Monthly Cash Flows'!$B$13:$EC$13)) -> 39458.52324 | DI14: =+INDEX('Monthly Cash Flows'!$B39:$EC39,MATCH('Monthly CF'!DI$6,'Monthly Cash Flows'!$B$13:$EC$13)) -> 40546.36505 | DJ14: =+INDEX('Monthly Cash Flows'!$B39:$EC39,MATCH('Monthly CF'!DJ$6,'Monthly Cash Flows'!$B$13:$EC$13)) -> 40546.36505 | DK14: =+INDEX('Monthly Cash Flows'!$B39:$EC39,MATCH('Monthly CF'!DK$6,'Monthly Cash Flows'!$B$13:$EC$13)) -> 40546.36505 | DL14: =+INDEX('Monthly Cash Flows'!$B39:$EC39,MATCH('Monthly CF'!DL$6,'Monthly Cash Flows'!$B$13:$EC$13)) -> 40546.36505 | DM14: =+INDEX('Monthly Cash Flows'!$B39:$EC39,MATCH('Monthly CF'!DM$6,'Monthly Cash Flows'!$B$13:$EC$13)) -> 40546.36505 | DN14: =+INDEX('Monthly Cash Flows'!$B39:$EC39,MATCH('Monthly CF'!DN$6,'Monthly Cash Flows'!$B$13:$EC$13)) -> 40546.36505 | DO14: =+INDEX('Monthly Cash Flows'!$B39:$EC39,MATCH('Monthly CF'!DO$6,'Monthly Cash Flows'!$B$13:$EC$13)) -> 40546.36505 | DP14: =+INDEX('Monthly Cash Flows'!$B39:$EC39,MATCH('Monthly CF'!DP$6,'Monthly Cash Flows'!$B$13:$EC$13)) -> 40546.36505 | DQ14: =+INDEX('Monthly Cash Flows'!$B39:$EC39,MATCH('Monthly CF'!DQ$6,'Monthly Cash Flows'!$B$13:$EC$13)) -> 40546.36505 | DR14: =+INDEX('Monthly Cash Flows'!$B39:$EC39,MATCH('Monthly CF'!DR$6,'Monthly Cash Flows'!$B$13:$EC$13)) -> 40546.36505 | DS14: =+INDEX('Monthly Cash Flows'!$B39:$EC39,MATCH('Monthly CF'!DS$6,'Monthly Cash Flows'!$B$13:$EC$13)) -> 40546.36505 | DT14: =+INDEX('Monthly Cash Flows'!$B39:$EC39,MATCH('Monthly CF'!DT$6,'Monthly Cash Flows'!$B$13:$EC$13)) -> 40546.36505 | DU14: =+INDEX('Monthly Cash Flows'!$B39:$EC39,MATCH('Monthly CF'!DU$6,'Monthly Cash Flows'!$B$13:$EC$13)) -> 41666.84211 | DV14: =+INDEX('Monthly Cash Flows'!$B39:$EC39,MATCH('Monthly CF'!DV$6,'Monthly Cash Flows'!$B$13:$EC$13)) -> 41666.84211 | DW14: =+INDEX('Monthly Cash Flows'!$B39:$EC39,MATCH('Monthly CF'!DW$6,'Monthly Cash Flows'!$B$13:$EC$13)) -> 41666.84211 | DX14: =+INDEX('Monthly Cash Flows'!$B39:$EC39,MATCH('Monthly CF'!DX$6,'Monthly Cash Flows'!$B$13:$EC$13)) -> 41666.84211 | DY14: =+INDEX('Monthly Cash Flows'!$B39:$EC39,MATCH('Monthly CF'!DY$6,'Monthly Cash Flows'!$B$13:$EC$13)) -> 41666.84211 | DZ14: =+INDEX('Monthly Cash Flows'!$B39:$EC39,MATCH('Monthly CF'!DZ$6,'Monthly Cash Flows'!$B$13:$EC$13)) -> 41666.84211 | EA14: =+INDEX('Monthly Cash Flows'!$B39:$EC39,MATCH('Monthly CF'!EA$6,'Monthly Cash Flows'!$B$13:$EC$13)) -> 41666.84211 | EB14: =+INDEX('Monthly Cash Flows'!$B39:$EC39,MATCH('Monthly CF'!EB$6,'Monthly Cash Flows'!$B$13:$EC$13)) -> 41666.84211 | EC14: =+INDEX('Monthly Cash Flows'!$B39:$EC39,MATCH('Monthly CF'!EC$6,'Monthly Cash Flows'!$B$13:$EC$13)) -> 41666.84211 | ED14: =+INDEX('Monthly Cash Flows'!$B39:$EC39,MATCH('Monthly CF'!ED$6,'Monthly Cash Flows'!$B$13:$EC$13)) -> 41666.84211 | EE14: =+INDEX('Monthly Cash Flows'!$B39:$EC39,MATCH('Monthly CF'!EE$6,'Monthly Cash Flows'!$B$13:$EC$13)) -> 41666.84211 | EF14: =+INDEX('Monthly Cash Flows'!$B39:$EC39,MATCH('Monthly CF'!EF$6,'Monthly Cash Flows'!$B$13:$EC$13)) -> 41666.84211 | EG14: =+INDEX('Monthly Cash Flows'!$B39:$EC39,MATCH('Monthly CF'!EG$6,'Monthly Cash Flows'!$B$13:$EC$13)) -> 41666.84211
B18: Potential Gross Revenue | F18: =+SUM(F13:F16) -> 108924.775 | G18: =+SUM(G13:G16) -> 108924.775 | H18: 108924.775 | I18: 111786.5265 | J18: 111786.5265 | K18: 111786.5265 | L18: 111786.5265 | M18: 113376.3885 | N18: 113376.3885 | O18: 113584.7218 | P18: 114605.5551 | Q18: 121486.6271 | R18: 121740.8771 | S18: 121740.8771 | T18: 122164.5437 | U18: 123762.4528 | V18: 129950.186 | W18: 129950.186 | X18: 129950.186 | Y18: 131500.186 | Z18: 131500.186 | AA18: 131500.186 | AB18: 131500.186 | AC18: 133398.0342 | AD18: 133398.0342 | AE18: 133398.0342 | AF18: 133398.0342 | AG18: 133531.3676 | AH18: 133531.3676 | AI18: 133531.3676 | AJ18: 133531.3676 | AK18: 133791.7009 | AL18: 133791.7009 | AM18: 133791.7009 | AN18: 133791.7009 | AO18: 134702.7513 | AP18: 134702.7513 | AQ18: 134702.7513 | AR18: 134702.7513 | AS18: 134702.7513 | AT18: 134702.7513 | AU18: 134702.7513 | AV18: 134702.7513 | AW18: 134702.7513 | AX18: 134702.7513 | AY18: 134702.7513 | AZ18: 134702.7513 | BA18: 135641.1332 | BB18: 136557.7999 | BC18: 136557.7999 | BD18: 136557.7999 | BE18: 136557.7999 | BF18: 136557.7999 | BG18: 136557.7999 | BH18: 136557.7999 | BI18: 136557.7999 | BJ18: 136557.7999 | BK18: 136557.7999 | BL18: 136557.7999 | BM18: 137524.3332 | BN18: 138274.3332 | BO18: 138274.3332 | BP18: 138274.3332 | BQ18: 138274.3332 | BR18: 138274.3332 | BS18: =+SUM(BS13:BS16) -> 138274.3332 | BT18: 138274.3332 | BU18: 138274.3332 | BV18: 138274.3332 | BW18: 138565.9999 | BX18: 140035.9999 | BY18: 141031.5292 | BZ18: 141364.5292 | CA18: 141364.5292 | CB18: 141364.5292 | CC18: 141364.5292 | CD18: 141364.5292 | CE18: 141364.5292 | CF18: 141364.5292 | CG18: 141364.5292 | CH18: 141364.5292 | CI18: 141364.5292 | CJ18: 141364.5292 | CK18: 142389.9245 | CL18: 142389.9245 | CM18: 142389.9245 | CN18: 142389.9245 | CO18: 142389.9245 | CP18: 142389.9245 | CQ18: 142389.9245 | CR18: 142389.9245 | CS18: 142389.9245 | CT18: 142389.9245 | CU18: 142389.9245 | CV18: 142389.9245 | CW18: 143446.0816 | CX18: 143446.0816 | CY18: 143446.0816 | CZ18: 143446.0816 | DA18: 143446.0816 | DB18: 143446.0816 | DC18: 143446.0816 | DD18: 143446.0816 | DE18: 143446.0816 | DF18: 143446.0816 | DG18: 143446.0816 | DH18: 143446.0816 | DI18: 144533.9234 | DJ18: 145450.5901 | DK18: 145450.5901 | DL18: 145450.5901 | DM18: 145450.5901 | DN18: 145450.5901 | DO18: 145450.5901 | DP18: 145450.5901 | DQ18: 145450.5901 | DR18: 145450.5901 | DS18: 145450.5901 | DT18: 145450.5901 | DU18: 146571.0671 | DV18: 146571.0671 | DW18: 146571.0671 | DX18: 146571.0671 | DY18: 146571.0671 | DZ18: 146571.0671 | EA18: 146571.0671 | EB18: 146571.0671 | EC18: 146571.0671 | ED18: 146571.0671 | EE18: =+SUM(EE13:EE16) -> 146571.0671 | EF18: 146571.0671 | EG18: 146571.0671
B19: =+'Monthly Cash Flows'!A43 -> General Vacancy | F19: =+INDEX('Monthly Cash Flows'!$B43:$EC43,MATCH('Monthly CF'!F$6,'Monthly Cash Flows'!$B$13:$EC$13)) -> 0 | G19: =+INDEX('Monthly Cash Flows'!$B43:$EC43,MATCH('Monthly CF'!G$6,'Monthly Cash Flows'!$B$13:$EC$13)) -> 0 | H19: =+INDEX('Monthly Cash Flows'!$B43:$EC43,MATCH('Monthly CF'!H$6,'Monthly Cash Flows'!$B$13:$EC$13)) -> 0 | I19: =+INDEX('Monthly Cash Flows'!$B43:$EC43,MATCH('Monthly CF'!I$6,'Monthly Cash Flows'!$B$13:$EC$13)) -> 0 | J19: =+INDEX('Monthly Cash Flows'!$B43:$EC43,MATCH('Monthly CF'!J$6,'Monthly Cash Flows'!$B$13:$EC$13)) -> 0 | K19: =+INDEX('Monthly Cash Flows'!$B43:$EC43,MATCH('Monthly CF'!K$6,'Monthly Cash Flows'!$B$13:$EC$13)) -> 0 | L19: =+INDEX('Monthly Cash Flows'!$B43:$EC43,MATCH('Monthly CF'!L$6,'Monthly Cash Flows'!$B$13:$EC$13)) -> 0 | M19: =+INDEX('Monthly Cash Flows'!$B43:$EC43,MATCH('Monthly CF'!M$6,'Monthly Cash Flows'!$B$13:$EC$13)) -> 0 | N19: =+INDEX('Monthly Cash Flows'!$B43:$EC43,MATCH('Monthly CF'!N$6,'Monthly Cash Flows'!$B$13:$EC$13)) -> 0 | O19: =+INDEX('Monthly Cash Flows'!$B43:$EC43,MATCH('Monthly CF'!O$6,'Monthly Cash Flows'!$B$13:$EC$13)) -> 0 | P19: =+INDEX('Monthly Cash Flows'!$B43:$EC43,MATCH('Monthly CF'!P$6,'Monthly Cash Flows'!$B$13:$EC$13)) -> 0 | Q19: =+INDEX('Monthly Cash Flows'!$B43:$EC43,MATCH('Monthly CF'!Q$6,'Monthly Cash Flows'!$B$13:$EC$13)) -> 0 | R19: =+INDEX('Monthly Cash Flows'!$B43:$EC43,MATCH('Monthly CF'!R$6,'Monthly Cash Flows'!$B$13:$EC$13)) -> 0 | S19: =+INDEX('Monthly Cash Flows'!$B43:$EC43,MATCH('Monthly CF'!S$6,'Monthly Cash Flows'!$B$13:$EC$13)) -> 0 | T19: =+INDEX('Monthly Cash Flows'!$B43:$EC43,MATCH('Monthly CF'!T$6,'Monthly Cash Flows'!$B$13:$EC$13)) -> 0 | U19: =+INDEX('Monthly Cash Flows'!$B43:$EC43,MATCH('Monthly CF'!U$6,'Monthly Cash Flows'!$B$13:$EC$13)) -> 0 | V19: =+INDEX('Monthly Cash Flows'!$B43:$EC43,MATCH('Monthly CF'!V$6,'Monthly Cash Flows'!$B$13:$EC$13)) -> 0 | W19: =+INDEX('Monthly Cash Flows'!$B43:$EC43,MATCH('Monthly CF'!W$6,'Monthly Cash Flows'!$B$13:$EC$13)) -> 0 | X19: =+INDEX('Monthly Cash Flows'!$B43:$EC43,MATCH('Monthly CF'!X$6,'Monthly Cash Flows'!$B$13:$EC$13)) -> 0 | Y19: =+INDEX('Monthly Cash Flows'!$B43:$EC43,MATCH('Monthly CF'!Y$6,'Monthly Cash Flows'!$B$13:$EC$13)) -> 0 | Z19: =+INDEX('Monthly Cash Flows'!$B43:$EC43,MATCH('Monthly CF'!Z$6,'Monthly Cash Flows'!$B$13:$EC$13)) -> 0 | AA19: =+INDEX('Monthly Cash Flows'!$B43:$EC43,MATCH('Monthly CF'!AA$6,'Monthly Cash Flows'!$B$13:$EC$13)) -> 0 | AB19: =+INDEX('Monthly Cash Flows'!$B43:$EC43,MATCH('Monthly CF'!AB$6,'Monthly Cash Flows'!$B$13:$EC$13)) -> 0 | AC19: =+INDEX('Monthly Cash Flows'!$B43:$EC43,MATCH('Monthly CF'!AC$6,'Monthly Cash Flows'!$B$13:$EC$13)) -> 0 | AD19: =+INDEX('Monthly Cash Flows'!$B43:$EC43,MATCH('Monthly CF'!AD$6,'Monthly Cash Flows'!$B$13:$EC$13)) -> 0 | AE19: =+INDEX('Monthly Cash Flows'!$B43:$EC43,MATCH('Monthly CF'!AE$6,'Monthly Cash Flows'!$B$13:$EC$13)) -> 0 | AF19: =+INDEX('Monthly Cash Flows'!$B43:$EC43,MATCH('Monthly CF'!AF$6,'Monthly Cash Flows'!$B$13:$EC$13)) -> 0 | AG19: =+INDEX('Monthly Cash Flows'!$B43:$EC43,MATCH('Monthly CF'!AG$6,'Monthly Cash Flows'!$B$13:$EC$13)) -> 0 | AH19: =+INDEX('Monthly Cash Flows'!$B43:$EC43,MATCH('Monthly CF'!AH$6,'Monthly Cash Flows'!$B$13:$EC$13)) -> 0 | AI19: =+INDEX('Monthly Cash Flows'!$B43:$EC43,MATCH('Monthly CF'!AI$6,'Monthly Cash Flows'!$B$13:$EC$13)) -> 0 | AJ19: =+INDEX('Monthly Cash Flows'!$B43:$EC43,MATCH('Monthly CF'!AJ$6,'Monthly Cash Flows'!$B$13:$EC$13)) -> 0 | AK19: =+INDEX('Monthly Cash Flows'!$B43:$EC43,MATCH('Monthly CF'!AK$6,'Monthly Cash Flows'!$B$13:$EC$13)) -> 0 | AL19: =+INDEX('Monthly Cash Flows'!$B43:$EC43,MATCH('Monthly CF'!AL$6,'Monthly Cash Flows'!$B$13:$EC$13)) -> 0 | AM19: =+INDEX('Monthly Cash Flows'!$B43:$EC43,MATCH('Monthly CF'!AM$6,'Monthly Cash Flows'!$B$13:$EC$13)) -> 0 | AN19: =+INDEX('Monthly Cash Flows'!$B43:$EC43,MATCH('Monthly CF'!AN$6,'Monthly Cash Flows'!$B$13:$EC$13)) -> 0 | AO19: =+INDEX('Monthly Cash Flows'!$B43:$EC43,MATCH('Monthly CF'!AO$6,'Monthly Cash Flows'!$B$13:$EC$13)) -> 0 | AP19: =+INDEX('Monthly Cash Flows'!$B43:$EC43,MATCH('Monthly CF'!AP$6,'Monthly Cash Flows'!$B$13:$EC$13)) -> 0 | AQ19: =+INDEX('Monthly Cash Flows'!$B43:$EC43,MATCH('Monthly CF'!AQ$6,'Monthly Cash Flows'!$B$13:$EC$13)) -> 0 | AR19: =+INDEX('Monthly Cash Flows'!$B43:$EC43,MATCH('Monthly CF'!AR$6,'Monthly Cash Flows'!$B$13:$EC$13)) -> 0 | AS19: =+INDEX('Monthly Cash Flows'!$B43:$EC43,MATCH('Monthly CF'!AS$6,'Monthly Cash Flows'!$B$13:$EC$13)) -> 0 | AT19: =+INDEX('Monthly Cash Flows'!$B43:$EC43,MATCH('Monthly CF'!AT$6,'Monthly Cash Flows'!$B$13:$EC$13)) -> 0 | AU19: =+INDEX('Monthly Cash Flows'!$B43:$EC43,MATCH('Monthly CF'!AU$6,'Monthly Cash Flows'!$B$13:$EC$13)) -> 0 | AV19: =+INDEX('Monthly Cash Flows'!$B43:$EC43,MATCH('Monthly CF'!AV$6,'Monthly Cash Flows'!$B$13:$EC$13)) -> 0 | AW19: =+INDEX('Monthly Cash Flows'!$B43:$EC43,MATCH('Monthly CF'!AW$6,'Monthly Cash Flows'!$B$13:$EC$13)) -> 0 | AX19: =+INDEX('Monthly Cash Flows'!$B43:$EC43,MATCH('Monthly CF'!AX$6,'Monthly Cash Flows'!$B$13:$EC$13)) -> 0 | AY19: =+INDEX('Monthly Cash Flows'!$B43:$EC43,MATCH('Monthly CF'!AY$6,'Monthly Cash Flows'!$B$13:$EC$13)) -> 0 | AZ19: =+INDEX('Monthly Cash Flows'!$B43:$EC43,MATCH('Monthly CF'!AZ$6,'Monthly Cash Flows'!$B$13:$EC$13)) -> 0 | BA19: =+INDEX('Monthly Cash Flows'!$B43:$EC43,MATCH('Monthly CF'!BA$6,'Monthly Cash Flows'!$B$13:$EC$13)) -> 0 | BB19: =+INDEX('Monthly Cash Flows'!$B43:$EC43,MATCH('Monthly CF'!BB$6,'Monthly Cash Flows'!$B$13:$EC$13)) -> 0 | BC19: =+INDEX('Monthly Cash Flows'!$B43:$EC43,MATCH('Monthly CF'!BC$6,'Monthly Cash Flows'!$B$13:$EC$13)) -> 0 | BD19: =+INDEX('Monthly Cash Flows'!$B43:$EC43,MATCH('Monthly CF'!BD$6,'Monthly Cash Flows'!$B$13:$EC$13)) -> 0 | BE19: =+INDEX('Monthly Cash Flows'!$B43:$EC43,MATCH('Monthly CF'!BE$6,'Monthly Cash Flows'!$B$13:$EC$13)) -> 0 | BF19: =+INDEX('Monthly Cash Flows'!$B43:$EC43,MATCH('Monthly CF'!BF$6,'Monthly Cash Flows'!$B$13:$EC$13)) -> 0 | BG19: =+INDEX('Monthly Cash Flows'!$B43:$EC43,MATCH('Monthly CF'!BG$6,'Monthly Cash Flows'!$B$13:$EC$13)) -> 0 | BH19: =+INDEX('Monthly Cash Flows'!$B43:$EC43,MATCH('Monthly CF'!BH$6,'Monthly Cash Flows'!$B$13:$EC$13)) -> 0 | BI19: =+INDEX('Monthly Cash Flows'!$B43:$EC43,MATCH('Monthly CF'!BI$6,'Monthly Cash Flows'!$B$13:$EC$13)) -> 0 | BJ19: =+INDEX('Monthly Cash Flows'!$B43:$EC43,MATCH('Monthly CF'!BJ$6,'Monthly Cash Flows'!$B$13:$EC$13)) -> 0 | BK19: =+INDEX('Monthly Cash Flows'!$B43:$EC43,MATCH('Monthly CF'!BK$6,'Monthly Cash Flows'!$B$13:$EC$13)) -> 0 | BL19: =+INDEX('Monthly Cash Flows'!$B43:$EC43,MATCH('Monthly CF'!BL$6,'Monthly Cash Flows'!$B$13:$EC$13)) -> 0 | BM19: =+INDEX('Monthly Cash Flows'!$B43:$EC43,MATCH('Monthly CF'!BM$6,'Monthly Cash Flows'!$B$13:$EC$13)) -> 0 | BN19: =+INDEX('Monthly Cash Flows'!$B43:$EC43,MATCH('Monthly CF'!BN$6,'Monthly Cash Flows'!$B$13:$EC$13)) -> 0 | BO19: =+INDEX('Monthly Cash Flows'!$B43:$EC43,MATCH('Monthly CF'!BO$6,'Monthly Cash Flows'!$B$13:$EC$13)) -> 0 | BP19: =+INDEX('Monthly Cash Flows'!$B43:$EC43,MATCH('Monthly CF'!BP$6,'Monthly Cash Flows'!$B$13:$EC$13)) -> 0 | BQ19: =+INDEX('Monthly Cash Flows'!$B43:$EC43,MATCH('Monthly CF'!BQ$6,'Monthly Cash Flows'!$B$13:$EC$13)) -> 0 | BR19: =+INDEX('Monthly Cash Flows'!$B43:$EC43,MATCH('Monthly CF'!BR$6,'Monthly Cash Flows'!$B$13:$EC$13)) -> 0 | BS19: =+INDEX('Monthly Cash Flows'!$B43:$EC43,MATCH('Monthly CF'!BS$6,'Monthly Cash Flows'!$B$13:$EC$13)) -> 0 | BT19: =+INDEX('Monthly Cash Flows'!$B43:$EC43,MATCH('Monthly CF'!BT$6,'Monthly Cash Flows'!$B$13:$EC$13)) -> 0 | BU19: =+INDEX('Monthly Cash Flows'!$B43:$EC43,MATCH('Monthly CF'!BU$6,'Monthly Cash Flows'!$B$13:$EC$13)) -> 0 | BV19: =+INDEX('Monthly Cash Flows'!$B43:$EC43,MATCH('Monthly CF'!BV$6,'Monthly Cash Flows'!$B$13:$EC$13)) -> 0 | BW19: =+INDEX('Monthly Cash Flows'!$B43:$EC43,MATCH('Monthly CF'!BW$6,'Monthly Cash Flows'!$B$13:$EC$13)) -> 0 | BX19: =+INDEX('Monthly Cash Flows'!$B43:$EC43,MATCH('Monthly CF'!BX$6,'Monthly Cash Flows'!$B$13:$EC$13)) -> 0 | BY19: =+INDEX('Monthly Cash Flows'!$B43:$EC43,MATCH('Monthly CF'!BY$6,'Monthly Cash Flows'!$B$13:$EC$13)) -> 0 | BZ19: =+INDEX('Monthly Cash Flows'!$B43:$EC43,MATCH('Monthly CF'!BZ$6,'Monthly Cash Flows'!$B$13:$EC$13)) -> 0 | CA19: =+INDEX('Monthly Cash Flows'!$B43:$EC43,MATCH('Monthly CF'!CA$6,'Monthly Cash Flows'!$B$13:$EC$13)) -> 0 | CB19: =+INDEX('Monthly Cash Flows'!$B43:$EC43,MATCH('Monthly CF'!CB$6,'Monthly Cash Flows'!$B$13:$EC$13)) -> 0 | CC19: =+INDEX('Monthly Cash Flows'!$B43:$EC43,MATCH('Monthly CF'!CC$6,'Monthly Cash Flows'!$B$13:$EC$13)) -> 0 | CD19: =+INDEX('Monthly Cash Flows'!$B43:$EC43,MATCH('Monthly CF'!CD$6,'Monthly Cash Flows'!$B$13:$EC$13)) -> 0 | CE19: =+INDEX('Monthly Cash Flows'!$B43:$EC43,MATCH('Monthly CF'!CE$6,'Monthly Cash Flows'!$B$13:$EC$13)) -> 0 | CF19: =+INDEX('Monthly Cash Flows'!$B43:$EC43,MATCH('Monthly CF'!CF$6,'Monthly Cash Flows'!$B$13:$EC$13)) -> 0 | CG19: =+INDEX('Monthly Cash Flows'!$B43:$EC43,MATCH('Monthly CF'!CG$6,'Monthly Cash Flows'!$B$13:$EC$13)) -> 0 | CH19: =+INDEX('Monthly Cash Flows'!$B43:$EC43,MATCH('Monthly CF'!CH$6,'Monthly Cash Flows'!$B$13:$EC$13)) -> 0 | CI19: =+INDEX('Monthly Cash Flows'!$B43:$EC43,MATCH('Monthly CF'!CI$6,'Monthly Cash Flows'!$B$13:$EC$13)) -> 0 | CJ19: =+INDEX('Monthly Cash Flows'!$B43:$EC43,MATCH('Monthly CF'!CJ$6,'Monthly Cash Flows'!$B$13:$EC$13)) -> 0 | CK19: =+INDEX('Monthly Cash Flows'!$B43:$EC43,MATCH('Monthly CF'!CK$6,'Monthly Cash Flows'!$B$13:$EC$13)) -> 0 | CL19: =+INDEX('Monthly Cash Flows'!$B43:$EC43,MATCH('Monthly CF'!CL$6,'Monthly Cash Flows'!$B$13:$EC$13)) -> 0 | CM19: =+INDEX('Monthly Cash Flows'!$B43:$EC43,MATCH('Monthly CF'!CM$6,'Monthly Cash Flows'!$B$13:$EC$13)) -> 0 | CN19: =+INDEX('Monthly Cash Flows'!$B43:$EC43,MATCH('Monthly CF'!CN$6,'Monthly Cash Flows'!$B$13:$EC$13)) -> 0 | CO19: =+INDEX('Monthly Cash Flows'!$B43:$EC43,MATCH('Monthly CF'!CO$6,'Monthly Cash Flows'!$B$13:$EC$13)) -> 0 | CP19: =+INDEX('Monthly Cash Flows'!$B43:$EC43,MATCH('Monthly CF'!CP$6,'Monthly Cash Flows'!$B$13:$EC$13)) -> 0 | CQ19: =+INDEX('Monthly Cash Flows'!$B43:$EC43,MATCH('Monthly CF'!CQ$6,'Monthly Cash Flows'!$B$13:$EC$13)) -> 0 | CR19: =+INDEX('Monthly Cash Flows'!$B43:$EC43,MATCH('Monthly CF'!CR$6,'Monthly Cash Flows'!$B$13:$EC$13)) -> 0 | CS19: =+INDEX('Monthly Cash Flows'!$B43:$EC43,MATCH('Monthly CF'!CS$6,'Monthly Cash Flows'!$B$13:$EC$13)) -> 0 | CT19: =+INDEX('Monthly Cash Flows'!$B43:$EC43,MATCH('Monthly CF'!CT$6,'Monthly Cash Flows'!$B$13:$EC$13)) -> 0 | CU19: =+INDEX('Monthly Cash Flows'!$B43:$EC43,MATCH('Monthly CF'!CU$6,'Monthly Cash Flows'!$B$13:$EC$13)) -> 0 | CV19: =+INDEX('Monthly Cash Flows'!$B43:$EC43,MATCH('Monthly CF'!CV$6,'Monthly Cash Flows'!$B$13:$EC$13)) -> 0 | CW19: =+INDEX('Monthly Cash Flows'!$B43:$EC43,MATCH('Monthly CF'!CW$6,'Monthly Cash Flows'!$B$13:$EC$13)) -> 0 | CX19: =+INDEX('Monthly Cash Flows'!$B43:$EC43,MATCH('Monthly CF'!CX$6,'Monthly Cash Flows'!$B$13:$EC$13)) -> 0 | CY19: =+INDEX('Monthly Cash Flows'!$B43:$EC43,MATCH('Monthly CF'!CY$6,'Monthly Cash Flows'!$B$13:$EC$13)) -> 0 | CZ19: =+INDEX('Monthly Cash Flows'!$B43:$EC43,MATCH('Monthly CF'!CZ$6,'Monthly Cash Flows'!$B$13:$EC$13)) -> 0 | DA19: =+INDEX('Monthly Cash Flows'!$B43:$EC43,MATCH('Monthly CF'!DA$6,'Monthly Cash Flows'!$B$13:$EC$13)) -> 0 | DB19: =+INDEX('Monthly Cash Flows'!$B43:$EC43,MATCH('Monthly CF'!DB$6,'Monthly Cash Flows'!$B$13:$EC$13)) -> 0 | DC19: =+INDEX('Monthly Cash Flows'!$B43:$EC43,MATCH('Monthly CF'!DC$6,'Monthly Cash Flows'!$B$13:$EC$13)) -> 0 | DD19: =+INDEX('Monthly Cash Flows'!$B43:$EC43,MATCH('Monthly CF'!DD$6,'Monthly Cash Flows'!$B$13:$EC$13)) -> 0 | DE19: =+INDEX('Monthly Cash Flows'!$B43:$EC43,MATCH('Monthly CF'!DE$6,'Monthly Cash Flows'!$B$13:$EC$13)) -> 0 | DF19: =+INDEX('Monthly Cash Flows'!$B43:$EC43,MATCH('Monthly CF'!DF$6,'Monthly Cash Flows'!$B$13:$EC$13)) -> 0 | DG19: =+INDEX('Monthly Cash Flows'!$B43:$EC43,MATCH('Monthly CF'!DG$6,'Monthly Cash Flows'!$B$13:$EC$13)) -> 0 | DH19: =+INDEX('Monthly Cash Flows'!$B43:$EC43,MATCH('Monthly CF'!DH$6,'Monthly Cash Flows'!$B$13:$EC$13)) -> 0 | DI19: =+INDEX('Monthly Cash Flows'!$B43:$EC43,MATCH('Monthly CF'!DI$6,'Monthly Cash Flows'!$B$13:$EC$13)) -> 0 | DJ19: =+INDEX('Monthly Cash Flows'!$B43:$EC43,MATCH('Monthly CF'!DJ$6,'Monthly Cash Flows'!$B$13:$EC$13)) -> 0 | DK19: =+INDEX('Monthly Cash Flows'!$B43:$EC43,MATCH('Monthly CF'!DK$6,'Monthly Cash Flows'!$B$13:$EC$13)) -> 0 | DL19: =+INDEX('Monthly Cash Flows'!$B43:$EC43,MATCH('Monthly CF'!DL$6,'Monthly Cash Flows'!$B$13:$EC$13)) -> 0 | DM19: =+INDEX('Monthly Cash Flows'!$B43:$EC43,MATCH('Monthly CF'!DM$6,'Monthly Cash Flows'!$B$13:$EC$13)) -> 0 | DN19: =+INDEX('Monthly Cash Flows'!$B43:$EC43,MATCH('Monthly CF'!DN$6,'Monthly Cash Flows'!$B$13:$EC$13)) -> 0 | DO19: =+INDEX('Monthly Cash Flows'!$B43:$EC43,MATCH('Monthly CF'!DO$6,'Monthly Cash Flows'!$B$13:$EC$13)) -> 0 | DP19: =+INDEX('Monthly Cash Flows'!$B43:$EC43,MATCH('Monthly CF'!DP$6,'Monthly Cash Flows'!$B$13:$EC$13)) -> 0 | DQ19: =+INDEX('Monthly Cash Flows'!$B43:$EC43,MATCH('Monthly CF'!DQ$6,'Monthly Cash Flows'!$B$13:$EC$13)) -> 0 | DR19: =+INDEX('Monthly Cash Flows'!$B43:$EC43,MATCH('Monthly CF'!DR$6,'Monthly Cash Flows'!$B$13:$EC$13)) -> 0 | DS19: =+INDEX('Monthly Cash Flows'!$B43:$EC43,MATCH('Monthly CF'!DS$6,'Monthly Cash Flows'!$B$13:$EC$13)) -> 0 | DT19: =+INDEX('Monthly Cash Flows'!$B43:$EC43,MATCH('Monthly CF'!DT$6,'Monthly Cash Flows'!$B$13:$EC$13)) -> 0 | DU19: =+INDEX('Monthly Cash Flows'!$B43:$EC43,MATCH('Monthly CF'!DU$6,'Monthly Cash Flows'!$B$13:$EC$13)) -> 0 | DV19: =+INDEX('Monthly Cash Flows'!$B43:$EC43,MATCH('Monthly CF'!DV$6,'Monthly Cash Flows'!$B$13:$EC$13)) -> 0 | DW19: =+INDEX('Monthly Cash Flows'!$B43:$EC43,MATCH('Monthly CF'!DW$6,'Monthly Cash Flows'!$B$13:$EC$13)) -> 0 | DX19: =+INDEX('Monthly Cash Flows'!$B43:$EC43,MATCH('Monthly CF'!DX$6,'Monthly Cash Flows'!$B$13:$EC$13)) -> 0 | DY19: =+INDEX('Monthly Cash Flows'!$B43:$EC43,MATCH('Monthly CF'!DY$6,'Monthly Cash Flows'!$B$13:$EC$13)) -> 0 | DZ19: =+INDEX('Monthly Cash Flows'!$B43:$EC43,MATCH('Monthly CF'!DZ$6,'Monthly Cash Flows'!$B$13:$EC$13)) -> 0 | EA19: =+INDEX('Monthly Cash Flows'!$B43:$EC43,MATCH('Monthly CF'!EA$6,'Monthly Cash Flows'!$B$13:$EC$13)) -> 0 | EB19: =+INDEX('Monthly Cash Flows'!$B43:$EC43,MATCH('Monthly CF'!EB$6,'Monthly Cash Flows'!$B$13:$EC$13)) -> 0 | EC19: =+INDEX('Monthly Cash Flows'!$B43:$EC43,MATCH('Monthly CF'!EC$6,'Monthly Cash Flows'!$B$13:$EC$13)) -> 0 | ED19: =+INDEX('Monthly Cash Flows'!$B43:$EC43,MATCH('Monthly CF'!ED$6,'Monthly Cash Flows'!$B$13:$EC$13)) -> 0 | EE19: =+INDEX('Monthly Cash Flows'!$B43:$EC43,MATCH('Monthly CF'!EE$6,'Monthly Cash Flows'!$B$13:$EC$13)) -> 0 | EF19: =+INDEX('Monthly Cash Flows'!$B43:$EC43,MATCH('Monthly CF'!EF$6,'Monthly Cash Flows'!$B$13:$EC$13)) -> 0 | EG19: =+INDEX('Monthly Cash Flows'!$B43:$EC43,MATCH('Monthly CF'!EG$6,'Monthly Cash Flows'!$B$13:$EC$13)) -> 0
B20: Effective Gross Revenue | F20: =+F18+F19 -> 108924.775 | G20: =+G18+G19 -> 108924.775 | H20: 108924.775 | I20: 111786.5265 | J20: 111786.5265 | K20: 111786.5265 | L20: 111786.5265 | M20: 113376.3885 | N20: 113376.3885 | O20: 113584.7218 | P20: 114605.5551 | Q20: 121486.6271 | R20: 121740.8771 | S20: 121740.8771 | T20: 122164.5437 | U20: 123762.4528 | V20: 129950.186 | W20: 129950.186 | X20: 129950.186 | Y20: 131500.186 | Z20: 131500.186 | AA20: 131500.186 | AB20: 131500.186 | AC20: 133398.0342 | AD20: 133398.0342 | AE20: 133398.0342 | AF20: 133398.0342 | AG20: 133531.3676 | AH20: 133531.3676 | AI20: 133531.3676 | AJ20: 133531.3676 | AK20: 133791.7009 | AL20: 133791.7009 | AM20: 133791.7009 | AN20: 133791.7009 | AO20: 134702.7513 | AP20: 134702.7513 | AQ20: 134702.7513 | AR20: 134702.7513 | AS20: 134702.7513 | AT20: 134702.7513 | AU20: 134702.7513 | AV20: 134702.7513 | AW20: 134702.7513 | AX20: 134702.7513 | AY20: 134702.7513 | AZ20: 134702.7513 | BA20: 135641.1332 | BB20: 136557.7999 | BC20: 136557.7999 | BD20: 136557.7999 | BE20: 136557.7999 | BF20: 136557.7999 | BG20: 136557.7999 | BH20: 136557.7999 | BI20: 136557.7999 | BJ20: 136557.7999 | BK20: 136557.7999 | BL20: 136557.7999 | BM20: 137524.3332 | BN20: 138274.3332 | BO20: 138274.3332 | BP20: 138274.3332 | BQ20: 138274.3332 | BR20: 138274.3332 | BS20: =+BS18+BS19 -> 138274.3332 | BT20: 138274.3332 | BU20: 138274.3332 | BV20: 138274.3332 | BW20: 138565.9999 | BX20: 140035.9999 | BY20: 141031.5292 | BZ20: 141364.5292 | CA20: 141364.5292 | CB20: 141364.5292 | CC20: 141364.5292 | CD20: 141364.5292 | CE20: 141364.5292 | CF20: 141364.5292 | CG20: 141364.5292 | CH20: 141364.5292 | CI20: 141364.5292 | CJ20: 141364.5292 | CK20: 142389.9245 | CL20: 142389.9245 | CM20: 142389.9245 | CN20: 142389.9245 | CO20: 142389.9245 | CP20: 142389.9245 | CQ20: 142389.9245 | CR20: 142389.9245 | CS20: 142389.9245 | CT20: 142389.9245 | CU20: 142389.9245 | CV20: 142389.9245 | CW20: 143446.0816 | CX20: 143446.0816 | CY20: 143446.0816 | CZ20: 143446.0816 | DA20: 143446.0816 | DB20: 143446.0816 | DC20: 143446.0816 | DD20: 143446.0816 | DE20: 143446.0816 | DF20: 143446.0816 | DG20: 143446.0816 | DH20: 143446.0816 | DI20: 144533.9234 | DJ20: 145450.5901 | DK20: 145450.5901 | DL20: 145450.5901 | DM20: 145450.5901 | DN20: 145450.5901 | DO20: 145450.5901 | DP20: 145450.5901 | DQ20: 145450.5901 | DR20: 145450.5901 | DS20: 145450.5901 | DT20: 145450.5901 | DU20: 146571.0671 | DV20: 146571.0671 | DW20: 146571.0671 | DX20: 146571.0671 | DY20: 146571.0671 | DZ20: 146571.0671 | EA20: 146571.0671 | EB20: 146571.0671 | EC20: 146571.0671 | ED20: 146571.0671 | EE20: =+EE18+EE19 -> 146571.0671 | EF20: 146571.0671 | EG20: 146571.0671
B22: OPERATING EXPENSES
B23: =+'Monthly Cash Flows'!A48 -> Management Fee | F23: =-INDEX('Monthly Cash Flows'!$B48:$EC48,MATCH('Monthly CF'!F$6,'Monthly Cash Flows'!$B$13:$EC$13)) -> -3434.75 | G23: =-INDEX('Monthly Cash Flows'!$B48:$EC48,MATCH('Monthly CF'!G$6,'Monthly Cash Flows'!$B$13:$EC$13)) -> -3434.75 | H23: =-INDEX('Monthly Cash Flows'!$B48:$EC48,MATCH('Monthly CF'!H$6,'Monthly Cash Flows'!$B$13:$EC$13)) -> -3434.75 | I23: =-INDEX('Monthly Cash Flows'!$B48:$EC48,MATCH('Monthly CF'!I$6,'Monthly Cash Flows'!$B$13:$EC$13)) -> -3434.75 | J23: =-INDEX('Monthly Cash Flows'!$B48:$EC48,MATCH('Monthly CF'!J$6,'Monthly Cash Flows'!$B$13:$EC$13)) -> -3434.75 | K23: =-INDEX('Monthly Cash Flows'!$B48:$EC48,MATCH('Monthly CF'!K$6,'Monthly Cash Flows'!$B$13:$EC$13)) -> -3434.75 | L23: =-INDEX('Monthly Cash Flows'!$B48:$EC48,MATCH('Monthly CF'!L$6,'Monthly Cash Flows'!$B$13:$EC$13)) -> -3434.75 | M23: =-INDEX('Monthly Cash Flows'!$B48:$EC48,MATCH('Monthly CF'!M$6,'Monthly Cash Flows'!$B$13:$EC$13)) -> -3434.75 | N23: =-INDEX('Monthly Cash Flows'!$B48:$EC48,MATCH('Monthly CF'!N$6,'Monthly Cash Flows'!$B$13:$EC$13)) -> -3434.75 | O23: =-INDEX('Monthly Cash Flows'!$B48:$EC48,MATCH('Monthly CF'!O$6,'Monthly Cash Flows'!$B$13:$EC$13)) -> -3434.75 | P23: =-INDEX('Monthly Cash Flows'!$B48:$EC48,MATCH('Monthly CF'!P$6,'Monthly Cash Flows'!$B$13:$EC$13)) -> -3434.75 | Q23: =-INDEX('Monthly Cash Flows'!$B48:$EC48,MATCH('Monthly CF'!Q$6,'Monthly Cash Flows'!$B$13:$EC$13)) -> -3537.7925 | R23: =-INDEX('Monthly Cash Flows'!$B48:$EC48,MATCH('Monthly CF'!R$6,'Monthly Cash Flows'!$B$13:$EC$13)) -> -3537.7925 | S23: =-INDEX('Monthly Cash Flows'!$B48:$EC48,MATCH('Monthly CF'!S$6,'Monthly Cash Flows'!$B$13:$EC$13)) -> -3537.7925 | T23: =-INDEX('Monthly Cash Flows'!$B48:$EC48,MATCH('Monthly CF'!T$6,'Monthly Cash Flows'!$B$13:$EC$13)) -> -3537.7925 | U23: =-INDEX('Monthly Cash Flows'!$B48:$EC48,MATCH('Monthly CF'!U$6,'Monthly Cash Flows'!$B$13:$EC$13)) -> -3537.7925 | V23: =-INDEX('Monthly Cash Flows'!$B48:$EC48,MATCH('Monthly CF'!V$6,'Monthly Cash Flows'!$B$13:$EC$13)) -> -3537.7925 | W23: =-INDEX('Monthly Cash Flows'!$B48:$EC48,MATCH('Monthly CF'!W$6,'Monthly Cash Flows'!$B$13:$EC$13)) -> -3537.7925 | X23: =-INDEX('Monthly Cash Flows'!$B48:$EC48,MATCH('Monthly CF'!X$6,'Monthly Cash Flows'!$B$13:$EC$13)) -> -3537.7925 | Y23: =-INDEX('Monthly Cash Flows'!$B48:$EC48,MATCH('Monthly CF'!Y$6,'Monthly Cash Flows'!$B$13:$EC$13)) -> -3537.7925 | Z23: =-INDEX('Monthly Cash Flows'!$B48:$EC48,MATCH('Monthly CF'!Z$6,'Monthly Cash Flows'!$B$13:$EC$13)) -> -3537.7925 | AA23: =-INDEX('Monthly Cash Flows'!$B48:$EC48,MATCH('Monthly CF'!AA$6,'Monthly Cash Flows'!$B$13:$EC$13)) -> -3537.7925 | AB23: =-INDEX('Monthly Cash Flows'!$B48:$EC48,MATCH('Monthly CF'!AB$6,'Monthly Cash Flows'!$B$13:$EC$13)) -> -3537.7925 | AC23: =-INDEX('Monthly Cash Flows'!$B48:$EC48,MATCH('Monthly CF'!AC$6,'Monthly Cash Flows'!$B$13:$EC$13)) -> -3643.926275 | AD23: =-INDEX('Monthly Cash Flows'!$B48:$EC48,MATCH('Monthly CF'!AD$6,'Monthly Cash Flows'!$B$13:$EC$13)) -> -3643.926275 | AE23: =-INDEX('Monthly Cash Flows'!$B48:$EC48,MATCH('Monthly CF'!AE$6,'Monthly Cash Flows'!$B$13:$EC$13)) -> -3643.926275 | AF23: =-INDEX('Monthly Cash Flows'!$B48:$EC48,MATCH('Monthly CF'!AF$6,'Monthly Cash Flows'!$B$13:$EC$13)) -> -3643.926275 | AG23: =-INDEX('Monthly Cash Flows'!$B48:$EC48,MATCH('Monthly CF'!AG$6,'Monthly Cash Flows'!$B$13:$EC$13)) -> -3643.926275 | AH23: =-INDEX('Monthly Cash Flows'!$B48:$EC48,MATCH('Monthly CF'!AH$6,'Monthly Cash Flows'!$B$13:$EC$13)) -> -3643.926275 | AI23: =-INDEX('Monthly Cash Flows'!$B48:$EC48,MATCH('Monthly CF'!AI$6,'Monthly Cash Flows'!$B$13:$EC$13)) -> -3643.926275 | AJ23: =-INDEX('Monthly Cash Flows'!$B48:$EC48,MATCH('Monthly CF'!AJ$6,'Monthly Cash Flows'!$B$13:$EC$13)) -> -3643.926275 | AK23: =-INDEX('Monthly Cash Flows'!$B48:$EC48,MATCH('Monthly CF'!AK$6,'Monthly Cash Flows'!$B$13:$EC$13)) -> -3643.926275 | AL23: =-INDEX('Monthly Cash Flows'!$B48:$EC48,MATCH('Monthly CF'!AL$6,'Monthly Cash Flows'!$B$13:$EC$13)) -> -3643.926275 | AM23: =-INDEX('Monthly Cash Flows'!$B48:$EC48,MATCH('Monthly CF'!AM$6,'Monthly Cash Flows'!$B$13:$EC$13)) -> -3643.926275 | AN23: =-INDEX('Monthly Cash Flows'!$B48:$EC48,MATCH('Monthly CF'!AN$6,'Monthly Cash Flows'!$B$13:$EC$13)) -> -3643.926275 | AO23: =-INDEX('Monthly Cash Flows'!$B48:$EC48,MATCH('Monthly CF'!AO$6,'Monthly Cash Flows'!$B$13:$EC$13)) -> -3753.244063 | AP23: =-INDEX('Monthly Cash Flows'!$B48:$EC48,MATCH('Monthly CF'!AP$6,'Monthly Cash Flows'!$B$13:$EC$13)) -> -3753.244063 | AQ23: =-INDEX('Monthly Cash Flows'!$B48:$EC48,MATCH('Monthly CF'!AQ$6,'Monthly Cash Flows'!$B$13:$EC$13)) -> -3753.244063 | AR23: =-INDEX('Monthly Cash Flows'!$B48:$EC48,MATCH('Monthly CF'!AR$6,'Monthly Cash Flows'!$B$13:$EC$13)) -> -3753.244063 | AS23: =-INDEX('Monthly Cash Flows'!$B48:$EC48,MATCH('Monthly CF'!AS$6,'Monthly Cash Flows'!$B$13:$EC$13)) -> -3753.244063 | AT23: =-INDEX('Monthly Cash Flows'!$B48:$EC48,MATCH('Monthly CF'!AT$6,'Monthly Cash Flows'!$B$13:$EC$13)) -> -3753.244063 | AU23: =-INDEX('Monthly Cash Flows'!$B48:$EC48,MATCH('Monthly CF'!AU$6,'Monthly Cash Flows'!$B$13:$EC$13)) -> -3753.244063 | AV23: =-INDEX('Monthly Cash Flows'!$B48:$EC48,MATCH('Monthly CF'!AV$6,'Monthly Cash Flows'!$B$13:$EC$13)) -> -3753.244063 | AW23: =-INDEX('Monthly Cash Flows'!$B48:$EC48,MATCH('Monthly CF'!AW$6,'Monthly Cash Flows'!$B$13:$EC$13)) -> -3753.244063 | AX23: =-INDEX('Monthly Cash Flows'!$B48:$EC48,MATCH('Monthly CF'!AX$6,'Monthly Cash Flows'!$B$13:$EC$13)) -> -3753.244063 | AY23: =-INDEX('Monthly Cash Flows'!$B48:$EC48,MATCH('Monthly CF'!AY$6,'Monthly Cash Flows'!$B$13:$EC$13)) -> -3753.244063 | AZ23: =-INDEX('Monthly Cash Flows'!$B48:$EC48,MATCH('Monthly CF'!AZ$6,'Monthly Cash Flows'!$B$13:$EC$13)) -> -3753.244063 | BA23: =-INDEX('Monthly Cash Flows'!$B48:$EC48,MATCH('Monthly CF'!BA$6,'Monthly Cash Flows'!$B$13:$EC$13)) -> -3865.841385 | BB23: =-INDEX('Monthly Cash Flows'!$B48:$EC48,MATCH('Monthly CF'!BB$6,'Monthly Cash Flows'!$B$13:$EC$13)) -> -3865.841385 | BC23: =-INDEX('Monthly Cash Flows'!$B48:$EC48,MATCH('Monthly CF'!BC$6,'Monthly Cash Flows'!$B$13:$EC$13)) -> -3865.841385 | BD23: =-INDEX('Monthly Cash Flows'!$B48:$EC48,MATCH('Monthly CF'!BD$6,'Monthly Cash Flows'!$B$13:$EC$13)) -> -3865.841385 | BE23: =-INDEX('Monthly Cash Flows'!$B48:$EC48,MATCH('Monthly CF'!BE$6,'Monthly Cash Flows'!$B$13:$EC$13)) -> -3865.841385 | BF23: =-INDEX('Monthly Cash Flows'!$B48:$EC48,MATCH('Monthly CF'!BF$6,'Monthly Cash Flows'!$B$13:$EC$13)) -> -3865.841385 | BG23: =-INDEX('Monthly Cash Flows'!$B48:$EC48,MATCH('Monthly CF'!BG$6,'Monthly Cash Flows'!$B$13:$EC$13)) -> -3865.841385 | BH23: =-INDEX('Monthly Cash Flows'!$B48:$EC48,MATCH('Monthly CF'!BH$6,'Monthly Cash Flows'!$B$13:$EC$13)) -> -3865.841385 | BI23: =-INDEX('Monthly Cash Flows'!$B48:$EC48,MATCH('Monthly CF'!BI$6,'Monthly Cash Flows'!$B$13:$EC$13)) -> -3865.841385 | BJ23: =-INDEX('Monthly Cash Flows'!$B48:$EC48,MATCH('Monthly CF'!BJ$6,'Monthly Cash Flows'!$B$13:$EC$13)) -> -3865.841385 | BK23: =-INDEX('Monthly Cash Flows'!$B48:$EC48,MATCH('Monthly CF'!BK$6,'Monthly Cash Flows'!$B$13:$EC$13)) -> -3865.841385 | BL23: =-INDEX('Monthly Cash Flows'!$B48:$EC48,MATCH('Monthly CF'!BL$6,'Monthly Cash Flows'!$B$13:$EC$13)) -> -3865.841385 | BM23: =-INDEX('Monthly Cash Flows'!$B48:$EC48,MATCH('Monthly CF'!BM$6,'Monthly Cash Flows'!$B$13:$EC$13)) -> -3981.816627 | BN23: =-INDEX('Monthly Cash Flows'!$B48:$EC48,MATCH('Monthly CF'!BN$6,'Monthly Cash Flows'!$B$13:$EC$13)) -> -3981.816627 | BO23: =-INDEX('Monthly Cash Flows'!$B48:$EC48,MATCH('Monthly CF'!BO$6,'Monthly Cash Flows'!$B$13:$EC$13)) -> -3981.816627 | BP23: =-INDEX('Monthly Cash Flows'!$B48:$EC48,MATCH('Monthly CF'!BP$6,'Monthly Cash Flows'!$B$13:$EC$13)) -> -3981.816627 | BQ23: =-INDEX('Monthly Cash Flows'!$B48:$EC48,MATCH('Monthly CF'!BQ$6,'Monthly Cash Flows'!$B$13:$EC$13)) -> -3981.816627 | BR23: =-INDEX('Monthly Cash Flows'!$B48:$EC48,MATCH('Monthly CF'!BR$6,'Monthly Cash Flows'!$B$13:$EC$13)) -> -3981.816627 | BS23: =-INDEX('Monthly Cash Flows'!$B48:$EC48,MATCH('Monthly CF'!BS$6,'Monthly Cash Flows'!$B$13:$EC$13)) -> -3981.816627 | BT23: =-INDEX('Monthly Cash Flows'!$B48:$EC48,MATCH('Monthly CF'!BT$6,'Monthly Cash Flows'!$B$13:$EC$13)) -> -3981.816627 | BU23: =-INDEX('Monthly Cash Flows'!$B48:$EC48,MATCH('Monthly CF'!BU$6,'Monthly Cash Flows'!$B$13:$EC$13)) -> -3981.816627 | BV23: =-INDEX('Monthly Cash Flows'!$B48:$EC48,MATCH('Monthly CF'!BV$6,'Monthly Cash Flows'!$B$13:$EC$13)) -> -3981.816627 | BW23: =-INDEX('Monthly Cash Flows'!$B48:$EC48,MATCH('Monthly CF'!BW$6,'Monthly Cash Flows'!$B$13:$EC$13)) -> -3981.816627 | BX23: =-INDEX('Monthly Cash Flows'!$B48:$EC48,MATCH('Monthly CF'!BX$6,'Monthly Cash Flows'!$B$13:$EC$13)) -> -3981.816627 | BY23: =-INDEX('Monthly Cash Flows'!$B48:$EC48,MATCH('Monthly CF'!BY$6,'Monthly Cash Flows'!$B$13:$EC$13)) -> -4101.271126 | BZ23: =-INDEX('Monthly Cash Flows'!$B48:$EC48,MATCH('Monthly CF'!BZ$6,'Monthly Cash Flows'!$B$13:$EC$13)) -> -4101.271126 | CA23: =-INDEX('Monthly Cash Flows'!$B48:$EC48,MATCH('Monthly CF'!CA$6,'Monthly Cash Flows'!$B$13:$EC$13)) -> -4101.271126 | CB23: =-INDEX('Monthly Cash Flows'!$B48:$EC48,MATCH('Monthly CF'!CB$6,'Monthly Cash Flows'!$B$13:$EC$13)) -> -4101.271126 | CC23: =-INDEX('Monthly Cash Flows'!$B48:$EC48,MATCH('Monthly CF'!CC$6,'Monthly Cash Flows'!$B$13:$EC$13)) -> -4101.271126 | CD23: =-INDEX('Monthly Cash Flows'!$B48:$EC48,MATCH('Monthly CF'!CD$6,'Monthly Cash Flows'!$B$13:$EC$13)) -> -4101.271126 | CE23: =-INDEX('Monthly Cash Flows'!$B48:$EC48,MATCH('Monthly CF'!CE$6,'Monthly Cash Flows'!$B$13:$EC$13)) -> -4101.271126 | CF23: =-INDEX('Monthly Cash Flows'!$B48:$EC48,MATCH('Monthly CF'!CF$6,'Monthly Cash Flows'!$B$13:$EC$13)) -> -4101.271126 | CG23: =-INDEX('Monthly Cash Flows'!$B48:$EC48,MATCH('Monthly CF'!CG$6,'Monthly Cash Flows'!$B$13:$EC$13)) -> -4101.271126 | CH23: =-INDEX('Monthly Cash Flows'!$B48:$EC48,MATCH('Monthly CF'!CH$6,'Monthly Cash Flows'!$B$13:$EC$13)) -> -4101.271126 | CI23: =-INDEX('Monthly Cash Flows'!$B48:$EC48,MATCH('Monthly CF'!CI$6,'Monthly Cash Flows'!$B$13:$EC$13)) -> -4101.271126 | CJ23: =-INDEX('Monthly Cash Flows'!$B48:$EC48,MATCH('Monthly CF'!CJ$6,'Monthly Cash Flows'!$B$13:$EC$13)) -> -4101.271126 | CK23: =-INDEX('Monthly Cash Flows'!$B48:$EC48,MATCH('Monthly CF'!CK$6,'Monthly Cash Flows'!$B$13:$EC$13)) -> -4224.309259 | CL23: =-INDEX('Monthly Cash Flows'!$B48:$EC48,MATCH('Monthly CF'!CL$6,'Monthly Cash Flows'!$B$13:$EC$13)) -> -4224.309259 | CM23: =-INDEX('Monthly Cash Flows'!$B48:$EC48,MATCH('Monthly CF'!CM$6,'Monthly Cash Flows'!$B$13:$EC$13)) -> -4224.309259 | CN23: =-INDEX('Monthly Cash Flows'!$B48:$EC48,MATCH('Monthly CF'!CN$6,'Monthly Cash Flows'!$B$13:$EC$13)) -> -4224.309259 | CO23: =-INDEX('Monthly Cash Flows'!$B48:$EC48,MATCH('Monthly CF'!CO$6,'Monthly Cash Flows'!$B$13:$EC$13)) -> -4224.309259 | CP23: =-INDEX('Monthly Cash Flows'!$B48:$EC48,MATCH('Monthly CF'!CP$6,'Monthly Cash Flows'!$B$13:$EC$13)) -> -4224.309259 | CQ23: =-INDEX('Monthly Cash Flows'!$B48:$EC48,MATCH('Monthly CF'!CQ$6,'Monthly Cash Flows'!$B$13:$EC$13)) -> -4224.309259 | CR23: =-INDEX('Monthly Cash Flows'!$B48:$EC48,MATCH('Monthly CF'!CR$6,'Monthly Cash Flows'!$B$13:$EC$13)) -> -4224.309259 | CS23: =-INDEX('Monthly Cash Flows'!$B48:$EC48,MATCH('Monthly CF'!CS$6,'Monthly Cash Flows'!$B$13:$EC$13)) -> -4224.309259 | CT23: =-INDEX('Monthly Cash Flows'!$B48:$EC48,MATCH('Monthly CF'!CT$6,'Monthly Cash Flows'!$B$13:$EC$13)) -> -4224.309259 | CU23: =-INDEX('Monthly Cash Flows'!$B48:$EC48,MATCH('Monthly CF'!CU$6,'Monthly Cash Flows'!$B$13:$EC$13)) -> -4224.309259 | CV23: =-INDEX('Monthly Cash Flows'!$B48:$EC48,MATCH('Monthly CF'!CV$6,'Monthly Cash Flows'!$B$13:$EC$13)) -> -4224.309259 | CW23: =-INDEX('Monthly Cash Flows'!$B48:$EC48,MATCH('Monthly CF'!CW$6,'Monthly Cash Flows'!$B$13:$EC$13)) -> -4351.038537 | CX23: =-INDEX('Monthly Cash Flows'!$B48:$EC48,MATCH('Monthly CF'!CX$6,'Monthly Cash Flows'!$B$13:$EC$13)) -> -4351.038537 | CY23: =-INDEX('Monthly Cash Flows'!$B48:$EC48,MATCH('Monthly CF'!CY$6,'Monthly Cash Flows'!$B$13:$EC$13)) -> -4351.038537 | CZ23: =-INDEX('Monthly Cash Flows'!$B48:$EC48,MATCH('Monthly CF'!CZ$6,'Monthly Cash Flows'!$B$13:$EC$13)) -> -4351.038537 | DA23: =-INDEX('Monthly Cash Flows'!$B48:$EC48,MATCH('Monthly CF'!DA$6,'Monthly Cash Flows'!$B$13:$EC$13)) -> -4351.038537 | DB23: =-INDEX('Monthly Cash Flows'!$B48:$EC48,MATCH('Monthly CF'!DB$6,'Monthly Cash Flows'!$B$13:$EC$13)) -> -4351.038537 | DC23: =-INDEX('Monthly Cash Flows'!$B48:$EC48,MATCH('Monthly CF'!DC$6,'Monthly Cash Flows'!$B$13:$EC$13)) -> -4351.038537 | DD23: =-INDEX('Monthly Cash Flows'!$B48:$EC48,MATCH('Monthly CF'!DD$6,'Monthly Cash Flows'!$B$13:$EC$13)) -> -4351.038537 | DE23: =-INDEX('Monthly Cash Flows'!$B48:$EC48,MATCH('Monthly CF'!DE$6,'Monthly Cash Flows'!$B$13:$EC$13)) -> -4351.038537 | DF23: =-INDEX('Monthly Cash Flows'!$B48:$EC48,MATCH('Monthly CF'!DF$6,'Monthly Cash Flows'!$B$13:$EC$13)) -> -4351.038537 | DG23: =-INDEX('Monthly Cash Flows'!$B48:$EC48,MATCH('Monthly CF'!DG$6,'Monthly Cash Flows'!$B$13:$EC$13)) -> -4351.038537 | DH23: =-INDEX('Monthly Cash Flows'!$B48:$EC48,MATCH('Monthly CF'!DH$6,'Monthly Cash Flows'!$B$13:$EC$13)) -> -4351.038537 | DI23: =-INDEX('Monthly Cash Flows'!$B48:$EC48,MATCH('Monthly CF'!DI$6,'Monthly Cash Flows'!$B$13:$EC$13)) -> -4481.569693 | DJ23: =-INDEX('Monthly Cash Flows'!$B48:$EC48,MATCH('Monthly CF'!DJ$6,'Monthly Cash Flows'!$B$13:$EC$13)) -> -4481.569693 | DK23: =-INDEX('Monthly Cash Flows'!$B48:$EC48,MATCH('Monthly CF'!DK$6,'Monthly Cash Flows'!$B$13:$EC$13)) -> -4481.569693 | DL23: =-INDEX('Monthly Cash Flows'!$B48:$EC48,MATCH('Monthly CF'!DL$6,'Monthly Cash Flows'!$B$13:$EC$13)) -> -4481.569693 | DM23: =-INDEX('Monthly Cash Flows'!$B48:$EC48,MATCH('Monthly CF'!DM$6,'Monthly Cash Flows'!$B$13:$EC$13)) -> -4481.569693 | DN23: =-INDEX('Monthly Cash Flows'!$B48:$EC48,MATCH('Monthly CF'!DN$6,'Monthly Cash Flows'!$B$13:$EC$13)) -> -4481.569693 | DO23: =-INDEX('Monthly Cash Flows'!$B48:$EC48,MATCH('Monthly CF'!DO$6,'Monthly Cash Flows'!$B$13:$EC$13)) -> -4481.569693 | DP23: =-INDEX('Monthly Cash Flows'!$B48:$EC48,MATCH('Monthly CF'!DP$6,'Monthly Cash Flows'!$B$13:$EC$13)) -> -4481.569693 | DQ23: =-INDEX('Monthly Cash Flows'!$B48:$EC48,MATCH('Monthly CF'!DQ$6,'Monthly Cash Flows'!$B$13:$EC$13)) -> -4481.569693 | DR23: =-INDEX('Monthly Cash Flows'!$B48:$EC48,MATCH('Monthly CF'!DR$6,'Monthly Cash Flows'!$B$13:$EC$13)) -> -4481.569693 | DS23: =-INDEX('Monthly Cash Flows'!$B48:$EC48,MATCH('Monthly CF'!DS$6,'Monthly Cash Flows'!$B$13:$EC$13)) -> -4481.569693 | DT23: =-INDEX('Monthly Cash Flows'!$B48:$EC48,MATCH('Monthly CF'!DT$6,'Monthly Cash Flows'!$B$13:$EC$13)) -> -4481.569693 | DU23: =-INDEX('Monthly Cash Flows'!$B48:$EC48,MATCH('Monthly CF'!DU$6,'Monthly Cash Flows'!$B$13:$EC$13)) -> -4616.016784 | DV23: =-INDEX('Monthly Cash Flows'!$B48:$EC48,MATCH('Monthly CF'!DV$6,'Monthly Cash Flows'!$B$13:$EC$13)) -> -4616.016784 | DW23: =-INDEX('Monthly Cash Flows'!$B48:$EC48,MATCH('Monthly CF'!DW$6,'Monthly Cash Flows'!$B$13:$EC$13)) -> -4616.016784 | DX23: =-INDEX('Monthly Cash Flows'!$B48:$EC48,MATCH('Monthly CF'!DX$6,'Monthly Cash Flows'!$B$13:$EC$13)) -> -4616.016784 | DY23: =-INDEX('Monthly Cash Flows'!$B48:$EC48,MATCH('Monthly CF'!DY$6,'Monthly Cash Flows'!$B$13:$EC$13)) -> -4616.016784 | DZ23: =-INDEX('Monthly Cash Flows'!$B48:$EC48,MATCH('Monthly CF'!DZ$6,'Monthly Cash Flows'!$B$13:$EC$13)) -> -4616.016784 | EA23: =-INDEX('Monthly Cash Flows'!$B48:$EC48,MATCH('Monthly CF'!EA$6,'Monthly Cash Flows'!$B$13:$EC$13)) -> -4616.016784 | EB23: =-INDEX('Monthly Cash Flows'!$B48:$EC48,MATCH('Monthly CF'!EB$6,'Monthly Cash Flows'!$B$13:$EC$13)) -> -4616.016784 | EC23: =-INDEX('Monthly Cash Flows'!$B48:$EC48,MATCH('Monthly CF'!EC$6,'Monthly Cash Flows'!$B$13:$EC$13)) -> -4616.016784 | ED23: =-INDEX('Monthly Cash Flows'!$B48:$EC48,MATCH('Monthly CF'!ED$6,'Monthly Cash Flows'!$B$13:$EC$13)) -> -4616.016784 | EE23: =-INDEX('Monthly Cash Flows'!$B48:$EC48,MATCH('Monthly CF'!EE$6,'Monthly Cash Flows'!$B$13:$EC$13)) -> -4616.016784 | EF23: =-INDEX('Monthly Cash Flows'!$B48:$EC48,MATCH('Monthly CF'!EF$6,'Monthly Cash Flows'!$B$13:$EC$13)) -> -4616.016784 | EG23: =-INDEX('Monthly Cash Flows'!$B48:$EC48,MATCH('Monthly CF'!EG$6,'Monthly Cash Flows'!$B$13:$EC$13)) -> -4616.016784
B24: =+'Monthly Cash Flows'!A49 -> Water & Sewer | F24: =-INDEX('Monthly Cash Flows'!$B49:$EC49,MATCH('Monthly CF'!F$6,'Monthly Cash Flows'!$B$13:$EC$13)) -> -532.3333333 | G24: =-INDEX('Monthly Cash Flows'!$B49:$EC49,MATCH('Monthly CF'!G$6,'Monthly Cash Flows'!$B$13:$EC$13)) -> -532.3333333 | H24: =-INDEX('Monthly Cash Flows'!$B49:$EC49,MATCH('Monthly CF'!H$6,'Monthly Cash Flows'!$B$13:$EC$13)) -> -532.3333333 | I24: =-INDEX('Monthly Cash Flows'!$B49:$EC49,MATCH('Monthly CF'!I$6,'Monthly Cash Flows'!$B$13:$EC$13)) -> -532.3333333 | J24: =-INDEX('Monthly Cash Flows'!$B49:$EC49,MATCH('Monthly CF'!J$6,'Monthly Cash Flows'!$B$13:$EC$13)) -> -532.3333333 | K24: =-INDEX('Monthly Cash Flows'!$B49:$EC49,MATCH('Monthly CF'!K$6,'Monthly Cash Flows'!$B$13:$EC$13)) -> -532.3333333 | L24: =-INDEX('Monthly Cash Flows'!$B49:$EC49,MATCH('Monthly CF'!L$6,'Monthly Cash Flows'!$B$13:$EC$13)) -> -532.3333333 | M24: =-INDEX('Monthly Cash Flows'!$B49:$EC49,MATCH('Monthly CF'!M$6,'Monthly Cash Flows'!$B$13:$EC$13)) -> -532.3333333 | N24: =-INDEX('Monthly Cash Flows'!$B49:$EC49,MATCH('Monthly CF'!N$6,'Monthly Cash Flows'!$B$13:$EC$13)) -> -532.3333333 | O24: =-INDEX('Monthly Cash Flows'!$B49:$EC49,MATCH('Monthly CF'!O$6,'Monthly Cash Flows'!$B$13:$EC$13)) -> -532.3333333 | P24: =-INDEX('Monthly Cash Flows'!$B49:$EC49,MATCH('Monthly CF'!P$6,'Monthly Cash Flows'!$B$13:$EC$13)) -> -532.3333333 | Q24: =-INDEX('Monthly Cash Flows'!$B49:$EC49,MATCH('Monthly CF'!Q$6,'Monthly Cash Flows'!$B$13:$EC$13)) -> -548.3033333 | R24: =-INDEX('Monthly Cash Flows'!$B49:$EC49,MATCH('Monthly CF'!R$6,'Monthly Cash Flows'!$B$13:$EC$13)) -> -548.3033333 | S24: =-INDEX('Monthly Cash Flows'!$B49:$EC49,MATCH('Monthly CF'!S$6,'Monthly Cash Flows'!$B$13:$EC$13)) -> -548.3033333 | T24: =-INDEX('Monthly Cash Flows'!$B49:$EC49,MATCH('Monthly CF'!T$6,'Monthly Cash Flows'!$B$13:$EC$13)) -> -548.3033333 | U24: =-INDEX('Monthly Cash Flows'!$B49:$EC49,MATCH('Monthly CF'!U$6,'Monthly Cash Flows'!$B$13:$EC$13)) -> -548.3033333 | V24: =-INDEX('Monthly Cash Flows'!$B49:$EC49,MATCH('Monthly CF'!V$6,'Monthly Cash Flows'!$B$13:$EC$13)) -> -548.3033333 | W24: =-INDEX('Monthly Cash Flows'!$B49:$EC49,MATCH('Monthly CF'!W$6,'Monthly Cash Flows'!$B$13:$EC$13)) -> -548.3033333 | X24: =-INDEX('Monthly Cash Flows'!$B49:$EC49,MATCH('Monthly CF'!X$6,'Monthly Cash Flows'!$B$13:$EC$13)) -> -548.3033333 | Y24: =-INDEX('Monthly Cash Flows'!$B49:$EC49,MATCH('Monthly CF'!Y$6,'Monthly Cash Flows'!$B$13:$EC$13)) -> -548.3033333 | Z24: =-INDEX('Monthly Cash Flows'!$B49:$EC49,MATCH('Monthly CF'!Z$6,'Monthly Cash Flows'!$B$13:$EC$13)) -> -548.3033333 | AA24: =-INDEX('Monthly Cash Flows'!$B49:$EC49,MATCH('Monthly CF'!AA$6,'Monthly Cash Flows'!$B$13:$EC$13)) -> -548.3033333 | AB24: =-INDEX('Monthly Cash Flows'!$B49:$EC49,MATCH('Monthly CF'!AB$6,'Monthly Cash Flows'!$B$13:$EC$13)) -> -548.3033333 | AC24: =-INDEX('Monthly Cash Flows'!$B49:$EC49,MATCH('Monthly CF'!AC$6,'Monthly Cash Flows'!$B$13:$EC$13)) -> -564.7524333 | AD24: =-INDEX('Monthly Cash Flows'!$B49:$EC49,MATCH('Monthly CF'!AD$6,'Monthly Cash Flows'!$B$13:$EC$13)) -> -564.7524333 | AE24: =-INDEX('Monthly Cash Flows'!$B49:$EC49,MATCH('Monthly CF'!AE$6,'Monthly Cash Flows'!$B$13:$EC$13)) -> -564.7524333 | AF24: =-INDEX('Monthly Cash Flows'!$B49:$EC49,MATCH('Monthly CF'!AF$6,'Monthly Cash Flows'!$B$13:$EC$13)) -> -564.7524333 | AG24: =-INDEX('Monthly Cash Flows'!$B49:$EC49,MATCH('Monthly CF'!AG$6,'Monthly Cash Flows'!$B$13:$EC$13)) -> -564.7524333 | AH24: =-INDEX('Monthly Cash Flows'!$B49:$EC49,MATCH('Monthly CF'!AH$6,'Monthly Cash Flows'!$B$13:$EC$13)) -> -564.7524333 | AI24: =-INDEX('Monthly Cash Flows'!$B49:$EC49,MATCH('Monthly CF'!AI$6,'Monthly Cash Flows'!$B$13:$EC$13)) -> -564.7524333 | AJ24: =-INDEX('Monthly Cash Flows'!$B49:$EC49,MATCH('Monthly CF'!AJ$6,'Monthly Cash Flows'!$B$13:$EC$13)) -> -564.7524333 | AK24: =-INDEX('Monthly Cash Flows'!$B49:$EC49,MATCH('Monthly CF'!AK$6,'Monthly Cash Flows'!$B$13:$EC$13)) -> -564.7524333 | AL24: =-INDEX('Monthly Cash Flows'!$B49:$EC49,MATCH('Monthly CF'!AL$6,'Monthly Cash Flows'!$B$13:$EC$13)) -> -564.7524333 | AM24: =-INDEX('Monthly Cash Flows'!$B49:$EC49,MATCH('Monthly CF'!AM$6,'Monthly Cash Flows'!$B$13:$EC$13)) -> -564.7524333 | AN24: =-INDEX('Monthly Cash Flows'!$B49:$EC49,MATCH('Monthly CF'!AN$6,'Monthly Cash Flows'!$B$13:$EC$13)) -> -564.7524333 | AO24: =-INDEX('Monthly Cash Flows'!$B49:$EC49,MATCH('Monthly CF'!AO$6,'Monthly Cash Flows'!$B$13:$EC$13)) -> -581.6950063 | AP24: =-INDEX('Monthly Cash Flows'!$B49:$EC49,MATCH('Monthly CF'!AP$6,'Monthly Cash Flows'!$B$13:$EC$13)) -> -581.6950063 | AQ24: =-INDEX('Monthly Cash Flows'!$B49:$EC49,MATCH('Monthly CF'!AQ$6,'Monthly Cash Flows'!$B$13:$EC$13)) -> -581.6950063 | AR24: =-INDEX('Monthly Cash Flows'!$B49:$EC49,MATCH('Monthly CF'!AR$6,'Monthly Cash Flows'!$B$13:$EC$13)) -> -581.6950063 | AS24: =-INDEX('Monthly Cash Flows'!$B49:$EC49,MATCH('Monthly CF'!AS$6,'Monthly Cash Flows'!$B$13:$EC$13)) -> -581.6950063 | AT24: =-INDEX('Monthly Cash Flows'!$B49:$EC49,MATCH('Monthly CF'!AT$6,'Monthly Cash Flows'!$B$13:$EC$13)) -> -581.6950063 | AU24: =-INDEX('Monthly Cash Flows'!$B49:$EC49,MATCH('Monthly CF'!AU$6,'Monthly Cash Flows'!$B$13:$EC$13)) -> -581.6950063 | AV24: =-INDEX('Monthly Cash Flows'!$B49:$EC49,MATCH('Monthly CF'!AV$6,'Monthly Cash Flows'!$B$13:$EC$13)) -> -581.6950063 | AW24: =-INDEX('Monthly Cash Flows'!$B49:$EC49,MATCH('Monthly CF'!AW$6,'Monthly Cash Flows'!$B$13:$EC$13)) -> -581.6950063 | AX24: =-INDEX('Monthly Cash Flows'!$B49:$EC49,MATCH('Monthly CF'!AX$6,'Monthly Cash Flows'!$B$13:$EC$13)) -> -581.6950063 | AY24: =-INDEX('Monthly Cash Flows'!$B49:$EC49,MATCH('Monthly CF'!AY$6,'Monthly Cash Flows'!$B$13:$EC$13)) -> -581.6950063 | AZ24: =-INDEX('Monthly Cash Flows'!$B49:$EC49,MATCH('Monthly CF'!AZ$6,'Monthly Cash Flows'!$B$13:$EC$13)) -> -581.6950063 | BA24: =-INDEX('Monthly Cash Flows'!$B49:$EC49,MATCH('Monthly CF'!BA$6,'Monthly Cash Flows'!$B$13:$EC$13)) -> -599.1458565 | BB24: =-INDEX('Monthly Cash Flows'!$B49:$EC49,MATCH('Monthly CF'!BB$6,'Monthly Cash Flows'!$B$13:$EC$13)) -> -599.1458565 | BC24: =-INDEX('Monthly Cash Flows'!$B49:$EC49,MATCH('Monthly CF'!BC$6,'Monthly Cash Flows'!$B$13:$EC$13)) -> -599.1458565 | BD24: =-INDEX('Monthly Cash Flows'!$B49:$EC49,MATCH('Monthly CF'!BD$6,'Monthly Cash Flows'!$B$13:$EC$13)) -> -599.1458565 | BE24: =-INDEX('Monthly Cash Flows'!$B49:$EC49,MATCH('Monthly CF'!BE$6,'Monthly Cash Flows'!$B$13:$EC$13)) -> -599.1458565 | BF24: =-INDEX('Monthly Cash Flows'!$B49:$EC49,MATCH('Monthly CF'!BF$6,'Monthly Cash Flows'!$B$13:$EC$13)) -> -599.1458565 | BG24: =-INDEX('Monthly Cash Flows'!$B49:$EC49,MATCH('Monthly CF'!BG$6,'Monthly Cash Flows'!$B$13:$EC$13)) -> -599.1458565 | BH24: =-INDEX('Monthly Cash Flows'!$B49:$EC49,MATCH('Monthly CF'!BH$6,'Monthly Cash Flows'!$B$13:$EC$13)) -> -599.1458565 | BI24: =-INDEX('Monthly Cash Flows'!$B49:$EC49,MATCH('Monthly CF'!BI$6,'Monthly Cash Flows'!$B$13:$EC$13)) -> -599.1458565 | BJ24: =-INDEX('Monthly Cash Flows'!$B49:$EC49,MATCH('Monthly CF'!BJ$6,'Monthly Cash Flows'!$B$13:$EC$13)) -> -599.1458565 | BK24: =-INDEX('Monthly Cash Flows'!$B49:$EC49,MATCH('Monthly CF'!BK$6,'Monthly Cash Flows'!$B$13:$EC$13)) -> -599.1458565 | BL24: =-INDEX('Monthly Cash Flows'!$B49:$EC49,MATCH('Monthly CF'!BL$6,'Monthly Cash Flows'!$B$13:$EC$13)) -> -599.1458565 | BM24: =-INDEX('Monthly Cash Flows'!$B49:$EC49,MATCH('Monthly CF'!BM$6,'Monthly Cash Flows'!$B$13:$EC$13)) -> -617.1202322 | BN24: =-INDEX('Monthly Cash Flows'!$B49:$EC49,MATCH('Monthly CF'!BN$6,'Monthly Cash Flows'!$B$13:$EC$13)) -> -617.1202322 | BO24: =-INDEX('Monthly Cash Flows'!$B49:$EC49,MATCH('Monthly CF'!BO$6,'Monthly Cash Flows'!$B$13:$EC$13)) -> -617.1202322 | BP24: =-INDEX('Monthly Cash Flows'!$B49:$EC49,MATCH('Monthly CF'!BP$6,'Monthly Cash Flows'!$B$13:$EC$13)) -> -617.1202322 | BQ24: =-INDEX('Monthly Cash Flows'!$B49:$EC49,MATCH('Monthly CF'!BQ$6,'Monthly Cash Flows'!$B$13:$EC$13)) -> -617.1202322 | BR24: =-INDEX('Monthly Cash Flows'!$B49:$EC49,MATCH('Monthly CF'!BR$6,'Monthly Cash Flows'!$B$13:$EC$13)) -> -617.1202322 | BS24: =-INDEX('Monthly Cash Flows'!$B49:$EC49,MATCH('Monthly CF'!BS$6,'Monthly Cash Flows'!$B$13:$EC$13)) -> -617.1202322 | BT24: =-INDEX('Monthly Cash Flows'!$B49:$EC49,MATCH('Monthly CF'!BT$6,'Monthly Cash Flows'!$B$13:$EC$13)) -> -617.1202322 | BU24: =-INDEX('Monthly Cash Flows'!$B49:$EC49,MATCH('Monthly CF'!BU$6,'Monthly Cash Flows'!$B$13:$EC$13)) -> -617.1202322 | BV24: =-INDEX('Monthly Cash Flows'!$B49:$EC49,MATCH('Monthly CF'!BV$6,'Monthly Cash Flows'!$B$13:$EC$13)) -> -617.1202322 | BW24: =-INDEX('Monthly Cash Flows'!$B49:$EC49,MATCH('Monthly CF'!BW$6,'Monthly Cash Flows'!$B$13:$EC$13)) -> -617.1202322 | BX24: =-INDEX('Monthly Cash Flows'!$B49:$EC49,MATCH('Monthly CF'!BX$6,'Monthly Cash Flows'!$B$13:$EC$13)) -> -617.1202322 | BY24: =-INDEX('Monthly Cash Flows'!$B49:$EC49,MATCH('Monthly CF'!BY$6,'Monthly Cash Flows'!$B$13:$EC$13)) -> -635.6338392 | BZ24: =-INDEX('Monthly Cash Flows'!$B49:$EC49,MATCH('Monthly CF'!BZ$6,'Monthly Cash Flows'!$B$13:$EC$13)) -> -635.6338392 | CA24: =-INDEX('Monthly Cash Flows'!$B49:$EC49,MATCH('Monthly CF'!CA$6,'Monthly Cash Flows'!$B$13:$EC$13)) -> -635.6338392 | CB24: =-INDEX('Monthly Cash Flows'!$B49:$EC49,MATCH('Monthly CF'!CB$6,'Monthly Cash Flows'!$B$13:$EC$13)) -> -635.6338392 | CC24: =-INDEX('Monthly Cash Flows'!$B49:$EC49,MATCH('Monthly CF'!CC$6,'Monthly Cash Flows'!$B$13:$EC$13)) -> -635.6338392 | CD24: =-INDEX('Monthly Cash Flows'!$B49:$EC49,MATCH('Monthly CF'!CD$6,'Monthly Cash Flows'!$B$13:$EC$13)) -> -635.6338392 | CE24: =-INDEX('Monthly Cash Flows'!$B49:$EC49,MATCH('Monthly CF'!CE$6,'Monthly Cash Flows'!$B$13:$EC$13)) -> -635.6338392 | CF24: =-INDEX('Monthly Cash Flows'!$B49:$EC49,MATCH('Monthly CF'!CF$6,'Monthly Cash Flows'!$B$13:$EC$13)) -> -635.6338392 | CG24: =-INDEX('Monthly Cash Flows'!$B49:$EC49,MATCH('Monthly CF'!CG$6,'Monthly Cash Flows'!$B$13:$EC$13)) -> -635.6338392 | CH24: =-INDEX('Monthly Cash Flows'!$B49:$EC49,MATCH('Monthly CF'!CH$6,'Monthly Cash Flows'!$B$13:$EC$13)) -> -635.6338392 | CI24: =-INDEX('Monthly Cash Flows'!$B49:$EC49,MATCH('Monthly CF'!CI$6,'Monthly Cash Flows'!$B$13:$EC$13)) -> -635.6338392 | CJ24: =-INDEX('Monthly Cash Flows'!$B49:$EC49,MATCH('Monthly CF'!CJ$6,'Monthly Cash Flows'!$B$13:$EC$13)) -> -635.6338392 | CK24: =-INDEX('Monthly Cash Flows'!$B49:$EC49,MATCH('Monthly CF'!CK$6,'Monthly Cash Flows'!$B$13:$EC$13)) -> -654.7028544 | CL24: =-INDEX('Monthly Cash Flows'!$B49:$EC49,MATCH('Monthly CF'!CL$6,'Monthly Cash Flows'!$B$13:$EC$13)) -> -654.7028544 | CM24: =-INDEX('Monthly Cash Flows'!$B49:$EC49,MATCH('Monthly CF'!CM$6,'Monthly Cash Flows'!$B$13:$EC$13)) -> -654.7028544 | CN24: =-INDEX('Monthly Cash Flows'!$B49:$EC49,MATCH('Monthly CF'!CN$6,'Monthly Cash Flows'!$B$13:$EC$13)) -> -654.7028544 | CO24: =-INDEX('Monthly Cash Flows'!$B49:$EC49,MATCH('Monthly CF'!CO$6,'Monthly Cash Flows'!$B$13:$EC$13)) -> -654.7028544 | CP24: =-INDEX('Monthly Cash Flows'!$B49:$EC49,MATCH('Monthly CF'!CP$6,'Monthly Cash Flows'!$B$13:$EC$13)) -> -654.7028544 | CQ24: =-INDEX('Monthly Cash Flows'!$B49:$EC49,MATCH('Monthly CF'!CQ$6,'Monthly Cash Flows'!$B$13:$EC$13)) -> -654.7028544 | CR24: =-INDEX('Monthly Cash Flows'!$B49:$EC49,MATCH('Monthly CF'!CR$6,'Monthly Cash Flows'!$B$13:$EC$13)) -> -654.7028544 | CS24: =-INDEX('Monthly Cash Flows'!$B49:$EC49,MATCH('Monthly CF'!CS$6,'Monthly Cash Flows'!$B$13:$EC$13)) -> -654.7028544 | CT24: =-INDEX('Monthly Cash Flows'!$B49:$EC49,MATCH('Monthly CF'!CT$6,'Monthly Cash Flows'!$B$13:$EC$13)) -> -654.7028544 | CU24: =-INDEX('Monthly Cash Flows'!$B49:$EC49,MATCH('Monthly CF'!CU$6,'Monthly Cash Flows'!$B$13:$EC$13)) -> -654.7028544 | CV24: =-INDEX('Monthly Cash Flows'!$B49:$EC49,MATCH('Monthly CF'!CV$6,'Monthly Cash Flows'!$B$13:$EC$13)) -> -654.7028544 | CW24: =-INDEX('Monthly Cash Flows'!$B49:$EC49,MATCH('Monthly CF'!CW$6,'Monthly Cash Flows'!$B$13:$EC$13)) -> -674.34394 | CX24: =-INDEX('Monthly Cash Flows'!$B49:$EC49,MATCH('Monthly CF'!CX$6,'Monthly Cash Flows'!$B$13:$EC$13)) -> -674.34394 | CY24: =-INDEX('Monthly Cash Flows'!$B49:$EC49,MATCH('Monthly CF'!CY$6,'Monthly Cash Flows'!$B$13:$EC$13)) -> -674.34394 | CZ24: =-INDEX('Monthly Cash Flows'!$B49:$EC49,MATCH('Monthly CF'!CZ$6,'Monthly Cash Flows'!$B$13:$EC$13)) -> -674.34394 | DA24: =-INDEX('Monthly Cash Flows'!$B49:$EC49,MATCH('Monthly CF'!DA$6,'Monthly Cash Flows'!$B$13:$EC$13)) -> -674.34394 | DB24: =-INDEX('Monthly Cash Flows'!$B49:$EC49,MATCH('Monthly CF'!DB$6,'Monthly Cash Flows'!$B$13:$EC$13)) -> -674.34394 | DC24: =-INDEX('Monthly Cash Flows'!$B49:$EC49,MATCH('Monthly CF'!DC$6,'Monthly Cash Flows'!$B$13:$EC$13)) -> -674.34394 | DD24: =-INDEX('Monthly Cash Flows'!$B49:$EC49,MATCH('Monthly CF'!DD$6,'Monthly Cash Flows'!$B$13:$EC$13)) -> -674.34394 | DE24: =-INDEX('Monthly Cash Flows'!$B49:$EC49,MATCH('Monthly CF'!DE$6,'Monthly Cash Flows'!$B$13:$EC$13)) -> -674.34394 | DF24: =-INDEX('Monthly Cash Flows'!$B49:$EC49,MATCH('Monthly CF'!DF$6,'Monthly Cash Flows'!$B$13:$EC$13)) -> -674.34394 | DG24: =-INDEX('Monthly Cash Flows'!$B49:$EC49,MATCH('Monthly CF'!DG$6,'Monthly Cash Flows'!$B$13:$EC$13)) -> -674.34394 | DH24: =-INDEX('Monthly Cash Flows'!$B49:$EC49,MATCH('Monthly CF'!DH$6,'Monthly Cash Flows'!$B$13:$EC$13)) -> -674.34394 | DI24: =-INDEX('Monthly Cash Flows'!$B49:$EC49,MATCH('Monthly CF'!DI$6,'Monthly Cash Flows'!$B$13:$EC$13)) -> -694.5742582 | DJ24: =-INDEX('Monthly Cash Flows'!$B49:$EC49,MATCH('Monthly CF'!DJ$6,'Monthly Cash Flows'!$B$13:$EC$13)) -> -694.5742582 | DK24: =-INDEX('Monthly Cash Flows'!$B49:$EC49,MATCH('Monthly CF'!DK$6,'Monthly Cash Flows'!$B$13:$EC$13)) -> -694.5742582 | DL24: =-INDEX('Monthly Cash Flows'!$B49:$EC49,MATCH('Monthly CF'!DL$6,'Monthly Cash Flows'!$B$13:$EC$13)) -> -694.5742582 | DM24: =-INDEX('Monthly Cash Flows'!$B49:$EC49,MATCH('Monthly CF'!DM$6,'Monthly Cash Flows'!$B$13:$EC$13)) -> -694.5742582 | DN24: =-INDEX('Monthly Cash Flows'!$B49:$EC49,MATCH('Monthly CF'!DN$6,'Monthly Cash Flows'!$B$13:$EC$13)) -> -694.5742582 | DO24: =-INDEX('Monthly Cash Flows'!$B49:$EC49,MATCH('Monthly CF'!DO$6,'Monthly Cash Flows'!$B$13:$EC$13)) -> -694.5742582 | DP24: =-INDEX('Monthly Cash Flows'!$B49:$EC49,MATCH('Monthly CF'!DP$6,'Monthly Cash Flows'!$B$13:$EC$13)) -> -694.5742582 | DQ24: =-INDEX('Monthly Cash Flows'!$B49:$EC49,MATCH('Monthly CF'!DQ$6,'Monthly Cash Flows'!$B$13:$EC$13)) -> -694.5742582 | DR24: =-INDEX('Monthly Cash Flows'!$B49:$EC49,MATCH('Monthly CF'!DR$6,'Monthly Cash Flows'!$B$13:$EC$13)) -> -694.5742582 | DS24: =-INDEX('Monthly Cash Flows'!$B49:$EC49,MATCH('Monthly CF'!DS$6,'Monthly Cash Flows'!$B$13:$EC$13)) -> -694.5742582 | DT24: =-INDEX('Monthly Cash Flows'!$B49:$EC49,MATCH('Monthly CF'!DT$6,'Monthly Cash Flows'!$B$13:$EC$13)) -> -694.5742582 | DU24: =-INDEX('Monthly Cash Flows'!$B49:$EC49,MATCH('Monthly CF'!DU$6,'Monthly Cash Flows'!$B$13:$EC$13)) -> -715.4114859 | DV24: =-INDEX('Monthly Cash Flows'!$B49:$EC49,MATCH('Monthly CF'!DV$6,'Monthly Cash Flows'!$B$13:$EC$13)) -> -715.4114859 | DW24: =-INDEX('Monthly Cash Flows'!$B49:$EC49,MATCH('Monthly CF'!DW$6,'Monthly Cash Flows'!$B$13:$EC$13)) -> -715.4114859 | DX24: =-INDEX('Monthly Cash Flows'!$B49:$EC49,MATCH('Monthly CF'!DX$6,'Monthly Cash Flows'!$B$13:$EC$13)) -> -715.4114859 | DY24: =-INDEX('Monthly Cash Flows'!$B49:$EC49,MATCH('Monthly CF'!DY$6,'Monthly Cash Flows'!$B$13:$EC$13)) -> -715.4114859 | DZ24: =-INDEX('Monthly Cash Flows'!$B49:$EC49,MATCH('Monthly CF'!DZ$6,'Monthly Cash Flows'!$B$13:$EC$13)) -> -715.4114859 | EA24: =-INDEX('Monthly Cash Flows'!$B49:$EC49,MATCH('Monthly CF'!EA$6,'Monthly Cash Flows'!$B$13:$EC$13)) -> -715.4114859 | EB24: =-INDEX('Monthly Cash Flows'!$B49:$EC49,MATCH('Monthly CF'!EB$6,'Monthly Cash Flows'!$B$13:$EC$13)) -> -715.4114859 | EC24: =-INDEX('Monthly Cash Flows'!$B49:$EC49,MATCH('Monthly CF'!EC$6,'Monthly Cash Flows'!$B$13:$EC$13)) -> -715.4114859 | ED24: =-INDEX('Monthly Cash Flows'!$B49:$EC49,MATCH('Monthly CF'!ED$6,'Monthly Cash Flows'!$B$13:$EC$13)) -> -715.4114859 | EE24: =-INDEX('Monthly Cash Flows'!$B49:$EC49,MATCH('Monthly CF'!EE$6,'Monthly Cash Flows'!$B$13:$EC$13)) -> -715.4114859 | EF24: =-INDEX('Monthly Cash Flows'!$B49:$EC49,MATCH('Monthly CF'!EF$6,'Monthly Cash Flows'!$B$13:$EC$13)) -> -715.4114859 | EG24: =-INDEX('Monthly Cash Flows'!$B49:$EC49,MATCH('Monthly CF'!EG$6,'Monthly Cash Flows'!$B$13:$EC$13)) -> -715.4114859
B25: =+'Monthly Cash Flows'!A50 -> Electricity | F25: =-INDEX('Monthly Cash Flows'!$B50:$EC50,MATCH('Monthly CF'!F$6,'Monthly Cash Flows'!$B$13:$EC$13)) -> -1865.583333 | G25: =-INDEX('Monthly Cash Flows'!$B50:$EC50,MATCH('Monthly CF'!G$6,'Monthly Cash Flows'!$B$13:$EC$13)) -> -1865.583333 | H25: =-INDEX('Monthly Cash Flows'!$B50:$EC50,MATCH('Monthly CF'!H$6,'Monthly Cash Flows'!$B$13:$EC$13)) -> -1865.583333 | I25: =-INDEX('Monthly Cash Flows'!$B50:$EC50,MATCH('Monthly CF'!I$6,'Monthly Cash Flows'!$B$13:$EC$13)) -> -1865.583333 | J25: =-INDEX('Monthly Cash Flows'!$B50:$EC50,MATCH('Monthly CF'!J$6,'Monthly Cash Flows'!$B$13:$EC$13)) -> -1865.583333 | K25: =-INDEX('Monthly Cash Flows'!$B50:$EC50,MATCH('Monthly CF'!K$6,'Monthly Cash Flows'!$B$13:$EC$13)) -> -1865.583333 | L25: =-INDEX('Monthly Cash Flows'!$B50:$EC50,MATCH('Monthly CF'!L$6,'Monthly Cash Flows'!$B$13:$EC$13)) -> -1865.583333 | M25: =-INDEX('Monthly Cash Flows'!$B50:$EC50,MATCH('Monthly CF'!M$6,'Monthly Cash Flows'!$B$13:$EC$13)) -> -1865.583333 | N25: =-INDEX('Monthly Cash Flows'!$B50:$EC50,MATCH('Monthly CF'!N$6,'Monthly Cash Flows'!$B$13:$EC$13)) -> -1865.583333 | O25: =-INDEX('Monthly Cash Flows'!$B50:$EC50,MATCH('Monthly CF'!O$6,'Monthly Cash Flows'!$B$13:$EC$13)) -> -1865.583333 | P25: =-INDEX('Monthly Cash Flows'!$B50:$EC50,MATCH('Monthly CF'!P$6,'Monthly Cash Flows'!$B$13:$EC$13)) -> -1865.583333 | Q25: =-INDEX('Monthly Cash Flows'!$B50:$EC50,MATCH('Monthly CF'!Q$6,'Monthly Cash Flows'!$B$13:$EC$13)) -> -1921.550833 | R25: =-INDEX('Monthly Cash Flows'!$B50:$EC50,MATCH('Monthly CF'!R$6,'Monthly Cash Flows'!$B$13:$EC$13)) -> -1921.550833 | S25: =-INDEX('Monthly Cash Flows'!$B50:$EC50,MATCH('Monthly CF'!S$6,'Monthly Cash Flows'!$B$13:$EC$13)) -> -1921.550833 | T25: =-INDEX('Monthly Cash Flows'!$B50:$EC50,MATCH('Monthly CF'!T$6,'Monthly Cash Flows'!$B$13:$EC$13)) -> -1921.550833 | U25: =-INDEX('Monthly Cash Flows'!$B50:$EC50,MATCH('Monthly CF'!U$6,'Monthly Cash Flows'!$B$13:$EC$13)) -> -1921.550833 | V25: =-INDEX('Monthly Cash Flows'!$B50:$EC50,MATCH('Monthly CF'!V$6,'Monthly Cash Flows'!$B$13:$EC$13)) -> -1921.550833 | W25: =-INDEX('Monthly Cash Flows'!$B50:$EC50,MATCH('Monthly CF'!W$6,'Monthly Cash Flows'!$B$13:$EC$13)) -> -1921.550833 | X25: =-INDEX('Monthly Cash Flows'!$B50:$EC50,MATCH('Monthly CF'!X$6,'Monthly Cash Flows'!$B$13:$EC$13)) -> -1921.550833 | Y25: =-INDEX('Monthly Cash Flows'!$B50:$EC50,MATCH('Monthly CF'!Y$6,'Monthly Cash Flows'!$B$13:$EC$13)) -> -1921.550833 | Z25: =-INDEX('Monthly Cash Flows'!$B50:$EC50,MATCH('Monthly CF'!Z$6,'Monthly Cash Flows'!$B$13:$EC$13)) -> -1921.550833 | AA25: =-INDEX('Monthly Cash Flows'!$B50:$EC50,MATCH('Monthly CF'!AA$6,'Monthly Cash Flows'!$B$13:$EC$13)) -> -1921.550833 | AB25: =-INDEX('Monthly Cash Flows'!$B50:$EC50,MATCH('Monthly CF'!AB$6,'Monthly Cash Flows'!$B$13:$EC$13)) -> -1921.550833 | AC25: =-INDEX('Monthly Cash Flows'!$B50:$EC50,MATCH('Monthly CF'!AC$6,'Monthly Cash Flows'!$B$13:$EC$13)) -> -1979.197358 | AD25: =-INDEX('Monthly Cash Flows'!$B50:$EC50,MATCH('Monthly CF'!AD$6,'Monthly Cash Flows'!$B$13:$EC$13)) -> -1979.197358 | AE25: =-INDEX('Monthly Cash Flows'!$B50:$EC50,MATCH('Monthly CF'!AE$6,'Monthly Cash Flows'!$B$13:$EC$13)) -> -1979.197358 | AF25: =-INDEX('Monthly Cash Flows'!$B50:$EC50,MATCH('Monthly CF'!AF$6,'Monthly Cash Flows'!$B$13:$EC$13)) -> -1979.197358 | AG25: =-INDEX('Monthly Cash Flows'!$B50:$EC50,MATCH('Monthly CF'!AG$6,'Monthly Cash Flows'!$B$13:$EC$13)) -> -1979.197358 | AH25: =-INDEX('Monthly Cash Flows'!$B50:$EC50,MATCH('Monthly CF'!AH$6,'Monthly Cash Flows'!$B$13:$EC$13)) -> -1979.197358 | AI25: =-INDEX('Monthly Cash Flows'!$B50:$EC50,MATCH('Monthly CF'!AI$6,'Monthly Cash Flows'!$B$13:$EC$13)) -> -1979.197358 | AJ25: =-INDEX('Monthly Cash Flows'!$B50:$EC50,MATCH('Monthly CF'!AJ$6,'Monthly Cash Flows'!$B$13:$EC$13)) -> -1979.197358 | AK25: =-INDEX('Monthly Cash Flows'!$B50:$EC50,MATCH('Monthly CF'!AK$6,'Monthly Cash Flows'!$B$13:$EC$13)) -> -1979.197358 | AL25: =-INDEX('Monthly Cash Flows'!$B50:$EC50,MATCH('Monthly CF'!AL$6,'Monthly Cash Flows'!$B$13:$EC$13)) -> -1979.197358 | AM25: =-INDEX('Monthly Cash Flows'!$B50:$EC50,MATCH('Monthly CF'!AM$6,'Monthly Cash Flows'!$B$13:$EC$13)) -> -1979.197358 | AN25: =-INDEX('Monthly Cash Flows'!$B50:$EC50,MATCH('Monthly CF'!AN$6,'Monthly Cash Flows'!$B$13:$EC$13)) -> -1979.197358 | AO25: =-INDEX('Monthly Cash Flows'!$B50:$EC50,MATCH('Monthly CF'!AO$6,'Monthly Cash Flows'!$B$13:$EC$13)) -> -2038.573279 | AP25: =-INDEX('Monthly Cash Flows'!$B50:$EC50,MATCH('Monthly CF'!AP$6,'Monthly Cash Flows'!$B$13:$EC$13)) -> -2038.573279 | AQ25: =-INDEX('Monthly Cash Flows'!$B50:$EC50,MATCH('Monthly CF'!AQ$6,'Monthly Cash Flows'!$B$13:$EC$13)) -> -2038.573279 | AR25: =-INDEX('Monthly Cash Flows'!$B50:$EC50,MATCH('Monthly CF'!AR$6,'Monthly Cash Flows'!$B$13:$EC$13)) -> -2038.573279 | AS25: =-INDEX('Monthly Cash Flows'!$B50:$EC50,MATCH('Monthly CF'!AS$6,'Monthly Cash Flows'!$B$13:$EC$13)) -> -2038.573279 | AT25: =-INDEX('Monthly Cash Flows'!$B50:$EC50,MATCH('Monthly CF'!AT$6,'Monthly Cash Flows'!$B$13:$EC$13)) -> -2038.573279 | AU25: =-INDEX('Monthly Cash Flows'!$B50:$EC50,MATCH('Monthly CF'!AU$6,'Monthly Cash Flows'!$B$13:$EC$13)) -> -2038.573279 | AV25: =-INDEX('Monthly Cash Flows'!$B50:$EC50,MATCH('Monthly CF'!AV$6,'Monthly Cash Flows'!$B$13:$EC$13)) -> -2038.573279 | AW25: =-INDEX('Monthly Cash Flows'!$B50:$EC50,MATCH('Monthly CF'!AW$6,'Monthly Cash Flows'!$B$13:$EC$13)) -> -2038.573279 | AX25: =-INDEX('Monthly Cash Flows'!$B50:$EC50,MATCH('Monthly CF'!AX$6,'Monthly Cash Flows'!$B$13:$EC$13)) -> -2038.573279 | AY25: =-INDEX('Monthly Cash Flows'!$B50:$EC50,MATCH('Monthly CF'!AY$6,'Monthly Cash Flows'!$B$13:$EC$13)) -> -2038.573279 | AZ25: =-INDEX('Monthly Cash Flows'!$B50:$EC50,MATCH('Monthly CF'!AZ$6,'Monthly Cash Flows'!$B$13:$EC$13)) -> -2038.573279 | BA25: =-INDEX('Monthly Cash Flows'!$B50:$EC50,MATCH('Monthly CF'!BA$6,'Monthly Cash Flows'!$B$13:$EC$13)) -> -2099.730477 | BB25: =-INDEX('Monthly Cash Flows'!$B50:$EC50,MATCH('Monthly CF'!BB$6,'Monthly Cash Flows'!$B$13:$EC$13)) -> -2099.730477 | BC25: =-INDEX('Monthly Cash Flows'!$B50:$EC50,MATCH('Monthly CF'!BC$6,'Monthly Cash Flows'!$B$13:$EC$13)) -> -2099.730477 | BD25: =-INDEX('Monthly Cash Flows'!$B50:$EC50,MATCH('Monthly CF'!BD$6,'Monthly Cash Flows'!$B$13:$EC$13)) -> -2099.730477 | BE25: =-INDEX('Monthly Cash Flows'!$B50:$EC50,MATCH('Monthly CF'!BE$6,'Monthly Cash Flows'!$B$13:$EC$13)) -> -2099.730477 | BF25: =-INDEX('Monthly Cash Flows'!$B50:$EC50,MATCH('Monthly CF'!BF$6,'Monthly Cash Flows'!$B$13:$EC$13)) -> -2099.730477 | BG25: =-INDEX('Monthly Cash Flows'!$B50:$EC50,MATCH('Monthly CF'!BG$6,'Monthly Cash Flows'!$B$13:$EC$13)) -> -2099.730477 | BH25: =-INDEX('Monthly Cash Flows'!$B50:$EC50,MATCH('Monthly CF'!BH$6,'Monthly Cash Flows'!$B$13:$EC$13)) -> -2099.730477 | BI25: =-INDEX('Monthly Cash Flows'!$B50:$EC50,MATCH('Monthly CF'!BI$6,'Monthly Cash Flows'!$B$13:$EC$13)) -> -2099.730477 | BJ25: =-INDEX('Monthly Cash Flows'!$B50:$EC50,MATCH('Monthly CF'!BJ$6,'Monthly Cash Flows'!$B$13:$EC$13)) -> -2099.730477 | BK25: =-INDEX('Monthly Cash Flows'!$B50:$EC50,MATCH('Monthly CF'!BK$6,'Monthly Cash Flows'!$B$13:$EC$13)) -> -2099.730477 | BL25: =-INDEX('Monthly Cash Flows'!$B50:$EC50,MATCH('Monthly CF'!BL$6,'Monthly Cash Flows'!$B$13:$EC$13)) -> -2099.730477 | BM25: =-INDEX('Monthly Cash Flows'!$B50:$EC50,MATCH('Monthly CF'!BM$6,'Monthly Cash Flows'!$B$13:$EC$13)) -> -2162.722392 | BN25: =-INDEX('Monthly Cash Flows'!$B50:$EC50,MATCH('Monthly CF'!BN$6,'Monthly Cash Flows'!$B$13:$EC$13)) -> -2162.722392 | BO25: =-INDEX('Monthly Cash Flows'!$B50:$EC50,MATCH('Monthly CF'!BO$6,'Monthly Cash Flows'!$B$13:$EC$13)) -> -2162.722392 | BP25: =-INDEX('Monthly Cash Flows'!$B50:$EC50,MATCH('Monthly CF'!BP$6,'Monthly Cash Flows'!$B$13:$EC$13)) -> -2162.722392 | BQ25: =-INDEX('Monthly Cash Flows'!$B50:$EC50,MATCH('Monthly CF'!BQ$6,'Monthly Cash Flows'!$B$13:$EC$13)) -> -2162.722392 | BR25: =-INDEX('Monthly Cash Flows'!$B50:$EC50,MATCH('Monthly CF'!BR$6,'Monthly Cash Flows'!$B$13:$EC$13)) -> -2162.722392 | BS25: =-INDEX('Monthly Cash Flows'!$B50:$EC50,MATCH('Monthly CF'!BS$6,'Monthly Cash Flows'!$B$13:$EC$13)) -> -2162.722392 | BT25: =-INDEX('Monthly Cash Flows'!$B50:$EC50,MATCH('Monthly CF'!BT$6,'Monthly Cash Flows'!$B$13:$EC$13)) -> -2162.722392 | BU25: =-INDEX('Monthly Cash Flows'!$B50:$EC50,MATCH('Monthly CF'!BU$6,'Monthly Cash Flows'!$B$13:$EC$13)) -> -2162.722392 | BV25: =-INDEX('Monthly Cash Flows'!$B50:$EC50,MATCH('Monthly CF'!BV$6,'Monthly Cash Flows'!$B$13:$EC$13)) -> -2162.722392 | BW25: =-INDEX('Monthly Cash Flows'!$B50:$EC50,MATCH('Monthly CF'!BW$6,'Monthly Cash Flows'!$B$13:$EC$13)) -> -2162.722392 | BX25: =-INDEX('Monthly Cash Flows'!$B50:$EC50,MATCH('Monthly CF'!BX$6,'Monthly Cash Flows'!$B$13:$EC$13)) -> -2162.722392 | BY25: =-INDEX('Monthly Cash Flows'!$B50:$EC50,MATCH('Monthly CF'!BY$6,'Monthly Cash Flows'!$B$13:$EC$13)) -> -2227.604064 | BZ25: =-INDEX('Monthly Cash Flows'!$B50:$EC50,MATCH('Monthly CF'!BZ$6,'Monthly Cash Flows'!$B$13:$EC$13)) -> -2227.604064 | CA25: =-INDEX('Monthly Cash Flows'!$B50:$EC50,MATCH('Monthly CF'!CA$6,'Monthly Cash Flows'!$B$13:$EC$13)) -> -2227.604064 | CB25: =-INDEX('Monthly Cash Flows'!$B50:$EC50,MATCH('Monthly CF'!CB$6,'Monthly Cash Flows'!$B$13:$EC$13)) -> -2227.604064 | CC25: =-INDEX('Monthly Cash Flows'!$B50:$EC50,MATCH('Monthly CF'!CC$6,'Monthly Cash Flows'!$B$13:$EC$13)) -> -2227.604064 | CD25: =-INDEX('Monthly Cash Flows'!$B50:$EC50,MATCH('Monthly CF'!CD$6,'Monthly Cash Flows'!$B$13:$EC$13)) -> -2227.604064 | CE25: =-INDEX('Monthly Cash Flows'!$B50:$EC50,MATCH('Monthly CF'!CE$6,'Monthly Cash Flows'!$B$13:$EC$13)) -> -2227.604064 | CF25: =-INDEX('Monthly Cash Flows'!$B50:$EC50,MATCH('Monthly CF'!CF$6,'Monthly Cash Flows'!$B$13:$EC$13)) -> -2227.604064 | CG25: =-INDEX('Monthly Cash Flows'!$B50:$EC50,MATCH('Monthly CF'!CG$6,'Monthly Cash Flows'!$B$13:$EC$13)) -> -2227.604064 | CH25: =-INDEX('Monthly Cash Flows'!$B50:$EC50,MATCH('Monthly CF'!CH$6,'Monthly Cash Flows'!$B$13:$EC$13)) -> -2227.604064 | CI25: =-INDEX('Monthly Cash Flows'!$B50:$EC50,MATCH('Monthly CF'!CI$6,'Monthly Cash Flows'!$B$13:$EC$13)) -> -2227.604064 | CJ25: =-INDEX('Monthly Cash Flows'!$B50:$EC50,MATCH('Monthly CF'!CJ$6,'Monthly Cash Flows'!$B$13:$EC$13)) -> -2227.604064 | CK25: =-INDEX('Monthly Cash Flows'!$B50:$EC50,MATCH('Monthly CF'!CK$6,'Monthly Cash Flows'!$B$13:$EC$13)) -> -2294.432185 | CL25: =-INDEX('Monthly Cash Flows'!$B50:$EC50,MATCH('Monthly CF'!CL$6,'Monthly Cash Flows'!$B$13:$EC$13)) -> -2294.432185 | CM25: =-INDEX('Monthly Cash Flows'!$B50:$EC50,MATCH('Monthly CF'!CM$6,'Monthly Cash Flows'!$B$13:$EC$13)) -> -2294.432185 | CN25: =-INDEX('Monthly Cash Flows'!$B50:$EC50,MATCH('Monthly CF'!CN$6,'Monthly Cash Flows'!$B$13:$EC$13)) -> -2294.432185 | CO25: =-INDEX('Monthly Cash Flows'!$B50:$EC50,MATCH('Monthly CF'!CO$6,'Monthly Cash Flows'!$B$13:$EC$13)) -> -2294.432185 | CP25: =-INDEX('Monthly Cash Flows'!$B50:$EC50,MATCH('Monthly CF'!CP$6,'Monthly Cash Flows'!$B$13:$EC$13)) -> -2294.432185 | CQ25: =-INDEX('Monthly Cash Flows'!$B50:$EC50,MATCH('Monthly CF'!CQ$6,'Monthly Cash Flows'!$B$13:$EC$13)) -> -2294.432185 | CR25: =-INDEX('Monthly Cash Flows'!$B50:$EC50,MATCH('Monthly CF'!CR$6,'Monthly Cash Flows'!$B$13:$EC$13)) -> -2294.432185 | CS25: =-INDEX('Monthly Cash Flows'!$B50:$EC50,MATCH('Monthly CF'!CS$6,'Monthly Cash Flows'!$B$13:$EC$13)) -> -2294.432185 | CT25: =-INDEX('Monthly Cash Flows'!$B50:$EC50,MATCH('Monthly CF'!CT$6,'Monthly Cash Flows'!$B$13:$EC$13)) -> -2294.432185 | CU25: =-INDEX('Monthly Cash Flows'!$B50:$EC50,MATCH('Monthly CF'!CU$6,'Monthly Cash Flows'!$B$13:$EC$13)) -> -2294.432185 | CV25: =-INDEX('Monthly Cash Flows'!$B50:$EC50,MATCH('Monthly CF'!CV$6,'Monthly Cash Flows'!$B$13:$EC$13)) -> -2294.432185 | CW25: =-INDEX('Monthly Cash Flows'!$B50:$EC50,MATCH('Monthly CF'!CW$6,'Monthly Cash Flows'!$B$13:$EC$13)) -> -2363.265151 | CX25: =-INDEX('Monthly Cash Flows'!$B50:$EC50,MATCH('Monthly CF'!CX$6,'Monthly Cash Flows'!$B$13:$EC$13)) -> -2363.265151 | CY25: =-INDEX('Monthly Cash Flows'!$B50:$EC50,MATCH('Monthly CF'!CY$6,'Monthly Cash Flows'!$B$13:$EC$13)) -> -2363.265151 | CZ25: =-INDEX('Monthly Cash Flows'!$B50:$EC50,MATCH('Monthly CF'!CZ$6,'Monthly Cash Flows'!$B$13:$EC$13)) -> -2363.265151 | DA25: =-INDEX('Monthly Cash Flows'!$B50:$EC50,MATCH('Monthly CF'!DA$6,'Monthly Cash Flows'!$B$13:$EC$13)) -> -2363.265151 | DB25: =-INDEX('Monthly Cash Flows'!$B50:$EC50,MATCH('Monthly CF'!DB$6,'Monthly Cash Flows'!$B$13:$EC$13)) -> -2363.265151 | DC25: =-INDEX('Monthly Cash Flows'!$B50:$EC50,MATCH('Monthly CF'!DC$6,'Monthly Cash Flows'!$B$13:$EC$13)) -> -2363.265151 | DD25: =-INDEX('Monthly Cash Flows'!$B50:$EC50,MATCH('Monthly CF'!DD$6,'Monthly Cash Flows'!$B$13:$EC$13)) -> -2363.265151 | DE25: =-INDEX('Monthly Cash Flows'!$B50:$EC50,MATCH('Monthly CF'!DE$6,'Monthly Cash Flows'!$B$13:$EC$13)) -> -2363.265151 | DF25: =-INDEX('Monthly Cash Flows'!$B50:$EC50,MATCH('Monthly CF'!DF$6,'Monthly Cash Flows'!$B$13:$EC$13)) -> -2363.265151 | DG25: =-INDEX('Monthly Cash Flows'!$B50:$EC50,MATCH('Monthly CF'!DG$6,'Monthly Cash Flows'!$B$13:$EC$13)) -> -2363.265151 | DH25: =-INDEX('Monthly Cash Flows'!$B50:$EC50,MATCH('Monthly CF'!DH$6,'Monthly Cash Flows'!$B$13:$EC$13)) -> -2363.265151 | DI25: =-INDEX('Monthly Cash Flows'!$B50:$EC50,MATCH('Monthly CF'!DI$6,'Monthly Cash Flows'!$B$13:$EC$13)) -> -2434.163106 | DJ25: =-INDEX('Monthly Cash Flows'!$B50:$EC50,MATCH('Monthly CF'!DJ$6,'Monthly Cash Flows'!$B$13:$EC$13)) -> -2434.163106 | DK25: =-INDEX('Monthly Cash Flows'!$B50:$EC50,MATCH('Monthly CF'!DK$6,'Monthly Cash Flows'!$B$13:$EC$13)) -> -2434.163106 | DL25: =-INDEX('Monthly Cash Flows'!$B50:$EC50,MATCH('Monthly CF'!DL$6,'Monthly Cash Flows'!$B$13:$EC$13)) -> -2434.163106 | DM25: =-INDEX('Monthly Cash Flows'!$B50:$EC50,MATCH('Monthly CF'!DM$6,'Monthly Cash Flows'!$B$13:$EC$13)) -> -2434.163106 | DN25: =-INDEX('Monthly Cash Flows'!$B50:$EC50,MATCH('Monthly CF'!DN$6,'Monthly Cash Flows'!$B$13:$EC$13)) -> -2434.163106 | DO25: =-INDEX('Monthly Cash Flows'!$B50:$EC50,MATCH('Monthly CF'!DO$6,'Monthly Cash Flows'!$B$13:$EC$13)) -> -2434.163106 | DP25: =-INDEX('Monthly Cash Flows'!$B50:$EC50,MATCH('Monthly CF'!DP$6,'Monthly Cash Flows'!$B$13:$EC$13)) -> -2434.163106 | DQ25: =-INDEX('Monthly Cash Flows'!$B50:$EC50,MATCH('Monthly CF'!DQ$6,'Monthly Cash Flows'!$B$13:$EC$13)) -> -2434.163106 | DR25: =-INDEX('Monthly Cash Flows'!$B50:$EC50,MATCH('Monthly CF'!DR$6,'Monthly Cash Flows'!$B$13:$EC$13)) -> -2434.163106 | DS25: =-INDEX('Monthly Cash Flows'!$B50:$EC50,MATCH('Monthly CF'!DS$6,'Monthly Cash Flows'!$B$13:$EC$13)) -> -2434.163106 | DT25: =-INDEX('Monthly Cash Flows'!$B50:$EC50,MATCH('Monthly CF'!DT$6,'Monthly Cash Flows'!$B$13:$EC$13)) -> -2434.163106 | DU25: =-INDEX('Monthly Cash Flows'!$B50:$EC50,MATCH('Monthly CF'!DU$6,'Monthly Cash Flows'!$B$13:$EC$13)) -> -2507.187999 | DV25: =-INDEX('Monthly Cash Flows'!$B50:$EC50,MATCH('Monthly CF'!DV$6,'Monthly Cash Flows'!$B$13:$EC$13)) -> -2507.187999 | DW25: =-INDEX('Monthly Cash Flows'!$B50:$EC50,MATCH('Monthly CF'!DW$6,'Monthly Cash Flows'!$B$13:$EC$13)) -> -2507.187999 | DX25: =-INDEX('Monthly Cash Flows'!$B50:$EC50,MATCH('Monthly CF'!DX$6,'Monthly Cash Flows'!$B$13:$EC$13)) -> -2507.187999 | DY25: =-INDEX('Monthly Cash Flows'!$B50:$EC50,MATCH('Monthly CF'!DY$6,'Monthly Cash Flows'!$B$13:$EC$13)) -> -2507.187999 | DZ25: =-INDEX('Monthly Cash Flows'!$B50:$EC50,MATCH('Monthly CF'!DZ$6,'Monthly Cash Flows'!$B$13:$EC$13)) -> -2507.187999 | EA25: =-INDEX('Monthly Cash Flows'!$B50:$EC50,MATCH('Monthly CF'!EA$6,'Monthly Cash Flows'!$B$13:$EC$13)) -> -2507.187999 | EB25: =-INDEX('Monthly Cash Flows'!$B50:$EC50,MATCH('Monthly CF'!EB$6,'Monthly Cash Flows'!$B$13:$EC$13)) -> -2507.187999 | EC25: =-INDEX('Monthly Cash Flows'!$B50:$EC50,MATCH('Monthly CF'!EC$6,'Monthly Cash Flows'!$B$13:$EC$13)) -> -2507.187999 | ED25: =-INDEX('Monthly Cash Flows'!$B50:$EC50,MATCH('Monthly CF'!ED$6,'Monthly Cash Flows'!$B$13:$EC$13)) -> -2507.187999 | EE25: =-INDEX('Monthly Cash Flows'!$B50:$EC50,MATCH('Monthly CF'!EE$6,'Monthly Cash Flows'!$B$13:$EC$13)) -> -2507.187999 | EF25: =-INDEX('Monthly Cash Flows'!$B50:$EC50,MATCH('Monthly CF'!EF$6,'Monthly Cash Flows'!$B$13:$EC$13)) -> -2507.187999 | EG25: =-INDEX('Monthly Cash Flows'!$B50:$EC50,MATCH('Monthly CF'!EG$6,'Monthly Cash Flows'!$B$13:$EC$13)) -> -2507.187999
B26: =+'Monthly Cash Flows'!A51 -> Landscaping | F26: =-INDEX('Monthly Cash Flows'!$B51:$EC51,MATCH('Monthly CF'!F$6,'Monthly Cash Flows'!$B$13:$EC$13)) -> -895.4166667 | G26: =-INDEX('Monthly Cash Flows'!$B51:$EC51,MATCH('Monthly CF'!G$6,'Monthly Cash Flows'!$B$13:$EC$13)) -> -895.4166667 | H26: =-INDEX('Monthly Cash Flows'!$B51:$EC51,MATCH('Monthly CF'!H$6,'Monthly Cash Flows'!$B$13:$EC$13)) -> -895.4166667 | I26: =-INDEX('Monthly Cash Flows'!$B51:$EC51,MATCH('Monthly CF'!I$6,'Monthly Cash Flows'!$B$13:$EC$13)) -> -895.4166667 | J26: =-INDEX('Monthly Cash Flows'!$B51:$EC51,MATCH('Monthly CF'!J$6,'Monthly Cash Flows'!$B$13:$EC$13)) -> -895.4166667 | K26: =-INDEX('Monthly Cash Flows'!$B51:$EC51,MATCH('Monthly CF'!K$6,'Monthly Cash Flows'!$B$13:$EC$13)) -> -895.4166667 | L26: =-INDEX('Monthly Cash Flows'!$B51:$EC51,MATCH('Monthly CF'!L$6,'Monthly Cash Flows'!$B$13:$EC$13)) -> -895.4166667 | M26: =-INDEX('Monthly Cash Flows'!$B51:$EC51,MATCH('Monthly CF'!M$6,'Monthly Cash Flows'!$B$13:$EC$13)) -> -895.4166667 | N26: =-INDEX('Monthly Cash Flows'!$B51:$EC51,MATCH('Monthly CF'!N$6,'Monthly Cash Flows'!$B$13:$EC$13)) -> -895.4166667 | O26: =-INDEX('Monthly Cash Flows'!$B51:$EC51,MATCH('Monthly CF'!O$6,'Monthly Cash Flows'!$B$13:$EC$13)) -> -895.4166667 | P26: =-INDEX('Monthly Cash Flows'!$B51:$EC51,MATCH('Monthly CF'!P$6,'Monthly Cash Flows'!$B$13:$EC$13)) -> -895.4166667 | Q26: =-INDEX('Monthly Cash Flows'!$B51:$EC51,MATCH('Monthly CF'!Q$6,'Monthly Cash Flows'!$B$13:$EC$13)) -> -922.2791667 | R26: =-INDEX('Monthly Cash Flows'!$B51:$EC51,MATCH('Monthly CF'!R$6,'Monthly Cash Flows'!$B$13:$EC$13)) -> -922.2791667 | S26: =-INDEX('Monthly Cash Flows'!$B51:$EC51,MATCH('Monthly CF'!S$6,'Monthly Cash Flows'!$B$13:$EC$13)) -> -922.2791667 | T26: =-INDEX('Monthly Cash Flows'!$B51:$EC51,MATCH('Monthly CF'!T$6,'Monthly Cash Flows'!$B$13:$EC$13)) -> -922.2791667 | U26: =-INDEX('Monthly Cash Flows'!$B51:$EC51,MATCH('Monthly CF'!U$6,'Monthly Cash Flows'!$B$13:$EC$13)) -> -922.2791667 | V26: =-INDEX('Monthly Cash Flows'!$B51:$EC51,MATCH('Monthly CF'!V$6,'Monthly Cash Flows'!$B$13:$EC$13)) -> -922.2791667 | W26: =-INDEX('Monthly Cash Flows'!$B51:$EC51,MATCH('Monthly CF'!W$6,'Monthly Cash Flows'!$B$13:$EC$13)) -> -922.2791667 | X26: =-INDEX('Monthly Cash Flows'!$B51:$EC51,MATCH('Monthly CF'!X$6,'Monthly Cash Flows'!$B$13:$EC$13)) -> -922.2791667 | Y26: =-INDEX('Monthly Cash Flows'!$B51:$EC51,MATCH('Monthly CF'!Y$6,'Monthly Cash Flows'!$B$13:$EC$13)) -> -922.2791667 | Z26: =-INDEX('Monthly Cash Flows'!$B51:$EC51,MATCH('Monthly CF'!Z$6,'Monthly Cash Flows'!$B$13:$EC$13)) -> -922.2791667 | AA26: =-INDEX('Monthly Cash Flows'!$B51:$EC51,MATCH('Monthly CF'!AA$6,'Monthly Cash Flows'!$B$13:$EC$13)) -> -922.2791667 | AB26: =-INDEX('Monthly Cash Flows'!$B51:$EC51,MATCH('Monthly CF'!AB$6,'Monthly Cash Flows'!$B$13:$EC$13)) -> -922.2791667 | AC26: =-INDEX('Monthly Cash Flows'!$B51:$EC51,MATCH('Monthly CF'!AC$6,'Monthly Cash Flows'!$B$13:$EC$13)) -> -949.9475417 | AD26: =-INDEX('Monthly Cash Flows'!$B51:$EC51,MATCH('Monthly CF'!AD$6,'Monthly Cash Flows'!$B$13:$EC$13)) -> -949.9475417 | AE26: =-INDEX('Monthly Cash Flows'!$B51:$EC51,MATCH('Monthly CF'!AE$6,'Monthly Cash Flows'!$B$13:$EC$13)) -> -949.9475417 | AF26: =-INDEX('Monthly Cash Flows'!$B51:$EC51,MATCH('Monthly CF'!AF$6,'Monthly Cash Flows'!$B$13:$EC$13)) -> -949.9475417 | AG26: =-INDEX('Monthly Cash Flows'!$B51:$EC51,MATCH('Monthly CF'!AG$6,'Monthly Cash Flows'!$B$13:$EC$13)) -> -949.9475417 | AH26: =-INDEX('Monthly Cash Flows'!$B51:$EC51,MATCH('Monthly CF'!AH$6,'Monthly Cash Flows'!$B$13:$EC$13)) -> -949.9475417 | AI26: =-INDEX('Monthly Cash Flows'!$B51:$EC51,MATCH('Monthly CF'!AI$6,'Monthly Cash Flows'!$B$13:$EC$13)) -> -949.9475417 | AJ26: =-INDEX('Monthly Cash Flows'!$B51:$EC51,MATCH('Monthly CF'!AJ$6,'Monthly Cash Flows'!$B$13:$EC$13)) -> -949.9475417 | AK26: =-INDEX('Monthly Cash Flows'!$B51:$EC51,MATCH('Monthly CF'!AK$6,'Monthly Cash Flows'!$B$13:$EC$13)) -> -949.9475417 | AL26: =-INDEX('Monthly Cash Flows'!$B51:$EC51,MATCH('Monthly CF'!AL$6,'Monthly Cash Flows'!$B$13:$EC$13)) -> -949.9475417 | AM26: =-INDEX('Monthly Cash Flows'!$B51:$EC51,MATCH('Monthly CF'!AM$6,'Monthly Cash Flows'!$B$13:$EC$13)) -> -949.9475417 | AN26: =-INDEX('Monthly Cash Flows'!$B51:$EC51,MATCH('Monthly CF'!AN$6,'Monthly Cash Flows'!$B$13:$EC$13)) -> -949.9475417 | AO26: =-INDEX('Monthly Cash Flows'!$B51:$EC51,MATCH('Monthly CF'!AO$6,'Monthly Cash Flows'!$B$13:$EC$13)) -> -978.4459679 | AP26: =-INDEX('Monthly Cash Flows'!$B51:$EC51,MATCH('Monthly CF'!AP$6,'Monthly Cash Flows'!$B$13:$EC$13)) -> -978.4459679 | AQ26: =-INDEX('Monthly Cash Flows'!$B51:$EC51,MATCH('Monthly CF'!AQ$6,'Monthly Cash Flows'!$B$13:$EC$13)) -> -978.4459679 | AR26: =-INDEX('Monthly Cash Flows'!$B51:$EC51,MATCH('Monthly CF'!AR$6,'Monthly Cash Flows'!$B$13:$EC$13)) -> -978.4459679 | AS26: =-INDEX('Monthly Cash Flows'!$B51:$EC51,MATCH('Monthly CF'!AS$6,'Monthly Cash Flows'!$B$13:$EC$13)) -> -978.4459679 | AT26: =-INDEX('Monthly Cash Flows'!$B51:$EC51,MATCH('Monthly CF'!AT$6,'Monthly Cash Flows'!$B$13:$EC$13)) -> -978.4459679 | AU26: =-INDEX('Monthly Cash Flows'!$B51:$EC51,MATCH('Monthly CF'!AU$6,'Monthly Cash Flows'!$B$13:$EC$13)) -> -978.4459679 | AV26: =-INDEX('Monthly Cash Flows'!$B51:$EC51,MATCH('Monthly CF'!AV$6,'Monthly Cash Flows'!$B$13:$EC$13)) -> -978.4459679 | AW26: =-INDEX('Monthly Cash Flows'!$B51:$EC51,MATCH('Monthly CF'!AW$6,'Monthly Cash Flows'!$B$13:$EC$13)) -> -978.4459679 | AX26: =-INDEX('Monthly Cash Flows'!$B51:$EC51,MATCH('Monthly CF'!AX$6,'Monthly Cash Flows'!$B$13:$EC$13)) -> -978.4459679 | AY26: =-INDEX('Monthly Cash Flows'!$B51:$EC51,MATCH('Monthly CF'!AY$6,'Monthly Cash Flows'!$B$13:$EC$13)) -> -978.4459679 | AZ26: =-INDEX('Monthly Cash Flows'!$B51:$EC51,MATCH('Monthly CF'!AZ$6,'Monthly Cash Flows'!$B$13:$EC$13)) -> -978.4459679 | BA26: =-INDEX('Monthly Cash Flows'!$B51:$EC51,MATCH('Monthly CF'!BA$6,'Monthly Cash Flows'!$B$13:$EC$13)) -> -1007.799347 | BB26: =-INDEX('Monthly Cash Flows'!$B51:$EC51,MATCH('Monthly CF'!BB$6,'Monthly Cash Flows'!$B$13:$EC$13)) -> -1007.799347 | BC26: =-INDEX('Monthly Cash Flows'!$B51:$EC51,MATCH('Monthly CF'!BC$6,'Monthly Cash Flows'!$B$13:$EC$13)) -> -1007.799347 | BD26: =-INDEX('Monthly Cash Flows'!$B51:$EC51,MATCH('Monthly CF'!BD$6,'Monthly Cash Flows'!$B$13:$EC$13)) -> -1007.799347 | BE26: =-INDEX('Monthly Cash Flows'!$B51:$EC51,MATCH('Monthly CF'!BE$6,'Monthly Cash Flows'!$B$13:$EC$13)) -> -1007.799347 | BF26: =-INDEX('Monthly Cash Flows'!$B51:$EC51,MATCH('Monthly CF'!BF$6,'Monthly Cash Flows'!$B$13:$EC$13)) -> -1007.799347 | BG26: =-INDEX('Monthly Cash Flows'!$B51:$EC51,MATCH('Monthly CF'!BG$6,'Monthly Cash Flows'!$B$13:$EC$13)) -> -1007.799347 | BH26: =-INDEX('Monthly Cash Flows'!$B51:$EC51,MATCH('Monthly CF'!BH$6,'Monthly Cash Flows'!$B$13:$EC$13)) -> -1007.799347 | BI26: =-INDEX('Monthly Cash Flows'!$B51:$EC51,MATCH('Monthly CF'!BI$6,'Monthly Cash Flows'!$B$13:$EC$13)) -> -1007.799347 | BJ26: =-INDEX('Monthly Cash Flows'!$B51:$EC51,MATCH('Monthly CF'!BJ$6,'Monthly Cash Flows'!$B$13:$EC$13)) -> -1007.799347 | BK26: =-INDEX('Monthly Cash Flows'!$B51:$EC51,MATCH('Monthly CF'!BK$6,'Monthly Cash Flows'!$B$13:$EC$13)) -> -1007.799347 | BL26: =-INDEX('Monthly Cash Flows'!$B51:$EC51,MATCH('Monthly CF'!BL$6,'Monthly Cash Flows'!$B$13:$EC$13)) -> -1007.799347 | BM26: =-INDEX('Monthly Cash Flows'!$B51:$EC51,MATCH('Monthly CF'!BM$6,'Monthly Cash Flows'!$B$13:$EC$13)) -> -1038.033327 | BN26: =-INDEX('Monthly Cash Flows'!$B51:$EC51,MATCH('Monthly CF'!BN$6,'Monthly Cash Flows'!$B$13:$EC$13)) -> -1038.033327 | BO26: =-INDEX('Monthly Cash Flows'!$B51:$EC51,MATCH('Monthly CF'!BO$6,'Monthly Cash Flows'!$B$13:$EC$13)) -> -1038.033327 | BP26: =-INDEX('Monthly Cash Flows'!$B51:$EC51,MATCH('Monthly CF'!BP$6,'Monthly Cash Flows'!$B$13:$EC$13)) -> -1038.033327 | BQ26: =-INDEX('Monthly Cash Flows'!$B51:$EC51,MATCH('Monthly CF'!BQ$6,'Monthly Cash Flows'!$B$13:$EC$13)) -> -1038.033327 | BR26: =-INDEX('Monthly Cash Flows'!$B51:$EC51,MATCH('Monthly CF'!BR$6,'Monthly Cash Flows'!$B$13:$EC$13)) -> -1038.033327 | BS26: =-INDEX('Monthly Cash Flows'!$B51:$EC51,MATCH('Monthly CF'!BS$6,'Monthly Cash Flows'!$B$13:$EC$13)) -> -1038.033327 | BT26: =-INDEX('Monthly Cash Flows'!$B51:$EC51,MATCH('Monthly CF'!BT$6,'Monthly Cash Flows'!$B$13:$EC$13)) -> -1038.033327 | BU26: =-INDEX('Monthly Cash Flows'!$B51:$EC51,MATCH('Monthly CF'!BU$6,'Monthly Cash Flows'!$B$13:$EC$13)) -> -1038.033327 | BV26: =-INDEX('Monthly Cash Flows'!$B51:$EC51,MATCH('Monthly CF'!BV$6,'Monthly Cash Flows'!$B$13:$EC$13)) -> -1038.033327 | BW26: =-INDEX('Monthly Cash Flows'!$B51:$EC51,MATCH('Monthly CF'!BW$6,'Monthly Cash Flows'!$B$13:$EC$13)) -> -1038.033327 | BX26: =-INDEX('Monthly Cash Flows'!$B51:$EC51,MATCH('Monthly CF'!BX$6,'Monthly Cash Flows'!$B$13:$EC$13)) -> -1038.033327 | BY26: =-INDEX('Monthly Cash Flows'!$B51:$EC51,MATCH('Monthly CF'!BY$6,'Monthly Cash Flows'!$B$13:$EC$13)) -> -1069.174327 | BZ26: =-INDEX('Monthly Cash Flows'!$B51:$EC51,MATCH('Monthly CF'!BZ$6,'Monthly Cash Flows'!$B$13:$EC$13)) -> -1069.174327 | CA26: =-INDEX('Monthly Cash Flows'!$B51:$EC51,MATCH('Monthly CF'!CA$6,'Monthly Cash Flows'!$B$13:$EC$13)) -> -1069.174327 | CB26: =-INDEX('Monthly Cash Flows'!$B51:$EC51,MATCH('Monthly CF'!CB$6,'Monthly Cash Flows'!$B$13:$EC$13)) -> -1069.174327 | CC26: =-INDEX('Monthly Cash Flows'!$B51:$EC51,MATCH('Monthly CF'!CC$6,'Monthly Cash Flows'!$B$13:$EC$13)) -> -1069.174327 | CD26: =-INDEX('Monthly Cash Flows'!$B51:$EC51,MATCH('Monthly CF'!CD$6,'Monthly Cash Flows'!$B$13:$EC$13)) -> -1069.174327 | CE26: =-INDEX('Monthly Cash Flows'!$B51:$EC51,MATCH('Monthly CF'!CE$6,'Monthly Cash Flows'!$B$13:$EC$13)) -> -1069.174327 | CF26: =-INDEX('Monthly Cash Flows'!$B51:$EC51,MATCH('Monthly CF'!CF$6,'Monthly Cash Flows'!$B$13:$EC$13)) -> -1069.174327 | CG26: =-INDEX('Monthly Cash Flows'!$B51:$EC51,MATCH('Monthly CF'!CG$6,'Monthly Cash Flows'!$B$13:$EC$13)) -> -1069.174327 | CH26: =-INDEX('Monthly Cash Flows'!$B51:$EC51,MATCH('Monthly CF'!CH$6,'Monthly Cash Flows'!$B$13:$EC$13)) -> -1069.174327 | CI26: =-INDEX('Monthly Cash Flows'!$B51:$EC51,MATCH('Monthly CF'!CI$6,'Monthly Cash Flows'!$B$13:$EC$13)) -> -1069.174327 | CJ26: =-INDEX('Monthly Cash Flows'!$B51:$EC51,MATCH('Monthly CF'!CJ$6,'Monthly Cash Flows'!$B$13:$EC$13)) -> -1069.174327 | CK26: =-INDEX('Monthly Cash Flows'!$B51:$EC51,MATCH('Monthly CF'!CK$6,'Monthly Cash Flows'!$B$13:$EC$13)) -> -1101.249557 | CL26: =-INDEX('Monthly Cash Flows'!$B51:$EC51,MATCH('Monthly CF'!CL$6,'Monthly Cash Flows'!$B$13:$EC$13)) -> -1101.249557 | CM26: =-INDEX('Monthly Cash Flows'!$B51:$EC51,MATCH('Monthly CF'!CM$6,'Monthly Cash Flows'!$B$13:$EC$13)) -> -1101.249557 | CN26: =-INDEX('Monthly Cash Flows'!$B51:$EC51,MATCH('Monthly CF'!CN$6,'Monthly Cash Flows'!$B$13:$EC$13)) -> -1101.249557 | CO26: =-INDEX('Monthly Cash Flows'!$B51:$EC51,MATCH('Monthly CF'!CO$6,'Monthly Cash Flows'!$B$13:$EC$13)) -> -1101.249557 | CP26: =-INDEX('Monthly Cash Flows'!$B51:$EC51,MATCH('Monthly CF'!CP$6,'Monthly Cash Flows'!$B$13:$EC$13)) -> -1101.249557 | CQ26: =-INDEX('Monthly Cash Flows'!$B51:$EC51,MATCH('Monthly CF'!CQ$6,'Monthly Cash Flows'!$B$13:$EC$13)) -> -1101.249557 | CR26: =-INDEX('Monthly Cash Flows'!$B51:$EC51,MATCH('Monthly CF'!CR$6,'Monthly Cash Flows'!$B$13:$EC$13)) -> -1101.249557 | CS26: =-INDEX('Monthly Cash Flows'!$B51:$EC51,MATCH('Monthly CF'!CS$6,'Monthly Cash Flows'!$B$13:$EC$13)) -> -1101.249557 | CT26: =-INDEX('Monthly Cash Flows'!$B51:$EC51,MATCH('Monthly CF'!CT$6,'Monthly Cash Flows'!$B$13:$EC$13)) -> -1101.249557 | CU26: =-INDEX('Monthly Cash Flows'!$B51:$EC51,MATCH('Monthly CF'!CU$6,'Monthly Cash Flows'!$B$13:$EC$13)) -> -1101.249557 | CV26: =-INDEX('Monthly Cash Flows'!$B51:$EC51,MATCH('Monthly CF'!CV$6,'Monthly Cash Flows'!$B$13:$EC$13)) -> -1101.249557 | CW26: =-INDEX('Monthly Cash Flows'!$B51:$EC51,MATCH('Monthly CF'!CW$6,'Monthly Cash Flows'!$B$13:$EC$13)) -> -1134.287044 | CX26: =-INDEX('Monthly Cash Flows'!$B51:$EC51,MATCH('Monthly CF'!CX$6,'Monthly Cash Flows'!$B$13:$EC$13)) -> -1134.287044 | CY26: =-INDEX('Monthly Cash Flows'!$B51:$EC51,MATCH('Monthly CF'!CY$6,'Monthly Cash Flows'!$B$13:$EC$13)) -> -1134.287044 | CZ26: =-INDEX('Monthly Cash Flows'!$B51:$EC51,MATCH('Monthly CF'!CZ$6,'Monthly Cash Flows'!$B$13:$EC$13)) -> -1134.287044 | DA26: =-INDEX('Monthly Cash Flows'!$B51:$EC51,MATCH('Monthly CF'!DA$6,'Monthly Cash Flows'!$B$13:$EC$13)) -> -1134.287044 | DB26: =-INDEX('Monthly Cash Flows'!$B51:$EC51,MATCH('Monthly CF'!DB$6,'Monthly Cash Flows'!$B$13:$EC$13)) -> -1134.287044 | DC26: =-INDEX('Monthly Cash Flows'!$B51:$EC51,MATCH('Monthly CF'!DC$6,'Monthly Cash Flows'!$B$13:$EC$13)) -> -1134.287044 | DD26: =-INDEX('Monthly Cash Flows'!$B51:$EC51,MATCH('Monthly CF'!DD$6,'Monthly Cash Flows'!$B$13:$EC$13)) -> -1134.287044 | DE26: =-INDEX('Monthly Cash Flows'!$B51:$EC51,MATCH('Monthly CF'!DE$6,'Monthly Cash Flows'!$B$13:$EC$13)) -> -1134.287044 | DF26: =-INDEX('Monthly Cash Flows'!$B51:$EC51,MATCH('Monthly CF'!DF$6,'Monthly Cash Flows'!$B$13:$EC$13)) -> -1134.287044 | DG26: =-INDEX('Monthly Cash Flows'!$B51:$EC51,MATCH('Monthly CF'!DG$6,'Monthly Cash Flows'!$B$13:$EC$13)) -> -1134.287044 | DH26: =-INDEX('Monthly Cash Flows'!$B51:$EC51,MATCH('Monthly CF'!DH$6,'Monthly Cash Flows'!$B$13:$EC$13)) -> -1134.287044 | DI26: =-INDEX('Monthly Cash Flows'!$B51:$EC51,MATCH('Monthly CF'!DI$6,'Monthly Cash Flows'!$B$13:$EC$13)) -> -1168.315655 | DJ26: =-INDEX('Monthly Cash Flows'!$B51:$EC51,MATCH('Monthly CF'!DJ$6,'Monthly Cash Flows'!$B$13:$EC$13)) -> -1168.315655 | DK26: =-INDEX('Monthly Cash Flows'!$B51:$EC51,MATCH('Monthly CF'!DK$6,'Monthly Cash Flows'!$B$13:$EC$13)) -> -1168.315655 | DL26: =-INDEX('Monthly Cash Flows'!$B51:$EC51,MATCH('Monthly CF'!DL$6,'Monthly Cash Flows'!$B$13:$EC$13)) -> -1168.315655 | DM26: =-INDEX('Monthly Cash Flows'!$B51:$EC51,MATCH('Monthly CF'!DM$6,'Monthly Cash Flows'!$B$13:$EC$13)) -> -1168.315655 | DN26: =-INDEX('Monthly Cash Flows'!$B51:$EC51,MATCH('Monthly CF'!DN$6,'Monthly Cash Flows'!$B$13:$EC$13)) -> -1168.315655 | DO26: =-INDEX('Monthly Cash Flows'!$B51:$EC51,MATCH('Monthly CF'!DO$6,'Monthly Cash Flows'!$B$13:$EC$13)) -> -1168.315655 | DP26: =-INDEX('Monthly Cash Flows'!$B51:$EC51,MATCH('Monthly CF'!DP$6,'Monthly Cash Flows'!$B$13:$EC$13)) -> -1168.315655 | DQ26: =-INDEX('Monthly Cash Flows'!$B51:$EC51,MATCH('Monthly CF'!DQ$6,'Monthly Cash Flows'!$B$13:$EC$13)) -> -1168.315655 | DR26: =-INDEX('Monthly Cash Flows'!$B51:$EC51,MATCH('Monthly CF'!DR$6,'Monthly Cash Flows'!$B$13:$EC$13)) -> -1168.315655 | DS26: =-INDEX('Monthly Cash Flows'!$B51:$EC51,MATCH('Monthly CF'!DS$6,'Monthly Cash Flows'!$B$13:$EC$13)) -> -1168.315655 | DT26: =-INDEX('Monthly Cash Flows'!$B51:$EC51,MATCH('Monthly CF'!DT$6,'Monthly Cash Flows'!$B$13:$EC$13)) -> -1168.315655 | DU26: =-INDEX('Monthly Cash Flows'!$B51:$EC51,MATCH('Monthly CF'!DU$6,'Monthly Cash Flows'!$B$13:$EC$13)) -> -1203.365125 | DV26: =-INDEX('Monthly Cash Flows'!$B51:$EC51,MATCH('Monthly CF'!DV$6,'Monthly Cash Flows'!$B$13:$EC$13)) -> -1203.365125 | DW26: =-INDEX('Monthly Cash Flows'!$B51:$EC51,MATCH('Monthly CF'!DW$6,'Monthly Cash Flows'!$B$13:$EC$13)) -> -1203.365125 | DX26: =-INDEX('Monthly Cash Flows'!$B51:$EC51,MATCH('Monthly CF'!DX$6,'Monthly Cash Flows'!$B$13:$EC$13)) -> -1203.365125 | DY26: =-INDEX('Monthly Cash Flows'!$B51:$EC51,MATCH('Monthly CF'!DY$6,'Monthly Cash Flows'!$B$13:$EC$13)) -> -1203.365125 | DZ26: =-INDEX('Monthly Cash Flows'!$B51:$EC51,MATCH('Monthly CF'!DZ$6,'Monthly Cash Flows'!$B$13:$EC$13)) -> -1203.365125 | EA26: =-INDEX('Monthly Cash Flows'!$B51:$EC51,MATCH('Monthly CF'!EA$6,'Monthly Cash Flows'!$B$13:$EC$13)) -> -1203.365125 | EB26: =-INDEX('Monthly Cash Flows'!$B51:$EC51,MATCH('Monthly CF'!EB$6,'Monthly Cash Flows'!$B$13:$EC$13)) -> -1203.365125 | EC26: =-INDEX('Monthly Cash Flows'!$B51:$EC51,MATCH('Monthly CF'!EC$6,'Monthly Cash Flows'!$B$13:$EC$13)) -> -1203.365125 | ED26: =-INDEX('Monthly Cash Flows'!$B51:$EC51,MATCH('Monthly CF'!ED$6,'Monthly Cash Flows'!$B$13:$EC$13)) -> -1203.365125 | EE26: =-INDEX('Monthly Cash Flows'!$B51:$EC51,MATCH('Monthly CF'!EE$6,'Monthly Cash Flows'!$B$13:$EC$13)) -> -1203.365125 | EF26: =-INDEX('Monthly Cash Flows'!$B51:$EC51,MATCH('Monthly CF'!EF$6,'Monthly Cash Flows'!$B$13:$EC$13)) -> -1203.365125 | EG26: =-INDEX('Monthly Cash Flows'!$B51:$EC51,MATCH('Monthly CF'!EG$6,'Monthly Cash Flows'!$B$13:$EC$13)) -> -1203.365125
B27: =+'Monthly Cash Flows'!A52 -> Garbage and Trash Removal | F27: =-INDEX('Monthly Cash Flows'!$B52:$EC52,MATCH('Monthly CF'!F$6,'Monthly Cash Flows'!$B$13:$EC$13)) -> -94.75 | G27: =-INDEX('Monthly Cash Flows'!$B52:$EC52,MATCH('Monthly CF'!G$6,'Monthly Cash Flows'!$B$13:$EC$13)) -> -94.75 | H27: =-INDEX('Monthly Cash Flows'!$B52:$EC52,MATCH('Monthly CF'!H$6,'Monthly Cash Flows'!$B$13:$EC$13)) -> -94.75 | I27: =-INDEX('Monthly Cash Flows'!$B52:$EC52,MATCH('Monthly CF'!I$6,'Monthly Cash Flows'!$B$13:$EC$13)) -> -94.75 | J27: =-INDEX('Monthly Cash Flows'!$B52:$EC52,MATCH('Monthly CF'!J$6,'Monthly Cash Flows'!$B$13:$EC$13)) -> -94.75 | K27: =-INDEX('Monthly Cash Flows'!$B52:$EC52,MATCH('Monthly CF'!K$6,'Monthly Cash Flows'!$B$13:$EC$13)) -> -94.75 | L27: =-INDEX('Monthly Cash Flows'!$B52:$EC52,MATCH('Monthly CF'!L$6,'Monthly Cash Flows'!$B$13:$EC$13)) -> -94.75 | M27: =-INDEX('Monthly Cash Flows'!$B52:$EC52,MATCH('Monthly CF'!M$6,'Monthly Cash Flows'!$B$13:$EC$13)) -> -94.75 | N27: =-INDEX('Monthly Cash Flows'!$B52:$EC52,MATCH('Monthly CF'!N$6,'Monthly Cash Flows'!$B$13:$EC$13)) -> -94.75 | O27: =-INDEX('Monthly Cash Flows'!$B52:$EC52,MATCH('Monthly CF'!O$6,'Monthly Cash Flows'!$B$13:$EC$13)) -> -94.75 | P27: =-INDEX('Monthly Cash Flows'!$B52:$EC52,MATCH('Monthly CF'!P$6,'Monthly Cash Flows'!$B$13:$EC$13)) -> -94.75 | Q27: =-INDEX('Monthly Cash Flows'!$B52:$EC52,MATCH('Monthly CF'!Q$6,'Monthly Cash Flows'!$B$13:$EC$13)) -> -97.5925 | R27: =-INDEX('Monthly Cash Flows'!$B52:$EC52,MATCH('Monthly CF'!R$6,'Monthly Cash Flows'!$B$13:$EC$13)) -> -97.5925 | S27: =-INDEX('Monthly Cash Flows'!$B52:$EC52,MATCH('Monthly CF'!S$6,'Monthly Cash Flows'!$B$13:$EC$13)) -> -97.5925 | T27: =-INDEX('Monthly Cash Flows'!$B52:$EC52,MATCH('Monthly CF'!T$6,'Monthly Cash Flows'!$B$13:$EC$13)) -> -97.5925 | U27: =-INDEX('Monthly Cash Flows'!$B52:$EC52,MATCH('Monthly CF'!U$6,'Monthly Cash Flows'!$B$13:$EC$13)) -> -97.5925 | V27: =-INDEX('Monthly Cash Flows'!$B52:$EC52,MATCH('Monthly CF'!V$6,'Monthly Cash Flows'!$B$13:$EC$13)) -> -97.5925 | W27: =-INDEX('Monthly Cash Flows'!$B52:$EC52,MATCH('Monthly CF'!W$6,'Monthly Cash Flows'!$B$13:$EC$13)) -> -97.5925 | X27: =-INDEX('Monthly Cash Flows'!$B52:$EC52,MATCH('Monthly CF'!X$6,'Monthly Cash Flows'!$B$13:$EC$13)) -> -97.5925 | Y27: =-INDEX('Monthly Cash Flows'!$B52:$EC52,MATCH('Monthly CF'!Y$6,'Monthly Cash Flows'!$B$13:$EC$13)) -> -97.5925 | Z27: =-INDEX('Monthly Cash Flows'!$B52:$EC52,MATCH('Monthly CF'!Z$6,'Monthly Cash Flows'!$B$13:$EC$13)) -> -97.5925 | AA27: =-INDEX('Monthly Cash Flows'!$B52:$EC52,MATCH('Monthly CF'!AA$6,'Monthly Cash Flows'!$B$13:$EC$13)) -> -97.5925 | AB27: =-INDEX('Monthly Cash Flows'!$B52:$EC52,MATCH('Monthly CF'!AB$6,'Monthly Cash Flows'!$B$13:$EC$13)) -> -97.5925 | AC27: =-INDEX('Monthly Cash Flows'!$B52:$EC52,MATCH('Monthly CF'!AC$6,'Monthly Cash Flows'!$B$13:$EC$13)) -> -100.520275 | AD27: =-INDEX('Monthly Cash Flows'!$B52:$EC52,MATCH('Monthly CF'!AD$6,'Monthly Cash Flows'!$B$13:$EC$13)) -> -100.520275 | AE27: =-INDEX('Monthly Cash Flows'!$B52:$EC52,MATCH('Monthly CF'!AE$6,'Monthly Cash Flows'!$B$13:$EC$13)) -> -100.520275 | AF27: =-INDEX('Monthly Cash Flows'!$B52:$EC52,MATCH('Monthly CF'!AF$6,'Monthly Cash Flows'!$B$13:$EC$13)) -> -100.520275 | AG27: =-INDEX('Monthly Cash Flows'!$B52:$EC52,MATCH('Monthly CF'!AG$6,'Monthly Cash Flows'!$B$13:$EC$13)) -> -100.520275 | AH27: =-INDEX('Monthly Cash Flows'!$B52:$EC52,MATCH('Monthly CF'!AH$6,'Monthly Cash Flows'!$B$13:$EC$13)) -> -100.520275 | AI27: =-INDEX('Monthly Cash Flows'!$B52:$EC52,MATCH('Monthly CF'!AI$6,'Monthly Cash Flows'!$B$13:$EC$13)) -> -100.520275 | AJ27: =-INDEX('Monthly Cash Flows'!$B52:$EC52,MATCH('Monthly CF'!AJ$6,'Monthly Cash Flows'!$B$13:$EC$13)) -> -100.520275 | AK27: =-INDEX('Monthly Cash Flows'!$B52:$EC52,MATCH('Monthly CF'!AK$6,'Monthly Cash Flows'!$B$13:$EC$13)) -> -100.520275 | AL27: =-INDEX('Monthly Cash Flows'!$B52:$EC52,MATCH('Monthly CF'!AL$6,'Monthly Cash Flows'!$B$13:$EC$13)) -> -100.520275 | AM27: =-INDEX('Monthly Cash Flows'!$B52:$EC52,MATCH('Monthly CF'!AM$6,'Monthly Cash Flows'!$B$13:$EC$13)) -> -100.520275 | AN27: =-INDEX('Monthly Cash Flows'!$B52:$EC52,MATCH('Monthly CF'!AN$6,'Monthly Cash Flows'!$B$13:$EC$13)) -> -100.520275 | AO27: =-INDEX('Monthly Cash Flows'!$B52:$EC52,MATCH('Monthly CF'!AO$6,'Monthly Cash Flows'!$B$13:$EC$13)) -> -103.5358832 | AP27: =-INDEX('Monthly Cash Flows'!$B52:$EC52,MATCH('Monthly CF'!AP$6,'Monthly Cash Flows'!$B$13:$EC$13)) -> -103.5358832 | AQ27: =-INDEX('Monthly Cash Flows'!$B52:$EC52,MATCH('Monthly CF'!AQ$6,'Monthly Cash Flows'!$B$13:$EC$13)) -> -103.5358832 | AR27: =-INDEX('Monthly Cash Flows'!$B52:$EC52,MATCH('Monthly CF'!AR$6,'Monthly Cash Flows'!$B$13:$EC$13)) -> -103.5358832 | AS27: =-INDEX('Monthly Cash Flows'!$B52:$EC52,MATCH('Monthly CF'!AS$6,'Monthly Cash Flows'!$B$13:$EC$13)) -> -103.5358832 | AT27: =-INDEX('Monthly Cash Flows'!$B52:$EC52,MATCH('Monthly CF'!AT$6,'Monthly Cash Flows'!$B$13:$EC$13)) -> -103.5358832 | AU27: =-INDEX('Monthly Cash Flows'!$B52:$EC52,MATCH('Monthly CF'!AU$6,'Monthly Cash Flows'!$B$13:$EC$13)) -> -103.5358832 | AV27: =-INDEX('Monthly Cash Flows'!$B52:$EC52,MATCH('Monthly CF'!AV$6,'Monthly Cash Flows'!$B$13:$EC$13)) -> -103.5358832 | AW27: =-INDEX('Monthly Cash Flows'!$B52:$EC52,MATCH('Monthly CF'!AW$6,'Monthly Cash Flows'!$B$13:$EC$13)) -> -103.5358832 | AX27: =-INDEX('Monthly Cash Flows'!$B52:$EC52,MATCH('Monthly CF'!AX$6,'Monthly Cash Flows'!$B$13:$EC$13)) -> -103.5358832 | AY27: =-INDEX('Monthly Cash Flows'!$B52:$EC52,MATCH('Monthly CF'!AY$6,'Monthly Cash Flows'!$B$13:$EC$13)) -> -103.5358832 | AZ27: =-INDEX('Monthly Cash Flows'!$B52:$EC52,MATCH('Monthly CF'!AZ$6,'Monthly Cash Flows'!$B$13:$EC$13)) -> -103.5358832 | BA27: =-INDEX('Monthly Cash Flows'!$B52:$EC52,MATCH('Monthly CF'!BA$6,'Monthly Cash Flows'!$B$13:$EC$13)) -> -106.6419597 | BB27: =-INDEX('Monthly Cash Flows'!$B52:$EC52,MATCH('Monthly CF'!BB$6,'Monthly Cash Flows'!$B$13:$EC$13)) -> -106.6419597 | BC27: =-INDEX('Monthly Cash Flows'!$B52:$EC52,MATCH('Monthly CF'!BC$6,'Monthly Cash Flows'!$B$13:$EC$13)) -> -106.6419597 | BD27: =-INDEX('Monthly Cash Flows'!$B52:$EC52,MATCH('Monthly CF'!BD$6,'Monthly Cash Flows'!$B$13:$EC$13)) -> -106.6419597 | BE27: =-INDEX('Monthly Cash Flows'!$B52:$EC52,MATCH('Monthly CF'!BE$6,'Monthly Cash Flows'!$B$13:$EC$13)) -> -106.6419597 | BF27: =-INDEX('Monthly Cash Flows'!$B52:$EC52,MATCH('Monthly CF'!BF$6,'Monthly Cash Flows'!$B$13:$EC$13)) -> -106.6419597 | BG27: =-INDEX('Monthly Cash Flows'!$B52:$EC52,MATCH('Monthly CF'!BG$6,'Monthly Cash Flows'!$B$13:$EC$13)) -> -106.6419597 | BH27: =-INDEX('Monthly Cash Flows'!$B52:$EC52,MATCH('Monthly CF'!BH$6,'Monthly Cash Flows'!$B$13:$EC$13)) -> -106.6419597 | BI27: =-INDEX('Monthly Cash Flows'!$B52:$EC52,MATCH('Monthly CF'!BI$6,'Monthly Cash Flows'!$B$13:$EC$13)) -> -106.6419597 | BJ27: =-INDEX('Monthly Cash Flows'!$B52:$EC52,MATCH('Monthly CF'!BJ$6,'Monthly Cash Flows'!$B$13:$EC$13)) -> -106.6419597 | BK27: =-INDEX('Monthly Cash Flows'!$B52:$EC52,MATCH('Monthly CF'!BK$6,'Monthly Cash Flows'!$B$13:$EC$13)) -> -106.6419597 | BL27: =-INDEX('Monthly Cash Flows'!$B52:$EC52,MATCH('Monthly CF'!BL$6,'Monthly Cash Flows'!$B$13:$EC$13)) -> -106.6419597 | BM27: =-INDEX('Monthly Cash Flows'!$B52:$EC52,MATCH('Monthly CF'!BM$6,'Monthly Cash Flows'!$B$13:$EC$13)) -> -109.8412185 | BN27: =-INDEX('Monthly Cash Flows'!$B52:$EC52,MATCH('Monthly CF'!BN$6,'Monthly Cash Flows'!$B$13:$EC$13)) -> -109.8412185 | BO27: =-INDEX('Monthly Cash Flows'!$B52:$EC52,MATCH('Monthly CF'!BO$6,'Monthly Cash Flows'!$B$13:$EC$13)) -> -109.8412185 | BP27: =-INDEX('Monthly Cash Flows'!$B52:$EC52,MATCH('Monthly CF'!BP$6,'Monthly Cash Flows'!$B$13:$EC$13)) -> -109.8412185 | BQ27: =-INDEX('Monthly Cash Flows'!$B52:$EC52,MATCH('Monthly CF'!BQ$6,'Monthly Cash Flows'!$B$13:$EC$13)) -> -109.8412185 | BR27: =-INDEX('Monthly Cash Flows'!$B52:$EC52,MATCH('Monthly CF'!BR$6,'Monthly Cash Flows'!$B$13:$EC$13)) -> -109.8412185 | BS27: =-INDEX('Monthly Cash Flows'!$B52:$EC52,MATCH('Monthly CF'!BS$6,'Monthly Cash Flows'!$B$13:$EC$13)) -> -109.8412185 | BT27: =-INDEX('Monthly Cash Flows'!$B52:$EC52,MATCH('Monthly CF'!BT$6,'Monthly Cash Flows'!$B$13:$EC$13)) -> -109.8412185 | BU27: =-INDEX('Monthly Cash Flows'!$B52:$EC52,MATCH('Monthly CF'!BU$6,'Monthly Cash Flows'!$B$13:$EC$13)) -> -109.8412185 | BV27: =-INDEX('Monthly Cash Flows'!$B52:$EC52,MATCH('Monthly CF'!BV$6,'Monthly Cash Flows'!$B$13:$EC$13)) -> -109.8412185 | BW27: =-INDEX('Monthly Cash Flows'!$B52:$EC52,MATCH('Monthly CF'!BW$6,'Monthly Cash Flows'!$B$13:$EC$13)) -> -109.8412185 | BX27: =-INDEX('Monthly Cash Flows'!$B52:$EC52,MATCH('Monthly CF'!BX$6,'Monthly Cash Flows'!$B$13:$EC$13)) -> -109.8412185 | BY27: =-INDEX('Monthly Cash Flows'!$B52:$EC52,MATCH('Monthly CF'!BY$6,'Monthly Cash Flows'!$B$13:$EC$13)) -> -113.1364551 | BZ27: =-INDEX('Monthly Cash Flows'!$B52:$EC52,MATCH('Monthly CF'!BZ$6,'Monthly Cash Flows'!$B$13:$EC$13)) -> -113.1364551 | CA27: =-INDEX('Monthly Cash Flows'!$B52:$EC52,MATCH('Monthly CF'!CA$6,'Monthly Cash Flows'!$B$13:$EC$13)) -> -113.1364551 | CB27: =-INDEX('Monthly Cash Flows'!$B52:$EC52,MATCH('Monthly CF'!CB$6,'Monthly Cash Flows'!$B$13:$EC$13)) -> -113.1364551 | CC27: =-INDEX('Monthly Cash Flows'!$B52:$EC52,MATCH('Monthly CF'!CC$6,'Monthly Cash Flows'!$B$13:$EC$13)) -> -113.1364551 | CD27: =-INDEX('Monthly Cash Flows'!$B52:$EC52,MATCH('Monthly CF'!CD$6,'Monthly Cash Flows'!$B$13:$EC$13)) -> -113.1364551 | CE27: =-INDEX('Monthly Cash Flows'!$B52:$EC52,MATCH('Monthly CF'!CE$6,'Monthly Cash Flows'!$B$13:$EC$13)) -> -113.1364551 | CF27: =-INDEX('Monthly Cash Flows'!$B52:$EC52,MATCH('Monthly CF'!CF$6,'Monthly Cash Flows'!$B$13:$EC$13)) -> -113.1364551 | CG27: =-INDEX('Monthly Cash Flows'!$B52:$EC52,MATCH('Monthly CF'!CG$6,'Monthly Cash Flows'!$B$13:$EC$13)) -> -113.1364551 | CH27: =-INDEX('Monthly Cash Flows'!$B52:$EC52,MATCH('Monthly CF'!CH$6,'Monthly Cash Flows'!$B$13:$EC$13)) -> -113.1364551 | CI27: =-INDEX('Monthly Cash Flows'!$B52:$EC52,MATCH('Monthly CF'!CI$6,'Monthly Cash Flows'!$B$13:$EC$13)) -> -113.1364551 | CJ27: =-INDEX('Monthly Cash Flows'!$B52:$EC52,MATCH('Monthly CF'!CJ$6,'Monthly Cash Flows'!$B$13:$EC$13)) -> -113.1364551 | CK27: =-INDEX('Monthly Cash Flows'!$B52:$EC52,MATCH('Monthly CF'!CK$6,'Monthly Cash Flows'!$B$13:$EC$13)) -> -116.5305487 | CL27: =-INDEX('Monthly Cash Flows'!$B52:$EC52,MATCH('Monthly CF'!CL$6,'Monthly Cash Flows'!$B$13:$EC$13)) -> -116.5305487 | CM27: =-INDEX('Monthly Cash Flows'!$B52:$EC52,MATCH('Monthly CF'!CM$6,'Monthly Cash Flows'!$B$13:$EC$13)) -> -116.5305487 | CN27: =-INDEX('Monthly Cash Flows'!$B52:$EC52,MATCH('Monthly CF'!CN$6,'Monthly Cash Flows'!$B$13:$EC$13)) -> -116.5305487 | CO27: =-INDEX('Monthly Cash Flows'!$B52:$EC52,MATCH('Monthly CF'!CO$6,'Monthly Cash Flows'!$B$13:$EC$13)) -> -116.5305487 | CP27: =-INDEX('Monthly Cash Flows'!$B52:$EC52,MATCH('Monthly CF'!CP$6,'Monthly Cash Flows'!$B$13:$EC$13)) -> -116.5305487 | CQ27: =-INDEX('Monthly Cash Flows'!$B52:$EC52,MATCH('Monthly CF'!CQ$6,'Monthly Cash Flows'!$B$13:$EC$13)) -> -116.5305487 | CR27: =-INDEX('Monthly Cash Flows'!$B52:$EC52,MATCH('Monthly CF'!CR$6,'Monthly Cash Flows'!$B$13:$EC$13)) -> -116.5305487 | CS27: =-INDEX('Monthly Cash Flows'!$B52:$EC52,MATCH('Monthly CF'!CS$6,'Monthly Cash Flows'!$B$13:$EC$13)) -> -116.5305487 | CT27: =-INDEX('Monthly Cash Flows'!$B52:$EC52,MATCH('Monthly CF'!CT$6,'Monthly Cash Flows'!$B$13:$EC$13)) -> -116.5305487 | CU27: =-INDEX('Monthly Cash Flows'!$B52:$EC52,MATCH('Monthly CF'!CU$6,'Monthly Cash Flows'!$B$13:$EC$13)) -> -116.5305487 | CV27: =-INDEX('Monthly Cash Flows'!$B52:$EC52,MATCH('Monthly CF'!CV$6,'Monthly Cash Flows'!$B$13:$EC$13)) -> -116.5305487 | CW27: =-INDEX('Monthly Cash Flows'!$B52:$EC52,MATCH('Monthly CF'!CW$6,'Monthly Cash Flows'!$B$13:$EC$13)) -> -120.0264652 | CX27: =-INDEX('Monthly Cash Flows'!$B52:$EC52,MATCH('Monthly CF'!CX$6,'Monthly Cash Flows'!$B$13:$EC$13)) -> -120.0264652 | CY27: =-INDEX('Monthly Cash Flows'!$B52:$EC52,MATCH('Monthly CF'!CY$6,'Monthly Cash Flows'!$B$13:$EC$13)) -> -120.0264652 | CZ27: =-INDEX('Monthly Cash Flows'!$B52:$EC52,MATCH('Monthly CF'!CZ$6,'Monthly Cash Flows'!$B$13:$EC$13)) -> -120.0264652 | DA27: =-INDEX('Monthly Cash Flows'!$B52:$EC52,MATCH('Monthly CF'!DA$6,'Monthly Cash Flows'!$B$13:$EC$13)) -> -120.0264652 | DB27: =-INDEX('Monthly Cash Flows'!$B52:$EC52,MATCH('Monthly CF'!DB$6,'Monthly Cash Flows'!$B$13:$EC$13)) -> -120.0264652 | DC27: =-INDEX('Monthly Cash Flows'!$B52:$EC52,MATCH('Monthly CF'!DC$6,'Monthly Cash Flows'!$B$13:$EC$13)) -> -120.0264652 | DD27: =-INDEX('Monthly Cash Flows'!$B52:$EC52,MATCH('Monthly CF'!DD$6,'Monthly Cash Flows'!$B$13:$EC$13)) -> -120.0264652 | DE27: =-INDEX('Monthly Cash Flows'!$B52:$EC52,MATCH('Monthly CF'!DE$6,'Monthly Cash Flows'!$B$13:$EC$13)) -> -120.0264652 | DF27: =-INDEX('Monthly Cash Flows'!$B52:$EC52,MATCH('Monthly CF'!DF$6,'Monthly Cash Flows'!$B$13:$EC$13)) -> -120.0264652 | DG27: =-INDEX('Monthly Cash Flows'!$B52:$EC52,MATCH('Monthly CF'!DG$6,'Monthly Cash Flows'!$B$13:$EC$13)) -> -120.0264652 | DH27: =-INDEX('Monthly Cash Flows'!$B52:$EC52,MATCH('Monthly CF'!DH$6,'Monthly Cash Flows'!$B$13:$EC$13)) -> -120.0264652 | DI27: =-INDEX('Monthly Cash Flows'!$B52:$EC52,MATCH('Monthly CF'!DI$6,'Monthly Cash Flows'!$B$13:$EC$13)) -> -123.6272592 | DJ27: =-INDEX('Monthly Cash Flows'!$B52:$EC52,MATCH('Monthly CF'!DJ$6,'Monthly Cash Flows'!$B$13:$EC$13)) -> -123.6272592 | DK27: =-INDEX('Monthly Cash Flows'!$B52:$EC52,MATCH('Monthly CF'!DK$6,'Monthly Cash Flows'!$B$13:$EC$13)) -> -123.6272592 | DL27: =-INDEX('Monthly Cash Flows'!$B52:$EC52,MATCH('Monthly CF'!DL$6,'Monthly Cash Flows'!$B$13:$EC$13)) -> -123.6272592 | DM27: =-INDEX('Monthly Cash Flows'!$B52:$EC52,MATCH('Monthly CF'!DM$6,'Monthly Cash Flows'!$B$13:$EC$13)) -> -123.6272592 | DN27: =-INDEX('Monthly Cash Flows'!$B52:$EC52,MATCH('Monthly CF'!DN$6,'Monthly Cash Flows'!$B$13:$EC$13)) -> -123.6272592 | DO27: =-INDEX('Monthly Cash Flows'!$B52:$EC52,MATCH('Monthly CF'!DO$6,'Monthly Cash Flows'!$B$13:$EC$13)) -> -123.6272592 | DP27: =-INDEX('Monthly Cash Flows'!$B52:$EC52,MATCH('Monthly CF'!DP$6,'Monthly Cash Flows'!$B$13:$EC$13)) -> -123.6272592 | DQ27: =-INDEX('Monthly Cash Flows'!$B52:$EC52,MATCH('Monthly CF'!DQ$6,'Monthly Cash Flows'!$B$13:$EC$13)) -> -123.6272592 | DR27: =-INDEX('Monthly Cash Flows'!$B52:$EC52,MATCH('Monthly CF'!DR$6,'Monthly Cash Flows'!$B$13:$EC$13)) -> -123.6272592 | DS27: =-INDEX('Monthly Cash Flows'!$B52:$EC52,MATCH('Monthly CF'!DS$6,'Monthly Cash Flows'!$B$13:$EC$13)) -> -123.6272592 | DT27: =-INDEX('Monthly Cash Flows'!$B52:$EC52,MATCH('Monthly CF'!DT$6,'Monthly Cash Flows'!$B$13:$EC$13)) -> -123.6272592 | DU27: =-INDEX('Monthly Cash Flows'!$B52:$EC52,MATCH('Monthly CF'!DU$6,'Monthly Cash Flows'!$B$13:$EC$13)) -> -127.3360769 | DV27: =-INDEX('Monthly Cash Flows'!$B52:$EC52,MATCH('Monthly CF'!DV$6,'Monthly Cash Flows'!$B$13:$EC$13)) -> -127.3360769 | DW27: =-INDEX('Monthly Cash Flows'!$B52:$EC52,MATCH('Monthly CF'!DW$6,'Monthly Cash Flows'!$B$13:$EC$13)) -> -127.3360769 | DX27: =-INDEX('Monthly Cash Flows'!$B52:$EC52,MATCH('Monthly CF'!DX$6,'Monthly Cash Flows'!$B$13:$EC$13)) -> -127.3360769 | DY27: =-INDEX('Monthly Cash Flows'!$B52:$EC52,MATCH('Monthly CF'!DY$6,'Monthly Cash Flows'!$B$13:$EC$13)) -> -127.3360769 | DZ27: =-INDEX('Monthly Cash Flows'!$B52:$EC52,MATCH('Monthly CF'!DZ$6,'Monthly Cash Flows'!$B$13:$EC$13)) -> -127.3360769 | EA27: =-INDEX('Monthly Cash Flows'!$B52:$EC52,MATCH('Monthly CF'!EA$6,'Monthly Cash Flows'!$B$13:$EC$13)) -> -127.3360769 | EB27: =-INDEX('Monthly Cash Flows'!$B52:$EC52,MATCH('Monthly CF'!EB$6,'Monthly Cash Flows'!$B$13:$EC$13)) -> -127.3360769 | EC27: =-INDEX('Monthly Cash Flows'!$B52:$EC52,MATCH('Monthly CF'!EC$6,'Monthly Cash Flows'!$B$13:$EC$13)) -> -127.3360769 | ED27: =-INDEX('Monthly Cash Flows'!$B52:$EC52,MATCH('Monthly CF'!ED$6,'Monthly Cash Flows'!$B$13:$EC$13)) -> -127.3360769 | EE27: =-INDEX('Monthly Cash Flows'!$B52:$EC52,MATCH('Monthly CF'!EE$6,'Monthly Cash Flows'!$B$13:$EC$13)) -> -127.3360769 | EF27: =-INDEX('Monthly Cash Flows'!$B52:$EC52,MATCH('Monthly CF'!EF$6,'Monthly Cash Flows'!$B$13:$EC$13)) -> -127.3360769 | EG27: =-INDEX('Monthly Cash Flows'!$B52:$EC52,MATCH('Monthly CF'!EG$6,'Monthly Cash Flows'!$B$13:$EC$13)) -> -127.3360769
B28: =+'Monthly Cash Flows'!A53 -> Security | F28: =-INDEX('Monthly Cash Flows'!$B53:$EC53,MATCH('Monthly CF'!F$6,'Monthly Cash Flows'!$B$13:$EC$13)) -> -3408.791667 | G28: =-INDEX('Monthly Cash Flows'!$B53:$EC53,MATCH('Monthly CF'!G$6,'Monthly Cash Flows'!$B$13:$EC$13)) -> -3408.791667 | H28: =-INDEX('Monthly Cash Flows'!$B53:$EC53,MATCH('Monthly CF'!H$6,'Monthly Cash Flows'!$B$13:$EC$13)) -> -3408.791667 | I28: =-INDEX('Monthly Cash Flows'!$B53:$EC53,MATCH('Monthly CF'!I$6,'Monthly Cash Flows'!$B$13:$EC$13)) -> -3408.791667 | J28: =-INDEX('Monthly Cash Flows'!$B53:$EC53,MATCH('Monthly CF'!J$6,'Monthly Cash Flows'!$B$13:$EC$13)) -> -3408.791667 | K28: =-INDEX('Monthly Cash Flows'!$B53:$EC53,MATCH('Monthly CF'!K$6,'Monthly Cash Flows'!$B$13:$EC$13)) -> -3408.791667 | L28: =-INDEX('Monthly Cash Flows'!$B53:$EC53,MATCH('Monthly CF'!L$6,'Monthly Cash Flows'!$B$13:$EC$13)) -> -3408.791667 | M28: =-INDEX('Monthly Cash Flows'!$B53:$EC53,MATCH('Monthly CF'!M$6,'Monthly Cash Flows'!$B$13:$EC$13)) -> -3408.791667 | N28: =-INDEX('Monthly Cash Flows'!$B53:$EC53,MATCH('Monthly CF'!N$6,'Monthly Cash Flows'!$B$13:$EC$13)) -> -3408.791667 | O28: =-INDEX('Monthly Cash Flows'!$B53:$EC53,MATCH('Monthly CF'!O$6,'Monthly Cash Flows'!$B$13:$EC$13)) -> -3408.791667 | P28: =-INDEX('Monthly Cash Flows'!$B53:$EC53,MATCH('Monthly CF'!P$6,'Monthly Cash Flows'!$B$13:$EC$13)) -> -3408.791667 | Q28: =-INDEX('Monthly Cash Flows'!$B53:$EC53,MATCH('Monthly CF'!Q$6,'Monthly Cash Flows'!$B$13:$EC$13)) -> -3408.791667 | R28: =-INDEX('Monthly Cash Flows'!$B53:$EC53,MATCH('Monthly CF'!R$6,'Monthly Cash Flows'!$B$13:$EC$13)) -> -3408.791667 | S28: =-INDEX('Monthly Cash Flows'!$B53:$EC53,MATCH('Monthly CF'!S$6,'Monthly Cash Flows'!$B$13:$EC$13)) -> -3408.791667 | T28: =-INDEX('Monthly Cash Flows'!$B53:$EC53,MATCH('Monthly CF'!T$6,'Monthly Cash Flows'!$B$13:$EC$13)) -> -3408.791667 | U28: =-INDEX('Monthly Cash Flows'!$B53:$EC53,MATCH('Monthly CF'!U$6,'Monthly Cash Flows'!$B$13:$EC$13)) -> -3408.791667 | V28: =-INDEX('Monthly Cash Flows'!$B53:$EC53,MATCH('Monthly CF'!V$6,'Monthly Cash Flows'!$B$13:$EC$13)) -> -3408.791667 | W28: =-INDEX('Monthly Cash Flows'!$B53:$EC53,MATCH('Monthly CF'!W$6,'Monthly Cash Flows'!$B$13:$EC$13)) -> -3408.791667 | X28: =-INDEX('Monthly Cash Flows'!$B53:$EC53,MATCH('Monthly CF'!X$6,'Monthly Cash Flows'!$B$13:$EC$13)) -> -3408.791667 | Y28: =-INDEX('Monthly Cash Flows'!$B53:$EC53,MATCH('Monthly CF'!Y$6,'Monthly Cash Flows'!$B$13:$EC$13)) -> -3408.791667 | Z28: =-INDEX('Monthly Cash Flows'!$B53:$EC53,MATCH('Monthly CF'!Z$6,'Monthly Cash Flows'!$B$13:$EC$13)) -> -3408.791667 | AA28: =-INDEX('Monthly Cash Flows'!$B53:$EC53,MATCH('Monthly CF'!AA$6,'Monthly Cash Flows'!$B$13:$EC$13)) -> -3408.791667 | AB28: =-INDEX('Monthly Cash Flows'!$B53:$EC53,MATCH('Monthly CF'!AB$6,'Monthly Cash Flows'!$B$13:$EC$13)) -> -3408.791667 | AC28: =-INDEX('Monthly Cash Flows'!$B53:$EC53,MATCH('Monthly CF'!AC$6,'Monthly Cash Flows'!$B$13:$EC$13)) -> -3408.791667 | AD28: =-INDEX('Monthly Cash Flows'!$B53:$EC53,MATCH('Monthly CF'!AD$6,'Monthly Cash Flows'!$B$13:$EC$13)) -> -3408.791667 | AE28: =-INDEX('Monthly Cash Flows'!$B53:$EC53,MATCH('Monthly CF'!AE$6,'Monthly Cash Flows'!$B$13:$EC$13)) -> -3408.791667 | AF28: =-INDEX('Monthly Cash Flows'!$B53:$EC53,MATCH('Monthly CF'!AF$6,'Monthly Cash Flows'!$B$13:$EC$13)) -> -3408.791667 | AG28: =-INDEX('Monthly Cash Flows'!$B53:$EC53,MATCH('Monthly CF'!AG$6,'Monthly Cash Flows'!$B$13:$EC$13)) -> -3408.791667 | AH28: =-INDEX('Monthly Cash Flows'!$B53:$EC53,MATCH('Monthly CF'!AH$6,'Monthly Cash Flows'!$B$13:$EC$13)) -> -3408.791667 | AI28: =-INDEX('Monthly Cash Flows'!$B53:$EC53,MATCH('Monthly CF'!AI$6,'Monthly Cash Flows'!$B$13:$EC$13)) -> -3408.791667 | AJ28: =-INDEX('Monthly Cash Flows'!$B53:$EC53,MATCH('Monthly CF'!AJ$6,'Monthly Cash Flows'!$B$13:$EC$13)) -> -3408.791667 | AK28: =-INDEX('Monthly Cash Flows'!$B53:$EC53,MATCH('Monthly CF'!AK$6,'Monthly Cash Flows'!$B$13:$EC$13)) -> -3408.791667 | AL28: =-INDEX('Monthly Cash Flows'!$B53:$EC53,MATCH('Monthly CF'!AL$6,'Monthly Cash Flows'!$B$13:$EC$13)) -> -3408.791667 | AM28: =-INDEX('Monthly Cash Flows'!$B53:$EC53,MATCH('Monthly CF'!AM$6,'Monthly Cash Flows'!$B$13:$EC$13)) -> -3408.791667 | AN28: =-INDEX('Monthly Cash Flows'!$B53:$EC53,MATCH('Monthly CF'!AN$6,'Monthly Cash Flows'!$B$13:$EC$13)) -> -3408.791667 | AO28: =-INDEX('Monthly Cash Flows'!$B53:$EC53,MATCH('Monthly CF'!AO$6,'Monthly Cash Flows'!$B$13:$EC$13)) -> -3408.791667 | AP28: =-INDEX('Monthly Cash Flows'!$B53:$EC53,MATCH('Monthly CF'!AP$6,'Monthly Cash Flows'!$B$13:$EC$13)) -> -3408.791667 | AQ28: =-INDEX('Monthly Cash Flows'!$B53:$EC53,MATCH('Monthly CF'!AQ$6,'Monthly Cash Flows'!$B$13:$EC$13)) -> -3408.791667 | AR28: =-INDEX('Monthly Cash Flows'!$B53:$EC53,MATCH('Monthly CF'!AR$6,'Monthly Cash Flows'!$B$13:$EC$13)) -> -3408.791667 | AS28: =-INDEX('Monthly Cash Flows'!$B53:$EC53,MATCH('Monthly CF'!AS$6,'Monthly Cash Flows'!$B$13:$EC$13)) -> -3408.791667 | AT28: =-INDEX('Monthly Cash Flows'!$B53:$EC53,MATCH('Monthly CF'!AT$6,'Monthly Cash Flows'!$B$13:$EC$13)) -> -3408.791667 | AU28: =-INDEX('Monthly Cash Flows'!$B53:$EC53,MATCH('Monthly CF'!AU$6,'Monthly Cash Flows'!$B$13:$EC$13)) -> -3408.791667 | AV28: =-INDEX('Monthly Cash Flows'!$B53:$EC53,MATCH('Monthly CF'!AV$6,'Monthly Cash Flows'!$B$13:$EC$13)) -> -3408.791667 | AW28: =-INDEX('Monthly Cash Flows'!$B53:$EC53,MATCH('Monthly CF'!AW$6,'Monthly Cash Flows'!$B$13:$EC$13)) -> -3408.791667 | AX28: =-INDEX('Monthly Cash Flows'!$B53:$EC53,MATCH('Monthly CF'!AX$6,'Monthly Cash Flows'!$B$13:$EC$13)) -> -3408.791667 | AY28: =-INDEX('Monthly Cash Flows'!$B53:$EC53,MATCH('Monthly CF'!AY$6,'Monthly Cash Flows'!$B$13:$EC$13)) -> -3408.791667 | AZ28: =-INDEX('Monthly Cash Flows'!$B53:$EC53,MATCH('Monthly CF'!AZ$6,'Monthly Cash Flows'!$B$13:$EC$13)) -> -3408.791667 | BA28: =-INDEX('Monthly Cash Flows'!$B53:$EC53,MATCH('Monthly CF'!BA$6,'Monthly Cash Flows'!$B$13:$EC$13)) -> -3408.791667 | BB28: =-INDEX('Monthly Cash Flows'!$B53:$EC53,MATCH('Monthly CF'!BB$6,'Monthly Cash Flows'!$B$13:$EC$13)) -> -3408.791667 | BC28: =-INDEX('Monthly Cash Flows'!$B53:$EC53,MATCH('Monthly CF'!BC$6,'Monthly Cash Flows'!$B$13:$EC$13)) -> -3408.791667 | BD28: =-INDEX('Monthly Cash Flows'!$B53:$EC53,MATCH('Monthly CF'!BD$6,'Monthly Cash Flows'!$B$13:$EC$13)) -> -3408.791667 | BE28: =-INDEX('Monthly Cash Flows'!$B53:$EC53,MATCH('Monthly CF'!BE$6,'Monthly Cash Flows'!$B$13:$EC$13)) -> -3408.791667 | BF28: =-INDEX('Monthly Cash Flows'!$B53:$EC53,MATCH('Monthly CF'!BF$6,'Monthly Cash Flows'!$B$13:$EC$13)) -> -3408.791667 | BG28: =-INDEX('Monthly Cash Flows'!$B53:$EC53,MATCH('Monthly CF'!BG$6,'Monthly Cash Flows'!$B$13:$EC$13)) -> -3408.791667 | BH28: =-INDEX('Monthly Cash Flows'!$B53:$EC53,MATCH('Monthly CF'!BH$6,'Monthly Cash Flows'!$B$13:$EC$13)) -> -3408.791667 | BI28: =-INDEX('Monthly Cash Flows'!$B53:$EC53,MATCH('Monthly CF'!BI$6,'Monthly Cash Flows'!$B$13:$EC$13)) -> -3408.791667 | BJ28: =-INDEX('Monthly Cash Flows'!$B53:$EC53,MATCH('Monthly CF'!BJ$6,'Monthly Cash Flows'!$B$13:$EC$13)) -> -3408.791667 | BK28: =-INDEX('Monthly Cash Flows'!$B53:$EC53,MATCH('Monthly CF'!BK$6,'Monthly Cash Flows'!$B$13:$EC$13)) -> -3408.791667 | BL28: =-INDEX('Monthly Cash Flows'!$B53:$EC53,MATCH('Monthly CF'!BL$6,'Monthly Cash Flows'!$B$13:$EC$13)) -> -3408.791667 | BM28: =-INDEX('Monthly Cash Flows'!$B53:$EC53,MATCH('Monthly CF'!BM$6,'Monthly Cash Flows'!$B$13:$EC$13)) -> -3408.791667 | BN28: =-INDEX('Monthly Cash Flows'!$B53:$EC53,MATCH('Monthly CF'!BN$6,'Monthly Cash Flows'!$B$13:$EC$13)) -> -3408.791667 | BO28: =-INDEX('Monthly Cash Flows'!$B53:$EC53,MATCH('Monthly CF'!BO$6,'Monthly Cash Flows'!$B$13:$EC$13)) -> -3408.791667 | BP28: =-INDEX('Monthly Cash Flows'!$B53:$EC53,MATCH('Monthly CF'!BP$6,'Monthly Cash Flows'!$B$13:$EC$13)) -> -3408.791667 | BQ28: =-INDEX('Monthly Cash Flows'!$B53:$EC53,MATCH('Monthly CF'!BQ$6,'Monthly Cash Flows'!$B$13:$EC$13)) -> -3408.791667 | BR28: =-INDEX('Monthly Cash Flows'!$B53:$EC53,MATCH('Monthly CF'!BR$6,'Monthly Cash Flows'!$B$13:$EC$13)) -> -3408.791667 | BS28: =-INDEX('Monthly Cash Flows'!$B53:$EC53,MATCH('Monthly CF'!BS$6,'Monthly Cash Flows'!$B$13:$EC$13)) -> -3408.791667 | BT28: =-INDEX('Monthly Cash Flows'!$B53:$EC53,MATCH('Monthly CF'!BT$6,'Monthly Cash Flows'!$B$13:$EC$13)) -> -3408.791667 | BU28: =-INDEX('Monthly Cash Flows'!$B53:$EC53,MATCH('Monthly CF'!BU$6,'Monthly Cash Flows'!$B$13:$EC$13)) -> -3408.791667 | BV28: =-INDEX('Monthly Cash Flows'!$B53:$EC53,MATCH('Monthly CF'!BV$6,'Monthly Cash Flows'!$B$13:$EC$13)) -> -3408.791667 | BW28: =-INDEX('Monthly Cash Flows'!$B53:$EC53,MATCH('Monthly CF'!BW$6,'Monthly Cash Flows'!$B$13:$EC$13)) -> -3408.791667 | BX28: =-INDEX('Monthly Cash Flows'!$B53:$EC53,MATCH('Monthly CF'!BX$6,'Monthly Cash Flows'!$B$13:$EC$13)) -> -3408.791667 | BY28: =-INDEX('Monthly Cash Flows'!$B53:$EC53,MATCH('Monthly CF'!BY$6,'Monthly Cash Flows'!$B$13:$EC$13)) -> -3408.791667 | BZ28: =-INDEX('Monthly Cash Flows'!$B53:$EC53,MATCH('Monthly CF'!BZ$6,'Monthly Cash Flows'!$B$13:$EC$13)) -> -3408.791667 | CA28: =-INDEX('Monthly Cash Flows'!$B53:$EC53,MATCH('Monthly CF'!CA$6,'Monthly Cash Flows'!$B$13:$EC$13)) -> -3408.791667 | CB28: =-INDEX('Monthly Cash Flows'!$B53:$EC53,MATCH('Monthly CF'!CB$6,'Monthly Cash Flows'!$B$13:$EC$13)) -> -3408.791667 | CC28: =-INDEX('Monthly Cash Flows'!$B53:$EC53,MATCH('Monthly CF'!CC$6,'Monthly Cash Flows'!$B$13:$EC$13)) -> -3408.791667 | CD28: =-INDEX('Monthly Cash Flows'!$B53:$EC53,MATCH('Monthly CF'!CD$6,'Monthly Cash Flows'!$B$13:$EC$13)) -> -3408.791667 | CE28: =-INDEX('Monthly Cash Flows'!$B53:$EC53,MATCH('Monthly CF'!CE$6,'Monthly Cash Flows'!$B$13:$EC$13)) -> -3408.791667 | CF28: =-INDEX('Monthly Cash Flows'!$B53:$EC53,MATCH('Monthly CF'!CF$6,'Monthly Cash Flows'!$B$13:$EC$13)) -> -3408.791667 | CG28: =-INDEX('Monthly Cash Flows'!$B53:$EC53,MATCH('Monthly CF'!CG$6,'Monthly Cash Flows'!$B$13:$EC$13)) -> -3408.791667 | CH28: =-INDEX('Monthly Cash Flows'!$B53:$EC53,MATCH('Monthly CF'!CH$6,'Monthly Cash Flows'!$B$13:$EC$13)) -> -3408.791667 | CI28: =-INDEX('Monthly Cash Flows'!$B53:$EC53,MATCH('Monthly CF'!CI$6,'Monthly Cash Flows'!$B$13:$EC$13)) -> -3408.791667 | CJ28: =-INDEX('Monthly Cash Flows'!$B53:$EC53,MATCH('Monthly CF'!CJ$6,'Monthly Cash Flows'!$B$13:$EC$13)) -> -3408.791667 | CK28: =-INDEX('Monthly Cash Flows'!$B53:$EC53,MATCH('Monthly CF'!CK$6,'Monthly Cash Flows'!$B$13:$EC$13)) -> -3408.791667 | CL28: =-INDEX('Monthly Cash Flows'!$B53:$EC53,MATCH('Monthly CF'!CL$6,'Monthly Cash Flows'!$B$13:$EC$13)) -> -3408.791667 | CM28: =-INDEX('Monthly Cash Flows'!$B53:$EC53,MATCH('Monthly CF'!CM$6,'Monthly Cash Flows'!$B$13:$EC$13)) -> -3408.791667 | CN28: =-INDEX('Monthly Cash Flows'!$B53:$EC53,MATCH('Monthly CF'!CN$6,'Monthly Cash Flows'!$B$13:$EC$13)) -> -3408.791667 | CO28: =-INDEX('Monthly Cash Flows'!$B53:$EC53,MATCH('Monthly CF'!CO$6,'Monthly Cash Flows'!$B$13:$EC$13)) -> -3408.791667 | CP28: =-INDEX('Monthly Cash Flows'!$B53:$EC53,MATCH('Monthly CF'!CP$6,'Monthly Cash Flows'!$B$13:$EC$13)) -> -3408.791667 | CQ28: =-INDEX('Monthly Cash Flows'!$B53:$EC53,MATCH('Monthly CF'!CQ$6,'Monthly Cash Flows'!$B$13:$EC$13)) -> -3408.791667 | CR28: =-INDEX('Monthly Cash Flows'!$B53:$EC53,MATCH('Monthly CF'!CR$6,'Monthly Cash Flows'!$B$13:$EC$13)) -> -3408.791667 | CS28: =-INDEX('Monthly Cash Flows'!$B53:$EC53,MATCH('Monthly CF'!CS$6,'Monthly Cash Flows'!$B$13:$EC$13)) -> -3408.791667 | CT28: =-INDEX('Monthly Cash Flows'!$B53:$EC53,MATCH('Monthly CF'!CT$6,'Monthly Cash Flows'!$B$13:$EC$13)) -> -3408.791667 | CU28: =-INDEX('Monthly Cash Flows'!$B53:$EC53,MATCH('Monthly CF'!CU$6,'Monthly Cash Flows'!$B$13:$EC$13)) -> -3408.791667 | CV28: =-INDEX('Monthly Cash Flows'!$B53:$EC53,MATCH('Monthly CF'!CV$6,'Monthly Cash Flows'!$B$13:$EC$13)) -> -3408.791667 | CW28: =-INDEX('Monthly Cash Flows'!$B53:$EC53,MATCH('Monthly CF'!CW$6,'Monthly Cash Flows'!$B$13:$EC$13)) -> -3408.791667 | CX28: =-INDEX('Monthly Cash Flows'!$B53:$EC53,MATCH('Monthly CF'!CX$6,'Monthly Cash Flows'!$B$13:$EC$13)) -> -3408.791667 | CY28: =-INDEX('Monthly Cash Flows'!$B53:$EC53,MATCH('Monthly CF'!CY$6,'Monthly Cash Flows'!$B$13:$EC$13)) -> -3408.791667 | CZ28: =-INDEX('Monthly Cash Flows'!$B53:$EC53,MATCH('Monthly CF'!CZ$6,'Monthly Cash Flows'!$B$13:$EC$13)) -> -3408.791667 | DA28: =-INDEX('Monthly Cash Flows'!$B53:$EC53,MATCH('Monthly CF'!DA$6,'Monthly Cash Flows'!$B$13:$EC$13)) -> -3408.791667 | DB28: =-INDEX('Monthly Cash Flows'!$B53:$EC53,MATCH('Monthly CF'!DB$6,'Monthly Cash Flows'!$B$13:$EC$13)) -> -3408.791667 | DC28: =-INDEX('Monthly Cash Flows'!$B53:$EC53,MATCH('Monthly CF'!DC$6,'Monthly Cash Flows'!$B$13:$EC$13)) -> -3408.791667 | DD28: =-INDEX('Monthly Cash Flows'!$B53:$EC53,MATCH('Monthly CF'!DD$6,'Monthly Cash Flows'!$B$13:$EC$13)) -> -3408.791667 | DE28: =-INDEX('Monthly Cash Flows'!$B53:$EC53,MATCH('Monthly CF'!DE$6,'Monthly Cash Flows'!$B$13:$EC$13)) -> -3408.791667 | DF28: =-INDEX('Monthly Cash Flows'!$B53:$EC53,MATCH('Monthly CF'!DF$6,'Monthly Cash Flows'!$B$13:$EC$13)) -> -3408.791667 | DG28: =-INDEX('Monthly Cash Flows'!$B53:$EC53,MATCH('Monthly CF'!DG$6,'Monthly Cash Flows'!$B$13:$EC$13)) -> -3408.791667 | DH28: =-INDEX('Monthly Cash Flows'!$B53:$EC53,MATCH('Monthly CF'!DH$6,'Monthly Cash Flows'!$B$13:$EC$13)) -> -3408.791667 | DI28: =-INDEX('Monthly Cash Flows'!$B53:$EC53,MATCH('Monthly CF'!DI$6,'Monthly Cash Flows'!$B$13:$EC$13)) -> -3408.791667 | DJ28: =-INDEX('Monthly Cash Flows'!$B53:$EC53,MATCH('Monthly CF'!DJ$6,'Monthly Cash Flows'!$B$13:$EC$13)) -> -3408.791667 | DK28: =-INDEX('Monthly Cash Flows'!$B53:$EC53,MATCH('Monthly CF'!DK$6,'Monthly Cash Flows'!$B$13:$EC$13)) -> -3408.791667 | DL28: =-INDEX('Monthly Cash Flows'!$B53:$EC53,MATCH('Monthly CF'!DL$6,'Monthly Cash Flows'!$B$13:$EC$13)) -> -3408.791667 | DM28: =-INDEX('Monthly Cash Flows'!$B53:$EC53,MATCH('Monthly CF'!DM$6,'Monthly Cash Flows'!$B$13:$EC$13)) -> -3408.791667 | DN28: =-INDEX('Monthly Cash Flows'!$B53:$EC53,MATCH('Monthly CF'!DN$6,'Monthly Cash Flows'!$B$13:$EC$13)) -> -3408.791667 | DO28: =-INDEX('Monthly Cash Flows'!$B53:$EC53,MATCH('Monthly CF'!DO$6,'Monthly Cash Flows'!$B$13:$EC$13)) -> -3408.791667 | DP28: =-INDEX('Monthly Cash Flows'!$B53:$EC53,MATCH('Monthly CF'!DP$6,'Monthly Cash Flows'!$B$13:$EC$13)) -> -3408.791667 | DQ28: =-INDEX('Monthly Cash Flows'!$B53:$EC53,MATCH('Monthly CF'!DQ$6,'Monthly Cash Flows'!$B$13:$EC$13)) -> -3408.791667 | DR28: =-INDEX('Monthly Cash Flows'!$B53:$EC53,MATCH('Monthly CF'!DR$6,'Monthly Cash Flows'!$B$13:$EC$13)) -> -3408.791667 | DS28: =-INDEX('Monthly Cash Flows'!$B53:$EC53,MATCH('Monthly CF'!DS$6,'Monthly Cash Flows'!$B$13:$EC$13)) -> -3408.791667 | DT28: =-INDEX('Monthly Cash Flows'!$B53:$EC53,MATCH('Monthly CF'!DT$6,'Monthly Cash Flows'!$B$13:$EC$13)) -> -3408.791667 | DU28: =-INDEX('Monthly Cash Flows'!$B53:$EC53,MATCH('Monthly CF'!DU$6,'Monthly Cash Flows'!$B$13:$EC$13)) -> -3408.791667 | DV28: =-INDEX('Monthly Cash Flows'!$B53:$EC53,MATCH('Monthly CF'!DV$6,'Monthly Cash Flows'!$B$13:$EC$13)) -> -3408.791667 | DW28: =-INDEX('Monthly Cash Flows'!$B53:$EC53,MATCH('Monthly CF'!DW$6,'Monthly Cash Flows'!$B$13:$EC$13)) -> -3408.791667 | DX28: =-INDEX('Monthly Cash Flows'!$B53:$EC53,MATCH('Monthly CF'!DX$6,'Monthly Cash Flows'!$B$13:$EC$13)) -> -3408.791667 | DY28: =-INDEX('Monthly Cash Flows'!$B53:$EC53,MATCH('Monthly CF'!DY$6,'Monthly Cash Flows'!$B$13:$EC$13)) -> -3408.791667 | DZ28: =-INDEX('Monthly Cash Flows'!$B53:$EC53,MATCH('Monthly CF'!DZ$6,'Monthly Cash Flows'!$B$13:$EC$13)) -> -3408.791667 | EA28: =-INDEX('Monthly Cash Flows'!$B53:$EC53,MATCH('Monthly CF'!EA$6,'Monthly Cash Flows'!$B$13:$EC$13)) -> -3408.791667 | EB28: =-INDEX('Monthly Cash Flows'!$B53:$EC53,MATCH('Monthly CF'!EB$6,'Monthly Cash Flows'!$B$13:$EC$13)) -> -3408.791667 | EC28: =-INDEX('Monthly Cash Flows'!$B53:$EC53,MATCH('Monthly CF'!EC$6,'Monthly Cash Flows'!$B$13:$EC$13)) -> -3408.791667 | ED28: =-INDEX('Monthly Cash Flows'!$B53:$EC53,MATCH('Monthly CF'!ED$6,'Monthly Cash Flows'!$B$13:$EC$13)) -> -3408.791667 | EE28: =-INDEX('Monthly Cash Flows'!$B53:$EC53,MATCH('Monthly CF'!EE$6,'Monthly Cash Flows'!$B$13:$EC$13)) -> -3408.791667 | EF28: =-INDEX('Monthly Cash Flows'!$B53:$EC53,MATCH('Monthly CF'!EF$6,'Monthly Cash Flows'!$B$13:$EC$13)) -> -3408.791667 | EG28: =-INDEX('Monthly Cash Flows'!$B53:$EC53,MATCH('Monthly CF'!EG$6,'Monthly Cash Flows'!$B$13:$EC$13)) -> -3408.791667
B29: =+'Monthly Cash Flows'!A54 -> Power Washing | F29: =-INDEX('Monthly Cash Flows'!$B54:$EC54,MATCH('Monthly CF'!F$6,'Monthly Cash Flows'!$B$13:$EC$13)) -> -685.6666667 | G29: =-INDEX('Monthly Cash Flows'!$B54:$EC54,MATCH('Monthly CF'!G$6,'Monthly Cash Flows'!$B$13:$EC$13)) -> -685.6666667 | H29: =-INDEX('Monthly Cash Flows'!$B54:$EC54,MATCH('Monthly CF'!H$6,'Monthly Cash Flows'!$B$13:$EC$13)) -> -685.6666667 | I29: =-INDEX('Monthly Cash Flows'!$B54:$EC54,MATCH('Monthly CF'!I$6,'Monthly Cash Flows'!$B$13:$EC$13)) -> -685.6666667 | J29: =-INDEX('Monthly Cash Flows'!$B54:$EC54,MATCH('Monthly CF'!J$6,'Monthly Cash Flows'!$B$13:$EC$13)) -> -685.6666667 | K29: =-INDEX('Monthly Cash Flows'!$B54:$EC54,MATCH('Monthly CF'!K$6,'Monthly Cash Flows'!$B$13:$EC$13)) -> -685.6666667 | L29: =-INDEX('Monthly Cash Flows'!$B54:$EC54,MATCH('Monthly CF'!L$6,'Monthly Cash Flows'!$B$13:$EC$13)) -> -685.6666667 | M29: =-INDEX('Monthly Cash Flows'!$B54:$EC54,MATCH('Monthly CF'!M$6,'Monthly Cash Flows'!$B$13:$EC$13)) -> -685.6666667 | N29: =-INDEX('Monthly Cash Flows'!$B54:$EC54,MATCH('Monthly CF'!N$6,'Monthly Cash Flows'!$B$13:$EC$13)) -> -685.6666667 | O29: =-INDEX('Monthly Cash Flows'!$B54:$EC54,MATCH('Monthly CF'!O$6,'Monthly Cash Flows'!$B$13:$EC$13)) -> -685.6666667 | P29: =-INDEX('Monthly Cash Flows'!$B54:$EC54,MATCH('Monthly CF'!P$6,'Monthly Cash Flows'!$B$13:$EC$13)) -> -685.6666667 | Q29: =-INDEX('Monthly Cash Flows'!$B54:$EC54,MATCH('Monthly CF'!Q$6,'Monthly Cash Flows'!$B$13:$EC$13)) -> -706.2366667 | R29: =-INDEX('Monthly Cash Flows'!$B54:$EC54,MATCH('Monthly CF'!R$6,'Monthly Cash Flows'!$B$13:$EC$13)) -> -706.2366667 | S29: =-INDEX('Monthly Cash Flows'!$B54:$EC54,MATCH('Monthly CF'!S$6,'Monthly Cash Flows'!$B$13:$EC$13)) -> -706.2366667 | T29: =-INDEX('Monthly Cash Flows'!$B54:$EC54,MATCH('Monthly CF'!T$6,'Monthly Cash Flows'!$B$13:$EC$13)) -> -706.2366667 | U29: =-INDEX('Monthly Cash Flows'!$B54:$EC54,MATCH('Monthly CF'!U$6,'Monthly Cash Flows'!$B$13:$EC$13)) -> -706.2366667 | V29: =-INDEX('Monthly Cash Flows'!$B54:$EC54,MATCH('Monthly CF'!V$6,'Monthly Cash Flows'!$B$13:$EC$13)) -> -706.2366667 | W29: =-INDEX('Monthly Cash Flows'!$B54:$EC54,MATCH('Monthly CF'!W$6,'Monthly Cash Flows'!$B$13:$EC$13)) -> -706.2366667 | X29: =-INDEX('Monthly Cash Flows'!$B54:$EC54,MATCH('Monthly CF'!X$6,'Monthly Cash Flows'!$B$13:$EC$13)) -> -706.2366667 | Y29: =-INDEX('Monthly Cash Flows'!$B54:$EC54,MATCH('Monthly CF'!Y$6,'Monthly Cash Flows'!$B$13:$EC$13)) -> -706.2366667 | Z29: =-INDEX('Monthly Cash Flows'!$B54:$EC54,MATCH('Monthly CF'!Z$6,'Monthly Cash Flows'!$B$13:$EC$13)) -> -706.2366667 | AA29: =-INDEX('Monthly Cash Flows'!$B54:$EC54,MATCH('Monthly CF'!AA$6,'Monthly Cash Flows'!$B$13:$EC$13)) -> -706.2366667 | AB29: =-INDEX('Monthly Cash Flows'!$B54:$EC54,MATCH('Monthly CF'!AB$6,'Monthly Cash Flows'!$B$13:$EC$13)) -> -706.2366667 | AC29: =-INDEX('Monthly Cash Flows'!$B54:$EC54,MATCH('Monthly CF'!AC$6,'Monthly Cash Flows'!$B$13:$EC$13)) -> -727.4237667 | AD29: =-INDEX('Monthly Cash Flows'!$B54:$EC54,MATCH('Monthly CF'!AD$6,'Monthly Cash Flows'!$B$13:$EC$13)) -> -727.4237667 | AE29: =-INDEX('Monthly Cash Flows'!$B54:$EC54,MATCH('Monthly CF'!AE$6,'Monthly Cash Flows'!$B$13:$EC$13)) -> -727.4237667 | AF29: =-INDEX('Monthly Cash Flows'!$B54:$EC54,MATCH('Monthly CF'!AF$6,'Monthly Cash Flows'!$B$13:$EC$13)) -> -727.4237667 | AG29: =-INDEX('Monthly Cash Flows'!$B54:$EC54,MATCH('Monthly CF'!AG$6,'Monthly Cash Flows'!$B$13:$EC$13)) -> -727.4237667 | AH29: =-INDEX('Monthly Cash Flows'!$B54:$EC54,MATCH('Monthly CF'!AH$6,'Monthly Cash Flows'!$B$13:$EC$13)) -> -727.4237667 | AI29: =-INDEX('Monthly Cash Flows'!$B54:$EC54,MATCH('Monthly CF'!AI$6,'Monthly Cash Flows'!$B$13:$EC$13)) -> -727.4237667 | AJ29: =-INDEX('Monthly Cash Flows'!$B54:$EC54,MATCH('Monthly CF'!AJ$6,'Monthly Cash Flows'!$B$13:$EC$13)) -> -727.4237667 | AK29: =-INDEX('Monthly Cash Flows'!$B54:$EC54,MATCH('Monthly CF'!AK$6,'Monthly Cash Flows'!$B$13:$EC$13)) -> -727.4237667 | AL29: =-INDEX('Monthly Cash Flows'!$B54:$EC54,MATCH('Monthly CF'!AL$6,'Monthly Cash Flows'!$B$13:$EC$13)) -> -727.4237667 | AM29: =-INDEX('Monthly Cash Flows'!$B54:$EC54,MATCH('Monthly CF'!AM$6,'Monthly Cash Flows'!$B$13:$EC$13)) -> -727.4237667 | AN29: =-INDEX('Monthly Cash Flows'!$B54:$EC54,MATCH('Monthly CF'!AN$6,'Monthly Cash Flows'!$B$13:$EC$13)) -> -727.4237667 | AO29: =-INDEX('Monthly Cash Flows'!$B54:$EC54,MATCH('Monthly CF'!AO$6,'Monthly Cash Flows'!$B$13:$EC$13)) -> -749.2464797 | AP29: =-INDEX('Monthly Cash Flows'!$B54:$EC54,MATCH('Monthly CF'!AP$6,'Monthly Cash Flows'!$B$13:$EC$13)) -> -749.2464797 | AQ29: =-INDEX('Monthly Cash Flows'!$B54:$EC54,MATCH('Monthly CF'!AQ$6,'Monthly Cash Flows'!$B$13:$EC$13)) -> -749.2464797 | AR29: =-INDEX('Monthly Cash Flows'!$B54:$EC54,MATCH('Monthly CF'!AR$6,'Monthly Cash Flows'!$B$13:$EC$13)) -> -749.2464797 | AS29: =-INDEX('Monthly Cash Flows'!$B54:$EC54,MATCH('Monthly CF'!AS$6,'Monthly Cash Flows'!$B$13:$EC$13)) -> -749.2464797 | AT29: =-INDEX('Monthly Cash Flows'!$B54:$EC54,MATCH('Monthly CF'!AT$6,'Monthly Cash Flows'!$B$13:$EC$13)) -> -749.2464797 | AU29: =-INDEX('Monthly Cash Flows'!$B54:$EC54,MATCH('Monthly CF'!AU$6,'Monthly Cash Flows'!$B$13:$EC$13)) -> -749.2464797 | AV29: =-INDEX('Monthly Cash Flows'!$B54:$EC54,MATCH('Monthly CF'!AV$6,'Monthly Cash Flows'!$B$13:$EC$13)) -> -749.2464797 | AW29: =-INDEX('Monthly Cash Flows'!$B54:$EC54,MATCH('Monthly CF'!AW$6,'Monthly Cash Flows'!$B$13:$EC$13)) -> -749.2464797 | AX29: =-INDEX('Monthly Cash Flows'!$B54:$EC54,MATCH('Monthly CF'!AX$6,'Monthly Cash Flows'!$B$13:$EC$13)) -> -749.2464797 | AY29: =-INDEX('Monthly Cash Flows'!$B54:$EC54,MATCH('Monthly CF'!AY$6,'Monthly Cash Flows'!$B$13:$EC$13)) -> -749.2464797 | AZ29: =-INDEX('Monthly Cash Flows'!$B54:$EC54,MATCH('Monthly CF'!AZ$6,'Monthly Cash Flows'!$B$13:$EC$13)) -> -749.2464797 | BA29: =-INDEX('Monthly Cash Flows'!$B54:$EC54,MATCH('Monthly CF'!BA$6,'Monthly Cash Flows'!$B$13:$EC$13)) -> -771.7238741 | BB29: =-INDEX('Monthly Cash Flows'!$B54:$EC54,MATCH('Monthly CF'!BB$6,'Monthly Cash Flows'!$B$13:$EC$13)) -> -771.7238741 | BC29: =-INDEX('Monthly Cash Flows'!$B54:$EC54,MATCH('Monthly CF'!BC$6,'Monthly Cash Flows'!$B$13:$EC$13)) -> -771.7238741 | BD29: =-INDEX('Monthly Cash Flows'!$B54:$EC54,MATCH('Monthly CF'!BD$6,'Monthly Cash Flows'!$B$13:$EC$13)) -> -771.7238741 | BE29: =-INDEX('Monthly Cash Flows'!$B54:$EC54,MATCH('Monthly CF'!BE$6,'Monthly Cash Flows'!$B$13:$EC$13)) -> -771.7238741 | BF29: =-INDEX('Monthly Cash Flows'!$B54:$EC54,MATCH('Monthly CF'!BF$6,'Monthly Cash Flows'!$B$13:$EC$13)) -> -771.7238741 | BG29: =-INDEX('Monthly Cash Flows'!$B54:$EC54,MATCH('Monthly CF'!BG$6,'Monthly Cash Flows'!$B$13:$EC$13)) -> -771.7238741 | BH29: =-INDEX('Monthly Cash Flows'!$B54:$EC54,MATCH('Monthly CF'!BH$6,'Monthly Cash Flows'!$B$13:$EC$13)) -> -771.7238741 | BI29: =-INDEX('Monthly Cash Flows'!$B54:$EC54,MATCH('Monthly CF'!BI$6,'Monthly Cash Flows'!$B$13:$EC$13)) -> -771.7238741 | BJ29: =-INDEX('Monthly Cash Flows'!$B54:$EC54,MATCH('Monthly CF'!BJ$6,'Monthly Cash Flows'!$B$13:$EC$13)) -> -771.7238741 | BK29: =-INDEX('Monthly Cash Flows'!$B54:$EC54,MATCH('Monthly CF'!BK$6,'Monthly Cash Flows'!$B$13:$EC$13)) -> -771.7238741 | BL29: =-INDEX('Monthly Cash Flows'!$B54:$EC54,MATCH('Monthly CF'!BL$6,'Monthly Cash Flows'!$B$13:$EC$13)) -> -771.7238741 | BM29: =-INDEX('Monthly Cash Flows'!$B54:$EC54,MATCH('Monthly CF'!BM$6,'Monthly Cash Flows'!$B$13:$EC$13)) -> -794.8755903 | BN29: =-INDEX('Monthly Cash Flows'!$B54:$EC54,MATCH('Monthly CF'!BN$6,'Monthly Cash Flows'!$B$13:$EC$13)) -> -794.8755903 | BO29: =-INDEX('Monthly Cash Flows'!$B54:$EC54,MATCH('Monthly CF'!BO$6,'Monthly Cash Flows'!$B$13:$EC$13)) -> -794.8755903 | BP29: =-INDEX('Monthly Cash Flows'!$B54:$EC54,MATCH('Monthly CF'!BP$6,'Monthly Cash Flows'!$B$13:$EC$13)) -> -794.8755903 | BQ29: =-INDEX('Monthly Cash Flows'!$B54:$EC54,MATCH('Monthly CF'!BQ$6,'Monthly Cash Flows'!$B$13:$EC$13)) -> -794.8755903 | BR29: =-INDEX('Monthly Cash Flows'!$B54:$EC54,MATCH('Monthly CF'!BR$6,'Monthly Cash Flows'!$B$13:$EC$13)) -> -794.8755903 | BS29: =-INDEX('Monthly Cash Flows'!$B54:$EC54,MATCH('Monthly CF'!BS$6,'Monthly Cash Flows'!$B$13:$EC$13)) -> -794.8755903 | BT29: =-INDEX('Monthly Cash Flows'!$B54:$EC54,MATCH('Monthly CF'!BT$6,'Monthly Cash Flows'!$B$13:$EC$13)) -> -794.8755903 | BU29: =-INDEX('Monthly Cash Flows'!$B54:$EC54,MATCH('Monthly CF'!BU$6,'Monthly Cash Flows'!$B$13:$EC$13)) -> -794.8755903 | BV29: =-INDEX('Monthly Cash Flows'!$B54:$EC54,MATCH('Monthly CF'!BV$6,'Monthly Cash Flows'!$B$13:$EC$13)) -> -794.8755903 | BW29: =-INDEX('Monthly Cash Flows'!$B54:$EC54,MATCH('Monthly CF'!BW$6,'Monthly Cash Flows'!$B$13:$EC$13)) -> -794.8755903 | BX29: =-INDEX('Monthly Cash Flows'!$B54:$EC54,MATCH('Monthly CF'!BX$6,'Monthly Cash Flows'!$B$13:$EC$13)) -> -794.8755903 | BY29: =-INDEX('Monthly Cash Flows'!$B54:$EC54,MATCH('Monthly CF'!BY$6,'Monthly Cash Flows'!$B$13:$EC$13)) -> -818.721858 | BZ29: =-INDEX('Monthly Cash Flows'!$B54:$EC54,MATCH('Monthly CF'!BZ$6,'Monthly Cash Flows'!$B$13:$EC$13)) -> -818.721858 | CA29: =-INDEX('Monthly Cash Flows'!$B54:$EC54,MATCH('Monthly CF'!CA$6,'Monthly Cash Flows'!$B$13:$EC$13)) -> -818.721858 | CB29: =-INDEX('Monthly Cash Flows'!$B54:$EC54,MATCH('Monthly CF'!CB$6,'Monthly Cash Flows'!$B$13:$EC$13)) -> -818.721858 | CC29: =-INDEX('Monthly Cash Flows'!$B54:$EC54,MATCH('Monthly CF'!CC$6,'Monthly Cash Flows'!$B$13:$EC$13)) -> -818.721858 | CD29: =-INDEX('Monthly Cash Flows'!$B54:$EC54,MATCH('Monthly CF'!CD$6,'Monthly Cash Flows'!$B$13:$EC$13)) -> -818.721858 | CE29: =-INDEX('Monthly Cash Flows'!$B54:$EC54,MATCH('Monthly CF'!CE$6,'Monthly Cash Flows'!$B$13:$EC$13)) -> -818.721858 | CF29: =-INDEX('Monthly Cash Flows'!$B54:$EC54,MATCH('Monthly CF'!CF$6,'Monthly Cash Flows'!$B$13:$EC$13)) -> -818.721858 | CG29: =-INDEX('Monthly Cash Flows'!$B54:$EC54,MATCH('Monthly CF'!CG$6,'Monthly Cash Flows'!$B$13:$EC$13)) -> -818.721858 | CH29: =-INDEX('Monthly Cash Flows'!$B54:$EC54,MATCH('Monthly CF'!CH$6,'Monthly Cash Flows'!$B$13:$EC$13)) -> -818.721858 | CI29: =-INDEX('Monthly Cash Flows'!$B54:$EC54,MATCH('Monthly CF'!CI$6,'Monthly Cash Flows'!$B$13:$EC$13)) -> -818.721858 | CJ29: =-INDEX('Monthly Cash Flows'!$B54:$EC54,MATCH('Monthly CF'!CJ$6,'Monthly Cash Flows'!$B$13:$EC$13)) -> -818.721858 | CK29: =-INDEX('Monthly Cash Flows'!$B54:$EC54,MATCH('Monthly CF'!CK$6,'Monthly Cash Flows'!$B$13:$EC$13)) -> -843.2835137 | CL29: =-INDEX('Monthly Cash Flows'!$B54:$EC54,MATCH('Monthly CF'!CL$6,'Monthly Cash Flows'!$B$13:$EC$13)) -> -843.2835137 | CM29: =-INDEX('Monthly Cash Flows'!$B54:$EC54,MATCH('Monthly CF'!CM$6,'Monthly Cash Flows'!$B$13:$EC$13)) -> -843.2835137 | CN29: =-INDEX('Monthly Cash Flows'!$B54:$EC54,MATCH('Monthly CF'!CN$6,'Monthly Cash Flows'!$B$13:$EC$13)) -> -843.2835137 | CO29: =-INDEX('Monthly Cash Flows'!$B54:$EC54,MATCH('Monthly CF'!CO$6,'Monthly Cash Flows'!$B$13:$EC$13)) -> -843.2835137 | CP29: =-INDEX('Monthly Cash Flows'!$B54:$EC54,MATCH('Monthly CF'!CP$6,'Monthly Cash Flows'!$B$13:$EC$13)) -> -843.2835137 | CQ29: =-INDEX('Monthly Cash Flows'!$B54:$EC54,MATCH('Monthly CF'!CQ$6,'Monthly Cash Flows'!$B$13:$EC$13)) -> -843.2835137 | CR29: =-INDEX('Monthly Cash Flows'!$B54:$EC54,MATCH('Monthly CF'!CR$6,'Monthly Cash Flows'!$B$13:$EC$13)) -> -843.2835137 | CS29: =-INDEX('Monthly Cash Flows'!$B54:$EC54,MATCH('Monthly CF'!CS$6,'Monthly Cash Flows'!$B$13:$EC$13)) -> -843.2835137 | CT29: =-INDEX('Monthly Cash Flows'!$B54:$EC54,MATCH('Monthly CF'!CT$6,'Monthly Cash Flows'!$B$13:$EC$13)) -> -843.2835137 | CU29: =-INDEX('Monthly Cash Flows'!$B54:$EC54,MATCH('Monthly CF'!CU$6,'Monthly Cash Flows'!$B$13:$EC$13)) -> -843.2835137 | CV29: =-INDEX('Monthly Cash Flows'!$B54:$EC54,MATCH('Monthly CF'!CV$6,'Monthly Cash Flows'!$B$13:$EC$13)) -> -843.2835137 | CW29: =-INDEX('Monthly Cash Flows'!$B54:$EC54,MATCH('Monthly CF'!CW$6,'Monthly Cash Flows'!$B$13:$EC$13)) -> -868.5820191 | CX29: =-INDEX('Monthly Cash Flows'!$B54:$EC54,MATCH('Monthly CF'!CX$6,'Monthly Cash Flows'!$B$13:$EC$13)) -> -868.5820191 | CY29: =-INDEX('Monthly Cash Flows'!$B54:$EC54,MATCH('Monthly CF'!CY$6,'Monthly Cash Flows'!$B$13:$EC$13)) -> -868.5820191 | CZ29: =-INDEX('Monthly Cash Flows'!$B54:$EC54,MATCH('Monthly CF'!CZ$6,'Monthly Cash Flows'!$B$13:$EC$13)) -> -868.5820191 | DA29: =-INDEX('Monthly Cash Flows'!$B54:$EC54,MATCH('Monthly CF'!DA$6,'Monthly Cash Flows'!$B$13:$EC$13)) -> -868.5820191 | DB29: =-INDEX('Monthly Cash Flows'!$B54:$EC54,MATCH('Monthly CF'!DB$6,'Monthly Cash Flows'!$B$13:$EC$13)) -> -868.5820191 | DC29: =-INDEX('Monthly Cash Flows'!$B54:$EC54,MATCH('Monthly CF'!DC$6,'Monthly Cash Flows'!$B$13:$EC$13)) -> -868.5820191 | DD29: =-INDEX('Monthly Cash Flows'!$B54:$EC54,MATCH('Monthly CF'!DD$6,'Monthly Cash Flows'!$B$13:$EC$13)) -> -868.5820191 | DE29: =-INDEX('Monthly Cash Flows'!$B54:$EC54,MATCH('Monthly CF'!DE$6,'Monthly Cash Flows'!$B$13:$EC$13)) -> -868.5820191 | DF29: =-INDEX('Monthly Cash Flows'!$B54:$EC54,MATCH('Monthly CF'!DF$6,'Monthly Cash Flows'!$B$13:$EC$13)) -> -868.5820191 | DG29: =-INDEX('Monthly Cash Flows'!$B54:$EC54,MATCH('Monthly CF'!DG$6,'Monthly Cash Flows'!$B$13:$EC$13)) -> -868.5820191 | DH29: =-INDEX('Monthly Cash Flows'!$B54:$EC54,MATCH('Monthly CF'!DH$6,'Monthly Cash Flows'!$B$13:$EC$13)) -> -868.5820191 | DI29: =-INDEX('Monthly Cash Flows'!$B54:$EC54,MATCH('Monthly CF'!DI$6,'Monthly Cash Flows'!$B$13:$EC$13)) -> -894.6394797 | DJ29: =-INDEX('Monthly Cash Flows'!$B54:$EC54,MATCH('Monthly CF'!DJ$6,'Monthly Cash Flows'!$B$13:$EC$13)) -> -894.6394797 | DK29: =-INDEX('Monthly Cash Flows'!$B54:$EC54,MATCH('Monthly CF'!DK$6,'Monthly Cash Flows'!$B$13:$EC$13)) -> -894.6394797 | DL29: =-INDEX('Monthly Cash Flows'!$B54:$EC54,MATCH('Monthly CF'!DL$6,'Monthly Cash Flows'!$B$13:$EC$13)) -> -894.6394797 | DM29: =-INDEX('Monthly Cash Flows'!$B54:$EC54,MATCH('Monthly CF'!DM$6,'Monthly Cash Flows'!$B$13:$EC$13)) -> -894.6394797 | DN29: =-INDEX('Monthly Cash Flows'!$B54:$EC54,MATCH('Monthly CF'!DN$6,'Monthly Cash Flows'!$B$13:$EC$13)) -> -894.6394797 | DO29: =-INDEX('Monthly Cash Flows'!$B54:$EC54,MATCH('Monthly CF'!DO$6,'Monthly Cash Flows'!$B$13:$EC$13)) -> -894.6394797 | DP29: =-INDEX('Monthly Cash Flows'!$B54:$EC54,MATCH('Monthly CF'!DP$6,'Monthly Cash Flows'!$B$13:$EC$13)) -> -894.6394797 | DQ29: =-INDEX('Monthly Cash Flows'!$B54:$EC54,MATCH('Monthly CF'!DQ$6,'Monthly Cash Flows'!$B$13:$EC$13)) -> -894.6394797 | DR29: =-INDEX('Monthly Cash Flows'!$B54:$EC54,MATCH('Monthly CF'!DR$6,'Monthly Cash Flows'!$B$13:$EC$13)) -> -894.6394797 | DS29: =-INDEX('Monthly Cash Flows'!$B54:$EC54,MATCH('Monthly CF'!DS$6,'Monthly Cash Flows'!$B$13:$EC$13)) -> -894.6394797 | DT29: =-INDEX('Monthly Cash Flows'!$B54:$EC54,MATCH('Monthly CF'!DT$6,'Monthly Cash Flows'!$B$13:$EC$13)) -> -894.6394797 | DU29: =-INDEX('Monthly Cash Flows'!$B54:$EC54,MATCH('Monthly CF'!DU$6,'Monthly Cash Flows'!$B$13:$EC$13)) -> -921.4786641 | DV29: =-INDEX('Monthly Cash Flows'!$B54:$EC54,MATCH('Monthly CF'!DV$6,'Monthly Cash Flows'!$B$13:$EC$13)) -> -921.4786641 | DW29: =-INDEX('Monthly Cash Flows'!$B54:$EC54,MATCH('Monthly CF'!DW$6,'Monthly Cash Flows'!$B$13:$EC$13)) -> -921.4786641 | DX29: =-INDEX('Monthly Cash Flows'!$B54:$EC54,MATCH('Monthly CF'!DX$6,'Monthly Cash Flows'!$B$13:$EC$13)) -> -921.4786641 | DY29: =-INDEX('Monthly Cash Flows'!$B54:$EC54,MATCH('Monthly CF'!DY$6,'Monthly Cash Flows'!$B$13:$EC$13)) -> -921.4786641 | DZ29: =-INDEX('Monthly Cash Flows'!$B54:$EC54,MATCH('Monthly CF'!DZ$6,'Monthly Cash Flows'!$B$13:$EC$13)) -> -921.4786641 | EA29: =-INDEX('Monthly Cash Flows'!$B54:$EC54,MATCH('Monthly CF'!EA$6,'Monthly Cash Flows'!$B$13:$EC$13)) -> -921.4786641 | EB29: =-INDEX('Monthly Cash Flows'!$B54:$EC54,MATCH('Monthly CF'!EB$6,'Monthly Cash Flows'!$B$13:$EC$13)) -> -921.4786641 | EC29: =-INDEX('Monthly Cash Flows'!$B54:$EC54,MATCH('Monthly CF'!EC$6,'Monthly Cash Flows'!$B$13:$EC$13)) -> -921.4786641 | ED29: =-INDEX('Monthly Cash Flows'!$B54:$EC54,MATCH('Monthly CF'!ED$6,'Monthly Cash Flows'!$B$13:$EC$13)) -> -921.4786641 | EE29: =-INDEX('Monthly Cash Flows'!$B54:$EC54,MATCH('Monthly CF'!EE$6,'Monthly Cash Flows'!$B$13:$EC$13)) -> -921.4786641 | EF29: =-INDEX('Monthly Cash Flows'!$B54:$EC54,MATCH('Monthly CF'!EF$6,'Monthly Cash Flows'!$B$13:$EC$13)) -> -921.4786641 | EG29: =-INDEX('Monthly Cash Flows'!$B54:$EC54,MATCH('Monthly CF'!EG$6,'Monthly Cash Flows'!$B$13:$EC$13)) -> -921.4786641
B30: =+'Monthly Cash Flows'!A55 -> Roof Repairs | F30: =-INDEX('Monthly Cash Flows'!$B55:$EC55,MATCH('Monthly CF'!F$6,'Monthly Cash Flows'!$B$13:$EC$13)) -> -107.25 | G30: =-INDEX('Monthly Cash Flows'!$B55:$EC55,MATCH('Monthly CF'!G$6,'Monthly Cash Flows'!$B$13:$EC$13)) -> -107.25 | H30: =-INDEX('Monthly Cash Flows'!$B55:$EC55,MATCH('Monthly CF'!H$6,'Monthly Cash Flows'!$B$13:$EC$13)) -> -107.25 | I30: =-INDEX('Monthly Cash Flows'!$B55:$EC55,MATCH('Monthly CF'!I$6,'Monthly Cash Flows'!$B$13:$EC$13)) -> -107.25 | J30: =-INDEX('Monthly Cash Flows'!$B55:$EC55,MATCH('Monthly CF'!J$6,'Monthly Cash Flows'!$B$13:$EC$13)) -> -107.25 | K30: =-INDEX('Monthly Cash Flows'!$B55:$EC55,MATCH('Monthly CF'!K$6,'Monthly Cash Flows'!$B$13:$EC$13)) -> -107.25 | L30: =-INDEX('Monthly Cash Flows'!$B55:$EC55,MATCH('Monthly CF'!L$6,'Monthly Cash Flows'!$B$13:$EC$13)) -> -107.25 | M30: =-INDEX('Monthly Cash Flows'!$B55:$EC55,MATCH('Monthly CF'!M$6,'Monthly Cash Flows'!$B$13:$EC$13)) -> -107.25 | N30: =-INDEX('Monthly Cash Flows'!$B55:$EC55,MATCH('Monthly CF'!N$6,'Monthly Cash Flows'!$B$13:$EC$13)) -> -107.25 | O30: =-INDEX('Monthly Cash Flows'!$B55:$EC55,MATCH('Monthly CF'!O$6,'Monthly Cash Flows'!$B$13:$EC$13)) -> -107.25 | P30: =-INDEX('Monthly Cash Flows'!$B55:$EC55,MATCH('Monthly CF'!P$6,'Monthly Cash Flows'!$B$13:$EC$13)) -> -107.25 | Q30: =-INDEX('Monthly Cash Flows'!$B55:$EC55,MATCH('Monthly CF'!Q$6,'Monthly Cash Flows'!$B$13:$EC$13)) -> -110.4675 | R30: =-INDEX('Monthly Cash Flows'!$B55:$EC55,MATCH('Monthly CF'!R$6,'Monthly Cash Flows'!$B$13:$EC$13)) -> -110.4675 | S30: =-INDEX('Monthly Cash Flows'!$B55:$EC55,MATCH('Monthly CF'!S$6,'Monthly Cash Flows'!$B$13:$EC$13)) -> -110.4675 | T30: =-INDEX('Monthly Cash Flows'!$B55:$EC55,MATCH('Monthly CF'!T$6,'Monthly Cash Flows'!$B$13:$EC$13)) -> -110.4675 | U30: =-INDEX('Monthly Cash Flows'!$B55:$EC55,MATCH('Monthly CF'!U$6,'Monthly Cash Flows'!$B$13:$EC$13)) -> -110.4675 | V30: =-INDEX('Monthly Cash Flows'!$B55:$EC55,MATCH('Monthly CF'!V$6,'Monthly Cash Flows'!$B$13:$EC$13)) -> -110.4675 | W30: =-INDEX('Monthly Cash Flows'!$B55:$EC55,MATCH('Monthly CF'!W$6,'Monthly Cash Flows'!$B$13:$EC$13)) -> -110.4675 | X30: =-INDEX('Monthly Cash Flows'!$B55:$EC55,MATCH('Monthly CF'!X$6,'Monthly Cash Flows'!$B$13:$EC$13)) -> -110.4675 | Y30: =-INDEX('Monthly Cash Flows'!$B55:$EC55,MATCH('Monthly CF'!Y$6,'Monthly Cash Flows'!$B$13:$EC$13)) -> -110.4675 | Z30: =-INDEX('Monthly Cash Flows'!$B55:$EC55,MATCH('Monthly CF'!Z$6,'Monthly Cash Flows'!$B$13:$EC$13)) -> -110.4675 | AA30: =-INDEX('Monthly Cash Flows'!$B55:$EC55,MATCH('Monthly CF'!AA$6,'Monthly Cash Flows'!$B$13:$EC$13)) -> -110.4675 | AB30: =-INDEX('Monthly Cash Flows'!$B55:$EC55,MATCH('Monthly CF'!AB$6,'Monthly Cash Flows'!$B$13:$EC$13)) -> -110.4675 | AC30: =-INDEX('Monthly Cash Flows'!$B55:$EC55,MATCH('Monthly CF'!AC$6,'Monthly Cash Flows'!$B$13:$EC$13)) -> -113.781525 | AD30: =-INDEX('Monthly Cash Flows'!$B55:$EC55,MATCH('Monthly CF'!AD$6,'Monthly Cash Flows'!$B$13:$EC$13)) -> -113.781525 | AE30: =-INDEX('Monthly Cash Flows'!$B55:$EC55,MATCH('Monthly CF'!AE$6,'Monthly Cash Flows'!$B$13:$EC$13)) -> -113.781525 | AF30: =-INDEX('Monthly Cash Flows'!$B55:$EC55,MATCH('Monthly CF'!AF$6,'Monthly Cash Flows'!$B$13:$EC$13)) -> -113.781525 | AG30: =-INDEX('Monthly Cash Flows'!$B55:$EC55,MATCH('Monthly CF'!AG$6,'Monthly Cash Flows'!$B$13:$EC$13)) -> -113.781525 | AH30: =-INDEX('Monthly Cash Flows'!$B55:$EC55,MATCH('Monthly CF'!AH$6,'Monthly Cash Flows'!$B$13:$EC$13)) -> -113.781525 | AI30: =-INDEX('Monthly Cash Flows'!$B55:$EC55,MATCH('Monthly CF'!AI$6,'Monthly Cash Flows'!$B$13:$EC$13)) -> -113.781525 | AJ30: =-INDEX('Monthly Cash Flows'!$B55:$EC55,MATCH('Monthly CF'!AJ$6,'Monthly Cash Flows'!$B$13:$EC$13)) -> -113.781525 | AK30: =-INDEX('Monthly Cash Flows'!$B55:$EC55,MATCH('Monthly CF'!AK$6,'Monthly Cash Flows'!$B$13:$EC$13)) -> -113.781525 | AL30: =-INDEX('Monthly Cash Flows'!$B55:$EC55,MATCH('Monthly CF'!AL$6,'Monthly Cash Flows'!$B$13:$EC$13)) -> -113.781525 | AM30: =-INDEX('Monthly Cash Flows'!$B55:$EC55,MATCH('Monthly CF'!AM$6,'Monthly Cash Flows'!$B$13:$EC$13)) -> -113.781525 | AN30: =-INDEX('Monthly Cash Flows'!$B55:$EC55,MATCH('Monthly CF'!AN$6,'Monthly Cash Flows'!$B$13:$EC$13)) -> -113.781525 | AO30: =-INDEX('Monthly Cash Flows'!$B55:$EC55,MATCH('Monthly CF'!AO$6,'Monthly Cash Flows'!$B$13:$EC$13)) -> -117.1949708 | AP30: =-INDEX('Monthly Cash Flows'!$B55:$EC55,MATCH('Monthly CF'!AP$6,'Monthly Cash Flows'!$B$13:$EC$13)) -> -117.1949708 | AQ30: =-INDEX('Monthly Cash Flows'!$B55:$EC55,MATCH('Monthly CF'!AQ$6,'Monthly Cash Flows'!$B$13:$EC$13)) -> -117.1949708 | AR30: =-INDEX('Monthly Cash Flows'!$B55:$EC55,MATCH('Monthly CF'!AR$6,'Monthly Cash Flows'!$B$13:$EC$13)) -> -117.1949708 | AS30: =-INDEX('Monthly Cash Flows'!$B55:$EC55,MATCH('Monthly CF'!AS$6,'Monthly Cash Flows'!$B$13:$EC$13)) -> -117.1949708 | AT30: =-INDEX('Monthly Cash Flows'!$B55:$EC55,MATCH('Monthly CF'!AT$6,'Monthly Cash Flows'!$B$13:$EC$13)) -> -117.1949708 | AU30: =-INDEX('Monthly Cash Flows'!$B55:$EC55,MATCH('Monthly CF'!AU$6,'Monthly Cash Flows'!$B$13:$EC$13)) -> -117.1949708 | AV30: =-INDEX('Monthly Cash Flows'!$B55:$EC55,MATCH('Monthly CF'!AV$6,'Monthly Cash Flows'!$B$13:$EC$13)) -> -117.1949708 | AW30: =-INDEX('Monthly Cash Flows'!$B55:$EC55,MATCH('Monthly CF'!AW$6,'Monthly Cash Flows'!$B$13:$EC$13)) -> -117.1949708 | AX30: =-INDEX('Monthly Cash Flows'!$B55:$EC55,MATCH('Monthly CF'!AX$6,'Monthly Cash Flows'!$B$13:$EC$13)) -> -117.1949708 | AY30: =-INDEX('Monthly Cash Flows'!$B55:$EC55,MATCH('Monthly CF'!AY$6,'Monthly Cash Flows'!$B$13:$EC$13)) -> -117.1949708 | AZ30: =-INDEX('Monthly Cash Flows'!$B55:$EC55,MATCH('Monthly CF'!AZ$6,'Monthly Cash Flows'!$B$13:$EC$13)) -> -117.1949708 | BA30: =-INDEX('Monthly Cash Flows'!$B55:$EC55,MATCH('Monthly CF'!BA$6,'Monthly Cash Flows'!$B$13:$EC$13)) -> -120.7108199 | BB30: =-INDEX('Monthly Cash Flows'!$B55:$EC55,MATCH('Monthly CF'!BB$6,'Monthly Cash Flows'!$B$13:$EC$13)) -> -120.7108199 | BC30: =-INDEX('Monthly Cash Flows'!$B55:$EC55,MATCH('Monthly CF'!BC$6,'Monthly Cash Flows'!$B$13:$EC$13)) -> -120.7108199 | BD30: =-INDEX('Monthly Cash Flows'!$B55:$EC55,MATCH('Monthly CF'!BD$6,'Monthly Cash Flows'!$B$13:$EC$13)) -> -120.7108199 | BE30: =-INDEX('Monthly Cash Flows'!$B55:$EC55,MATCH('Monthly CF'!BE$6,'Monthly Cash Flows'!$B$13:$EC$13)) -> -120.7108199 | BF30: =-INDEX('Monthly Cash Flows'!$B55:$EC55,MATCH('Monthly CF'!BF$6,'Monthly Cash Flows'!$B$13:$EC$13)) -> -120.7108199 | BG30: =-INDEX('Monthly Cash Flows'!$B55:$EC55,MATCH('Monthly CF'!BG$6,'Monthly Cash Flows'!$B$13:$EC$13)) -> -120.7108199 | BH30: =-INDEX('Monthly Cash Flows'!$B55:$EC55,MATCH('Monthly CF'!BH$6,'Monthly Cash Flows'!$B$13:$EC$13)) -> -120.7108199 | BI30: =-INDEX('Monthly Cash Flows'!$B55:$EC55,MATCH('Monthly CF'!BI$6,'Monthly Cash Flows'!$B$13:$EC$13)) -> -120.7108199 | BJ30: =-INDEX('Monthly Cash Flows'!$B55:$EC55,MATCH('Monthly CF'!BJ$6,'Monthly Cash Flows'!$B$13:$EC$13)) -> -120.7108199 | BK30: =-INDEX('Monthly Cash Flows'!$B55:$EC55,MATCH('Monthly CF'!BK$6,'Monthly Cash Flows'!$B$13:$EC$13)) -> -120.7108199 | BL30: =-INDEX('Monthly Cash Flows'!$B55:$EC55,MATCH('Monthly CF'!BL$6,'Monthly Cash Flows'!$B$13:$EC$13)) -> -120.7108199 | BM30: =-INDEX('Monthly Cash Flows'!$B55:$EC55,MATCH('Monthly CF'!BM$6,'Monthly Cash Flows'!$B$13:$EC$13)) -> -124.3321445 | BN30: =-INDEX('Monthly Cash Flows'!$B55:$EC55,MATCH('Monthly CF'!BN$6,'Monthly Cash Flows'!$B$13:$EC$13)) -> -124.3321445 | BO30: =-INDEX('Monthly Cash Flows'!$B55:$EC55,MATCH('Monthly CF'!BO$6,'Monthly Cash Flows'!$B$13:$EC$13)) -> -124.3321445 | BP30: =-INDEX('Monthly Cash Flows'!$B55:$EC55,MATCH('Monthly CF'!BP$6,'Monthly Cash Flows'!$B$13:$EC$13)) -> -124.3321445 | BQ30: =-INDEX('Monthly Cash Flows'!$B55:$EC55,MATCH('Monthly CF'!BQ$6,'Monthly Cash Flows'!$B$13:$EC$13)) -> -124.3321445 | BR30: =-INDEX('Monthly Cash Flows'!$B55:$EC55,MATCH('Monthly CF'!BR$6,'Monthly Cash Flows'!$B$13:$EC$13)) -> -124.3321445 | BS30: =-INDEX('Monthly Cash Flows'!$B55:$EC55,MATCH('Monthly CF'!BS$6,'Monthly Cash Flows'!$B$13:$EC$13)) -> -124.3321445 | BT30: =-INDEX('Monthly Cash Flows'!$B55:$EC55,MATCH('Monthly CF'!BT$6,'Monthly Cash Flows'!$B$13:$EC$13)) -> -124.3321445 | BU30: =-INDEX('Monthly Cash Flows'!$B55:$EC55,MATCH('Monthly CF'!BU$6,'Monthly Cash Flows'!$B$13:$EC$13)) -> -124.3321445 | BV30: =-INDEX('Monthly Cash Flows'!$B55:$EC55,MATCH('Monthly CF'!BV$6,'Monthly Cash Flows'!$B$13:$EC$13)) -> -124.3321445 | BW30: =-INDEX('Monthly Cash Flows'!$B55:$EC55,MATCH('Monthly CF'!BW$6,'Monthly Cash Flows'!$B$13:$EC$13)) -> -124.3321445 | BX30: =-INDEX('Monthly Cash Flows'!$B55:$EC55,MATCH('Monthly CF'!BX$6,'Monthly Cash Flows'!$B$13:$EC$13)) -> -124.3321445 | BY30: =-INDEX('Monthly Cash Flows'!$B55:$EC55,MATCH('Monthly CF'!BY$6,'Monthly Cash Flows'!$B$13:$EC$13)) -> -128.0621088 | BZ30: =-INDEX('Monthly Cash Flows'!$B55:$EC55,MATCH('Monthly CF'!BZ$6,'Monthly Cash Flows'!$B$13:$EC$13)) -> -128.0621088 | CA30: =-INDEX('Monthly Cash Flows'!$B55:$EC55,MATCH('Monthly CF'!CA$6,'Monthly Cash Flows'!$B$13:$EC$13)) -> -128.0621088 | CB30: =-INDEX('Monthly Cash Flows'!$B55:$EC55,MATCH('Monthly CF'!CB$6,'Monthly Cash Flows'!$B$13:$EC$13)) -> -128.0621088 | CC30: =-INDEX('Monthly Cash Flows'!$B55:$EC55,MATCH('Monthly CF'!CC$6,'Monthly Cash Flows'!$B$13:$EC$13)) -> -128.0621088 | CD30: =-INDEX('Monthly Cash Flows'!$B55:$EC55,MATCH('Monthly CF'!CD$6,'Monthly Cash Flows'!$B$13:$EC$13)) -> -128.0621088 | CE30: =-INDEX('Monthly Cash Flows'!$B55:$EC55,MATCH('Monthly CF'!CE$6,'Monthly Cash Flows'!$B$13:$EC$13)) -> -128.0621088 | CF30: =-INDEX('Monthly Cash Flows'!$B55:$EC55,MATCH('Monthly CF'!CF$6,'Monthly Cash Flows'!$B$13:$EC$13)) -> -128.0621088 | CG30: =-INDEX('Monthly Cash Flows'!$B55:$EC55,MATCH('Monthly CF'!CG$6,'Monthly Cash Flows'!$B$13:$EC$13)) -> -128.0621088 | CH30: =-INDEX('Monthly Cash Flows'!$B55:$EC55,MATCH('Monthly CF'!CH$6,'Monthly Cash Flows'!$B$13:$EC$13)) -> -128.0621088 | CI30: =-INDEX('Monthly Cash Flows'!$B55:$EC55,MATCH('Monthly CF'!CI$6,'Monthly Cash Flows'!$B$13:$EC$13)) -> -128.0621088 | CJ30: =-INDEX('Monthly Cash Flows'!$B55:$EC55,MATCH('Monthly CF'!CJ$6,'Monthly Cash Flows'!$B$13:$EC$13)) -> -128.0621088 | CK30: =-INDEX('Monthly Cash Flows'!$B55:$EC55,MATCH('Monthly CF'!CK$6,'Monthly Cash Flows'!$B$13:$EC$13)) -> -131.9039721 | CL30: =-INDEX('Monthly Cash Flows'!$B55:$EC55,MATCH('Monthly CF'!CL$6,'Monthly Cash Flows'!$B$13:$EC$13)) -> -131.9039721 | CM30: =-INDEX('Monthly Cash Flows'!$B55:$EC55,MATCH('Monthly CF'!CM$6,'Monthly Cash Flows'!$B$13:$EC$13)) -> -131.9039721 | CN30: =-INDEX('Monthly Cash Flows'!$B55:$EC55,MATCH('Monthly CF'!CN$6,'Monthly Cash Flows'!$B$13:$EC$13)) -> -131.9039721 | CO30: =-INDEX('Monthly Cash Flows'!$B55:$EC55,MATCH('Monthly CF'!CO$6,'Monthly Cash Flows'!$B$13:$EC$13)) -> -131.9039721 | CP30: =-INDEX('Monthly Cash Flows'!$B55:$EC55,MATCH('Monthly CF'!CP$6,'Monthly Cash Flows'!$B$13:$EC$13)) -> -131.9039721 | CQ30: =-INDEX('Monthly Cash Flows'!$B55:$EC55,MATCH('Monthly CF'!CQ$6,'Monthly Cash Flows'!$B$13:$EC$13)) -> -131.9039721 | CR30: =-INDEX('Monthly Cash Flows'!$B55:$EC55,MATCH('Monthly CF'!CR$6,'Monthly Cash Flows'!$B$13:$EC$13)) -> -131.9039721 | CS30: =-INDEX('Monthly Cash Flows'!$B55:$EC55,MATCH('Monthly CF'!CS$6,'Monthly Cash Flows'!$B$13:$EC$13)) -> -131.9039721 | CT30: =-INDEX('Monthly Cash Flows'!$B55:$EC55,MATCH('Monthly CF'!CT$6,'Monthly Cash Flows'!$B$13:$EC$13)) -> -131.9039721 | CU30: =-INDEX('Monthly Cash Flows'!$B55:$EC55,MATCH('Monthly CF'!CU$6,'Monthly Cash Flows'!$B$13:$EC$13)) -> -131.9039721 | CV30: =-INDEX('Monthly Cash Flows'!$B55:$EC55,MATCH('Monthly CF'!CV$6,'Monthly Cash Flows'!$B$13:$EC$13)) -> -131.9039721 | CW30: =-INDEX('Monthly Cash Flows'!$B55:$EC55,MATCH('Monthly CF'!CW$6,'Monthly Cash Flows'!$B$13:$EC$13)) -> -135.8610912 | CX30: =-INDEX('Monthly Cash Flows'!$B55:$EC55,MATCH('Monthly CF'!CX$6,'Monthly Cash Flows'!$B$13:$EC$13)) -> -135.8610912 | CY30: =-INDEX('Monthly Cash Flows'!$B55:$EC55,MATCH('Monthly CF'!CY$6,'Monthly Cash Flows'!$B$13:$EC$13)) -> -135.8610912 | CZ30: =-INDEX('Monthly Cash Flows'!$B55:$EC55,MATCH('Monthly CF'!CZ$6,'Monthly Cash Flows'!$B$13:$EC$13)) -> -135.8610912 | DA30: =-INDEX('Monthly Cash Flows'!$B55:$EC55,MATCH('Monthly CF'!DA$6,'Monthly Cash Flows'!$B$13:$EC$13)) -> -135.8610912 | DB30: =-INDEX('Monthly Cash Flows'!$B55:$EC55,MATCH('Monthly CF'!DB$6,'Monthly Cash Flows'!$B$13:$EC$13)) -> -135.8610912 | DC30: =-INDEX('Monthly Cash Flows'!$B55:$EC55,MATCH('Monthly CF'!DC$6,'Monthly Cash Flows'!$B$13:$EC$13)) -> -135.8610912 | DD30: =-INDEX('Monthly Cash Flows'!$B55:$EC55,MATCH('Monthly CF'!DD$6,'Monthly Cash Flows'!$B$13:$EC$13)) -> -135.8610912 | DE30: =-INDEX('Monthly Cash Flows'!$B55:$EC55,MATCH('Monthly CF'!DE$6,'Monthly Cash Flows'!$B$13:$EC$13)) -> -135.8610912 | DF30: =-INDEX('Monthly Cash Flows'!$B55:$EC55,MATCH('Monthly CF'!DF$6,'Monthly Cash Flows'!$B$13:$EC$13)) -> -135.8610912 | DG30: =-INDEX('Monthly Cash Flows'!$B55:$EC55,MATCH('Monthly CF'!DG$6,'Monthly Cash Flows'!$B$13:$EC$13)) -> -135.8610912 | DH30: =-INDEX('Monthly Cash Flows'!$B55:$EC55,MATCH('Monthly CF'!DH$6,'Monthly Cash Flows'!$B$13:$EC$13)) -> -135.8610912 | DI30: =-INDEX('Monthly Cash Flows'!$B55:$EC55,MATCH('Monthly CF'!DI$6,'Monthly Cash Flows'!$B$13:$EC$13)) -> -139.936924 | DJ30: =-INDEX('Monthly Cash Flows'!$B55:$EC55,MATCH('Monthly CF'!DJ$6,'Monthly Cash Flows'!$B$13:$EC$13)) -> -139.936924 | DK30: =-INDEX('Monthly Cash Flows'!$B55:$EC55,MATCH('Monthly CF'!DK$6,'Monthly Cash Flows'!$B$13:$EC$13)) -> -139.936924 | DL30: =-INDEX('Monthly Cash Flows'!$B55:$EC55,MATCH('Monthly CF'!DL$6,'Monthly Cash Flows'!$B$13:$EC$13)) -> -139.936924 | DM30: =-INDEX('Monthly Cash Flows'!$B55:$EC55,MATCH('Monthly CF'!DM$6,'Monthly Cash Flows'!$B$13:$EC$13)) -> -139.936924 | DN30: =-INDEX('Monthly Cash Flows'!$B55:$EC55,MATCH('Monthly CF'!DN$6,'Monthly Cash Flows'!$B$13:$EC$13)) -> -139.936924 | DO30: =-INDEX('Monthly Cash Flows'!$B55:$EC55,MATCH('Monthly CF'!DO$6,'Monthly Cash Flows'!$B$13:$EC$13)) -> -139.936924 | DP30: =-INDEX('Monthly Cash Flows'!$B55:$EC55,MATCH('Monthly CF'!DP$6,'Monthly Cash Flows'!$B$13:$EC$13)) -> -139.936924 | DQ30: =-INDEX('Monthly Cash Flows'!$B55:$EC55,MATCH('Monthly CF'!DQ$6,'Monthly Cash Flows'!$B$13:$EC$13)) -> -139.936924 | DR30: =-INDEX('Monthly Cash Flows'!$B55:$EC55,MATCH('Monthly CF'!DR$6,'Monthly Cash Flows'!$B$13:$EC$13)) -> -139.936924 | DS30: =-INDEX('Monthly Cash Flows'!$B55:$EC55,MATCH('Monthly CF'!DS$6,'Monthly Cash Flows'!$B$13:$EC$13)) -> -139.936924 | DT30: =-INDEX('Monthly Cash Flows'!$B55:$EC55,MATCH('Monthly CF'!DT$6,'Monthly Cash Flows'!$B$13:$EC$13)) -> -139.936924 | DU30: =-INDEX('Monthly Cash Flows'!$B55:$EC55,MATCH('Monthly CF'!DU$6,'Monthly Cash Flows'!$B$13:$EC$13)) -> -144.1350317 | DV30: =-INDEX('Monthly Cash Flows'!$B55:$EC55,MATCH('Monthly CF'!DV$6,'Monthly Cash Flows'!$B$13:$EC$13)) -> -144.1350317 | DW30: =-INDEX('Monthly Cash Flows'!$B55:$EC55,MATCH('Monthly CF'!DW$6,'Monthly Cash Flows'!$B$13:$EC$13)) -> -144.1350317 | DX30: =-INDEX('Monthly Cash Flows'!$B55:$EC55,MATCH('Monthly CF'!DX$6,'Monthly Cash Flows'!$B$13:$EC$13)) -> -144.1350317 | DY30: =-INDEX('Monthly Cash Flows'!$B55:$EC55,MATCH('Monthly CF'!DY$6,'Monthly Cash Flows'!$B$13:$EC$13)) -> -144.1350317 | DZ30: =-INDEX('Monthly Cash Flows'!$B55:$EC55,MATCH('Monthly CF'!DZ$6,'Monthly Cash Flows'!$B$13:$EC$13)) -> -144.1350317 | EA30: =-INDEX('Monthly Cash Flows'!$B55:$EC55,MATCH('Monthly CF'!EA$6,'Monthly Cash Flows'!$B$13:$EC$13)) -> -144.1350317 | EB30: =-INDEX('Monthly Cash Flows'!$B55:$EC55,MATCH('Monthly CF'!EB$6,'Monthly Cash Flows'!$B$13:$EC$13)) -> -144.1350317 | EC30: =-INDEX('Monthly Cash Flows'!$B55:$EC55,MATCH('Monthly CF'!EC$6,'Monthly Cash Flows'!$B$13:$EC$13)) -> -144.1350317 | ED30: =-INDEX('Monthly Cash Flows'!$B55:$EC55,MATCH('Monthly CF'!ED$6,'Monthly Cash Flows'!$B$13:$EC$13)) -> -144.1350317 | EE30: =-INDEX('Monthly Cash Flows'!$B55:$EC55,MATCH('Monthly CF'!EE$6,'Monthly Cash Flows'!$B$13:$EC$13)) -> -144.1350317 | EF30: =-INDEX('Monthly Cash Flows'!$B55:$EC55,MATCH('Monthly CF'!EF$6,'Monthly Cash Flows'!$B$13:$EC$13)) -> -144.1350317 | EG30: =-INDEX('Monthly Cash Flows'!$B55:$EC55,MATCH('Monthly CF'!EG$6,'Monthly Cash Flows'!$B$13:$EC$13)) -> -144.1350317
B31: =+'Monthly Cash Flows'!A56 -> Parking and Sidewalks | F31: =-INDEX('Monthly Cash Flows'!$B56:$EC56,MATCH('Monthly CF'!F$6,'Monthly Cash Flows'!$B$13:$EC$13)) -> -2979.416667 | G31: =-INDEX('Monthly Cash Flows'!$B56:$EC56,MATCH('Monthly CF'!G$6,'Monthly Cash Flows'!$B$13:$EC$13)) -> -2979.416667 | H31: =-INDEX('Monthly Cash Flows'!$B56:$EC56,MATCH('Monthly CF'!H$6,'Monthly Cash Flows'!$B$13:$EC$13)) -> -2979.416667 | I31: =-INDEX('Monthly Cash Flows'!$B56:$EC56,MATCH('Monthly CF'!I$6,'Monthly Cash Flows'!$B$13:$EC$13)) -> -2979.416667 | J31: =-INDEX('Monthly Cash Flows'!$B56:$EC56,MATCH('Monthly CF'!J$6,'Monthly Cash Flows'!$B$13:$EC$13)) -> -2979.416667 | K31: =-INDEX('Monthly Cash Flows'!$B56:$EC56,MATCH('Monthly CF'!K$6,'Monthly Cash Flows'!$B$13:$EC$13)) -> -2979.416667 | L31: =-INDEX('Monthly Cash Flows'!$B56:$EC56,MATCH('Monthly CF'!L$6,'Monthly Cash Flows'!$B$13:$EC$13)) -> -2979.416667 | M31: =-INDEX('Monthly Cash Flows'!$B56:$EC56,MATCH('Monthly CF'!M$6,'Monthly Cash Flows'!$B$13:$EC$13)) -> -2979.416667 | N31: =-INDEX('Monthly Cash Flows'!$B56:$EC56,MATCH('Monthly CF'!N$6,'Monthly Cash Flows'!$B$13:$EC$13)) -> -2979.416667 | O31: =-INDEX('Monthly Cash Flows'!$B56:$EC56,MATCH('Monthly CF'!O$6,'Monthly Cash Flows'!$B$13:$EC$13)) -> -2979.416667 | P31: =-INDEX('Monthly Cash Flows'!$B56:$EC56,MATCH('Monthly CF'!P$6,'Monthly Cash Flows'!$B$13:$EC$13)) -> -2979.416667 | Q31: =-INDEX('Monthly Cash Flows'!$B56:$EC56,MATCH('Monthly CF'!Q$6,'Monthly Cash Flows'!$B$13:$EC$13)) -> -3068.799167 | R31: =-INDEX('Monthly Cash Flows'!$B56:$EC56,MATCH('Monthly CF'!R$6,'Monthly Cash Flows'!$B$13:$EC$13)) -> -3068.799167 | S31: =-INDEX('Monthly Cash Flows'!$B56:$EC56,MATCH('Monthly CF'!S$6,'Monthly Cash Flows'!$B$13:$EC$13)) -> -3068.799167 | T31: =-INDEX('Monthly Cash Flows'!$B56:$EC56,MATCH('Monthly CF'!T$6,'Monthly Cash Flows'!$B$13:$EC$13)) -> -3068.799167 | U31: =-INDEX('Monthly Cash Flows'!$B56:$EC56,MATCH('Monthly CF'!U$6,'Monthly Cash Flows'!$B$13:$EC$13)) -> -3068.799167 | V31: =-INDEX('Monthly Cash Flows'!$B56:$EC56,MATCH('Monthly CF'!V$6,'Monthly Cash Flows'!$B$13:$EC$13)) -> -3068.799167 | W31: =-INDEX('Monthly Cash Flows'!$B56:$EC56,MATCH('Monthly CF'!W$6,'Monthly Cash Flows'!$B$13:$EC$13)) -> -3068.799167 | X31: =-INDEX('Monthly Cash Flows'!$B56:$EC56,MATCH('Monthly CF'!X$6,'Monthly Cash Flows'!$B$13:$EC$13)) -> -3068.799167 | Y31: =-INDEX('Monthly Cash Flows'!$B56:$EC56,MATCH('Monthly CF'!Y$6,'Monthly Cash Flows'!$B$13:$EC$13)) -> -3068.799167 | Z31: =-INDEX('Monthly Cash Flows'!$B56:$EC56,MATCH('Monthly CF'!Z$6,'Monthly Cash Flows'!$B$13:$EC$13)) -> -3068.799167 | AA31: =-INDEX('Monthly Cash Flows'!$B56:$EC56,MATCH('Monthly CF'!AA$6,'Monthly Cash Flows'!$B$13:$EC$13)) -> -3068.799167 | AB31: =-INDEX('Monthly Cash Flows'!$B56:$EC56,MATCH('Monthly CF'!AB$6,'Monthly Cash Flows'!$B$13:$EC$13)) -> -3068.799167 | AC31: =-INDEX('Monthly Cash Flows'!$B56:$EC56,MATCH('Monthly CF'!AC$6,'Monthly Cash Flows'!$B$13:$EC$13)) -> -3160.863142 | AD31: =-INDEX('Monthly Cash Flows'!$B56:$EC56,MATCH('Monthly CF'!AD$6,'Monthly Cash Flows'!$B$13:$EC$13)) -> -3160.863142 | AE31: =-INDEX('Monthly Cash Flows'!$B56:$EC56,MATCH('Monthly CF'!AE$6,'Monthly Cash Flows'!$B$13:$EC$13)) -> -3160.863142 | AF31: =-INDEX('Monthly Cash Flows'!$B56:$EC56,MATCH('Monthly CF'!AF$6,'Monthly Cash Flows'!$B$13:$EC$13)) -> -3160.863142 | AG31: =-INDEX('Monthly Cash Flows'!$B56:$EC56,MATCH('Monthly CF'!AG$6,'Monthly Cash Flows'!$B$13:$EC$13)) -> -3160.863142 | AH31: =-INDEX('Monthly Cash Flows'!$B56:$EC56,MATCH('Monthly CF'!AH$6,'Monthly Cash Flows'!$B$13:$EC$13)) -> -3160.863142 | AI31: =-INDEX('Monthly Cash Flows'!$B56:$EC56,MATCH('Monthly CF'!AI$6,'Monthly Cash Flows'!$B$13:$EC$13)) -> -3160.863142 | AJ31: =-INDEX('Monthly Cash Flows'!$B56:$EC56,MATCH('Monthly CF'!AJ$6,'Monthly Cash Flows'!$B$13:$EC$13)) -> -3160.863142 | AK31: =-INDEX('Monthly Cash Flows'!$B56:$EC56,MATCH('Monthly CF'!AK$6,'Monthly Cash Flows'!$B$13:$EC$13)) -> -3160.863142 | AL31: =-INDEX('Monthly Cash Flows'!$B56:$EC56,MATCH('Monthly CF'!AL$6,'Monthly Cash Flows'!$B$13:$EC$13)) -> -3160.863142 | AM31: =-INDEX('Monthly Cash Flows'!$B56:$EC56,MATCH('Monthly CF'!AM$6,'Monthly Cash Flows'!$B$13:$EC$13)) -> -3160.863142 | AN31: =-INDEX('Monthly Cash Flows'!$B56:$EC56,MATCH('Monthly CF'!AN$6,'Monthly Cash Flows'!$B$13:$EC$13)) -> -3160.863142 | AO31: =-INDEX('Monthly Cash Flows'!$B56:$EC56,MATCH('Monthly CF'!AO$6,'Monthly Cash Flows'!$B$13:$EC$13)) -> -3255.689036 | AP31: =-INDEX('Monthly Cash Flows'!$B56:$EC56,MATCH('Monthly CF'!AP$6,'Monthly Cash Flows'!$B$13:$EC$13)) -> -3255.689036 | AQ31: =-INDEX('Monthly Cash Flows'!$B56:$EC56,MATCH('Monthly CF'!AQ$6,'Monthly Cash Flows'!$B$13:$EC$13)) -> -3255.689036 | AR31: =-INDEX('Monthly Cash Flows'!$B56:$EC56,MATCH('Monthly CF'!AR$6,'Monthly Cash Flows'!$B$13:$EC$13)) -> -3255.689036 | AS31: =-INDEX('Monthly Cash Flows'!$B56:$EC56,MATCH('Monthly CF'!AS$6,'Monthly Cash Flows'!$B$13:$EC$13)) -> -3255.689036 | AT31: =-INDEX('Monthly Cash Flows'!$B56:$EC56,MATCH('Monthly CF'!AT$6,'Monthly Cash Flows'!$B$13:$EC$13)) -> -3255.689036 | AU31: =-INDEX('Monthly Cash Flows'!$B56:$EC56,MATCH('Monthly CF'!AU$6,'Monthly Cash Flows'!$B$13:$EC$13)) -> -3255.689036 | AV31: =-INDEX('Monthly Cash Flows'!$B56:$EC56,MATCH('Monthly CF'!AV$6,'Monthly Cash Flows'!$B$13:$EC$13)) -> -3255.689036 | AW31: =-INDEX('Monthly Cash Flows'!$B56:$EC56,MATCH('Monthly CF'!AW$6,'Monthly Cash Flows'!$B$13:$EC$13)) -> -3255.689036 | AX31: =-INDEX('Monthly Cash Flows'!$B56:$EC56,MATCH('Monthly CF'!AX$6,'Monthly Cash Flows'!$B$13:$EC$13)) -> -3255.689036 | AY31: =-INDEX('Monthly Cash Flows'!$B56:$EC56,MATCH('Monthly CF'!AY$6,'Monthly Cash Flows'!$B$13:$EC$13)) -> -3255.689036 | AZ31: =-INDEX('Monthly Cash Flows'!$B56:$EC56,MATCH('Monthly CF'!AZ$6,'Monthly Cash Flows'!$B$13:$EC$13)) -> -3255.689036 | BA31: =-INDEX('Monthly Cash Flows'!$B56:$EC56,MATCH('Monthly CF'!BA$6,'Monthly Cash Flows'!$B$13:$EC$13)) -> -3353.359707 | BB31: =-INDEX('Monthly Cash Flows'!$B56:$EC56,MATCH('Monthly CF'!BB$6,'Monthly Cash Flows'!$B$13:$EC$13)) -> -3353.359707 | BC31: =-INDEX('Monthly Cash Flows'!$B56:$EC56,MATCH('Monthly CF'!BC$6,'Monthly Cash Flows'!$B$13:$EC$13)) -> -3353.359707 | BD31: =-INDEX('Monthly Cash Flows'!$B56:$EC56,MATCH('Monthly CF'!BD$6,'Monthly Cash Flows'!$B$13:$EC$13)) -> -3353.359707 | BE31: =-INDEX('Monthly Cash Flows'!$B56:$EC56,MATCH('Monthly CF'!BE$6,'Monthly Cash Flows'!$B$13:$EC$13)) -> -3353.359707 | BF31: =-INDEX('Monthly Cash Flows'!$B56:$EC56,MATCH('Monthly CF'!BF$6,'Monthly Cash Flows'!$B$13:$EC$13)) -> -3353.359707 | BG31: =-INDEX('Monthly Cash Flows'!$B56:$EC56,MATCH('Monthly CF'!BG$6,'Monthly Cash Flows'!$B$13:$EC$13)) -> -3353.359707 | BH31: =-INDEX('Monthly Cash Flows'!$B56:$EC56,MATCH('Monthly CF'!BH$6,'Monthly Cash Flows'!$B$13:$EC$13)) -> -3353.359707 | BI31: =-INDEX('Monthly Cash Flows'!$B56:$EC56,MATCH('Monthly CF'!BI$6,'Monthly Cash Flows'!$B$13:$EC$13)) -> -3353.359707 | BJ31: =-INDEX('Monthly Cash Flows'!$B56:$EC56,MATCH('Monthly CF'!BJ$6,'Monthly Cash Flows'!$B$13:$EC$13)) -> -3353.359707 | BK31: =-INDEX('Monthly Cash Flows'!$B56:$EC56,MATCH('Monthly CF'!BK$6,'Monthly Cash Flows'!$B$13:$EC$13)) -> -3353.359707 | BL31: =-INDEX('Monthly Cash Flows'!$B56:$EC56,MATCH('Monthly CF'!BL$6,'Monthly Cash Flows'!$B$13:$EC$13)) -> -3353.359707 | BM31: =-INDEX('Monthly Cash Flows'!$B56:$EC56,MATCH('Monthly CF'!BM$6,'Monthly Cash Flows'!$B$13:$EC$13)) -> -3453.960498 | BN31: =-INDEX('Monthly Cash Flows'!$B56:$EC56,MATCH('Monthly CF'!BN$6,'Monthly Cash Flows'!$B$13:$EC$13)) -> -3453.960498 | BO31: =-INDEX('Monthly Cash Flows'!$B56:$EC56,MATCH('Monthly CF'!BO$6,'Monthly Cash Flows'!$B$13:$EC$13)) -> -3453.960498 | BP31: =-INDEX('Monthly Cash Flows'!$B56:$EC56,MATCH('Monthly CF'!BP$6,'Monthly Cash Flows'!$B$13:$EC$13)) -> -3453.960498 | BQ31: =-INDEX('Monthly Cash Flows'!$B56:$EC56,MATCH('Monthly CF'!BQ$6,'Monthly Cash Flows'!$B$13:$EC$13)) -> -3453.960498 | BR31: =-INDEX('Monthly Cash Flows'!$B56:$EC56,MATCH('Monthly CF'!BR$6,'Monthly Cash Flows'!$B$13:$EC$13)) -> -3453.960498 | BS31: =-INDEX('Monthly Cash Flows'!$B56:$EC56,MATCH('Monthly CF'!BS$6,'Monthly Cash Flows'!$B$13:$EC$13)) -> -3453.960498 | BT31: =-INDEX('Monthly Cash Flows'!$B56:$EC56,MATCH('Monthly CF'!BT$6,'Monthly Cash Flows'!$B$13:$EC$13)) -> -3453.960498 | BU31: =-INDEX('Monthly Cash Flows'!$B56:$EC56,MATCH('Monthly CF'!BU$6,'Monthly Cash Flows'!$B$13:$EC$13)) -> -3453.960498 | BV31: =-INDEX('Monthly Cash Flows'!$B56:$EC56,MATCH('Monthly CF'!BV$6,'Monthly Cash Flows'!$B$13:$EC$13)) -> -3453.960498 | BW31: =-INDEX('Monthly Cash Flows'!$B56:$EC56,MATCH('Monthly CF'!BW$6,'Monthly Cash Flows'!$B$13:$EC$13)) -> -3453.960498 | BX31: =-INDEX('Monthly Cash Flows'!$B56:$EC56,MATCH('Monthly CF'!BX$6,'Monthly Cash Flows'!$B$13:$EC$13)) -> -3453.960498 | BY31: =-INDEX('Monthly Cash Flows'!$B56:$EC56,MATCH('Monthly CF'!BY$6,'Monthly Cash Flows'!$B$13:$EC$13)) -> -3557.579313 | BZ31: =-INDEX('Monthly Cash Flows'!$B56:$EC56,MATCH('Monthly CF'!BZ$6,'Monthly Cash Flows'!$B$13:$EC$13)) -> -3557.579313 | CA31: =-INDEX('Monthly Cash Flows'!$B56:$EC56,MATCH('Monthly CF'!CA$6,'Monthly Cash Flows'!$B$13:$EC$13)) -> -3557.579313 | CB31: =-INDEX('Monthly Cash Flows'!$B56:$EC56,MATCH('Monthly CF'!CB$6,'Monthly Cash Flows'!$B$13:$EC$13)) -> -3557.579313 | CC31: =-INDEX('Monthly Cash Flows'!$B56:$EC56,MATCH('Monthly CF'!CC$6,'Monthly Cash Flows'!$B$13:$EC$13)) -> -3557.579313 | CD31: =-INDEX('Monthly Cash Flows'!$B56:$EC56,MATCH('Monthly CF'!CD$6,'Monthly Cash Flows'!$B$13:$EC$13)) -> -3557.579313 | CE31: =-INDEX('Monthly Cash Flows'!$B56:$EC56,MATCH('Monthly CF'!CE$6,'Monthly Cash Flows'!$B$13:$EC$13)) -> -3557.579313 | CF31: =-INDEX('Monthly Cash Flows'!$B56:$EC56,MATCH('Monthly CF'!CF$6,'Monthly Cash Flows'!$B$13:$EC$13)) -> -3557.579313 | CG31: =-INDEX('Monthly Cash Flows'!$B56:$EC56,MATCH('Monthly CF'!CG$6,'Monthly Cash Flows'!$B$13:$EC$13)) -> -3557.579313 | CH31: =-INDEX('Monthly Cash Flows'!$B56:$EC56,MATCH('Monthly CF'!CH$6,'Monthly Cash Flows'!$B$13:$EC$13)) -> -3557.579313 | CI31: =-INDEX('Monthly Cash Flows'!$B56:$EC56,MATCH('Monthly CF'!CI$6,'Monthly Cash Flows'!$B$13:$EC$13)) -> -3557.579313 | CJ31: =-INDEX('Monthly Cash Flows'!$B56:$EC56,MATCH('Monthly CF'!CJ$6,'Monthly Cash Flows'!$B$13:$EC$13)) -> -3557.579313 | CK31: =-INDEX('Monthly Cash Flows'!$B56:$EC56,MATCH('Monthly CF'!CK$6,'Monthly Cash Flows'!$B$13:$EC$13)) -> -3664.306693 | CL31: =-INDEX('Monthly Cash Flows'!$B56:$EC56,MATCH('Monthly CF'!CL$6,'Monthly Cash Flows'!$B$13:$EC$13)) -> -3664.306693 | CM31: =-INDEX('Monthly Cash Flows'!$B56:$EC56,MATCH('Monthly CF'!CM$6,'Monthly Cash Flows'!$B$13:$EC$13)) -> -3664.306693 | CN31: =-INDEX('Monthly Cash Flows'!$B56:$EC56,MATCH('Monthly CF'!CN$6,'Monthly Cash Flows'!$B$13:$EC$13)) -> -3664.306693 | CO31: =-INDEX('Monthly Cash Flows'!$B56:$EC56,MATCH('Monthly CF'!CO$6,'Monthly Cash Flows'!$B$13:$EC$13)) -> -3664.306693 | CP31: =-INDEX('Monthly Cash Flows'!$B56:$EC56,MATCH('Monthly CF'!CP$6,'Monthly Cash Flows'!$B$13:$EC$13)) -> -3664.306693 | CQ31: =-INDEX('Monthly Cash Flows'!$B56:$EC56,MATCH('Monthly CF'!CQ$6,'Monthly Cash Flows'!$B$13:$EC$13)) -> -3664.306693 | CR31: =-INDEX('Monthly Cash Flows'!$B56:$EC56,MATCH('Monthly CF'!CR$6,'Monthly Cash Flows'!$B$13:$EC$13)) -> -3664.306693 | CS31: =-INDEX('Monthly Cash Flows'!$B56:$EC56,MATCH('Monthly CF'!CS$6,'Monthly Cash Flows'!$B$13:$EC$13)) -> -3664.306693 | CT31: =-INDEX('Monthly Cash Flows'!$B56:$EC56,MATCH('Monthly CF'!CT$6,'Monthly Cash Flows'!$B$13:$EC$13)) -> -3664.306693 | CU31: =-INDEX('Monthly Cash Flows'!$B56:$EC56,MATCH('Monthly CF'!CU$6,'Monthly Cash Flows'!$B$13:$EC$13)) -> -3664.306693 | CV31: =-INDEX('Monthly Cash Flows'!$B56:$EC56,MATCH('Monthly CF'!CV$6,'Monthly Cash Flows'!$B$13:$EC$13)) -> -3664.306693 | CW31: =-INDEX('Monthly Cash Flows'!$B56:$EC56,MATCH('Monthly CF'!CW$6,'Monthly Cash Flows'!$B$13:$EC$13)) -> -3774.235893 | CX31: =-INDEX('Monthly Cash Flows'!$B56:$EC56,MATCH('Monthly CF'!CX$6,'Monthly Cash Flows'!$B$13:$EC$13)) -> -3774.235893 | CY31: =-INDEX('Monthly Cash Flows'!$B56:$EC56,MATCH('Monthly CF'!CY$6,'Monthly Cash Flows'!$B$13:$EC$13)) -> -3774.235893 | CZ31: =-INDEX('Monthly Cash Flows'!$B56:$EC56,MATCH('Monthly CF'!CZ$6,'Monthly Cash Flows'!$B$13:$EC$13)) -> -3774.235893 | DA31: =-INDEX('Monthly Cash Flows'!$B56:$EC56,MATCH('Monthly CF'!DA$6,'Monthly Cash Flows'!$B$13:$EC$13)) -> -3774.235893 | DB31: =-INDEX('Monthly Cash Flows'!$B56:$EC56,MATCH('Monthly CF'!DB$6,'Monthly Cash Flows'!$B$13:$EC$13)) -> -3774.235893 | DC31: =-INDEX('Monthly Cash Flows'!$B56:$EC56,MATCH('Monthly CF'!DC$6,'Monthly Cash Flows'!$B$13:$EC$13)) -> -3774.235893 | DD31: =-INDEX('Monthly Cash Flows'!$B56:$EC56,MATCH('Monthly CF'!DD$6,'Monthly Cash Flows'!$B$13:$EC$13)) -> -3774.235893 | DE31: =-INDEX('Monthly Cash Flows'!$B56:$EC56,MATCH('Monthly CF'!DE$6,'Monthly Cash Flows'!$B$13:$EC$13)) -> -3774.235893 | DF31: =-INDEX('Monthly Cash Flows'!$B56:$EC56,MATCH('Monthly CF'!DF$6,'Monthly Cash Flows'!$B$13:$EC$13)) -> -3774.235893 | DG31: =-INDEX('Monthly Cash Flows'!$B56:$EC56,MATCH('Monthly CF'!DG$6,'Monthly Cash Flows'!$B$13:$EC$13)) -> -3774.235893 | DH31: =-INDEX('Monthly Cash Flows'!$B56:$EC56,MATCH('Monthly CF'!DH$6,'Monthly Cash Flows'!$B$13:$EC$13)) -> -3774.235893 | DI31: =-INDEX('Monthly Cash Flows'!$B56:$EC56,MATCH('Monthly CF'!DI$6,'Monthly Cash Flows'!$B$13:$EC$13)) -> -3887.46297 | DJ31: =-INDEX('Monthly Cash Flows'!$B56:$EC56,MATCH('Monthly CF'!DJ$6,'Monthly Cash Flows'!$B$13:$EC$13)) -> -3887.46297 | DK31: =-INDEX('Monthly Cash Flows'!$B56:$EC56,MATCH('Monthly CF'!DK$6,'Monthly Cash Flows'!$B$13:$EC$13)) -> -3887.46297 | DL31: =-INDEX('Monthly Cash Flows'!$B56:$EC56,MATCH('Monthly CF'!DL$6,'Monthly Cash Flows'!$B$13:$EC$13)) -> -3887.46297 | DM31: =-INDEX('Monthly Cash Flows'!$B56:$EC56,MATCH('Monthly CF'!DM$6,'Monthly Cash Flows'!$B$13:$EC$13)) -> -3887.46297 | DN31: =-INDEX('Monthly Cash Flows'!$B56:$EC56,MATCH('Monthly CF'!DN$6,'Monthly Cash Flows'!$B$13:$EC$13)) -> -3887.46297 | DO31: =-INDEX('Monthly Cash Flows'!$B56:$EC56,MATCH('Monthly CF'!DO$6,'Monthly Cash Flows'!$B$13:$EC$13)) -> -3887.46297 | DP31: =-INDEX('Monthly Cash Flows'!$B56:$EC56,MATCH('Monthly CF'!DP$6,'Monthly Cash Flows'!$B$13:$EC$13)) -> -3887.46297 | DQ31: =-INDEX('Monthly Cash Flows'!$B56:$EC56,MATCH('Monthly CF'!DQ$6,'Monthly Cash Flows'!$B$13:$EC$13)) -> -3887.46297 | DR31: =-INDEX('Monthly Cash Flows'!$B56:$EC56,MATCH('Monthly CF'!DR$6,'Monthly Cash Flows'!$B$13:$EC$13)) -> -3887.46297 | DS31: =-INDEX('Monthly Cash Flows'!$B56:$EC56,MATCH('Monthly CF'!DS$6,'Monthly Cash Flows'!$B$13:$EC$13)) -> -3887.46297 | DT31: =-INDEX('Monthly Cash Flows'!$B56:$EC56,MATCH('Monthly CF'!DT$6,'Monthly Cash Flows'!$B$13:$EC$13)) -> -3887.46297 | DU31: =-INDEX('Monthly Cash Flows'!$B56:$EC56,MATCH('Monthly CF'!DU$6,'Monthly Cash Flows'!$B$13:$EC$13)) -> -4004.086859 | DV31: =-INDEX('Monthly Cash Flows'!$B56:$EC56,MATCH('Monthly CF'!DV$6,'Monthly Cash Flows'!$B$13:$EC$13)) -> -4004.086859 | DW31: =-INDEX('Monthly Cash Flows'!$B56:$EC56,MATCH('Monthly CF'!DW$6,'Monthly Cash Flows'!$B$13:$EC$13)) -> -4004.086859 | DX31: =-INDEX('Monthly Cash Flows'!$B56:$EC56,MATCH('Monthly CF'!DX$6,'Monthly Cash Flows'!$B$13:$EC$13)) -> -4004.086859 | DY31: =-INDEX('Monthly Cash Flows'!$B56:$EC56,MATCH('Monthly CF'!DY$6,'Monthly Cash Flows'!$B$13:$EC$13)) -> -4004.086859 | DZ31: =-INDEX('Monthly Cash Flows'!$B56:$EC56,MATCH('Monthly CF'!DZ$6,'Monthly Cash Flows'!$B$13:$EC$13)) -> -4004.086859 | EA31: =-INDEX('Monthly Cash Flows'!$B56:$EC56,MATCH('Monthly CF'!EA$6,'Monthly Cash Flows'!$B$13:$EC$13)) -> -4004.086859 | EB31: =-INDEX('Monthly Cash Flows'!$B56:$EC56,MATCH('Monthly CF'!EB$6,'Monthly Cash Flows'!$B$13:$EC$13)) -> -4004.086859 | EC31: =-INDEX('Monthly Cash Flows'!$B56:$EC56,MATCH('Monthly CF'!EC$6,'Monthly Cash Flows'!$B$13:$EC$13)) -> -4004.086859 | ED31: =-INDEX('Monthly Cash Flows'!$B56:$EC56,MATCH('Monthly CF'!ED$6,'Monthly Cash Flows'!$B$13:$EC$13)) -> -4004.086859 | EE31: =-INDEX('Monthly Cash Flows'!$B56:$EC56,MATCH('Monthly CF'!EE$6,'Monthly Cash Flows'!$B$13:$EC$13)) -> -4004.086859 | EF31: =-INDEX('Monthly Cash Flows'!$B56:$EC56,MATCH('Monthly CF'!EF$6,'Monthly Cash Flows'!$B$13:$EC$13)) -> -4004.086859 | EG31: =-INDEX('Monthly Cash Flows'!$B56:$EC56,MATCH('Monthly CF'!EG$6,'Monthly Cash Flows'!$B$13:$EC$13)) -> -4004.086859
B32: =+'Monthly Cash Flows'!A57 -> Plumbing Repairs | F32: =-INDEX('Monthly Cash Flows'!$B57:$EC57,MATCH('Monthly CF'!F$6,'Monthly Cash Flows'!$B$13:$EC$13)) -> -8.583333333 | G32: =-INDEX('Monthly Cash Flows'!$B57:$EC57,MATCH('Monthly CF'!G$6,'Monthly Cash Flows'!$B$13:$EC$13)) -> -8.583333333 | H32: =-INDEX('Monthly Cash Flows'!$B57:$EC57,MATCH('Monthly CF'!H$6,'Monthly Cash Flows'!$B$13:$EC$13)) -> -8.583333333 | I32: =-INDEX('Monthly Cash Flows'!$B57:$EC57,MATCH('Monthly CF'!I$6,'Monthly Cash Flows'!$B$13:$EC$13)) -> -8.583333333 | J32: =-INDEX('Monthly Cash Flows'!$B57:$EC57,MATCH('Monthly CF'!J$6,'Monthly Cash Flows'!$B$13:$EC$13)) -> -8.583333333 | K32: =-INDEX('Monthly Cash Flows'!$B57:$EC57,MATCH('Monthly CF'!K$6,'Monthly Cash Flows'!$B$13:$EC$13)) -> -8.583333333 | L32: =-INDEX('Monthly Cash Flows'!$B57:$EC57,MATCH('Monthly CF'!L$6,'Monthly Cash Flows'!$B$13:$EC$13)) -> -8.583333333 | M32: =-INDEX('Monthly Cash Flows'!$B57:$EC57,MATCH('Monthly CF'!M$6,'Monthly Cash Flows'!$B$13:$EC$13)) -> -8.583333333 | N32: =-INDEX('Monthly Cash Flows'!$B57:$EC57,MATCH('Monthly CF'!N$6,'Monthly Cash Flows'!$B$13:$EC$13)) -> -8.583333333 | O32: =-INDEX('Monthly Cash Flows'!$B57:$EC57,MATCH('Monthly CF'!O$6,'Monthly Cash Flows'!$B$13:$EC$13)) -> -8.583333333 | P32: =-INDEX('Monthly Cash Flows'!$B57:$EC57,MATCH('Monthly CF'!P$6,'Monthly Cash Flows'!$B$13:$EC$13)) -> -8.583333333 | Q32: =-INDEX('Monthly Cash Flows'!$B57:$EC57,MATCH('Monthly CF'!Q$6,'Monthly Cash Flows'!$B$13:$EC$13)) -> -8.840833333 | R32: =-INDEX('Monthly Cash Flows'!$B57:$EC57,MATCH('Monthly CF'!R$6,'Monthly Cash Flows'!$B$13:$EC$13)) -> -8.840833333 | S32: =-INDEX('Monthly Cash Flows'!$B57:$EC57,MATCH('Monthly CF'!S$6,'Monthly Cash Flows'!$B$13:$EC$13)) -> -8.840833333 | T32: =-INDEX('Monthly Cash Flows'!$B57:$EC57,MATCH('Monthly CF'!T$6,'Monthly Cash Flows'!$B$13:$EC$13)) -> -8.840833333 | U32: =-INDEX('Monthly Cash Flows'!$B57:$EC57,MATCH('Monthly CF'!U$6,'Monthly Cash Flows'!$B$13:$EC$13)) -> -8.840833333 | V32: =-INDEX('Monthly Cash Flows'!$B57:$EC57,MATCH('Monthly CF'!V$6,'Monthly Cash Flows'!$B$13:$EC$13)) -> -8.840833333 | W32: =-INDEX('Monthly Cash Flows'!$B57:$EC57,MATCH('Monthly CF'!W$6,'Monthly Cash Flows'!$B$13:$EC$13)) -> -8.840833333 | X32: =-INDEX('Monthly Cash Flows'!$B57:$EC57,MATCH('Monthly CF'!X$6,'Monthly Cash Flows'!$B$13:$EC$13)) -> -8.840833333 | Y32: =-INDEX('Monthly Cash Flows'!$B57:$EC57,MATCH('Monthly CF'!Y$6,'Monthly Cash Flows'!$B$13:$EC$13)) -> -8.840833333 | Z32: =-INDEX('Monthly Cash Flows'!$B57:$EC57,MATCH('Monthly CF'!Z$6,'Monthly Cash Flows'!$B$13:$EC$13)) -> -8.840833333 | AA32: =-INDEX('Monthly Cash Flows'!$B57:$EC57,MATCH('Monthly CF'!AA$6,'Monthly Cash Flows'!$B$13:$EC$13)) -> -8.840833333 | AB32: =-INDEX('Monthly Cash Flows'!$B57:$EC57,MATCH('Monthly CF'!AB$6,'Monthly Cash Flows'!$B$13:$EC$13)) -> -8.840833333 | AC32: =-INDEX('Monthly Cash Flows'!$B57:$EC57,MATCH('Monthly CF'!AC$6,'Monthly Cash Flows'!$B$13:$EC$13)) -> -9.106058333 | AD32: =-INDEX('Monthly Cash Flows'!$B57:$EC57,MATCH('Monthly CF'!AD$6,'Monthly Cash Flows'!$B$13:$EC$13)) -> -9.106058333 | AE32: =-INDEX('Monthly Cash Flows'!$B57:$EC57,MATCH('Monthly CF'!AE$6,'Monthly Cash Flows'!$B$13:$EC$13)) -> -9.106058333 | AF32: =-INDEX('Monthly Cash Flows'!$B57:$EC57,MATCH('Monthly CF'!AF$6,'Monthly Cash Flows'!$B$13:$EC$13)) -> -9.106058333 | AG32: =-INDEX('Monthly Cash Flows'!$B57:$EC57,MATCH('Monthly CF'!AG$6,'Monthly Cash Flows'!$B$13:$EC$13)) -> -9.106058333 | AH32: =-INDEX('Monthly Cash Flows'!$B57:$EC57,MATCH('Monthly CF'!AH$6,'Monthly Cash Flows'!$B$13:$EC$13)) -> -9.106058333 | AI32: =-INDEX('Monthly Cash Flows'!$B57:$EC57,MATCH('Monthly CF'!AI$6,'Monthly Cash Flows'!$B$13:$EC$13)) -> -9.106058333 | AJ32: =-INDEX('Monthly Cash Flows'!$B57:$EC57,MATCH('Monthly CF'!AJ$6,'Monthly Cash Flows'!$B$13:$EC$13)) -> -9.106058333 | AK32: =-INDEX('Monthly Cash Flows'!$B57:$EC57,MATCH('Monthly CF'!AK$6,'Monthly Cash Flows'!$B$13:$EC$13)) -> -9.106058333 | AL32: =-INDEX('Monthly Cash Flows'!$B57:$EC57,MATCH('Monthly CF'!AL$6,'Monthly Cash Flows'!$B$13:$EC$13)) -> -9.106058333 | AM32: =-INDEX('Monthly Cash Flows'!$B57:$EC57,MATCH('Monthly CF'!AM$6,'Monthly Cash Flows'!$B$13:$EC$13)) -> -9.106058333 | AN32: =-INDEX('Monthly Cash Flows'!$B57:$EC57,MATCH('Monthly CF'!AN$6,'Monthly Cash Flows'!$B$13:$EC$13)) -> -9.106058333 | AO32: =-INDEX('Monthly Cash Flows'!$B57:$EC57,MATCH('Monthly CF'!AO$6,'Monthly Cash Flows'!$B$13:$EC$13)) -> -9.379240083 | AP32: =-INDEX('Monthly Cash Flows'!$B57:$EC57,MATCH('Monthly CF'!AP$6,'Monthly Cash Flows'!$B$13:$EC$13)) -> -9.379240083 | AQ32: =-INDEX('Monthly Cash Flows'!$B57:$EC57,MATCH('Monthly CF'!AQ$6,'Monthly Cash Flows'!$B$13:$EC$13)) -> -9.379240083 | AR32: =-INDEX('Monthly Cash Flows'!$B57:$EC57,MATCH('Monthly CF'!AR$6,'Monthly Cash Flows'!$B$13:$EC$13)) -> -9.379240083 | AS32: =-INDEX('Monthly Cash Flows'!$B57:$EC57,MATCH('Monthly CF'!AS$6,'Monthly Cash Flows'!$B$13:$EC$13)) -> -9.379240083 | AT32: =-INDEX('Monthly Cash Flows'!$B57:$EC57,MATCH('Monthly CF'!AT$6,'Monthly Cash Flows'!$B$13:$EC$13)) -> -9.379240083 | AU32: =-INDEX('Monthly Cash Flows'!$B57:$EC57,MATCH('Monthly CF'!AU$6,'Monthly Cash Flows'!$B$13:$EC$13)) -> -9.379240083 | AV32: =-INDEX('Monthly Cash Flows'!$B57:$EC57,MATCH('Monthly CF'!AV$6,'Monthly Cash Flows'!$B$13:$EC$13)) -> -9.379240083 | AW32: =-INDEX('Monthly Cash Flows'!$B57:$EC57,MATCH('Monthly CF'!AW$6,'Monthly Cash Flows'!$B$13:$EC$13)) -> -9.379240083 | AX32: =-INDEX('Monthly Cash Flows'!$B57:$EC57,MATCH('Monthly CF'!AX$6,'Monthly Cash Flows'!$B$13:$EC$13)) -> -9.379240083 | AY32: =-INDEX('Monthly Cash Flows'!$B57:$EC57,MATCH('Monthly CF'!AY$6,'Monthly Cash Flows'!$B$13:$EC$13)) -> -9.379240083 | AZ32: =-INDEX('Monthly Cash Flows'!$B57:$EC57,MATCH('Monthly CF'!AZ$6,'Monthly Cash Flows'!$B$13:$EC$13)) -> -9.379240083 | BA32: =-INDEX('Monthly Cash Flows'!$B57:$EC57,MATCH('Monthly CF'!BA$6,'Monthly Cash Flows'!$B$13:$EC$13)) -> -9.660617286 | BB32: =-INDEX('Monthly Cash Flows'!$B57:$EC57,MATCH('Monthly CF'!BB$6,'Monthly Cash Flows'!$B$13:$EC$13)) -> -9.660617286 | BC32: =-INDEX('Monthly Cash Flows'!$B57:$EC57,MATCH('Monthly CF'!BC$6,'Monthly Cash Flows'!$B$13:$EC$13)) -> -9.660617286 | BD32: =-INDEX('Monthly Cash Flows'!$B57:$EC57,MATCH('Monthly CF'!BD$6,'Monthly Cash Flows'!$B$13:$EC$13)) -> -9.660617286 | BE32: =-INDEX('Monthly Cash Flows'!$B57:$EC57,MATCH('Monthly CF'!BE$6,'Monthly Cash Flows'!$B$13:$EC$13)) -> -9.660617286 | BF32: =-INDEX('Monthly Cash Flows'!$B57:$EC57,MATCH('Monthly CF'!BF$6,'Monthly Cash Flows'!$B$13:$EC$13)) -> -9.660617286 | BG32: =-INDEX('Monthly Cash Flows'!$B57:$EC57,MATCH('Monthly CF'!BG$6,'Monthly Cash Flows'!$B$13:$EC$13)) -> -9.660617286 | BH32: =-INDEX('Monthly Cash Flows'!$B57:$EC57,MATCH('Monthly CF'!BH$6,'Monthly Cash Flows'!$B$13:$EC$13)) -> -9.660617286 | BI32: =-INDEX('Monthly Cash Flows'!$B57:$EC57,MATCH('Monthly CF'!BI$6,'Monthly Cash Flows'!$B$13:$EC$13)) -> -9.660617286 | BJ32: =-INDEX('Monthly Cash Flows'!$B57:$EC57,MATCH('Monthly CF'!BJ$6,'Monthly Cash Flows'!$B$13:$EC$13)) -> -9.660617286 | BK32: =-INDEX('Monthly Cash Flows'!$B57:$EC57,MATCH('Monthly CF'!BK$6,'Monthly Cash Flows'!$B$13:$EC$13)) -> -9.660617286 | BL32: =-INDEX('Monthly Cash Flows'!$B57:$EC57,MATCH('Monthly CF'!BL$6,'Monthly Cash Flows'!$B$13:$EC$13)) -> -9.660617286 | BM32: =-INDEX('Monthly Cash Flows'!$B57:$EC57,MATCH('Monthly CF'!BM$6,'Monthly Cash Flows'!$B$13:$EC$13)) -> -9.950435804 | BN32: =-INDEX('Monthly Cash Flows'!$B57:$EC57,MATCH('Monthly CF'!BN$6,'Monthly Cash Flows'!$B$13:$EC$13)) -> -9.950435804 | BO32: =-INDEX('Monthly Cash Flows'!$B57:$EC57,MATCH('Monthly CF'!BO$6,'Monthly Cash Flows'!$B$13:$EC$13)) -> -9.950435804 | BP32: =-INDEX('Monthly Cash Flows'!$B57:$EC57,MATCH('Monthly CF'!BP$6,'Monthly Cash Flows'!$B$13:$EC$13)) -> -9.950435804 | BQ32: =-INDEX('Monthly Cash Flows'!$B57:$EC57,MATCH('Monthly CF'!BQ$6,'Monthly Cash Flows'!$B$13:$EC$13)) -> -9.950435804 | BR32: =-INDEX('Monthly Cash Flows'!$B57:$EC57,MATCH('Monthly CF'!BR$6,'Monthly Cash Flows'!$B$13:$EC$13)) -> -9.950435804 | BS32: =-INDEX('Monthly Cash Flows'!$B57:$EC57,MATCH('Monthly CF'!BS$6,'Monthly Cash Flows'!$B$13:$EC$13)) -> -9.950435804 | BT32: =-INDEX('Monthly Cash Flows'!$B57:$EC57,MATCH('Monthly CF'!BT$6,'Monthly Cash Flows'!$B$13:$EC$13)) -> -9.950435804 | BU32: =-INDEX('Monthly Cash Flows'!$B57:$EC57,MATCH('Monthly CF'!BU$6,'Monthly Cash Flows'!$B$13:$EC$13)) -> -9.950435804 | BV32: =-INDEX('Monthly Cash Flows'!$B57:$EC57,MATCH('Monthly CF'!BV$6,'Monthly Cash Flows'!$B$13:$EC$13)) -> -9.950435804 | BW32: =-INDEX('Monthly Cash Flows'!$B57:$EC57,MATCH('Monthly CF'!BW$6,'Monthly Cash Flows'!$B$13:$EC$13)) -> -9.950435804 | BX32: =-INDEX('Monthly Cash Flows'!$B57:$EC57,MATCH('Monthly CF'!BX$6,'Monthly Cash Flows'!$B$13:$EC$13)) -> -9.950435804 | BY32: =-INDEX('Monthly Cash Flows'!$B57:$EC57,MATCH('Monthly CF'!BY$6,'Monthly Cash Flows'!$B$13:$EC$13)) -> -10.24894888 | BZ32: =-INDEX('Monthly Cash Flows'!$B57:$EC57,MATCH('Monthly CF'!BZ$6,'Monthly Cash Flows'!$B$13:$EC$13)) -> -10.24894888 | CA32: =-INDEX('Monthly Cash Flows'!$B57:$EC57,MATCH('Monthly CF'!CA$6,'Monthly Cash Flows'!$B$13:$EC$13)) -> -10.24894888 | CB32: =-INDEX('Monthly Cash Flows'!$B57:$EC57,MATCH('Monthly CF'!CB$6,'Monthly Cash Flows'!$B$13:$EC$13)) -> -10.24894888 | CC32: =-INDEX('Monthly Cash Flows'!$B57:$EC57,MATCH('Monthly CF'!CC$6,'Monthly Cash Flows'!$B$13:$EC$13)) -> -10.24894888 | CD32: =-INDEX('Monthly Cash Flows'!$B57:$EC57,MATCH('Monthly CF'!CD$6,'Monthly Cash Flows'!$B$13:$EC$13)) -> -10.24894888 | CE32: =-INDEX('Monthly Cash Flows'!$B57:$EC57,MATCH('Monthly CF'!CE$6,'Monthly Cash Flows'!$B$13:$EC$13)) -> -10.24894888 | CF32: =-INDEX('Monthly Cash Flows'!$B57:$EC57,MATCH('Monthly CF'!CF$6,'Monthly Cash Flows'!$B$13:$EC$13)) -> -10.24894888 | CG32: =-INDEX('Monthly Cash Flows'!$B57:$EC57,MATCH('Monthly CF'!CG$6,'Monthly Cash Flows'!$B$13:$EC$13)) -> -10.24894888 | CH32: =-INDEX('Monthly Cash Flows'!$B57:$EC57,MATCH('Monthly CF'!CH$6,'Monthly Cash Flows'!$B$13:$EC$13)) -> -10.24894888 | CI32: =-INDEX('Monthly Cash Flows'!$B57:$EC57,MATCH('Monthly CF'!CI$6,'Monthly Cash Flows'!$B$13:$EC$13)) -> -10.24894888 | CJ32: =-INDEX('Monthly Cash Flows'!$B57:$EC57,MATCH('Monthly CF'!CJ$6,'Monthly Cash Flows'!$B$13:$EC$13)) -> -10.24894888 | CK32: =-INDEX('Monthly Cash Flows'!$B57:$EC57,MATCH('Monthly CF'!CK$6,'Monthly Cash Flows'!$B$13:$EC$13)) -> -10.55641734 | CL32: =-INDEX('Monthly Cash Flows'!$B57:$EC57,MATCH('Monthly CF'!CL$6,'Monthly Cash Flows'!$B$13:$EC$13)) -> -10.55641734 | CM32: =-INDEX('Monthly Cash Flows'!$B57:$EC57,MATCH('Monthly CF'!CM$6,'Monthly Cash Flows'!$B$13:$EC$13)) -> -10.55641734 | CN32: =-INDEX('Monthly Cash Flows'!$B57:$EC57,MATCH('Monthly CF'!CN$6,'Monthly Cash Flows'!$B$13:$EC$13)) -> -10.55641734 | CO32: =-INDEX('Monthly Cash Flows'!$B57:$EC57,MATCH('Monthly CF'!CO$6,'Monthly Cash Flows'!$B$13:$EC$13)) -> -10.55641734 | CP32: =-INDEX('Monthly Cash Flows'!$B57:$EC57,MATCH('Monthly CF'!CP$6,'Monthly Cash Flows'!$B$13:$EC$13)) -> -10.55641734 | CQ32: =-INDEX('Monthly Cash Flows'!$B57:$EC57,MATCH('Monthly CF'!CQ$6,'Monthly Cash Flows'!$B$13:$EC$13)) -> -10.55641734 | CR32: =-INDEX('Monthly Cash Flows'!$B57:$EC57,MATCH('Monthly CF'!CR$6,'Monthly Cash Flows'!$B$13:$EC$13)) -> -10.55641734 | CS32: =-INDEX('Monthly Cash Flows'!$B57:$EC57,MATCH('Monthly CF'!CS$6,'Monthly Cash Flows'!$B$13:$EC$13)) -> -10.55641734 | CT32: =-INDEX('Monthly Cash Flows'!$B57:$EC57,MATCH('Monthly CF'!CT$6,'Monthly Cash Flows'!$B$13:$EC$13)) -> -10.55641734 | CU32: =-INDEX('Monthly Cash Flows'!$B57:$EC57,MATCH('Monthly CF'!CU$6,'Monthly Cash Flows'!$B$13:$EC$13)) -> -10.55641734 | CV32: =-INDEX('Monthly Cash Flows'!$B57:$EC57,MATCH('Monthly CF'!CV$6,'Monthly Cash Flows'!$B$13:$EC$13)) -> -10.55641734 | CW32: =-INDEX('Monthly Cash Flows'!$B57:$EC57,MATCH('Monthly CF'!CW$6,'Monthly Cash Flows'!$B$13:$EC$13)) -> -10.87310987 | CX32: =-INDEX('Monthly Cash Flows'!$B57:$EC57,MATCH('Monthly CF'!CX$6,'Monthly Cash Flows'!$B$13:$EC$13)) -> -10.87310987 | CY32: =-INDEX('Monthly Cash Flows'!$B57:$EC57,MATCH('Monthly CF'!CY$6,'Monthly Cash Flows'!$B$13:$EC$13)) -> -10.87310987 | CZ32: =-INDEX('Monthly Cash Flows'!$B57:$EC57,MATCH('Monthly CF'!CZ$6,'Monthly Cash Flows'!$B$13:$EC$13)) -> -10.87310987 | DA32: =-INDEX('Monthly Cash Flows'!$B57:$EC57,MATCH('Monthly CF'!DA$6,'Monthly Cash Flows'!$B$13:$EC$13)) -> -10.87310987 | DB32: =-INDEX('Monthly Cash Flows'!$B57:$EC57,MATCH('Monthly CF'!DB$6,'Monthly Cash Flows'!$B$13:$EC$13)) -> -10.87310987 | DC32: =-INDEX('Monthly Cash Flows'!$B57:$EC57,MATCH('Monthly CF'!DC$6,'Monthly Cash Flows'!$B$13:$EC$13)) -> -10.87310987 | DD32: =-INDEX('Monthly Cash Flows'!$B57:$EC57,MATCH('Monthly CF'!DD$6,'Monthly Cash Flows'!$B$13:$EC$13)) -> -10.87310987 | DE32: =-INDEX('Monthly Cash Flows'!$B57:$EC57,MATCH('Monthly CF'!DE$6,'Monthly Cash Flows'!$B$13:$EC$13)) -> -10.87310987 | DF32: =-INDEX('Monthly Cash Flows'!$B57:$EC57,MATCH('Monthly CF'!DF$6,'Monthly Cash Flows'!$B$13:$EC$13)) -> -10.87310987 | DG32: =-INDEX('Monthly Cash Flows'!$B57:$EC57,MATCH('Monthly CF'!DG$6,'Monthly Cash Flows'!$B$13:$EC$13)) -> -10.87310987 | DH32: =-INDEX('Monthly Cash Flows'!$B57:$EC57,MATCH('Monthly CF'!DH$6,'Monthly Cash Flows'!$B$13:$EC$13)) -> -10.87310987 | DI32: =-INDEX('Monthly Cash Flows'!$B57:$EC57,MATCH('Monthly CF'!DI$6,'Monthly Cash Flows'!$B$13:$EC$13)) -> -11.19930316 | DJ32: =-INDEX('Monthly Cash Flows'!$B57:$EC57,MATCH('Monthly CF'!DJ$6,'Monthly Cash Flows'!$B$13:$EC$13)) -> -11.19930316 | DK32: =-INDEX('Monthly Cash Flows'!$B57:$EC57,MATCH('Monthly CF'!DK$6,'Monthly Cash Flows'!$B$13:$EC$13)) -> -11.19930316 | DL32: =-INDEX('Monthly Cash Flows'!$B57:$EC57,MATCH('Monthly CF'!DL$6,'Monthly Cash Flows'!$B$13:$EC$13)) -> -11.19930316 | DM32: =-INDEX('Monthly Cash Flows'!$B57:$EC57,MATCH('Monthly CF'!DM$6,'Monthly Cash Flows'!$B$13:$EC$13)) -> -11.19930316 | DN32: =-INDEX('Monthly Cash Flows'!$B57:$EC57,MATCH('Monthly CF'!DN$6,'Monthly Cash Flows'!$B$13:$EC$13)) -> -11.19930316 | DO32: =-INDEX('Monthly Cash Flows'!$B57:$EC57,MATCH('Monthly CF'!DO$6,'Monthly Cash Flows'!$B$13:$EC$13)) -> -11.19930316 | DP32: =-INDEX('Monthly Cash Flows'!$B57:$EC57,MATCH('Monthly CF'!DP$6,'Monthly Cash Flows'!$B$13:$EC$13)) -> -11.19930316 | DQ32: =-INDEX('Monthly Cash Flows'!$B57:$EC57,MATCH('Monthly CF'!DQ$6,'Monthly Cash Flows'!$B$13:$EC$13)) -> -11.19930316 | DR32: =-INDEX('Monthly Cash Flows'!$B57:$EC57,MATCH('Monthly CF'!DR$6,'Monthly Cash Flows'!$B$13:$EC$13)) -> -11.19930316 | DS32: =-INDEX('Monthly Cash Flows'!$B57:$EC57,MATCH('Monthly CF'!DS$6,'Monthly Cash Flows'!$B$13:$EC$13)) -> -11.19930316 | DT32: =-INDEX('Monthly Cash Flows'!$B57:$EC57,MATCH('Monthly CF'!DT$6,'Monthly Cash Flows'!$B$13:$EC$13)) -> -11.19930316 | DU32: =-INDEX('Monthly Cash Flows'!$B57:$EC57,MATCH('Monthly CF'!DU$6,'Monthly Cash Flows'!$B$13:$EC$13)) -> -11.53528226 | DV32: =-INDEX('Monthly Cash Flows'!$B57:$EC57,MATCH('Monthly CF'!DV$6,'Monthly Cash Flows'!$B$13:$EC$13)) -> -11.53528226 | DW32: =-INDEX('Monthly Cash Flows'!$B57:$EC57,MATCH('Monthly CF'!DW$6,'Monthly Cash Flows'!$B$13:$EC$13)) -> -11.53528226 | DX32: =-INDEX('Monthly Cash Flows'!$B57:$EC57,MATCH('Monthly CF'!DX$6,'Monthly Cash Flows'!$B$13:$EC$13)) -> -11.53528226 | DY32: =-INDEX('Monthly Cash Flows'!$B57:$EC57,MATCH('Monthly CF'!DY$6,'Monthly Cash Flows'!$B$13:$EC$13)) -> -11.53528226 | DZ32: =-INDEX('Monthly Cash Flows'!$B57:$EC57,MATCH('Monthly CF'!DZ$6,'Monthly Cash Flows'!$B$13:$EC$13)) -> -11.53528226 | EA32: =-INDEX('Monthly Cash Flows'!$B57:$EC57,MATCH('Monthly CF'!EA$6,'Monthly Cash Flows'!$B$13:$EC$13)) -> -11.53528226 | EB32: =-INDEX('Monthly Cash Flows'!$B57:$EC57,MATCH('Monthly CF'!EB$6,'Monthly Cash Flows'!$B$13:$EC$13)) -> -11.53528226 | EC32: =-INDEX('Monthly Cash Flows'!$B57:$EC57,MATCH('Monthly CF'!EC$6,'Monthly Cash Flows'!$B$13:$EC$13)) -> -11.53528226 | ED32: =-INDEX('Monthly Cash Flows'!$B57:$EC57,MATCH('Monthly CF'!ED$6,'Monthly Cash Flows'!$B$13:$EC$13)) -> -11.53528226 | EE32: =-INDEX('Monthly Cash Flows'!$B57:$EC57,MATCH('Monthly CF'!EE$6,'Monthly Cash Flows'!$B$13:$EC$13)) -> -11.53528226 | EF32: =-INDEX('Monthly Cash Flows'!$B57:$EC57,MATCH('Monthly CF'!EF$6,'Monthly Cash Flows'!$B$13:$EC$13)) -> -11.53528226 | EG32: =-INDEX('Monthly Cash Flows'!$B57:$EC57,MATCH('Monthly CF'!EG$6,'Monthly Cash Flows'!$B$13:$EC$13)) -> -11.53528226
